{"text_format":"1","workbook":"xlsx","n_sheets":10,"sheets":["TA","Seasonal Adj Factors","SUMMARY","Chart","Overlay Design","Introduction","FWD Data","CALC","MAPPING","Sheet2"],"not_rendered":{"charts":7,"images":5,"macros":1,"external_links":1,"defined_names":18,"comments":0,"pivot_tables":0},"unopened":[],"bounds":{"document_bytes":16777216,"sheet_cells":100000,"rows_first":2000,"rows_last":500,"rows_between":2000,"halvings":0,"cell_chars":16384,"cell_head_chars":4096},"cells_cut":0,"cells_raw":0,"read":"whole","date_system":"1900"}

{"sheet":"TA","index":0,"n_rows":15,"n_cols":7,"rows_kept":15,"cut":false,"hidden":true,"merged":[[5,1,5,2],[5,3,5,6],[6,1,6,2],[7,1,7,2],[8,1,8,2]]}
[null,null,null,0,25,50,150.01]
[1,2,3,4,5,6,7]
[null,null,"One-way ESALs","< 25","25 - 50","50 - 150","> 150"]
[null,"Traffic","two-way ADT","< 500","500 - 1000","1000 - 3000","> 3000"]
[null,null,"two-way HCADT","< 25","25 - 50","50 - 150","> 150"]
[null,"Surface Thickness, in.",null,"Allowable Deflections, inches"]
[0,"less than 3 in.",null,7.4999999999999997E-2,7.0000000000000007E-2,0.06,4.4999999999999998E-2]
[3,"3 to 6 in.",null,6.5000000000000002E-2,0.06,0.05,0.04]
[6.01,"greater than 6 in.",null,5.5E-2,0.05,0.04,3.5000000000000003E-2]
[]
[]
[null,null,151,{"$f":"HLOOKUP($C$12,$D$1:$G$2,2)","v":7}]
[null,null,6.01,{"$f":"VLOOKUP($C$13,$A$7:$G$9,$D$12)","v":3.5000000000000003E-2}]
[]
[null,null,null,{"$f":"VLOOKUP($C$13,$A$7:$G$9,HLOOKUP($C$12,$D$1:$G$2,2))","v":3.5000000000000003E-2}]

{"sheet":"Seasonal Adj Factors","index":1,"n_rows":28,"n_cols":17,"rows_kept":28,"cut":false,"hidden":true,"merged":[[1,4,1,12]]}
[]
[null,null,null,null,"BENKELMAN BEAM SEASONAL CORRECTION FACTORS"]
[]
[null,null,null,null,"2006-12-31",null,null,null,null,null,null,null,null,null,"bit",2,{"$f":"VLOOKUP(P4,C10:D14,2)","v":1}]
[null,null,"Date",null,"2007-05-01","2007-05-16","2007-06-01","2007-06-16","2007-07-01","2007-07-16","2007-08-01","2007-08-16","2007-09-01",null,"julian",137,{"$f":"HLOOKUP(P5,E6:M7,2)","v":2}]
[null,null,"Julian",null,{"$f":"YEARFRAC($E$4,E5,3)*365-1","v":120.00000000000001},{"$f":"YEARFRAC($E$4,F5,3)*365","v":136},152,167,182,197,213.00000000000003,228,244]
[null,null,null,"Index",1,2,3,4,5,6,7,8,9]
[null,null,null,null,"2001-05-01","2001-05-16","2001-06-01","2001-06-16","2001-07-01","2001-07-16","2001-08-01","2001-08-16"]
[null,null,"Bit Lmt","Index","2001-05-15","2001-05-31","2001-06-15","2001-06-30","2001-07-15","2001-07-31","2001-08-15","2001-08-31","Sept."]
["Plastic","=< 2.0\"",0,1,1.1200000000000001,1.29,1.44,1.53,1.6,1.65,1.69,1.73,1.79]
["Plastic",">2\" & <= 3.5\"",2.0099999999999998,2,1.17,1.34,1.5,1.59,1.63,1.67,1.71,1.73,1.75]
["Plastic",">3.5\" & <= 5.5\"",3.51,3,1.1399999999999999,1.24,1.37,1.43,1.5,1.58,1.64,1.7,1.71,null,"SAF",{"$f":"INDEX(E10:M14,Q4,Q5)","v":1.29}]
["Plastic",">5.5\" & <= 8.0\"",5.51,4,1.17,1.25,1.25,1.25,1.26,1.3,1.41,1.5,1.55]
["Plastic",">8.0\" Flex.",8.01,5,1.1299999999999999,1.18,1.1599999999999999,1.1299999999999999,1.1499999999999999,1.18,1.29,1.37,1.45]
["Plastic",">8.0\" F-D",null,null,1.1200000000000001,1.1599999999999999,1.1599999999999999,1.1000000000000001,1.0900000000000001,1.1499999999999999,1.33,1.46,1.55]
[]
[]
[null,null,null,null,"2001-05-01","2001-05-16","2001-06-01","2001-06-16","2001-07-01","2001-07-16","2001-08-01","2001-08-16",null,null,"bit",{"$f":"+P4","v":2},{"$f":"VLOOKUP(P18,C20:D21,2)","v":1}]
[null,null,null,null,"2001-05-15","2001-05-31","2001-06-15","2001-06-30","2001-07-15","2001-07-31","2001-08-15","2001-08-31","Sept."]
["SP","=< 5.0\"",0,1,1.1599999999999999,1.35,1.4,1.5,1.52,1.51,1.48,1.46,1.45,null,"SAF",{"$f":"INDEX(E20:M21,Q18,Q5)","v":1.35}]
["SP",">  5.0\"",5.01,2,1.29,1.4,1.46,1.5,1.54,1.58,1.64,1.69,1.71]
[]
[]
[null,null,null,null,"2001-05-01","2001-05-16","2001-06-01","2001-06-16","2001-07-01","2001-07-16","2001-08-01","2001-08-16",null,null,"bit",{"$f":"+P4","v":2},{"$f":"VLOOKUP(P24,C26:D28,2)","v":1}]
[null,null,null,null,"2001-05-15","2001-05-31","2001-06-15","2001-06-30","2001-07-15","2001-07-31","2001-08-15","2001-08-31","Sept."]
["NP","=< 2.0\"",0,1,1.3,1.41,1.72,1.79,1.83,1.83,1.88,1.88,1.88]
["NP",">2\" & <= 5.5\"",2.0099999999999998,2,1.21,1.36,1.47,1.53,1.58,1.56,1.52,1.49,1.44,null,"SAF",{"$f":"INDEX(E26:M28,Q24,Q5)","v":1.41}]
["NP",">5.5\" & <= 8.0\"",5.51,3,1,1.02,0.98,1,1.05,1.05,1.07,1.1100000000000001,1.1100000000000001]

{"sheet":"SUMMARY","index":2,"n_rows":1011,"n_cols":34,"rows_kept":1011,"cut":false,"hidden":false,"merged":[[4,16,4,19],[8,16,8,19],[3,19,3,21],[2,19,2,21]]}
[" Version TONN2010 - 1.06",null,null,"Test Date",null,null,null,"Pave. Temp.","Segments (20 max)",null,null,null,null,null,null,null,null,null,null,null,null,null,null,null,null,null,null,"Plastic",null,"Conventional",null,"1 - ADT <500              HCADT <25"]
[null,null,null,{"$f":"'FWD Data'!C4","v":"2013-05-28"},null,null,null,{"$f":"AVERAGE(CALC!C6:C1001)","v":65.091666889190677},{"$f":"AH8","v":1},null,null,null,null,null,null,{"$f":"IF(I2>20,\"TOO MANY SEGMENTS. REDUCE CHANGES TO HMA OR BASE THICKNESS\",\"\")","v":""},null,null,null,null,null,null,null,null,null,null,null,"Semi-Plastic",null,"Full Depth",null,"2 - ADT 500-1000       HCADT 25-50"]
[null,null,null,"Roadway","From Station","State","State","To Statiion","District",null,"            TONN ANALYSIS",null,null,null,"State","Control Section",null,"Lane","Direction","Lat. and Long.",null,null,"State",null,null,null,null,"Non-Plastic",null,null,null,"3 - ADT 1000-3000     HCADT 50-150"]
[null,null,null,{"$f":"'FWD Data'!A2","v":"JACKSON CSAH 23"},{"$f":"D11","v":0.1},"Aid","Aid",{"$f":"OFFSET(D11:D1184,B11-1,0,1,1)","v":1.2},{"$f":"'FWD Data'!C6","v":"7B"},"Calculated","Reported",null,null,null,"Aid",{"$f":"'FWD Data'!B2","v":"903223"},null,{"$f":"'FWD Data'!E6","v":"Driving"},{"$f":"IF('FWD Data'!D6>0,\"Increasing\",IF('FWD Data'!D6<0,\"Decreasing\",0))","v":"Increasing"},{"$f":"ROUND('FWD Data'!AB6,4)&\", \"&ROUND('FWD Data'!AC6,4)","v":"43.6439, -94.9745"},null,null,"Aid",null,null,null,null,"ENTER TYPE",1,1,null,"4 - ADT >3000            HCADT >150"]
["Previous Day's",null,null,null,null,null,null,null,null,"Capacity, Tons",null,"Overlay, in.","Life, ESALs","R-value","GE","Capacity, Tons","Moduli Statistics",null,null,null,"Depth to","#1 Defl.","R-value",null,null,null,4,4,null,null,null,null,"ENTER TRAFFIC"]
["Max. Temp. ⁰F",null,null,null,null,null,null,null,"85% Percentile",{"$f":"PERCENTILE(J11:J1001,0.15)","v":{"$error":"#NUM!"}},null,{"$f":"PERCENTILE(L11:L1001,0.85)","v":{"$error":"#NUM!"}},{"$f":"PERCENTILE(M11:M1001,0.15)","v":{"$error":"#NUM!"}},{"$f":"PERCENTILE(N11:N1001,0.15)","v":12.308428187759917},{"$f":"IFERROR(PERCENTILE(O11:O1001,0.15),\"\")","v":""},{"$f":"VLOOKUP(I6,AB26:AC27,2)","v":{"$error":"#NUM!"}},"AC","HMA (72° F)","Base","Subgrade","Stiff Layer","(mils)",{"$f":"IFERROR(PERCENTILE(W11:W1001,0.15),\"\")","v":""}]
["Min. Temp. ⁰F",null,null,null,null,null,null,null,"Average",{"$f":"AVERAGE(J11:J1001)","v":{"$error":"#DIV/0!"}},null,{"$f":"AVERAGE(L11:L1001)","v":{"$error":"#DIV/0!"}},{"$f":"AVERAGE(M11:M1001)","v":{"$error":"#DIV/0!"}},{"$f":"AVERAGE(N11:N1001)","v":17.565388282475585},{"$f":"IFERROR(AVERAGE(O11:O1001),\"\")","v":""},{"$f":"AVERAGE(P11:P1001)","v":{"$error":"#DIV/0!"}},{"$f":"AVERAGE(Q11:Q1001)","v":{"$error":"#DIV/0!"}},{"$error":"#DIV/0!"},{"$error":"#DIV/0!"},{"$f":"AVERAGE(T11:T1001)","v":{"$error":"#DIV/0!"}},{"$error":"#DIV/0!"},{"$f":"AVERAGE(V11:V1001)","v":9.5233335422887944},{"$f":"IFERROR(AVERAGE(W11:W1001),\"\")","v":""},null,null,null,null,null,null,null,5,5]
["Avg. Temp. ⁰ F",{"$f":"(B6+B7)/2","v":0},null,null,null,null,null,null,"Std. Dev.",{"$f":"STDEV(J11:J1001)","v":{"$error":"#DIV/0!"}},null,{"$f":"STDEV(L11:L1001)","v":{"$error":"#DIV/0!"}},{"$f":"STDEV(M11:M1001)","v":{"$error":"#DIV/0!"}},{"$f":"STDEV(N11:N1001)","v":7.4774814384294661},{"$f":"IFERROR(STDEV(O11:O1001),\"\")","v":""},{"$f":"STDEV(P11:P1001)","v":{"$error":"#DIV/0!"}},{"$f":"STDEV(Q11:Q1001)","v":{"$error":"#DIV/0!"}},{"$error":"#DIV/0!"},{"$error":"#DIV/0!"},{"$error":"#DIV/0!"},{"$error":"#DIV/0!"},{"$f":"STDEV(V11:V1001)","v":4.1755400862697192},{"$f":"IFERROR(STDEV(W11:W1001),\"\")","v":""},null,null,null,null,"Daily ESALs",{"$f":"IF(AF7=1,20,IF(AF7=2,35,IF(AF7=3,100,200)))","v":200},null,null,null,null,{"$f":"OFFSET(AH11:AH1011,B11-1,0,1,1)","v":1}]
[null,null,null,null,"HMA"," Soil","Traffic","Base",null,"Calculated","TONN2010 subgrade",null,null,null,null,"TONN2010","Moduli",null,null,null,"Depth to","#1 Defl.","S.A.",null,null,null,null,null,null,{"$f":"IFERROR(VLOOKUP(AE9,AE10:AF97,2),1)","v":1}]
["HMA Thickness (inches)",null,null,"Station","Thickness"," Type","Cat.","Thickness","ESALs","Capacity, Tons","as ksi for chart","Overlay, in.","Life, ESALs","R-value","GE","Capacity, Tons","EAC","HMA (72° F)","Base","Subgrade","Stiff Layer","(mils)","R-Value",null,null,null,null,{"$f":"COUNT($B$6:$B$7)<2","v":true},null,1,null,1,null,"segments"]
[null,{"$f":"COUNT(D11:D1001)","v":12},null,{"$f":"CALC!A6","v":0.1},0,null,null,0,0,{"$f":"IFERROR(CALC!U6,\" \")","v":" "},{"$f":"IF(T11=\"\",NA(),T11/1000)","v":{"$error":"#N/A"}},{"$f":"IFERROR(CALC!X6,\" \")","v":" "},{"$f":"IFERROR(CALC!Y6,\" \")","v":" "},{"$f":"IFERROR(CALC!AE6,\" \")","v":14.379582745364754},{"$f":"IF(AND(E11<>\"\",F11<>\"\",G11<>\"\",B$8<>0),IFERROR(CALC!AF6,\" \"),\"\")","v":""},null,null,null,null,null,null,12.850000563603137,{"$f":"IF(T11>0,(0.41+0.873*T11/1000)^1.28,\" \")","v":" "},null,null,null,null,{"$f":"$B$11-COUNTIF($E$11:$E$1000,\">0\")>0","v":true},null,2,"Aitkin",2,null,1]
[null,null,null,{"$f":"CALC!A7","v":0.18},0,null,null,0,0,{"$f":"IFERROR(CALC!U7,\" \")","v":" "},{"$f":"IF(T12=\"\",NA(),T12/1000)","v":{"$error":"#N/A"}},{"$f":"IFERROR(CALC!X7,\" \")","v":" "},{"$f":"IFERROR(CALC!Y7,\" \")","v":" "},{"$f":"IFERROR(CALC!AE7,\" \")","v":16.875566082439164},{"$f":"IF(AND(E12<>\"\",F12<>\"\",G12<>\"\",B$8<>0),IFERROR(CALC!AF7,\" \"),\"\")","v":""},null,null,null,null,null,null,9.9200000811940381,{"$f":"IF(T12>0,(0.41+0.873*T12/1000)^1.28,\" \")","v":" "},null,null,null,null,{"$f":"$B$11-(COUNTIF($F$11:$F$1000,\"p\")+COUNTIF($F$11:$F$1000,\"s\")+COUNTIF($F$11:$F$1000,\"n\"))>0","v":true},null,3,"Anoka",3,null,{"$f":"IF(AND(E12=E11,H12=H11),AH11,AH11+1)","v":1}]
["Base Thickness (inches)",null,null,{"$f":"CALC!A8","v":0.3},0,null,null,0,0,{"$f":"IFERROR(CALC!U8,\" \")","v":" "},{"$error":"#N/A"},{"$f":"IFERROR(CALC!X8,\" \")","v":" "},{"$f":"IFERROR(CALC!Y8,\" \")","v":" "},{"$f":"IFERROR(CALC!AE8,\" \")","v":16.298116806732441},{"$f":"IF(AND(E13<>\"\",F13<>\"\",G13<>\"\",B$8<>0),IFERROR(CALC!AF8,\" \"),\"\")","v":""},null,null,null,null,null,null,10.130000066562085," ",null,null,null,null,{"$f":"($B$11-COUNTIF($G$11:$G$1000,\">0\")+COUNTIF($G$11:$G$1000,\">4\"))>0","v":true},null,4,"Becker",4,null,{"$f":"IF(AND(E13=E12,H13=H12),AH12,AH12+1)","v":1}]
[null,null,null,{"$f":"CALC!A9","v":0.4},0,null,null,0,0,{"$f":"IFERROR(CALC!U9,\" \")","v":" "},{"$error":"#N/A"},{"$f":"IFERROR(CALC!X9,\" \")","v":" "},{"$f":"IFERROR(CALC!Y9,\" \")","v":" "},{"$f":"IFERROR(CALC!AE9,\" \")","v":13.696579050207108},{"$f":"IF(AND(E14<>\"\",F14<>\"\",G14<>\"\",B$8<>0),IFERROR(CALC!AF9,\" \"),\"\")","v":""},null,null,null,null,null,null,8.969999889926326," ",null,null,null,null,{"$f":"IF(AND(AB10=FALSE,AB11=FALSE,AB12=FALSE,AB13=FALSE),0,1)","v":1},null,5,"Beltrami",5,null,1]
[null,null,null,{"$f":"CALC!A10","v":0.5},0,null,null,0,0,{"$f":"IFERROR(CALC!U10,\" \")","v":" "},{"$error":"#N/A"},{"$f":"IFERROR(CALC!X10,\" \")","v":" "},{"$f":"IFERROR(CALC!Y10,\" \")","v":" "},{"$f":"IFERROR(CALC!AE10,\" \")","v":11.00191226083515},{"$f":"IF(AND(E15<>\"\",F15<>\"\",G15<>\"\",B$8<>0),IFERROR(CALC!AF10,\" \"),\"\")","v":""},null,null,null,null,null,null,11.23000016155844," ",null,null,null,null,null,null,6,"Benton",6,null,1]
["Design ESALs",null,null,{"$f":"CALC!A11","v":0.6},0,null,null,0,0,{"$f":"IFERROR(CALC!U11,\" \")","v":" "},{"$error":"#N/A"},{"$f":"IFERROR(CALC!X11,\" \")","v":" "},{"$f":"IFERROR(CALC!Y11,\" \")","v":" "},{"$f":"IFERROR(CALC!AE11,\" \")","v":16.427043542937611},{"$f":"IF(AND(E16<>\"\",F16<>\"\",G16<>\"\",B$8<>0),IFERROR(CALC!AF11,\" \"),\"\")","v":""},null,null,null,null,null,null,7.3300002616547975," ",null,null,null,null,null,null,7,"Big Stone",7,null,1]
[null,null,null,{"$f":"CALC!A12","v":0.7},0,null,null,0,0,{"$f":"IFERROR(CALC!U12,\" \")","v":" "},{"$error":"#N/A"},{"$f":"IFERROR(CALC!X12,\" \")","v":" "},{"$f":"IFERROR(CALC!Y12,\" \")","v":" "},{"$f":"IFERROR(CALC!AE12,\" \")","v":13.01193676379633},{"$f":"IF(AND(E17<>\"\",F17<>\"\",G17<>\"\",B$8<>0),IFERROR(CALC!AF12,\" \"),\"\")","v":""},null,null,null,null,null,null,9.070000226238573," ",null,null,null,null,"count",null,8,"Blue Earth",8,null,1]
[null,null,null,{"$f":"CALC!A13","v":0.8},0,null,null,0,0,{"$f":"IFERROR(CALC!U13,\" \")","v":" "},{"$error":"#N/A"},{"$f":"IFERROR(CALC!X13,\" \")","v":" "},{"$f":"IFERROR(CALC!Y13,\" \")","v":" "},{"$f":"IFERROR(CALC!AE13,\" \")","v":20.692139992250631},{"$f":"IF(AND(E18<>\"\",F18<>\"\",G18<>\"\",B$8<>0),IFERROR(CALC!AF13,\" \"),\"\")","v":""},null,null,null,null,null,null,6.7399999594837752," ",null,null,null,"TONN",{"$f":"COUNT($P$11:$P$2011)","v":0},null,9,"Brown",9,null,1]
["County",null,null,{"$f":"CALC!A14","v":0.9},0,null,null,0,0,{"$f":"IFERROR(CALC!U14,\" \")","v":" "},{"$error":"#N/A"},{"$f":"IFERROR(CALC!X14,\" \")","v":" "},{"$f":"IFERROR(CALC!Y14,\" \")","v":" "},{"$f":"IFERROR(CALC!AE14,\" \")","v":17.316137859163},{"$f":"IF(AND(E19<>\"\",F19<>\"\",G19<>\"\",B$8<>0),IFERROR(CALC!AF14,\" \"),\"\")","v":""},null,null,null,null,null,null,7.1200002762867509," ",null,null,null,"HMA",{"$f":"COUNT($R$11:$R$2011)","v":0},null,10,"Carlton",10,null,1]
[null,null,null,{"$f":"CALC!A15","v":0.99},0,null,null,0,0,{"$f":"IFERROR(CALC!U15,\" \")","v":" "},{"$error":"#N/A"},{"$f":"IFERROR(CALC!X15,\" \")","v":" "},{"$f":"IFERROR(CALC!Y15,\" \")","v":" "},{"$f":"IFERROR(CALC!AE15,\" \")","v":10.169224947716462},{"$f":"IF(AND(E20<>\"\",F20<>\"\",G20<>\"\",B$8<>0),IFERROR(CALC!AF15,\" \"),\"\")","v":""},null,null,null,null,null,null,20.460000805748663," ",null,null,null,"BASE",{"$f":"COUNT($S$11:$S$2011)","v":0},null,11,"Carver",11,null,1]
[null,null,null,{"$f":"CALC!A16","v":1.1000000000000001},0,null,null,0,0,{"$f":"IFERROR(CALC!U16,\" \")","v":" "},{"$error":"#N/A"},{"$f":"IFERROR(CALC!X16,\" \")","v":" "},{"$f":"IFERROR(CALC!Y16,\" \")","v":" "},{"$f":"IFERROR(CALC!AE16,\" \")","v":22.529131723332966},{"$f":"IF(AND(E21<>\"\",F21<>\"\",G21<>\"\",B$8<>0),IFERROR(CALC!AF16,\" \"),\"\")","v":""},null,null,null,null,null,null,6.2200002531751615," ",null,null,null,"SUB",{"$f":"COUNT($T$11:$T$2011)","v":0},null,12,"Cass",12,null,1]
[null,null,null,{"$f":"CALC!A17","v":1.2},0,null,null,0,0,{"$f":"IFERROR(CALC!U17,\" \")","v":" "},{"$error":"#N/A"},{"$f":"IFERROR(CALC!X17,\" \")","v":" "},{"$f":"IFERROR(CALC!Y17,\" \")","v":" "},{"$f":"IFERROR(CALC!AE17,\" \")","v":38.387287614931417},{"$f":"IF(AND(E22<>\"\",F22<>\"\",G22<>\"\",B$8<>0),IFERROR(CALC!AF17,\" \"),\"\")","v":""},null,null,null,null,null,null,4.2399999620337754," ",null,null,null,"R-Value",{"$f":"COUNT($V$11:$V$2011)","v":12},null,13,"Chippewa",13,null,1]
[null,null,null,null,null,null,null,null,null,null,null,null,null,null,null,null,null,null,null,null,null,null,null,null,null,null,null,null,null,14,"Chisago",14,null,1]
[null,null,null,null,null,null,null,null,null,null,null,null,null,null,null,null,null,null,null,null,null,null,null,null,null,null,null,null,null,15,"Clay",15,null,1]
[1,null,null,null,null,null,null,null,null,null,null,null,null,null,null,null,null,null,null,null,null,null,null,null,null,null,null,null,null,16,"Clearwater",16,null,1]
[{"$f":"AVERAGE(I11:I101)","v":0},null,null,null,null,null,null,null,null,null,null,null,null,null,null,null,null,null,null,null,null,null,null,null,null,null,null,"85% Percentile",{"$f":"PERCENTILE(P11:P2000,0.15)","v":{"$error":"#NUM!"}},17,"Cook",17,null,1]
[null,null,null,null,null,null,null,null,null,null,null,null,null,null,null,null,null,null,null,null,null,null,null,null,null,null,null,"85% Reliability",{"$f":"AVERAGE(INDIRECT(\"p\" & 11):INDIRECT(\"p\" & 10+B11))+STDEV(INDIRECT(\"p\" & 11):INDIRECT(\"p\" & 10+B11))*NORMSINV(1-85/100)","v":{"$error":"#DIV/0!"}},18,"Cottonwood",18,null,1]
[null,null,null,null,null,null,null,null,null,null,null,null,null,null,null,null,null,null,null,null,null,null,null,null,null,null,null,null,null,19,"Crow Wing",19,null,1]
[null,null,null,null,null,null,null,null,null,null,null,null,null,null,null,null,null,null,null,null,null,null,null,null,null,null,null,null,null,20,"Dakota",20,null,1]
[null,null,null,null,null,null,null,null,null,null,null,null,null,null,null,null,null,null,null,null,null,null,null,null,null,null,null,null,null,21,"Dodge",21,null,1]
["Soil Type",null,null,null,null,null,null,null,null,null,null,null,null,null,null,null,null,null,null,null,null,null,null,null,null,null,null,null,null,22,"Douglas",22,null,1]
[null,{"$f":"IF(AB5=1,\"P\",IF(AB5=2,\"S\",\"N\"))","v":"N"},null,null,null,null,null,null,null,null,null,null,null,null,null,null,null,null,null,null,null,null,null,null,null,null,null,null,null,23,"Faribault",23,null,1]
[null,null,null,null,null,null,null,null,null,null,null,null,null,null,null,null,null,null,null,null,null,null,null,null,null,null,null,null,null,24,"Fillmore",24,null,1]
["Traffic Category",null,null,null,null,null,null,null,null,null,null,null,null,null,null,null,null,null,null,null,null,null,null,null,null,null,null,null,null,25,"Freeborn",25,null,1]
[null,null,null,null,null,null,null,null,null,null,null,null,null,null,null,null,null,null,null,null,null,null,null,null,null,null,null,null,null,26,"Goodhue",26,null,1]
[null,null,null,null,null,null,null,null,null,null,null,null,null,null,null,null,null,null,null,null,null,null,null,null,null,null,null,null,null,27,"Grant",27,null,1]
[null,{"$f":"IF(AD4=1,\"C\",\"F\")","v":"C"},null,null,null,null,null,null,null,null,null,null,null,null,null,null,null,null,null,null,null,null,null,null,null,null,null,null,null,28,"Hennepin",28,null,1]
["Conv/Full Depth",null,null,null,null,null,null,null,null,null,null,null,null,null,null,null,null,null,null,null,null,null,null,null,null,null,null,null,null,29,"Houston",29,null,1]
[null,null,null,null,null,null,null,null,null,null,null,null,null,null,null,null,null,null,null,null,null,null,null,null,null,null,null,null,null,30,"Hubbard",30,null,1]
[null,null,null,null,null,null,null,null,null,null,null,null,null,null,null,null,null,null,null,null,null,null,null,null,null,null,null,null,null,31,"Isanti",31,null,1]
[null,null,null,null,null,null,null,null,null,null,null,null,null,null,null,null,null,null,null,null,null,null,null,null,null,null,null,null,null,32,"Itasca",32,null,1]
[null,null,null,null,null,null,null,null,null,null,null,null,null,null,null,null,null,null,null,null,null,null,null,null,null,null,null,null,null,33,"Jackson",33,null,1]
["This button will estimate the ",null,null,null,null,null,null,null,null,null,null,null,null,null,null,null,null,null,null,null,null,null,null,null,null,null,null,null,null,34,"Kanabec",34,null,1]
["number of ESALs that will ",null,null,null,null,null,null,null,null,null,null,null,null,null,null,null,null,null,null,null,null,null,null,null,null,null,null,null,null,35,"Kandiyohi",35,null,1]
["result in a rating of 10-tons.",null,null,null,null,null,null,null,null,null,null,null,null,null,null,null,null,null,null,null,null,null,null,null,null,null,null,null,null,36,"Kittson",36,null,1]
[null,null,null,null,null,null,null,null,null,null,null,null,null,null,null,null,null,null,null,null,null,null,null,null,null,null,null,null,null,37,"Koochiching",37,null,1]
[null,null,null,null,null,null,null,null,null,null,null,null,null,null,null,null,null,null,null,null,null,null,null,null,null,null,null,null,null,38,"Lac qui Parle                                                             ",38,null,1]
[null,null,null,null,null,null,null,null,null,null,null,null,null,null,null,null,null,null,null,null,null,null,null,null,null,null,null,null,null,39,"Lake",39,null,1]
[null,null,null,null,null,null,null,null,null,null,null,null,null,null,null,null,null,null,null,null,null,null,null,null,null,null,null,null,null,40,"Lake of the Woods ",40,null,1]
[" This button will estimate the ",null,null,null,null,null,null,null,null,null,null,null,null,null,null,null,null,null,null,null,null,null,null,null,null,null,null,null,null,41,"Le Sueur",41,null,1]
[" number of ESALs that will ",null,null,null,null,null,null,null,null,null,null,null,null,null,null,null,null,null,null,null,null,null,null,null,null,null,null,null,null,42,"Lincoln",42,null,1]
[" result in a rating of 10-tons.",null,null,null,null,null,null,null,null,null,null,null,null,null,null,null,null,null,null,null,null,null,null,null,null,null,null,null,null,43,"Lyon",43,null,1]
[null,null,null,null,null,null,null,null,null,null,null,null,null,null,null,null,null,null,null,null,null,null,null,null,null,null,null,null,null,44,"McLeod",44,null,1]
[null,null,null,null,null,null,null,null,null,null,null,null,null,null,null,null,null,null,null,null,null,null,null,null,null,null,null,null,null,45,"Mahnomen",45,null,1]
[null,null,null,null,null,null,null,null,null,null,null,null,null,null,null,null,null,null,null,null,null,null,null,null,null,null,null,null,null,46,"Marshall",46,null,1]
[null,null,null,null,null,null,null,null,null,null,null,null,null,null,null,null,null,null,null,null,null,null,null,null,null,null,null,null,null,47,"Martin",47,null,1]
[null,null,null,null,null,null,null,null,null,null,null,null,null,null,null,null,null,null,null,null,null,null,null,null,null,null,null,null,null,48,"Meeker",48,null,1]
[null,null,null,null,null,null,null,null,null,null,null,null,null,null,null,null,null,null,null,null,null,null,null,null,null,null,null,null,null,49,"Mille Lacs",49,null,1]
[null,null,null,null,null,null,null,null,null,null,null,null,null,null,null,null,null,null,null,null,null,null,null,null,null,null,null,null,null,50,"Morrison",50,null,1]
[null,null,null,null,null,null,null,null,null,null,null,null,null,null,null,null,null,null,null,null,null,null,null,null,null,null,null,null,null,51,"Mower",51,null,1]
[null,null,null,null,null,null,null,null,null,null,null,null,null,null,null,null,null,null,null,null,null,null,null,null,null,null,null,null,null,52,"Murray",52,null,1]
[null,null,null,null,null,null,null,null,null,null,null,null,null,null,null,null,null,null,null,null,null,null,null,null,null,null,null,null,null,53,"Nicollet",53,null,1]
[null,null,null,null,null,null,null,null,null,null,null,null,null,null,null,null,null,null,null,null,null,null,null,null,null,null,null,null,null,54,"Nobles",54,null,1]
[null,null,null,null,null,null,null,null,null,null,null,null,null,null,null,null,null,null,null,null,null,null,null,null,null,null,null,null,null,55,"Norman",55,null,1]
[null,null,null,null,null,null,null,null,null,null,null,null,null,null,null,null,null,null,null,null,null,null,null,null,null,null,null,null,null,56,"Olmsted",56,null,1]
[null,null,null,null,null,null,null,null,null,null,null,null,null,null,null,null,null,null,null,null,null,null,null,null,null,null,null,null,null,57,"Otter Tail",57,null,1]
[null,null,null,null,null,null,null,null,null,null,null,null,null,null,null,null,null,null,null,null,null,null,null,null,null,null,null,null,null,58,"Pennington",58,null,1]
[null,null,null,null,null,null,null,null,null,null,null,null,null,null,null,null,null,null,null,null,null,null,null,null,null,null,null,null,null,59,"Pine ",59,null,1]
[null,null,null,null,null,null,null,null,null,null,null,null,null,null,null,null,null,null,null,null,null,null,null,null,null,null,null,null,null,60,"Pipestone",60,null,1]
[null,null,null,null,null,null,null,null,null,null,null,null,null,null,null,null,null,null,null,null,null,null,null,null,null,null,null,null,null,61,"Polk",61,null,1]
[null,null,null,null,null,null,null,null,null,null,null,null,null,null,null,null,null,null,null,null,null,null,null,null,null,null,null,null,null,62,"Pope",62,null,1]
[null,null,null,null,null,null,null,null,null,null,null,null,null,null,null,null,null,null,null,null,null,null,null,null,null,null,null,null,null,63,"Ramsey",63,null,1]
[null,null,null,null,null,null,null,null,null,null,null,null,null,null,null,null,null,null,null,null,null,null,null,null,null,null,null,null,null,64,"Red Lake",64,null,1]
[null,null,null,null,null,null,null,null,null,null,null,null,null,null,null,null,null,null,null,null,null,null,null,null,null,null,null,null,null,65,"Redwood",65,null,1]
[null,null,null,null,null,null,null,null,null,null,null,null,null,null,null,null,null,null,null,null,null,null,null,null,null,null,null,null,null,66,"Renville",66,null,1]
[null,null,null,null,null,null,null,null,null,null,null,null,null,null,null,null,null,null,null,null,null,null,null,null,null,null,null,null,null,67,"Rice",67,null,1]
[null,null,null,null,null,null,null,null,null,null,null,null,null,null,null,null,null,null,null,null,null,null,null,null,null,null,null,null,null,68,"Rock",68,null,{"$f":"IF(AND(E77=E76,H77=H76),AH76,AH76+1)","v":1}]
[null,null,null,null,null,null,null,null,null,null,null,null,null,null,null,null,null,null,null,null,null,null,null,null,null,null,null,null,null,69,"Roseau",69,null,1]
[null,null,null,null,null,null,null,null,null,null,null,null,null,null,null,null,null,null,null,null,null,null,null,null,null,null,null,null,null,70,"Scott",70,null,1]
[null,null,null,null,null,null,null,null,null,null,null,null,null,null,null,null,null,null,null,null,null,null,null,null,null,null,null,null,null,71,"Sherbourne",71,null,1]
[null,null,null,null,null,null,null,null,null,null,null,null,null,null,null,null,null,null,null,null,null,null,null,null,null,null,null,null,null,72,"Sibley",72,null,1]
[null,null,null,null,null,null,null,null,null,null,null,null,null,null,null,null,null,null,null,null,null,null,null,null,null,null,null,null,null,73,"St. Louis",73,null,1]
[null,null,null,null,null,null,null,null,null,null,null,null,null,null,null,null,null,null,null,null,null,null,null,null,null,null,null,null,null,74,"Stearns",74,null,1]
[null,null,null,null,null,null,null,null,null,null,null,null,null,null,null,null,null,null,null,null,null,null,null,null,null,null,null,null,null,75,"Steele",75,null,1]
[null,null,null,null,null,null,null,null,null,null,null,null,null,null,null,null,null,null,null,null,null,null,null,null,null,null,null,null,null,76,"Stevens",76,null,1]
[null,null,null,null,null,null,null,null,null,null,null,null,null,null,null,null,null,null,null,null,null,null,null,null,null,null,null,null,null,77,"Swift",77,null,1]
[null,null,null,null,null,null,null,null,null,null,null,null,null,null,null,null,null,null,null,null,null,null,null,null,null,null,null,null,null,78,"Todd",78,null,1]
[null,null,null,null,null,null,null,null,null,null,null,null,null,null,null,null,null,null,null,null,null,null,null,null,null,null,null,null,null,79,"Traverse",79,null,1]
[null,null,null,null,null,null,null,null,null,null,null,null,null,null,null,null,null,null,null,null,null,null,null,null,null,null,null,null,null,80,"Wabasha",80,null,1]
[null,null,null,null,null,null,null,null,null,null,null,null,null,null,null,null,null,null,null,null,null,null,null,null,null,null,null,null,null,81,"Wadena",81,null,1]
[null,null,null,null,null,null,null,null,null,null,null,null,null,null,null,null,null,null,null,null,null,null,null,null,null,null,null,null,null,82,"Waseca",82,null,1]
[null,null,null,null,null,null,null,null,null,null,null,null,null,null,null,null,null,null,null,null,null,null,null,null,null,null,null,null,null,83,"Washington",83,null,1]
[null,null,null,null,null,null,null,null,null,null,null,null,null,null,null,null,null,null,null,null,null,null,null,null,null,null,null,null,null,84,"Watonwan",84,null,1]
[null,null,null,null,null,null,null,null,null,null,null,null,null,null,null,null,null,null,null,null,null,null,null,null,null,null,null,null,null,85,"Wilkin",85,null,1]
[null,null,null,null,null,null,null,null,null,null,null,null,null,null,null,null,null,null,null,null,null,null,null,null,null,null,null,null,null,86,"Winona",86,null,1]
[null,null,null,null,null,null,null,null,null,null,null,null,null,null,null,null,null,null,null,null,null,null,null,null,null,null,null,null,null,87,"Wright",87,null,1]
[null,null,null,null,null,null,null,null,null,null,null,null,null,null,null,null,null,null,null,null,null,null,null,null,null,null,null,null,null,88,"Yellow Medicine",88,null,1]
[null,null,null,null,null,null,null,null,null,null,null,null,null,null,null,null,null,null,null,null,null,null,null,null,null,null,null,null,null,null,null,null,null,1]
[null,null,null,null,null,null,null,null,null,null,null,null,null,null,null,null,null,null,null,null,null,null,null,null,null,null,null,null,null,null,null,null,null,1]
[null,null,null,null,null,null,null,null,null,null,null,null,null,null,null,null,null,null,null,null,null,null,null,null,null,null,null,null,null,null,null,null,null,1]
[null,null,null,null,null,null,null,null,null,null,null,null,null,null,null,null,null,null,null,null,null,null,null,null,null,null,null,null,null,null,null,null,null,1]
[null,null,null,null,null,null,null,null,null,null,null,null,null,null,null,null,null,null,null,null,null,null,null,null,null,null,null,null,null,null,null,null,null,1]
[null,null,null,null,null,null,null,null,null,null,null,null,null,null,null,null,null,null,null,null,null,null,null,null,null,null,null,null,null,null,null,null,null,1]
[null,null,null,null,null,null,null,null,null,null,null,null,null,null,null,null,null,null,null,null,null,null,null,null,null,null,null,null,null,null,null,null,null,1]
[null,null,null,null,null,null,null,null,null,null,null,null,null,null,null,null,null,null,null,null,null,null,null,null,null,null,null,null,null,null,null,null,null,1]
[null,null,null,null,null,null,null,null,null,null,null,null,null,null,null,null,null,null,null,null,null,null,null,null,null,null,null,null,null,null,null,null,null,1]
[null,null,null,null,null,null,null,null,null,null,null,null,null,null,null,null,null,null,null,null,null,null,null,null,null,null,null,null,null,null,null,null,null,1]
[null,null,null,null,null,null,null,null,null,null,null,null,null,null,null,null,null,null,null,null,null,null,null,null,null,null,null,null,null,null,null,null,null,1]
[null,null,null,null,null,null,null,null,null,null,null,null,null,null,null,null,null,null,null,null,null,null,null,null,null,null,null,null,null,null,null,null,null,1]
[null,null,null,null,null,null,null,null,null,null,null,null,null,null,null,null,null,null,null,null,null,null,null,null,null,null,null,null,null,null,null,null,null,1]
[null,null,null,null,null,null,null,null,null,null,null,null,null,null,null,null,null,null,null,null,null,null,null,null,null,null,null,null,null,null,null,null,null,1]
[null,null,null,null,null,null,null,null,null,null,null,null,null,null,null,null,null,null,null,null,null,null,null,null,null,null,null,null,null,null,null,null,null,1]
[null,null,null,null,null,null,null,null,null,null,null,null,null,null,null,null,null,null,null,null,null,null,null,null,null,null,null,null,null,null,null,null,null,1]
[null,null,null,null,null,null,null,null,null,null,null,null,null,null,null,null,null,null,null,null,null,null,null,null,null,null,null,null,null,null,null,null,null,1]
[null,null,null,null,null,null,null,null,null,null,null,null,null,null,null,null,null,null,null,null,null,null,null,null,null,null,null,null,null,null,null,null,null,1]
[null,null,null,null,null,null,null,null,null,null,null,null,null,null,null,null,null,null,null,null,null,null,null,null,null,null,null,null,null,null,null,null,null,1]
[null,null,null,null,null,null,null,null,null,null,null,null,null,null,null,null,null,null,null,null,null,null,null,null,null,null,null,null,null,null,null,null,null,1]
[null,null,null,null,null,null,null,null,null,null,null,null,null,null,null,null,null,null,null,null,null,null,null,null,null,null,null,null,null,null,null,null,null,1]
[null,null,null,null,null,null,null,null,null,null,null,null,null,null,null,null,null,null,null,null,null,null,null,null,null,null,null,null,null,null,null,null,null,1]
[null,null,null,null,null,null,null,null,null,null,null,null,null,null,null,null,null,null,null,null,null,null,null,null,null,null,null,null,null,null,null,null,null,1]
[null,null,null,null,null,null,null,null,null,null,null,null,null,null,null,null,null,null,null,null,null,null,null,null,null,null,null,null,null,null,null,null,null,1]
[null,null,null,null,null,null,null,null,null,null,null,null,null,null,null,null,null,null,null,null,null,null,null,null,null,null,null,null,null,null,null,null,null,1]
[null,null,null,null,null,null,null,null,null,null,null,null,null,null,null,null,null,null,null,null,null,null,null,null,null,null,null,null,null,null,null,null,null,1]
[null,null,null,null,null,null,null,null,null,null,null,null,null,null,null,null,null,null,null,null,null,null,null,null,null,null,null,null,null,null,null,null,null,1]
[null,null,null,null,null,null,null,null,null,null,null,null,null,null,null,null,null,null,null,null,null,null,null,null,null,null,null,null,null,null,null,null,null,1]
[null,null,null,null,null,null,null,null,null,null,null,null,null,null,null,null,null,null,null,null,null,null,null,null,null,null,null,null,null,null,null,null,null,1]
[null,null,null,null,null,null,null,null,null,null,null,null,null,null,null,null,null,null,null,null,null,null,null,null,null,null,null,null,null,null,null,null,null,1]
[null,null,null,null,null,null,null,null,null,null,null,null,null,null,null,null,null,null,null,null,null,null,null,null,null,null,null,null,null,null,null,null,null,1]
[null,null,null,null,null,null,null,null,null,null,null,null,null,null,null,null,null,null,null,null,null,null,null,null,null,null,null,null,null,null,null,null,null,1]
[null,null,null,null,null,null,null,null,null,null,null,null,null,null,null,null,null,null,null,null,null,null,null,null,null,null,null,null,null,null,null,null,null,1]
[null,null,null,null,null,null,null,null,null,null,null,null,null,null,null,null,null,null,null,null,null,null,null,null,null,null,null,null,null,null,null,null,null,1]
[null,null,null,null,null,null,null,null,null,null,null,null,null,null,null,null,null,null,null,null,null,null,null,null,null,null,null,null,null,null,null,null,null,1]
[null,null,null,null,null,null,null,null,null,null,null,null,null,null,null,null,null,null,null,null,null,null,null,null,null,null,null,null,null,null,null,null,null,1]
[null,null,null,null,null,null,null,null,null,null,null,null,null,null,null,null,null,null,null,null,null,null,null,null,null,null,null,null,null,null,null,null,null,1]
[null,null,null,null,null,null,null,null,null,null,null,null,null,null,null,null,null,null,null,null,null,null,null,null,null,null,null,null,null,null,null,null,null,1]
[null,null,null,null,null,null,null,null,null,null,null,null,null,null,null,null,null,null,null,null,null,null,null,null,null,null,null,null,null,null,null,null,null,1]
[null,null,null,null,null,null,null,null,null,null,null,null,null,null,null,null,null,null,null,null,null,null,null,null,null,null,null,null,null,null,null,null,null,1]
[null,null,null,null,null,null,null,null,null,null,null,null,null,null,null,null,null,null,null,null,null,null,null,null,null,null,null,null,null,null,null,null,null,1]
[null,null,null,null,null,null,null,null,null,null,null,null,null,null,null,null,null,null,null,null,null,null,null,null,null,null,null,null,null,null,null,null,null,1]
[null,null,null,null,null,null,null,null,null,null,null,null,null,null,null,null,null,null,null,null,null,null,null,null,null,null,null,null,null,null,null,null,null,1]
[null,null,null,null,null,null,null,null,null,null,null,null,null,null,null,null,null,null,null,null,null,null,null,null,null,null,null,null,null,null,null,null,null,{"$f":"IF(AND(E141=E140,H141=H140),AH140,AH140+1)","v":1}]
[null,null,null,null,null,null,null,null,null,null,null,null,null,null,null,null,null,null,null,null,null,null,null,null,null,null,null,null,null,null,null,null,null,1]
[null,null,null,null,null,null,null,null,null,null,null,null,null,null,null,null,null,null,null,null,null,null,null,null,null,null,null,null,null,null,null,null,null,1]
[null,null,null,null,null,null,null,null,null,null,null,null,null,null,null,null,null,null,null,null,null,null,null,null,null,null,null,null,null,null,null,null,null,1]
[null,null,null,null,null,null,null,null,null,null,null,null,null,null,null,null,null,null,null,null,null,null,null,null,null,null,null,null,null,null,null,null,null,1]
[null,null,null,null,null,null,null,null,null,null,null,null,null,null,null,null,null,null,null,null,null,null,null,null,null,null,null,null,null,null,null,null,null,1]
[null,null,null,null,null,null,null,null,null,null,null,null,null,null,null,null,null,null,null,null,null,null,null,null,null,null,null,null,null,null,null,null,null,1]
[null,null,null,null,null,null,null,null,null,null,null,null,null,null,null,null,null,null,null,null,null,null,null,null,null,null,null,null,null,null,null,null,null,1]
[null,null,null,null,null,null,null,null,null,null,null,null,null,null,null,null,null,null,null,null,null,null,null,null,null,null,null,null,null,null,null,null,null,1]
[null,null,null,null,null,null,null,null,null,null,null,null,null,null,null,null,null,null,null,null,null,null,null,null,null,null,null,null,null,null,null,null,null,1]
[null,null,null,null,null,null,null,null,null,null,null,null,null,null,null,null,null,null,null,null,null,null,null,null,null,null,null,null,null,null,null,null,null,1]
[null,null,null,null,null,null,null,null,null,null,null,null,null,null,null,null,null,null,null,null,null,null,null,null,null,null,null,null,null,null,null,null,null,1]
[null,null,null,null,null,null,null,null,null,null,null,null,null,null,null,null,null,null,null,null,null,null,null,null,null,null,null,null,null,null,null,null,null,1]
[null,null,null,null,null,null,null,null,null,null,null,null,null,null,null,null,null,null,null,null,null,null,null,null,null,null,null,null,null,null,null,null,null,1]
[null,null,null,null,null,null,null,null,null,null,null,null,null,null,null,null,null,null,null,null,null,null,null,null,null,null,null,null,null,null,null,null,null,1]
[null,null,null,null,null,null,null,null,null,null,null,null,null,null,null,null,null,null,null,null,null,null,null,null,null,null,null,null,null,null,null,null,null,1]
[null,null,null,null,null,null,null,null,null,null,null,null,null,null,null,null,null,null,null,null,null,null,null,null,null,null,null,null,null,null,null,null,null,1]
[null,null,null,null,null,null,null,null,null,null,null,null,null,null,null,null,null,null,null,null,null,null,null,null,null,null,null,null,null,null,null,null,null,1]
[null,null,null,null,null,null,null,null,null,null,null,null,null,null,null,null,null,null,null,null,null,null,null,null,null,null,null,null,null,null,null,null,null,1]
[null,null,null,null,null,null,null,null,null,null,null,null,null,null,null,null,null,null,null,null,null,null,null,null,null,null,null,null,null,null,null,null,null,1]
[null,null,null,null,null,null,null,null,null,null,null,null,null,null,null,null,null,null,null,null,null,null,null,null,null,null,null,null,null,null,null,null,null,1]
[null,null,null,null,null,null,null,null,null,null,null,null,null,null,null,null,null,null,null,null,null,null,null,null,null,null,null,null,null,null,null,null,null,1]
[null,null,null,null,null,null,null,null,null,null,null,null,null,null,null,null,null,null,null,null,null,null,null,null,null,null,null,null,null,null,null,null,null,1]
[null,null,null,null,null,null,null,null,null,null,null,null,null,null,null,null,null,null,null,null,null,null,null,null,null,null,null,null,null,null,null,null,null,1]
[null,null,null,null,null,null,null,null,null,null,null,null,null,null,null,null,null,null,null,null,null,null,null,null,null,null,null,null,null,null,null,null,null,1]
[null,null,null,null,null,null,null,null,null,null,null,null,null,null,null,null,null,null,null,null,null,null,null,null,null,null,null,null,null,null,null,null,null,1]
[null,null,null,null,null,null,null,null,null,null,null,null,null,null,null,null,null,null,null,null,null,null,null,null,null,null,null,null,null,null,null,null,null,1]
[null,null,null,null,null,null,null,null,null,null,null,null,null,null,null,null,null,null,null,null,null,null,null,null,null,null,null,null,null,null,null,null,null,1]
[null,null,null,null,null,null,null,null,null,null,null,null,null,null,null,null,null,null,null,null,null,null,null,null,null,null,null,null,null,null,null,null,null,1]
[null,null,null,null,null,null,null,null,null,null,null,null,null,null,null,null,null,null,null,null,null,null,null,null,null,null,null,null,null,null,null,null,null,1]
[null,null,null,null,null,null,null,null,null,null,null,null,null,null,null,null,null,null,null,null,null,null,null,null,null,null,null,null,null,null,null,null,null,1]
[null,null,null,null,null,null,null,null,null,null,null,null,null,null,null,null,null,null,null,null,null,null,null,null,null,null,null,null,null,null,null,null,null,1]
[null,null,null,null,null,null,null,null,null,null,null,null,null,null,null,null,null,null,null,null,null,null,null,null,null,null,null,null,null,null,null,null,null,1]
[null,null,null,null,null,null,null,null,null,null,null,null,null,null,null,null,null,null,null,null,null,null,null,null,null,null,null,null,null,null,null,null,null,1]
[null,null,null,null,null,null,null,null,null,null,null,null,null,null,null,null,null,null,null,null,null,null,null,null,null,null,null,null,null,null,null,null,null,1]
[null,null,null,null,null,null,null,null,null,null,null,null,null,null,null,null,null,null,null,null,null,null,null,null,null,null,null,null,null,null,null,null,null,1]
[null,null,null,null,null,null,null,null,null,null,null,null,null,null,null,null,null,null,null,null,null,null,null,null,null,null,null,null,null,null,null,null,null,1]
[null,null,null,null,null,null,null,null,null,null,null,null,null,null,null,null,null,null,null,null,null,null,null,null,null,null,null,null,null,null,null,null,null,1]
[null,null,null,null,null,null,null,null,null,null,null,null,null,null,null,null,null,null,null,null,null,null,null,null,null,null,null,null,null,null,null,null,null,1]
[null,null,null,null,null,null,null,null,null,null,null,null,null,null,null,null,null,null,null,null,null,null,null,null,null,null,null,null,null,null,null,null,null,1]
[null,null,null,null,null,null,null,null,null,null,null,null,null,null,null,null,null,null,null,null,null,null,null,null,null,null,null,null,null,null,null,null,null,1]
[null,null,null,null,null,null,null,null,null,null,null,null,null,null,null,null,null,null,null,null,null,null,null,null,null,null,null,null,null,null,null,null,null,1]
[null,null,null,null,null,null,null,null,null,null,null,null,null,null,null,null,null,null,null,null,null,null,null,null,null,null,null,null,null,null,null,null,null,1]
[null,null,null,null,null,null,null,null,null,null,null,null,null,null,null,null,null,null,null,null,null,null,null,null,null,null,null,null,null,null,null,null,null,1]
[null,null,null,null,null,null,null,null,null,null,null,null,null,null,null,null,null,null,null,null,null,null,null,null,null,null,null,null,null,null,null,null,null,1]
[null,null,null,null,null,null,null,null,null,null,null,null,null,null,null,null,null,null,null,null,null,null,null,null,null,null,null,null,null,null,null,null,null,1]
[null,null,null,null,null,null,null,null,null,null,null,null,null,null,null,null,null,null,null,null,null,null,null,null,null,null,null,null,null,null,null,null,null,1]
[null,null,null,null,null,null,null,null,null,null,null,null,null,null,null,null,null,null,null,null,null,null,null,null,null,null,null,null,null,null,null,null,null,1]
[null,null,null,null,null,null,null,null,null,null,null,null,null,null,null,null,null,null,null,null,null,null,null,null,null,null,null,null,null,null,null,null,null,1]
[null,null,null,null,null,null,null,null,null,null,null,null,null,null,null,null,null,null,null,null,null,null,null,null,null,null,null,null,null,null,null,null,null,1]
[null,null,null,null,null,null,null,null,null,null,null,null,null,null,null,null,null,null,null,null,null,null,null,null,null,null,null,null,null,null,null,null,null,1]
[null,null,null,null,null,null,null,null,null,null,null,null,null,null,null,null,null,null,null,null,null,null,null,null,null,null,null,null,null,null,null,null,null,1]
[null,null,null,null,null,null,null,null,null,null,null,null,null,null,null,null,null,null,null,null,null,null,null,null,null,null,null,null,null,null,null,null,null,1]
[null,null,null,null,null,null,null,null,null,null,null,null,null,null,null,null,null,null,null,null,null,null,null,null,null,null,null,null,null,null,null,null,null,1]
[null,null,null,null,null,null,null,null,null,null,null,null,null,null,null,null,null,null,null,null,null,null,null,null,null,null,null,null,null,null,null,null,null,1]
[null,null,null,null,null,null,null,null,null,null,null,null,null,null,null,null,null,null,null,null,null,null,null,null,null,null,null,null,null,null,null,null,null,1]
[null,null,null,null,null,null,null,null,null,null,null,null,null,null,null,null,null,null,null,null,null,null,null,null,null,null,null,null,null,null,null,null,null,1]
[null,null,null,null,null,null,null,null,null,null,null,null,null,null,null,null,null,null,null,null,null,null,null,null,null,null,null,null,null,null,null,null,null,1]
[null,null,null,null,null,null,null,null,null,null,null,null,null,null,null,null,null,null,null,null,null,null,null,null,null,null,null,null,null,null,null,null,null,1]
[null,null,null,null,null,null,null,null,null,null,null,null,null,null,null,null,null,null,null,null,null,null,null,null,null,null,null,null,null,null,null,null,null,1]
[null,null,null,null,null,null,null,null,null,null,null,null,null,null,null,null,null,null,null,null,null,null,null,null,null,null,null,null,null,null,null,null,null,1]
[null,null,null,null,null,null,null,null,null,null,null,null,null,null,null,null,null,null,null,null,null,null,null,null,null,null,null,null,null,null,null,null,null,1]
[null,null,null,null,null,null,null,null,null,null,null,null,null,null,null,null,null,null,null,null,null,null,null,null,null,null,null,null,null,null,null,null,null,1]
[null,null,null,null,null,null,null,null,null,null,null,null,null,null,null,null,null,null,null,null,null,null,null,null,null,null,null,null,null,null,null,null,null,1]
[null,null,null,null,null,null,null,null,null,null,null,null,null,null,null,null,null,null,null,null,null,null,null,null,null,null,null,null,null,null,null,null,null,{"$f":"IF(AND(E205=E204,H205=H204),AH204,AH204+1)","v":1}]
[null,null,null,null,null,null,null,null,null,null,null,null,null,null,null,null,null,null,null,null,null,null,null,null,null,null,null,null,null,null,null,null,null,1]
[null,null,null,null,null,null,null,null,null,null,null,null,null,null,null,null,null,null,null,null,null,null,null,null,null,null,null,null,null,null,null,null,null,1]
[null,null,null,null,null,null,null,null,null,null,null,null,null,null,null,null,null,null,null,null,null,null,null,null,null,null,null,null,null,null,null,null,null,1]
[null,null,null,null,null,null,null,null,null,null,null,null,null,null,null,null,null,null,null,null,null,null,null,null,null,null,null,null,null,null,null,null,null,1]
[null,null,null,null,null,null,null,null,null,null,null,null,null,null,null,null,null,null,null,null,null,null,null,null,null,null,null,null,null,null,null,null,null,1]
[null,null,null,null,null,null,null,null,null,null,null,null,null,null,null,null,null,null,null,null,null,null,null,null,null,null,null,null,null,null,null,null,null,1]
[null,null,null,null,null,null,null,null,null,null,null,null,null,null,null,null,null,null,null,null,null,null,null,null,null,null,null,null,null,null,null,null,null,1]
[null,null,null,null,null,null,null,null,null,null,null,null,null,null,null,null,null,null,null,null,null,null,null,null,null,null,null,null,null,null,null,null,null,1]
[null,null,null,null,null,null,null,null,null,null,null,null,null,null,null,null,null,null,null,null,null,null,null,null,null,null,null,null,null,null,null,null,null,1]
[null,null,null,null,null,null,null,null,null,null,null,null,null,null,null,null,null,null,null,null,null,null,null,null,null,null,null,null,null,null,null,null,null,1]
[null,null,null,null,null,null,null,null,null,null,null,null,null,null,null,null,null,null,null,null,null,null,null,null,null,null,null,null,null,null,null,null,null,1]
[null,null,null,null,null,null,null,null,null,null,null,null,null,null,null,null,null,null,null,null,null,null,null,null,null,null,null,null,null,null,null,null,null,1]
[null,null,null,null,null,null,null,null,null,null,null,null,null,null,null,null,null,null,null,null,null,null,null,null,null,null,null,null,null,null,null,null,null,1]
[null,null,null,null,null,null,null,null,null,null,null,null,null,null,null,null,null,null,null,null,null,null,null,null,null,null,null,null,null,null,null,null,null,1]
[null,null,null,null,null,null,null,null,null,null,null,null,null,null,null,null,null,null,null,null,null,null,null,null,null,null,null,null,null,null,null,null,null,1]
[null,null,null,null,null,null,null,null,null,null,null,null,null,null,null,null,null,null,null,null,null,null,null,null,null,null,null,null,null,null,null,null,null,1]
[null,null,null,null,null,null,null,null,null,null,null,null,null,null,null,null,null,null,null,null,null,null,null,null,null,null,null,null,null,null,null,null,null,1]
[null,null,null,null,null,null,null,null,null,null,null,null,null,null,null,null,null,null,null,null,null,null,null,null,null,null,null,null,null,null,null,null,null,1]
[null,null,null,null,null,null,null,null,null,null,null,null,null,null,null,null,null,null,null,null,null,null,null,null,null,null,null,null,null,null,null,null,null,1]
[null,null,null,null,null,null,null,null,null,null,null,null,null,null,null,null,null,null,null,null,null,null,null,null,null,null,null,null,null,null,null,null,null,1]
[null,null,null,null,null,null,null,null,null,null,null,null,null,null,null,null,null,null,null,null,null,null,null,null,null,null,null,null,null,null,null,null,null,1]
[null,null,null,null,null,null,null,null,null,null,null,null,null,null,null,null,null,null,null,null,null,null,null,null,null,null,null,null,null,null,null,null,null,1]
[null,null,null,null,null,null,null,null,null,null,null,null,null,null,null,null,null,null,null,null,null,null,null,null,null,null,null,null,null,null,null,null,null,1]
[null,null,null,null,null,null,null,null,null,null,null,null,null,null,null,null,null,null,null,null,null,null,null,null,null,null,null,null,null,null,null,null,null,1]
[null,null,null,null,null,null,null,null,null,null,null,null,null,null,null,null,null,null,null,null,null,null,null,null,null,null,null,null,null,null,null,null,null,1]
[null,null,null,null,null,null,null,null,null,null,null,null,null,null,null,null,null,null,null,null,null,null,null,null,null,null,null,null,null,null,null,null,null,1]
[null,null,null,null,null,null,null,null,null,null,null,null,null,null,null,null,null,null,null,null,null,null,null,null,null,null,null,null,null,null,null,null,null,1]
[null,null,null,null,null,null,null,null,null,null,null,null,null,null,null,null,null,null,null,null,null,null,null,null,null,null,null,null,null,null,null,null,null,1]
[null,null,null,null,null,null,null,null,null,null,null,null,null,null,null,null,null,null,null,null,null,null,null,null,null,null,null,null,null,null,null,null,null,1]
[null,null,null,null,null,null,null,null,null,null,null,null,null,null,null,null,null,null,null,null,null,null,null,null,null,null,null,null,null,null,null,null,null,1]
[null,null,null,null,null,null,null,null,null,null,null,null,null,null,null,null,null,null,null,null,null,null,null,null,null,null,null,null,null,null,null,null,null,1]
[null,null,null,null,null,null,null,null,null,null,null,null,null,null,null,null,null,null,null,null,null,null,null,null,null,null,null,null,null,null,null,null,null,1]
[null,null,null,null,null,null,null,null,null,null,null,null,null,null,null,null,null,null,null,null,null,null,null,null,null,null,null,null,null,null,null,null,null,1]
[null,null,null,null,null,null,null,null,null,null,null,null,null,null,null,null,null,null,null,null,null,null,null,null,null,null,null,null,null,null,null,null,null,1]
[null,null,null,null,null,null,null,null,null,null,null,null,null,null,null,null,null,null,null,null,null,null,null,null,null,null,null,null,null,null,null,null,null,1]
[null,null,null,null,null,null,null,null,null,null,null,null,null,null,null,null,null,null,null,null,null,null,null,null,null,null,null,null,null,null,null,null,null,1]
[null,null,null,null,null,null,null,null,null,null,null,null,null,null,null,null,null,null,null,null,null,null,null,null,null,null,null,null,null,null,null,null,null,1]
[null,null,null,null,null,null,null,null,null,null,null,null,null,null,null,null,null,null,null,null,null,null,null,null,null,null,null,null,null,null,null,null,null,1]
[null,null,null,null,null,null,null,null,null,null,null,null,null,null,null,null,null,null,null,null,null,null,null,null,null,null,null,null,null,null,null,null,null,1]
[null,null,null,null,null,null,null,null,null,null,null,null,null,null,null,null,null,null,null,null,null,null,null,null,null,null,null,null,null,null,null,null,null,1]
[null,null,null,null,null,null,null,null,null,null,null,null,null,null,null,null,null,null,null,null,null,null,null,null,null,null,null,null,null,null,null,null,null,1]
[null,null,null,null,null,null,null,null,null,null,null,null,null,null,null,null,null,null,null,null,null,null,null,null,null,null,null,null,null,null,null,null,null,1]
[null,null,null,null,null,null,null,null,null,null,null,null,null,null,null,null,null,null,null,null,null,null,null,null,null,null,null,null,null,null,null,null,null,1]
[null,null,null,null,null,null,null,null,null,null,null,null,null,null,null,null,null,null,null,null,null,null,null,null,null,null,null,null,null,null,null,null,null,1]
[null,null,null,null,null,null,null,null,null,null,null,null,null,null,null,null,null,null,null,null,null,null,null,null,null,null,null,null,null,null,null,null,null,1]
[null,null,null,null,null,null,null,null,null,null,null,null,null,null,null,null,null,null,null,null,null,null,null,null,null,null,null,null,null,null,null,null,null,1]
[null,null,null,null,null,null,null,null,null,null,null,null,null,null,null,null,null,null,null,null,null,null,null,null,null,null,null,null,null,null,null,null,null,1]
[null,null,null,null,null,null,null,null,null,null,null,null,null,null,null,null,null,null,null,null,null,null,null,null,null,null,null,null,null,null,null,null,null,1]
[null,null,null,null,null,null,null,null,null,null,null,null,null,null,null,null,null,null,null,null,null,null,null,null,null,null,null,null,null,null,null,null,null,1]
[null,null,null,null,null,null,null,null,null,null,null,null,null,null,null,null,null,null,null,null,null,null,null,null,null,null,null,null,null,null,null,null,null,1]
[null,null,null,null,null,null,null,null,null,null,null,null,null,null,null,null,null,null,null,null,null,null,null,null,null,null,null,null,null,null,null,null,null,1]
[null,null,null,null,null,null,null,null,null,null,null,null,null,null,null,null,null,null,null,null,null,null,null,null,null,null,null,null,null,null,null,null,null,1]
[null,null,null,null,null,null,null,null,null,null,null,null,null,null,null,null,null,null,null,null,null,null,null,null,null,null,null,null,null,null,null,null,null,1]
[null,null,null,null,null,null,null,null,null,null,null,null,null,null,null,null,null,null,null,null,null,null,null,null,null,null,null,null,null,null,null,null,null,1]
[null,null,null,null,null,null,null,null,null,null,null,null,null,null,null,null,null,null,null,null,null,null,null,null,null,null,null,null,null,null,null,null,null,1]
[null,null,null,null,null,null,null,null,null,null,null,null,null,null,null,null,null,null,null,null,null,null,null,null,null,null,null,null,null,null,null,null,null,1]
[null,null,null,null,null,null,null,null,null,null,null,null,null,null,null,null,null,null,null,null,null,null,null,null,null,null,null,null,null,null,null,null,null,1]
[null,null,null,null,null,null,null,null,null,null,null,null,null,null,null,null,null,null,null,null,null,null,null,null,null,null,null,null,null,null,null,null,null,1]
[null,null,null,null,null,null,null,null,null,null,null,null,null,null,null,null,null,null,null,null,null,null,null,null,null,null,null,null,null,null,null,null,null,1]
[null,null,null,null,null,null,null,null,null,null,null,null,null,null,null,null,null,null,null,null,null,null,null,null,null,null,null,null,null,null,null,null,null,1]
[null,null,null,null,null,null,null,null,null,null,null,null,null,null,null,null,null,null,null,null,null,null,null,null,null,null,null,null,null,null,null,null,null,1]
[null,null,null,null,null,null,null,null,null,null,null,null,null,null,null,null,null,null,null,null,null,null,null,null,null,null,null,null,null,null,null,null,null,1]
[null,null,null,null,null,null,null,null,null,null,null,null,null,null,null,null,null,null,null,null,null,null,null,null,null,null,null,null,null,null,null,null,null,1]
[null,null,null,null,null,null,null,null,null,null,null,null,null,null,null,null,null,null,null,null,null,null,null,null,null,null,null,null,null,null,null,null,null,{"$f":"IF(AND(E269=E268,H269=H268),AH268,AH268+1)","v":1}]
[null,null,null,null,null,null,null,null,null,null,null,null,null,null,null,null,null,null,null,null,null,null,null,null,null,null,null,null,null,null,null,null,null,1]
[null,null,null,null,null,null,null,null,null,null,null,null,null,null,null,null,null,null,null,null,null,null,null,null,null,null,null,null,null,null,null,null,null,1]
[null,null,null,null,null,null,null,null,null,null,null,null,null,null,null,null,null,null,null,null,null,null,null,null,null,null,null,null,null,null,null,null,null,1]
[null,null,null,null,null,null,null,null,null,null,null,null,null,null,null,null,null,null,null,null,null,null,null,null,null,null,null,null,null,null,null,null,null,1]
[null,null,null,null,null,null,null,null,null,null,null,null,null,null,null,null,null,null,null,null,null,null,null,null,null,null,null,null,null,null,null,null,null,1]
[null,null,null,null,null,null,null,null,null,null,null,null,null,null,null,null,null,null,null,null,null,null,null,null,null,null,null,null,null,null,null,null,null,1]
[null,null,null,null,null,null,null,null,null,null,null,null,null,null,null,null,null,null,null,null,null,null,null,null,null,null,null,null,null,null,null,null,null,1]
[null,null,null,null,null,null,null,null,null,null,null,null,null,null,null,null,null,null,null,null,null,null,null,null,null,null,null,null,null,null,null,null,null,1]
[null,null,null,null,null,null,null,null,null,null,null,null,null,null,null,null,null,null,null,null,null,null,null,null,null,null,null,null,null,null,null,null,null,1]
[null,null,null,null,null,null,null,null,null,null,null,null,null,null,null,null,null,null,null,null,null,null,null,null,null,null,null,null,null,null,null,null,null,1]
[null,null,null,null,null,null,null,null,null,null,null,null,null,null,null,null,null,null,null,null,null,null,null,null,null,null,null,null,null,null,null,null,null,1]
[null,null,null,null,null,null,null,null,null,null,null,null,null,null,null,null,null,null,null,null,null,null,null,null,null,null,null,null,null,null,null,null,null,1]
[null,null,null,null,null,null,null,null,null,null,null,null,null,null,null,null,null,null,null,null,null,null,null,null,null,null,null,null,null,null,null,null,null,1]
[null,null,null,null,null,null,null,null,null,null,null,null,null,null,null,null,null,null,null,null,null,null,null,null,null,null,null,null,null,null,null,null,null,1]
[null,null,null,null,null,null,null,null,null,null,null,null,null,null,null,null,null,null,null,null,null,null,null,null,null,null,null,null,null,null,null,null,null,1]
[null,null,null,null,null,null,null,null,null,null,null,null,null,null,null,null,null,null,null,null,null,null,null,null,null,null,null,null,null,null,null,null,null,1]
[null,null,null,null,null,null,null,null,null,null,null,null,null,null,null,null,null,null,null,null,null,null,null,null,null,null,null,null,null,null,null,null,null,1]
[null,null,null,null,null,null,null,null,null,null,null,null,null,null,null,null,null,null,null,null,null,null,null,null,null,null,null,null,null,null,null,null,null,1]
[null,null,null,null,null,null,null,null,null,null,null,null,null,null,null,null,null,null,null,null,null,null,null,null,null,null,null,null,null,null,null,null,null,1]
[null,null,null,null,null,null,null,null,null,null,null,null,null,null,null,null,null,null,null,null,null,null,null,null,null,null,null,null,null,null,null,null,null,1]
[null,null,null,null,null,null,null,null,null,null,null,null,null,null,null,null,null,null,null,null,null,null,null,null,null,null,null,null,null,null,null,null,null,1]
[null,null,null,null,null,null,null,null,null,null,null,null,null,null,null,null,null,null,null,null,null,null,null,null,null,null,null,null,null,null,null,null,null,1]
[null,null,null,null,null,null,null,null,null,null,null,null,null,null,null,null,null,null,null,null,null,null,null,null,null,null,null,null,null,null,null,null,null,1]
[null,null,null,null,null,null,null,null,null,null,null,null,null,null,null,null,null,null,null,null,null,null,null,null,null,null,null,null,null,null,null,null,null,1]
[null,null,null,null,null,null,null,null,null,null,null,null,null,null,null,null,null,null,null,null,null,null,null,null,null,null,null,null,null,null,null,null,null,1]
[null,null,null,null,null,null,null,null,null,null,null,null,null,null,null,null,null,null,null,null,null,null,null,null,null,null,null,null,null,null,null,null,null,1]
[null,null,null,null,null,null,null,null,null,null,null,null,null,null,null,null,null,null,null,null,null,null,null,null,null,null,null,null,null,null,null,null,null,1]
[null,null,null,null,null,null,null,null,null,null,null,null,null,null,null,null,null,null,null,null,null,null,null,null,null,null,null,null,null,null,null,null,null,1]
[null,null,null,null,null,null,null,null,null,null,null,null,null,null,null,null,null,null,null,null,null,null,null,null,null,null,null,null,null,null,null,null,null,1]
[null,null,null,null,null,null,null,null,null,null,null,null,null,null,null,null,null,null,null,null,null,null,null,null,null,null,null,null,null,null,null,null,null,1]
[null,null,null,null,null,null,null,null,null,null,null,null,null,null,null,null,null,null,null,null,null,null,null,null,null,null,null,null,null,null,null,null,null,1]
[null,null,null,null,null,null,null,null,null,null,null,null,null,null,null,null,null,null,null,null,null,null,null,null,null,null,null,null,null,null,null,null,null,1]
[null,null,null,null,null,null,null,null,null,null,null,null,null,null,null,null,null,null,null,null,null,null,null,null,null,null,null,null,null,null,null,null,null,1]
[null,null,null,null,null,null,null,null,null,null,null,null,null,null,null,null,null,null,null,null,null,null,null,null,null,null,null,null,null,null,null,null,null,1]
[null,null,null,null,null,null,null,null,null,null,null,null,null,null,null,null,null,null,null,null,null,null,null,null,null,null,null,null,null,null,null,null,null,1]
[null,null,null,null,null,null,null,null,null,null,null,null,null,null,null,null,null,null,null,null,null,null,null,null,null,null,null,null,null,null,null,null,null,1]
[null,null,null,null,null,null,null,null,null,null,null,null,null,null,null,null,null,null,null,null,null,null,null,null,null,null,null,null,null,null,null,null,null,1]
[null,null,null,null,null,null,null,null,null,null,null,null,null,null,null,null,null,null,null,null,null,null,null,null,null,null,null,null,null,null,null,null,null,1]
[null,null,null,null,null,null,null,null,null,null,null,null,null,null,null,null,null,null,null,null,null,null,null,null,null,null,null,null,null,null,null,null,null,1]
[null,null,null,null,null,null,null,null,null,null,null,null,null,null,null,null,null,null,null,null,null,null,null,null,null,null,null,null,null,null,null,null,null,1]
[null,null,null,null,null,null,null,null,null,null,null,null,null,null,null,null,null,null,null,null,null,null,null,null,null,null,null,null,null,null,null,null,null,1]
[null,null,null,null,null,null,null,null,null,null,null,null,null,null,null,null,null,null,null,null,null,null,null,null,null,null,null,null,null,null,null,null,null,1]
[null,null,null,null,null,null,null,null,null,null,null,null,null,null,null,null,null,null,null,null,null,null,null,null,null,null,null,null,null,null,null,null,null,1]
[null,null,null,null,null,null,null,null,null,null,null,null,null,null,null,null,null,null,null,null,null,null,null,null,null,null,null,null,null,null,null,null,null,1]
[null,null,null,null,null,null,null,null,null,null,null,null,null,null,null,null,null,null,null,null,null,null,null,null,null,null,null,null,null,null,null,null,null,1]
[null,null,null,null,null,null,null,null,null,null,null,null,null,null,null,null,null,null,null,null,null,null,null,null,null,null,null,null,null,null,null,null,null,1]
[null,null,null,null,null,null,null,null,null,null,null,null,null,null,null,null,null,null,null,null,null,null,null,null,null,null,null,null,null,null,null,null,null,1]
[null,null,null,null,null,null,null,null,null,null,null,null,null,null,null,null,null,null,null,null,null,null,null,null,null,null,null,null,null,null,null,null,null,1]
[null,null,null,null,null,null,null,null,null,null,null,null,null,null,null,null,null,null,null,null,null,null,null,null,null,null,null,null,null,null,null,null,null,1]
[null,null,null,null,null,null,null,null,null,null,null,null,null,null,null,null,null,null,null,null,null,null,null,null,null,null,null,null,null,null,null,null,null,1]
[null,null,null,null,null,null,null,null,null,null,null,null,null,null,null,null,null,null,null,null,null,null,null,null,null,null,null,null,null,null,null,null,null,1]
[null,null,null,null,null,null,null,null,null,null,null,null,null,null,null,null,null,null,null,null,null,null,null,null,null,null,null,null,null,null,null,null,null,1]
[null,null,null,null,null,null,null,null,null,null,null,null,null,null,null,null,null,null,null,null,null,null,null,null,null,null,null,null,null,null,null,null,null,1]
[null,null,null,null,null,null,null,null,null,null,null,null,null,null,null,null,null,null,null,null,null,null,null,null,null,null,null,null,null,null,null,null,null,1]
[null,null,null,null,null,null,null,null,null,null,null,null,null,null,null,null,null,null,null,null,null,null,null,null,null,null,null,null,null,null,null,null,null,1]
[null,null,null,null,null,null,null,null,null,null,null,null,null,null,null,null,null,null,null,null,null,null,null,null,null,null,null,null,null,null,null,null,null,1]
[null,null,null,null,null,null,null,null,null,null,null,null,null,null,null,null,null,null,null,null,null,null,null,null,null,null,null,null,null,null,null,null,null,1]
[null,null,null,null,null,null,null,null,null,null,null,null,null,null,null,null,null,null,null,null,null,null,null,null,null,null,null,null,null,null,null,null,null,1]
[null,null,null,null,null,null,null,null,null,null,null,null,null,null,null,null,null,null,null,null,null,null,null,null,null,null,null,null,null,null,null,null,null,1]
[null,null,null,null,null,null,null,null,null,null,null,null,null,null,null,null,null,null,null,null,null,null,null,null,null,null,null,null,null,null,null,null,null,1]
[null,null,null,null,null,null,null,null,null,null,null,null,null,null,null,null,null,null,null,null,null,null,null,null,null,null,null,null,null,null,null,null,null,1]
[null,null,null,null,null,null,null,null,null,null,null,null,null,null,null,null,null,null,null,null,null,null,null,null,null,null,null,null,null,null,null,null,null,1]
[null,null,null,null,null,null,null,null,null,null,null,null,null,null,null,null,null,null,null,null,null,null,null,null,null,null,null,null,null,null,null,null,null,1]
[null,null,null,null,null,null,null,null,null,null,null,null,null,null,null,null,null,null,null,null,null,null,null,null,null,null,null,null,null,null,null,null,null,{"$f":"IF(AND(E333=E332,H333=H332),AH332,AH332+1)","v":1}]
[null,null,null,null,null,null,null,null,null,null,null,null,null,null,null,null,null,null,null,null,null,null,null,null,null,null,null,null,null,null,null,null,null,1]
[null,null,null,null,null,null,null,null,null,null,null,null,null,null,null,null,null,null,null,null,null,null,null,null,null,null,null,null,null,null,null,null,null,1]
[null,null,null,null,null,null,null,null,null,null,null,null,null,null,null,null,null,null,null,null,null,null,null,null,null,null,null,null,null,null,null,null,null,1]
[null,null,null,null,null,null,null,null,null,null,null,null,null,null,null,null,null,null,null,null,null,null,null,null,null,null,null,null,null,null,null,null,null,1]
[null,null,null,null,null,null,null,null,null,null,null,null,null,null,null,null,null,null,null,null,null,null,null,null,null,null,null,null,null,null,null,null,null,1]
[null,null,null,null,null,null,null,null,null,null,null,null,null,null,null,null,null,null,null,null,null,null,null,null,null,null,null,null,null,null,null,null,null,1]
[null,null,null,null,null,null,null,null,null,null,null,null,null,null,null,null,null,null,null,null,null,null,null,null,null,null,null,null,null,null,null,null,null,1]
[null,null,null,null,null,null,null,null,null,null,null,null,null,null,null,null,null,null,null,null,null,null,null,null,null,null,null,null,null,null,null,null,null,1]
[null,null,null,null,null,null,null,null,null,null,null,null,null,null,null,null,null,null,null,null,null,null,null,null,null,null,null,null,null,null,null,null,null,1]
[null,null,null,null,null,null,null,null,null,null,null,null,null,null,null,null,null,null,null,null,null,null,null,null,null,null,null,null,null,null,null,null,null,1]
[null,null,null,null,null,null,null,null,null,null,null,null,null,null,null,null,null,null,null,null,null,null,null,null,null,null,null,null,null,null,null,null,null,1]
[null,null,null,null,null,null,null,null,null,null,null,null,null,null,null,null,null,null,null,null,null,null,null,null,null,null,null,null,null,null,null,null,null,1]
[null,null,null,null,null,null,null,null,null,null,null,null,null,null,null,null,null,null,null,null,null,null,null,null,null,null,null,null,null,null,null,null,null,1]
[null,null,null,null,null,null,null,null,null,null,null,null,null,null,null,null,null,null,null,null,null,null,null,null,null,null,null,null,null,null,null,null,null,1]
[null,null,null,null,null,null,null,null,null,null,null,null,null,null,null,null,null,null,null,null,null,null,null,null,null,null,null,null,null,null,null,null,null,1]
[null,null,null,null,null,null,null,null,null,null,null,null,null,null,null,null,null,null,null,null,null,null,null,null,null,null,null,null,null,null,null,null,null,1]
[null,null,null,null,null,null,null,null,null,null,null,null,null,null,null,null,null,null,null,null,null,null,null,null,null,null,null,null,null,null,null,null,null,1]
[null,null,null,null,null,null,null,null,null,null,null,null,null,null,null,null,null,null,null,null,null,null,null,null,null,null,null,null,null,null,null,null,null,1]
[null,null,null,null,null,null,null,null,null,null,null,null,null,null,null,null,null,null,null,null,null,null,null,null,null,null,null,null,null,null,null,null,null,1]
[null,null,null,null,null,null,null,null,null,null,null,null,null,null,null,null,null,null,null,null,null,null,null,null,null,null,null,null,null,null,null,null,null,1]
[null,null,null,null,null,null,null,null,null,null,null,null,null,null,null,null,null,null,null,null,null,null,null,null,null,null,null,null,null,null,null,null,null,1]
[null,null,null,null,null,null,null,null,null,null,null,null,null,null,null,null,null,null,null,null,null,null,null,null,null,null,null,null,null,null,null,null,null,1]
[null,null,null,null,null,null,null,null,null,null,null,null,null,null,null,null,null,null,null,null,null,null,null,null,null,null,null,null,null,null,null,null,null,1]
[null,null,null,null,null,null,null,null,null,null,null,null,null,null,null,null,null,null,null,null,null,null,null,null,null,null,null,null,null,null,null,null,null,1]
[null,null,null,null,null,null,null,null,null,null,null,null,null,null,null,null,null,null,null,null,null,null,null,null,null,null,null,null,null,null,null,null,null,1]
[null,null,null,null,null,null,null,null,null,null,null,null,null,null,null,null,null,null,null,null,null,null,null,null,null,null,null,null,null,null,null,null,null,1]
[null,null,null,null,null,null,null,null,null,null,null,null,null,null,null,null,null,null,null,null,null,null,null,null,null,null,null,null,null,null,null,null,null,1]
[null,null,null,null,null,null,null,null,null,null,null,null,null,null,null,null,null,null,null,null,null,null,null,null,null,null,null,null,null,null,null,null,null,1]
[null,null,null,null,null,null,null,null,null,null,null,null,null,null,null,null,null,null,null,null,null,null,null,null,null,null,null,null,null,null,null,null,null,1]
[null,null,null,null,null,null,null,null,null,null,null,null,null,null,null,null,null,null,null,null,null,null,null,null,null,null,null,null,null,null,null,null,null,1]
[null,null,null,null,null,null,null,null,null,null,null,null,null,null,null,null,null,null,null,null,null,null,null,null,null,null,null,null,null,null,null,null,null,1]
[null,null,null,null,null,null,null,null,null,null,null,null,null,null,null,null,null,null,null,null,null,null,null,null,null,null,null,null,null,null,null,null,null,1]
[null,null,null,null,null,null,null,null,null,null,null,null,null,null,null,null,null,null,null,null,null,null,null,null,null,null,null,null,null,null,null,null,null,1]
[null,null,null,null,null,null,null,null,null,null,null,null,null,null,null,null,null,null,null,null,null,null,null,null,null,null,null,null,null,null,null,null,null,1]
[null,null,null,null,null,null,null,null,null,null,null,null,null,null,null,null,null,null,null,null,null,null,null,null,null,null,null,null,null,null,null,null,null,1]
[null,null,null,null,null,null,null,null,null,null,null,null,null,null,null,null,null,null,null,null,null,null,null,null,null,null,null,null,null,null,null,null,null,1]
[null,null,null,null,null,null,null,null,null,null,null,null,null,null,null,null,null,null,null,null,null,null,null,null,null,null,null,null,null,null,null,null,null,1]
[null,null,null,null,null,null,null,null,null,null,null,null,null,null,null,null,null,null,null,null,null,null,null,null,null,null,null,null,null,null,null,null,null,1]
[null,null,null,null,null,null,null,null,null,null,null,null,null,null,null,null,null,null,null,null,null,null,null,null,null,null,null,null,null,null,null,null,null,1]
[null,null,null,null,null,null,null,null,null,null,null,null,null,null,null,null,null,null,null,null,null,null,null,null,null,null,null,null,null,null,null,null,null,1]
[null,null,null,null,null,null,null,null,null,null,null,null,null,null,null,null,null,null,null,null,null,null,null,null,null,null,null,null,null,null,null,null,null,1]
[null,null,null,null,null,null,null,null,null,null,null,null,null,null,null,null,null,null,null,null,null,null,null,null,null,null,null,null,null,null,null,null,null,1]
[null,null,null,null,null,null,null,null,null,null,null,null,null,null,null,null,null,null,null,null,null,null,null,null,null,null,null,null,null,null,null,null,null,1]
[null,null,null,null,null,null,null,null,null,null,null,null,null,null,null,null,null,null,null,null,null,null,null,null,null,null,null,null,null,null,null,null,null,1]
[null,null,null,null,null,null,null,null,null,null,null,null,null,null,null,null,null,null,null,null,null,null,null,null,null,null,null,null,null,null,null,null,null,1]
[null,null,null,null,null,null,null,null,null,null,null,null,null,null,null,null,null,null,null,null,null,null,null,null,null,null,null,null,null,null,null,null,null,1]
[null,null,null,null,null,null,null,null,null,null,null,null,null,null,null,null,null,null,null,null,null,null,null,null,null,null,null,null,null,null,null,null,null,1]
[null,null,null,null,null,null,null,null,null,null,null,null,null,null,null,null,null,null,null,null,null,null,null,null,null,null,null,null,null,null,null,null,null,1]
[null,null,null,null,null,null,null,null,null,null,null,null,null,null,null,null,null,null,null,null,null,null,null,null,null,null,null,null,null,null,null,null,null,1]
[null,null,null,null,null,null,null,null,null,null,null,null,null,null,null,null,null,null,null,null,null,null,null,null,null,null,null,null,null,null,null,null,null,1]
[null,null,null,null,null,null,null,null,null,null,null,null,null,null,null,null,null,null,null,null,null,null,null,null,null,null,null,null,null,null,null,null,null,1]
[null,null,null,null,null,null,null,null,null,null,null,null,null,null,null,null,null,null,null,null,null,null,null,null,null,null,null,null,null,null,null,null,null,1]
[null,null,null,null,null,null,null,null,null,null,null,null,null,null,null,null,null,null,null,null,null,null,null,null,null,null,null,null,null,null,null,null,null,1]
[null,null,null,null,null,null,null,null,null,null,null,null,null,null,null,null,null,null,null,null,null,null,null,null,null,null,null,null,null,null,null,null,null,1]
[null,null,null,null,null,null,null,null,null,null,null,null,null,null,null,null,null,null,null,null,null,null,null,null,null,null,null,null,null,null,null,null,null,1]
[null,null,null,null,null,null,null,null,null,null,null,null,null,null,null,null,null,null,null,null,null,null,null,null,null,null,null,null,null,null,null,null,null,1]
[null,null,null,null,null,null,null,null,null,null,null,null,null,null,null,null,null,null,null,null,null,null,null,null,null,null,null,null,null,null,null,null,null,1]
[null,null,null,null,null,null,null,null,null,null,null,null,null,null,null,null,null,null,null,null,null,null,null,null,null,null,null,null,null,null,null,null,null,1]
[null,null,null,null,null,null,null,null,null,null,null,null,null,null,null,null,null,null,null,null,null,null,null,null,null,null,null,null,null,null,null,null,null,1]
[null,null,null,null,null,null,null,null,null,null,null,null,null,null,null,null,null,null,null,null,null,null,null,null,null,null,null,null,null,null,null,null,null,1]
[null,null,null,null,null,null,null,null,null,null,null,null,null,null,null,null,null,null,null,null,null,null,null,null,null,null,null,null,null,null,null,null,null,1]
[null,null,null,null,null,null,null,null,null,null,null,null,null,null,null,null,null,null,null,null,null,null,null,null,null,null,null,null,null,null,null,null,null,1]
[null,null,null,null,null,null,null,null,null,null,null,null,null,null,null,null,null,null,null,null,null,null,null,null,null,null,null,null,null,null,null,null,null,1]
[null,null,null,null,null,null,null,null,null,null,null,null,null,null,null,null,null,null,null,null,null,null,null,null,null,null,null,null,null,null,null,null,null,{"$f":"IF(AND(E397=E396,H397=H396),AH396,AH396+1)","v":1}]
[null,null,null,null,null,null,null,null,null,null,null,null,null,null,null,null,null,null,null,null,null,null,null,null,null,null,null,null,null,null,null,null,null,1]
[null,null,null,null,null,null,null,null,null,null,null,null,null,null,null,null,null,null,null,null,null,null,null,null,null,null,null,null,null,null,null,null,null,1]
[null,null,null,null,null,null,null,null,null,null,null,null,null,null,null,null,null,null,null,null,null,null,null,null,null,null,null,null,null,null,null,null,null,1]
[null,null,null,null,null,null,null,null,null,null,null,null,null,null,null,null,null,null,null,null,null,null,null,null,null,null,null,null,null,null,null,null,null,1]
[null,null,null,null,null,null,null,null,null,null,null,null,null,null,null,null,null,null,null,null,null,null,null,null,null,null,null,null,null,null,null,null,null,1]
[null,null,null,null,null,null,null,null,null,null,null,null,null,null,null,null,null,null,null,null,null,null,null,null,null,null,null,null,null,null,null,null,null,1]
[null,null,null,null,null,null,null,null,null,null,null,null,null,null,null,null,null,null,null,null,null,null,null,null,null,null,null,null,null,null,null,null,null,1]
[null,null,null,null,null,null,null,null,null,null,null,null,null,null,null,null,null,null,null,null,null,null,null,null,null,null,null,null,null,null,null,null,null,1]
[null,null,null,null,null,null,null,null,null,null,null,null,null,null,null,null,null,null,null,null,null,null,null,null,null,null,null,null,null,null,null,null,null,1]
[null,null,null,null,null,null,null,null,null,null,null,null,null,null,null,null,null,null,null,null,null,null,null,null,null,null,null,null,null,null,null,null,null,1]
[null,null,null,null,null,null,null,null,null,null,null,null,null,null,null,null,null,null,null,null,null,null,null,null,null,null,null,null,null,null,null,null,null,1]
[null,null,null,null,null,null,null,null,null,null,null,null,null,null,null,null,null,null,null,null,null,null,null,null,null,null,null,null,null,null,null,null,null,1]
[null,null,null,null,null,null,null,null,null,null,null,null,null,null,null,null,null,null,null,null,null,null,null,null,null,null,null,null,null,null,null,null,null,1]
[null,null,null,null,null,null,null,null,null,null,null,null,null,null,null,null,null,null,null,null,null,null,null,null,null,null,null,null,null,null,null,null,null,1]
[null,null,null,null,null,null,null,null,null,null,null,null,null,null,null,null,null,null,null,null,null,null,null,null,null,null,null,null,null,null,null,null,null,1]
[null,null,null,null,null,null,null,null,null,null,null,null,null,null,null,null,null,null,null,null,null,null,null,null,null,null,null,null,null,null,null,null,null,1]
[null,null,null,null,null,null,null,null,null,null,null,null,null,null,null,null,null,null,null,null,null,null,null,null,null,null,null,null,null,null,null,null,null,1]
[null,null,null,null,null,null,null,null,null,null,null,null,null,null,null,null,null,null,null,null,null,null,null,null,null,null,null,null,null,null,null,null,null,1]
[null,null,null,null,null,null,null,null,null,null,null,null,null,null,null,null,null,null,null,null,null,null,null,null,null,null,null,null,null,null,null,null,null,1]
[null,null,null,null,null,null,null,null,null,null,null,null,null,null,null,null,null,null,null,null,null,null,null,null,null,null,null,null,null,null,null,null,null,1]
[null,null,null,null,null,null,null,null,null,null,null,null,null,null,null,null,null,null,null,null,null,null,null,null,null,null,null,null,null,null,null,null,null,1]
[null,null,null,null,null,null,null,null,null,null,null,null,null,null,null,null,null,null,null,null,null,null,null,null,null,null,null,null,null,null,null,null,null,1]
[null,null,null,null,null,null,null,null,null,null,null,null,null,null,null,null,null,null,null,null,null,null,null,null,null,null,null,null,null,null,null,null,null,1]
[null,null,null,null,null,null,null,null,null,null,null,null,null,null,null,null,null,null,null,null,null,null,null,null,null,null,null,null,null,null,null,null,null,1]
[null,null,null,null,null,null,null,null,null,null,null,null,null,null,null,null,null,null,null,null,null,null,null,null,null,null,null,null,null,null,null,null,null,1]
[null,null,null,null,null,null,null,null,null,null,null,null,null,null,null,null,null,null,null,null,null,null,null,null,null,null,null,null,null,null,null,null,null,1]
[null,null,null,null,null,null,null,null,null,null,null,null,null,null,null,null,null,null,null,null,null,null,null,null,null,null,null,null,null,null,null,null,null,1]
[null,null,null,null,null,null,null,null,null,null,null,null,null,null,null,null,null,null,null,null,null,null,null,null,null,null,null,null,null,null,null,null,null,1]
[null,null,null,null,null,null,null,null,null,null,null,null,null,null,null,null,null,null,null,null,null,null,null,null,null,null,null,null,null,null,null,null,null,1]
[null,null,null,null,null,null,null,null,null,null,null,null,null,null,null,null,null,null,null,null,null,null,null,null,null,null,null,null,null,null,null,null,null,1]
[null,null,null,null,null,null,null,null,null,null,null,null,null,null,null,null,null,null,null,null,null,null,null,null,null,null,null,null,null,null,null,null,null,1]
[null,null,null,null,null,null,null,null,null,null,null,null,null,null,null,null,null,null,null,null,null,null,null,null,null,null,null,null,null,null,null,null,null,1]
[null,null,null,null,null,null,null,null,null,null,null,null,null,null,null,null,null,null,null,null,null,null,null,null,null,null,null,null,null,null,null,null,null,1]
[null,null,null,null,null,null,null,null,null,null,null,null,null,null,null,null,null,null,null,null,null,null,null,null,null,null,null,null,null,null,null,null,null,1]
[null,null,null,null,null,null,null,null,null,null,null,null,null,null,null,null,null,null,null,null,null,null,null,null,null,null,null,null,null,null,null,null,null,1]
[null,null,null,null,null,null,null,null,null,null,null,null,null,null,null,null,null,null,null,null,null,null,null,null,null,null,null,null,null,null,null,null,null,1]
[null,null,null,null,null,null,null,null,null,null,null,null,null,null,null,null,null,null,null,null,null,null,null,null,null,null,null,null,null,null,null,null,null,1]
[null,null,null,null,null,null,null,null,null,null,null,null,null,null,null,null,null,null,null,null,null,null,null,null,null,null,null,null,null,null,null,null,null,1]
[null,null,null,null,null,null,null,null,null,null,null,null,null,null,null,null,null,null,null,null,null,null,null,null,null,null,null,null,null,null,null,null,null,1]
[null,null,null,null,null,null,null,null,null,null,null,null,null,null,null,null,null,null,null,null,null,null,null,null,null,null,null,null,null,null,null,null,null,1]
[null,null,null,null,null,null,null,null,null,null,null,null,null,null,null,null,null,null,null,null,null,null,null,null,null,null,null,null,null,null,null,null,null,1]
[null,null,null,null,null,null,null,null,null,null,null,null,null,null,null,null,null,null,null,null,null,null,null,null,null,null,null,null,null,null,null,null,null,1]
[null,null,null,null,null,null,null,null,null,null,null,null,null,null,null,null,null,null,null,null,null,null,null,null,null,null,null,null,null,null,null,null,null,1]
[null,null,null,null,null,null,null,null,null,null,null,null,null,null,null,null,null,null,null,null,null,null,null,null,null,null,null,null,null,null,null,null,null,1]
[null,null,null,null,null,null,null,null,null,null,null,null,null,null,null,null,null,null,null,null,null,null,null,null,null,null,null,null,null,null,null,null,null,1]
[null,null,null,null,null,null,null,null,null,null,null,null,null,null,null,null,null,null,null,null,null,null,null,null,null,null,null,null,null,null,null,null,null,1]
[null,null,null,null,null,null,null,null,null,null,null,null,null,null,null,null,null,null,null,null,null,null,null,null,null,null,null,null,null,null,null,null,null,1]
[null,null,null,null,null,null,null,null,null,null,null,null,null,null,null,null,null,null,null,null,null,null,null,null,null,null,null,null,null,null,null,null,null,1]
[null,null,null,null,null,null,null,null,null,null,null,null,null,null,null,null,null,null,null,null,null,null,null,null,null,null,null,null,null,null,null,null,null,1]
[null,null,null,null,null,null,null,null,null,null,null,null,null,null,null,null,null,null,null,null,null,null,null,null,null,null,null,null,null,null,null,null,null,1]
[null,null,null,null,null,null,null,null,null,null,null,null,null,null,null,null,null,null,null,null,null,null,null,null,null,null,null,null,null,null,null,null,null,1]
[null,null,null,null,null,null,null,null,null,null,null,null,null,null,null,null,null,null,null,null,null,null,null,null,null,null,null,null,null,null,null,null,null,1]
[null,null,null,null,null,null,null,null,null,null,null,null,null,null,null,null,null,null,null,null,null,null,null,null,null,null,null,null,null,null,null,null,null,1]
[null,null,null,null,null,null,null,null,null,null,null,null,null,null,null,null,null,null,null,null,null,null,null,null,null,null,null,null,null,null,null,null,null,1]
[null,null,null,null,null,null,null,null,null,null,null,null,null,null,null,null,null,null,null,null,null,null,null,null,null,null,null,null,null,null,null,null,null,1]
[null,null,null,null,null,null,null,null,null,null,null,null,null,null,null,null,null,null,null,null,null,null,null,null,null,null,null,null,null,null,null,null,null,1]
[null,null,null,null,null,null,null,null,null,null,null,null,null,null,null,null,null,null,null,null,null,null,null,null,null,null,null,null,null,null,null,null,null,1]
[null,null,null,null,null,null,null,null,null,null,null,null,null,null,null,null,null,null,null,null,null,null,null,null,null,null,null,null,null,null,null,null,null,1]
[null,null,null,null,null,null,null,null,null,null,null,null,null,null,null,null,null,null,null,null,null,null,null,null,null,null,null,null,null,null,null,null,null,1]
[null,null,null,null,null,null,null,null,null,null,null,null,null,null,null,null,null,null,null,null,null,null,null,null,null,null,null,null,null,null,null,null,null,1]
[null,null,null,null,null,null,null,null,null,null,null,null,null,null,null,null,null,null,null,null,null,null,null,null,null,null,null,null,null,null,null,null,null,1]
[null,null,null,null,null,null,null,null,null,null,null,null,null,null,null,null,null,null,null,null,null,null,null,null,null,null,null,null,null,null,null,null,null,1]
[null,null,null,null,null,null,null,null,null,null,null,null,null,null,null,null,null,null,null,null,null,null,null,null,null,null,null,null,null,null,null,null,null,1]
[null,null,null,null,null,null,null,null,null,null,null,null,null,null,null,null,null,null,null,null,null,null,null,null,null,null,null,null,null,null,null,null,null,{"$f":"IF(AND(E461=E460,H461=H460),AH460,AH460+1)","v":1}]
[null,null,null,null,null,null,null,null,null,null,null,null,null,null,null,null,null,null,null,null,null,null,null,null,null,null,null,null,null,null,null,null,null,1]
[null,null,null,null,null,null,null,null,null,null,null,null,null,null,null,null,null,null,null,null,null,null,null,null,null,null,null,null,null,null,null,null,null,1]
[null,null,null,null,null,null,null,null,null,null,null,null,null,null,null,null,null,null,null,null,null,null,null,null,null,null,null,null,null,null,null,null,null,1]
[null,null,null,null,null,null,null,null,null,null,null,null,null,null,null,null,null,null,null,null,null,null,null,null,null,null,null,null,null,null,null,null,null,1]
[null,null,null,null,null,null,null,null,null,null,null,null,null,null,null,null,null,null,null,null,null,null,null,null,null,null,null,null,null,null,null,null,null,1]
[null,null,null,null,null,null,null,null,null,null,null,null,null,null,null,null,null,null,null,null,null,null,null,null,null,null,null,null,null,null,null,null,null,1]
[null,null,null,null,null,null,null,null,null,null,null,null,null,null,null,null,null,null,null,null,null,null,null,null,null,null,null,null,null,null,null,null,null,1]
[null,null,null,null,null,null,null,null,null,null,null,null,null,null,null,null,null,null,null,null,null,null,null,null,null,null,null,null,null,null,null,null,null,1]
[null,null,null,null,null,null,null,null,null,null,null,null,null,null,null,null,null,null,null,null,null,null,null,null,null,null,null,null,null,null,null,null,null,1]
[null,null,null,null,null,null,null,null,null,null,null,null,null,null,null,null,null,null,null,null,null,null,null,null,null,null,null,null,null,null,null,null,null,1]
[null,null,null,null,null,null,null,null,null,null,null,null,null,null,null,null,null,null,null,null,null,null,null,null,null,null,null,null,null,null,null,null,null,1]
[null,null,null,null,null,null,null,null,null,null,null,null,null,null,null,null,null,null,null,null,null,null,null,null,null,null,null,null,null,null,null,null,null,1]
[null,null,null,null,null,null,null,null,null,null,null,null,null,null,null,null,null,null,null,null,null,null,null,null,null,null,null,null,null,null,null,null,null,1]
[null,null,null,null,null,null,null,null,null,null,null,null,null,null,null,null,null,null,null,null,null,null,null,null,null,null,null,null,null,null,null,null,null,1]
[null,null,null,null,null,null,null,null,null,null,null,null,null,null,null,null,null,null,null,null,null,null,null,null,null,null,null,null,null,null,null,null,null,1]
[null,null,null,null,null,null,null,null,null,null,null,null,null,null,null,null,null,null,null,null,null,null,null,null,null,null,null,null,null,null,null,null,null,1]
[null,null,null,null,null,null,null,null,null,null,null,null,null,null,null,null,null,null,null,null,null,null,null,null,null,null,null,null,null,null,null,null,null,1]
[null,null,null,null,null,null,null,null,null,null,null,null,null,null,null,null,null,null,null,null,null,null,null,null,null,null,null,null,null,null,null,null,null,1]
[null,null,null,null,null,null,null,null,null,null,null,null,null,null,null,null,null,null,null,null,null,null,null,null,null,null,null,null,null,null,null,null,null,1]
[null,null,null,null,null,null,null,null,null,null,null,null,null,null,null,null,null,null,null,null,null,null,null,null,null,null,null,null,null,null,null,null,null,1]
[null,null,null,null,null,null,null,null,null,null,null,null,null,null,null,null,null,null,null,null,null,null,null,null,null,null,null,null,null,null,null,null,null,1]
[null,null,null,null,null,null,null,null,null,null,null,null,null,null,null,null,null,null,null,null,null,null,null,null,null,null,null,null,null,null,null,null,null,1]
[null,null,null,null,null,null,null,null,null,null,null,null,null,null,null,null,null,null,null,null,null,null,null,null,null,null,null,null,null,null,null,null,null,1]
[null,null,null,null,null,null,null,null,null,null,null,null,null,null,null,null,null,null,null,null,null,null,null,null,null,null,null,null,null,null,null,null,null,1]
[null,null,null,null,null,null,null,null,null,null,null,null,null,null,null,null,null,null,null,null,null,null,null,null,null,null,null,null,null,null,null,null,null,1]
[null,null,null,null,null,null,null,null,null,null,null,null,null,null,null,null,null,null,null,null,null,null,null,null,null,null,null,null,null,null,null,null,null,1]
[null,null,null,null,null,null,null,null,null,null,null,null,null,null,null,null,null,null,null,null,null,null,null,null,null,null,null,null,null,null,null,null,null,1]
[null,null,null,null,null,null,null,null,null,null,null,null,null,null,null,null,null,null,null,null,null,null,null,null,null,null,null,null,null,null,null,null,null,1]
[null,null,null,null,null,null,null,null,null,null,null,null,null,null,null,null,null,null,null,null,null,null,null,null,null,null,null,null,null,null,null,null,null,1]
[null,null,null,null,null,null,null,null,null,null,null,null,null,null,null,null,null,null,null,null,null,null,null,null,null,null,null,null,null,null,null,null,null,1]
[null,null,null,null,null,null,null,null,null,null,null,null,null,null,null,null,null,null,null,null,null,null,null,null,null,null,null,null,null,null,null,null,null,1]
[null,null,null,null,null,null,null,null,null,null,null,null,null,null,null,null,null,null,null,null,null,null,null,null,null,null,null,null,null,null,null,null,null,1]
[null,null,null,null,null,null,null,null,null,null,null,null,null,null,null,null,null,null,null,null,null,null,null,null,null,null,null,null,null,null,null,null,null,1]
[null,null,null,null,null,null,null,null,null,null,null,null,null,null,null,null,null,null,null,null,null,null,null,null,null,null,null,null,null,null,null,null,null,1]
[null,null,null,null,null,null,null,null,null,null,null,null,null,null,null,null,null,null,null,null,null,null,null,null,null,null,null,null,null,null,null,null,null,1]
[null,null,null,null,null,null,null,null,null,null,null,null,null,null,null,null,null,null,null,null,null,null,null,null,null,null,null,null,null,null,null,null,null,1]
[null,null,null,null,null,null,null,null,null,null,null,null,null,null,null,null,null,null,null,null,null,null,null,null,null,null,null,null,null,null,null,null,null,1]
[null,null,null,null,null,null,null,null,null,null,null,null,null,null,null,null,null,null,null,null,null,null,null,null,null,null,null,null,null,null,null,null,null,1]
[null,null,null,null,null,null,null,null,null,null,null,null,null,null,null,null,null,null,null,null,null,null,null,null,null,null,null,null,null,null,null,null,null,1]
[null,null,null,null,null,null,null,null,null,null,null,null,null,null,null,null,null,null,null,null,null,null,null,null,null,null,null,null,null,null,null,null,null,1]
[null,null,null,null,null,null,null,null,null,null,null,null,null,null,null,null,null,null,null,null,null,null,null,null,null,null,null,null,null,null,null,null,null,1]
[null,null,null,null,null,null,null,null,null,null,null,null,null,null,null,null,null,null,null,null,null,null,null,null,null,null,null,null,null,null,null,null,null,1]
[null,null,null,null,null,null,null,null,null,null,null,null,null,null,null,null,null,null,null,null,null,null,null,null,null,null,null,null,null,null,null,null,null,1]
[null,null,null,null,null,null,null,null,null,null,null,null,null,null,null,null,null,null,null,null,null,null,null,null,null,null,null,null,null,null,null,null,null,1]
[null,null,null,null,null,null,null,null,null,null,null,null,null,null,null,null,null,null,null,null,null,null,null,null,null,null,null,null,null,null,null,null,null,1]
[null,null,null,null,null,null,null,null,null,null,null,null,null,null,null,null,null,null,null,null,null,null,null,null,null,null,null,null,null,null,null,null,null,1]
[null,null,null,null,null,null,null,null,null,null,null,null,null,null,null,null,null,null,null,null,null,null,null,null,null,null,null,null,null,null,null,null,null,1]
[null,null,null,null,null,null,null,null,null,null,null,null,null,null,null,null,null,null,null,null,null,null,null,null,null,null,null,null,null,null,null,null,null,1]
[null,null,null,null,null,null,null,null,null,null,null,null,null,null,null,null,null,null,null,null,null,null,null,null,null,null,null,null,null,null,null,null,null,1]
[null,null,null,null,null,null,null,null,null,null,null,null,null,null,null,null,null,null,null,null,null,null,null,null,null,null,null,null,null,null,null,null,null,1]
[null,null,null,null,null,null,null,null,null,null,null,null,null,null,null,null,null,null,null,null,null,null,null,null,null,null,null,null,null,null,null,null,null,1]
[null,null,null,null,null,null,null,null,null,null,null,null,null,null,null,null,null,null,null,null,null,null,null,null,null,null,null,null,null,null,null,null,null,1]
[null,null,null,null,null,null,null,null,null,null,null,null,null,null,null,null,null,null,null,null,null,null,null,null,null,null,null,null,null,null,null,null,null,1]
[null,null,null,null,null,null,null,null,null,null,null,null,null,null,null,null,null,null,null,null,null,null,null,null,null,null,null,null,null,null,null,null,null,1]
[null,null,null,null,null,null,null,null,null,null,null,null,null,null,null,null,null,null,null,null,null,null,null,null,null,null,null,null,null,null,null,null,null,1]
[null,null,null,null,null,null,null,null,null,null,null,null,null,null,null,null,null,null,null,null,null,null,null,null,null,null,null,null,null,null,null,null,null,1]
[null,null,null,null,null,null,null,null,null,null,null,null,null,null,null,null,null,null,null,null,null,null,null,null,null,null,null,null,null,null,null,null,null,1]
[null,null,null,null,null,null,null,null,null,null,null,null,null,null,null,null,null,null,null,null,null,null,null,null,null,null,null,null,null,null,null,null,null,1]
[null,null,null,null,null,null,null,null,null,null,null,null,null,null,null,null,null,null,null,null,null,null,null,null,null,null,null,null,null,null,null,null,null,1]
[null,null,null,null,null,null,null,null,null,null,null,null,null,null,null,null,null,null,null,null,null,null,null,null,null,null,null,null,null,null,null,null,null,1]
[null,null,null,null,null,null,null,null,null,null,null,null,null,null,null,null,null,null,null,null,null,null,null,null,null,null,null,null,null,null,null,null,null,1]
[null,null,null,null,null,null,null,null,null,null,null,null,null,null,null,null,null,null,null,null,null,null,null,null,null,null,null,null,null,null,null,null,null,1]
[null,null,null,null,null,null,null,null,null,null,null,null,null,null,null,null,null,null,null,null,null,null,null,null,null,null,null,null,null,null,null,null,null,1]
[null,null,null,null,null,null,null,null,null,null,null,null,null,null,null,null,null,null,null,null,null,null,null,null,null,null,null,null,null,null,null,null,null,{"$f":"IF(AND(E525=E524,H525=H524),AH524,AH524+1)","v":1}]
[null,null,null,null,null,null,null,null,null,null,null,null,null,null,null,null,null,null,null,null,null,null,null,null,null,null,null,null,null,null,null,null,null,1]
[null,null,null,null,null,null,null,null,null,null,null,null,null,null,null,null,null,null,null,null,null,null,null,null,null,null,null,null,null,null,null,null,null,1]
[null,null,null,null,null,null,null,null,null,null,null,null,null,null,null,null,null,null,null,null,null,null,null,null,null,null,null,null,null,null,null,null,null,1]
[null,null,null,null,null,null,null,null,null,null,null,null,null,null,null,null,null,null,null,null,null,null,null,null,null,null,null,null,null,null,null,null,null,1]
[null,null,null,null,null,null,null,null,null,null,null,null,null,null,null,null,null,null,null,null,null,null,null,null,null,null,null,null,null,null,null,null,null,1]
[null,null,null,null,null,null,null,null,null,null,null,null,null,null,null,null,null,null,null,null,null,null,null,null,null,null,null,null,null,null,null,null,null,1]
[null,null,null,null,null,null,null,null,null,null,null,null,null,null,null,null,null,null,null,null,null,null,null,null,null,null,null,null,null,null,null,null,null,1]
[null,null,null,null,null,null,null,null,null,null,null,null,null,null,null,null,null,null,null,null,null,null,null,null,null,null,null,null,null,null,null,null,null,1]
[null,null,null,null,null,null,null,null,null,null,null,null,null,null,null,null,null,null,null,null,null,null,null,null,null,null,null,null,null,null,null,null,null,1]
[null,null,null,null,null,null,null,null,null,null,null,null,null,null,null,null,null,null,null,null,null,null,null,null,null,null,null,null,null,null,null,null,null,1]
[null,null,null,null,null,null,null,null,null,null,null,null,null,null,null,null,null,null,null,null,null,null,null,null,null,null,null,null,null,null,null,null,null,1]
[null,null,null,null,null,null,null,null,null,null,null,null,null,null,null,null,null,null,null,null,null,null,null,null,null,null,null,null,null,null,null,null,null,1]
[null,null,null,null,null,null,null,null,null,null,null,null,null,null,null,null,null,null,null,null,null,null,null,null,null,null,null,null,null,null,null,null,null,1]
[null,null,null,null,null,null,null,null,null,null,null,null,null,null,null,null,null,null,null,null,null,null,null,null,null,null,null,null,null,null,null,null,null,1]
[null,null,null,null,null,null,null,null,null,null,null,null,null,null,null,null,null,null,null,null,null,null,null,null,null,null,null,null,null,null,null,null,null,1]
[null,null,null,null,null,null,null,null,null,null,null,null,null,null,null,null,null,null,null,null,null,null,null,null,null,null,null,null,null,null,null,null,null,1]
[null,null,null,null,null,null,null,null,null,null,null,null,null,null,null,null,null,null,null,null,null,null,null,null,null,null,null,null,null,null,null,null,null,1]
[null,null,null,null,null,null,null,null,null,null,null,null,null,null,null,null,null,null,null,null,null,null,null,null,null,null,null,null,null,null,null,null,null,1]
[null,null,null,null,null,null,null,null,null,null,null,null,null,null,null,null,null,null,null,null,null,null,null,null,null,null,null,null,null,null,null,null,null,1]
[null,null,null,null,null,null,null,null,null,null,null,null,null,null,null,null,null,null,null,null,null,null,null,null,null,null,null,null,null,null,null,null,null,1]
[null,null,null,null,null,null,null,null,null,null,null,null,null,null,null,null,null,null,null,null,null,null,null,null,null,null,null,null,null,null,null,null,null,1]
[null,null,null,null,null,null,null,null,null,null,null,null,null,null,null,null,null,null,null,null,null,null,null,null,null,null,null,null,null,null,null,null,null,1]
[null,null,null,null,null,null,null,null,null,null,null,null,null,null,null,null,null,null,null,null,null,null,null,null,null,null,null,null,null,null,null,null,null,1]
[null,null,null,null,null,null,null,null,null,null,null,null,null,null,null,null,null,null,null,null,null,null,null,null,null,null,null,null,null,null,null,null,null,1]
[null,null,null,null,null,null,null,null,null,null,null,null,null,null,null,null,null,null,null,null,null,null,null,null,null,null,null,null,null,null,null,null,null,1]
[null,null,null,null,null,null,null,null,null,null,null,null,null,null,null,null,null,null,null,null,null,null,null,null,null,null,null,null,null,null,null,null,null,1]
[null,null,null,null,null,null,null,null,null,null,null,null,null,null,null,null,null,null,null,null,null,null,null,null,null,null,null,null,null,null,null,null,null,1]
[null,null,null,null,null,null,null,null,null,null,null,null,null,null,null,null,null,null,null,null,null,null,null,null,null,null,null,null,null,null,null,null,null,1]
[null,null,null,null,null,null,null,null,null,null,null,null,null,null,null,null,null,null,null,null,null,null,null,null,null,null,null,null,null,null,null,null,null,1]
[null,null,null,null,null,null,null,null,null,null,null,null,null,null,null,null,null,null,null,null,null,null,null,null,null,null,null,null,null,null,null,null,null,1]
[null,null,null,null,null,null,null,null,null,null,null,null,null,null,null,null,null,null,null,null,null,null,null,null,null,null,null,null,null,null,null,null,null,1]
[null,null,null,null,null,null,null,null,null,null,null,null,null,null,null,null,null,null,null,null,null,null,null,null,null,null,null,null,null,null,null,null,null,1]
[null,null,null,null,null,null,null,null,null,null,null,null,null,null,null,null,null,null,null,null,null,null,null,null,null,null,null,null,null,null,null,null,null,1]
[null,null,null,null,null,null,null,null,null,null,null,null,null,null,null,null,null,null,null,null,null,null,null,null,null,null,null,null,null,null,null,null,null,1]
[null,null,null,null,null,null,null,null,null,null,null,null,null,null,null,null,null,null,null,null,null,null,null,null,null,null,null,null,null,null,null,null,null,1]
[null,null,null,null,null,null,null,null,null,null,null,null,null,null,null,null,null,null,null,null,null,null,null,null,null,null,null,null,null,null,null,null,null,1]
[null,null,null,null,null,null,null,null,null,null,null,null,null,null,null,null,null,null,null,null,null,null,null,null,null,null,null,null,null,null,null,null,null,1]
[null,null,null,null,null,null,null,null,null,null,null,null,null,null,null,null,null,null,null,null,null,null,null,null,null,null,null,null,null,null,null,null,null,1]
[null,null,null,null,null,null,null,null,null,null,null,null,null,null,null,null,null,null,null,null,null,null,null,null,null,null,null,null,null,null,null,null,null,1]
[null,null,null,null,null,null,null,null,null,null,null,null,null,null,null,null,null,null,null,null,null,null,null,null,null,null,null,null,null,null,null,null,null,1]
[null,null,null,null,null,null,null,null,null,null,null,null,null,null,null,null,null,null,null,null,null,null,null,null,null,null,null,null,null,null,null,null,null,1]
[null,null,null,null,null,null,null,null,null,null,null,null,null,null,null,null,null,null,null,null,null,null,null,null,null,null,null,null,null,null,null,null,null,1]
[null,null,null,null,null,null,null,null,null,null,null,null,null,null,null,null,null,null,null,null,null,null,null,null,null,null,null,null,null,null,null,null,null,1]
[null,null,null,null,null,null,null,null,null,null,null,null,null,null,null,null,null,null,null,null,null,null,null,null,null,null,null,null,null,null,null,null,null,1]
[null,null,null,null,null,null,null,null,null,null,null,null,null,null,null,null,null,null,null,null,null,null,null,null,null,null,null,null,null,null,null,null,null,1]
[null,null,null,null,null,null,null,null,null,null,null,null,null,null,null,null,null,null,null,null,null,null,null,null,null,null,null,null,null,null,null,null,null,1]
[null,null,null,null,null,null,null,null,null,null,null,null,null,null,null,null,null,null,null,null,null,null,null,null,null,null,null,null,null,null,null,null,null,1]
[null,null,null,null,null,null,null,null,null,null,null,null,null,null,null,null,null,null,null,null,null,null,null,null,null,null,null,null,null,null,null,null,null,1]
[null,null,null,null,null,null,null,null,null,null,null,null,null,null,null,null,null,null,null,null,null,null,null,null,null,null,null,null,null,null,null,null,null,1]
[null,null,null,null,null,null,null,null,null,null,null,null,null,null,null,null,null,null,null,null,null,null,null,null,null,null,null,null,null,null,null,null,null,1]
[null,null,null,null,null,null,null,null,null,null,null,null,null,null,null,null,null,null,null,null,null,null,null,null,null,null,null,null,null,null,null,null,null,1]
[null,null,null,null,null,null,null,null,null,null,null,null,null,null,null,null,null,null,null,null,null,null,null,null,null,null,null,null,null,null,null,null,null,1]
[null,null,null,null,null,null,null,null,null,null,null,null,null,null,null,null,null,null,null,null,null,null,null,null,null,null,null,null,null,null,null,null,null,1]
[null,null,null,null,null,null,null,null,null,null,null,null,null,null,null,null,null,null,null,null,null,null,null,null,null,null,null,null,null,null,null,null,null,1]
[null,null,null,null,null,null,null,null,null,null,null,null,null,null,null,null,null,null,null,null,null,null,null,null,null,null,null,null,null,null,null,null,null,1]
[null,null,null,null,null,null,null,null,null,null,null,null,null,null,null,null,null,null,null,null,null,null,null,null,null,null,null,null,null,null,null,null,null,1]
[null,null,null,null,null,null,null,null,null,null,null,null,null,null,null,null,null,null,null,null,null,null,null,null,null,null,null,null,null,null,null,null,null,1]
[null,null,null,null,null,null,null,null,null,null,null,null,null,null,null,null,null,null,null,null,null,null,null,null,null,null,null,null,null,null,null,null,null,1]
[null,null,null,null,null,null,null,null,null,null,null,null,null,null,null,null,null,null,null,null,null,null,null,null,null,null,null,null,null,null,null,null,null,1]
[null,null,null,null,null,null,null,null,null,null,null,null,null,null,null,null,null,null,null,null,null,null,null,null,null,null,null,null,null,null,null,null,null,1]
[null,null,null,null,null,null,null,null,null,null,null,null,null,null,null,null,null,null,null,null,null,null,null,null,null,null,null,null,null,null,null,null,null,1]
[null,null,null,null,null,null,null,null,null,null,null,null,null,null,null,null,null,null,null,null,null,null,null,null,null,null,null,null,null,null,null,null,null,1]
[null,null,null,null,null,null,null,null,null,null,null,null,null,null,null,null,null,null,null,null,null,null,null,null,null,null,null,null,null,null,null,null,null,1]
[null,null,null,null,null,null,null,null,null,null,null,null,null,null,null,null,null,null,null,null,null,null,null,null,null,null,null,null,null,null,null,null,null,{"$f":"IF(AND(E589=E588,H589=H588),AH588,AH588+1)","v":1}]
[null,null,null,null,null,null,null,null,null,null,null,null,null,null,null,null,null,null,null,null,null,null,null,null,null,null,null,null,null,null,null,null,null,1]
[null,null,null,null,null,null,null,null,null,null,null,null,null,null,null,null,null,null,null,null,null,null,null,null,null,null,null,null,null,null,null,null,null,1]
[null,null,null,null,null,null,null,null,null,null,null,null,null,null,null,null,null,null,null,null,null,null,null,null,null,null,null,null,null,null,null,null,null,1]
[null,null,null,null,null,null,null,null,null,null,null,null,null,null,null,null,null,null,null,null,null,null,null,null,null,null,null,null,null,null,null,null,null,1]
[null,null,null,null,null,null,null,null,null,null,null,null,null,null,null,null,null,null,null,null,null,null,null,null,null,null,null,null,null,null,null,null,null,1]
[null,null,null,null,null,null,null,null,null,null,null,null,null,null,null,null,null,null,null,null,null,null,null,null,null,null,null,null,null,null,null,null,null,1]
[null,null,null,null,null,null,null,null,null,null,null,null,null,null,null,null,null,null,null,null,null,null,null,null,null,null,null,null,null,null,null,null,null,1]
[null,null,null,null,null,null,null,null,null,null,null,null,null,null,null,null,null,null,null,null,null,null,null,null,null,null,null,null,null,null,null,null,null,1]
[null,null,null,null,null,null,null,null,null,null,null,null,null,null,null,null,null,null,null,null,null,null,null,null,null,null,null,null,null,null,null,null,null,1]
[null,null,null,null,null,null,null,null,null,null,null,null,null,null,null,null,null,null,null,null,null,null,null,null,null,null,null,null,null,null,null,null,null,1]
[null,null,null,null,null,null,null,null,null,null,null,null,null,null,null,null,null,null,null,null,null,null,null,null,null,null,null,null,null,null,null,null,null,1]
[null,null,null,null,null,null,null,null,null,null,null,null,null,null,null,null,null,null,null,null,null,null,null,null,null,null,null,null,null,null,null,null,null,1]
[null,null,null,null,null,null,null,null,null,null,null,null,null,null,null,null,null,null,null,null,null,null,null,null,null,null,null,null,null,null,null,null,null,1]
[null,null,null,null,null,null,null,null,null,null,null,null,null,null,null,null,null,null,null,null,null,null,null,null,null,null,null,null,null,null,null,null,null,1]
[null,null,null,null,null,null,null,null,null,null,null,null,null,null,null,null,null,null,null,null,null,null,null,null,null,null,null,null,null,null,null,null,null,1]
[null,null,null,null,null,null,null,null,null,null,null,null,null,null,null,null,null,null,null,null,null,null,null,null,null,null,null,null,null,null,null,null,null,1]
[null,null,null,null,null,null,null,null,null,null,null,null,null,null,null,null,null,null,null,null,null,null,null,null,null,null,null,null,null,null,null,null,null,1]
[null,null,null,null,null,null,null,null,null,null,null,null,null,null,null,null,null,null,null,null,null,null,null,null,null,null,null,null,null,null,null,null,null,1]
[null,null,null,null,null,null,null,null,null,null,null,null,null,null,null,null,null,null,null,null,null,null,null,null,null,null,null,null,null,null,null,null,null,1]
[null,null,null,null,null,null,null,null,null,null,null,null,null,null,null,null,null,null,null,null,null,null,null,null,null,null,null,null,null,null,null,null,null,1]
[null,null,null,null,null,null,null,null,null,null,null,null,null,null,null,null,null,null,null,null,null,null,null,null,null,null,null,null,null,null,null,null,null,1]
[null,null,null,null,null,null,null,null,null,null,null,null,null,null,null,null,null,null,null,null,null,null,null,null,null,null,null,null,null,null,null,null,null,1]
[null,null,null,null,null,null,null,null,null,null,null,null,null,null,null,null,null,null,null,null,null,null,null,null,null,null,null,null,null,null,null,null,null,1]
[null,null,null,null,null,null,null,null,null,null,null,null,null,null,null,null,null,null,null,null,null,null,null,null,null,null,null,null,null,null,null,null,null,1]
[null,null,null,null,null,null,null,null,null,null,null,null,null,null,null,null,null,null,null,null,null,null,null,null,null,null,null,null,null,null,null,null,null,1]
[null,null,null,null,null,null,null,null,null,null,null,null,null,null,null,null,null,null,null,null,null,null,null,null,null,null,null,null,null,null,null,null,null,1]
[null,null,null,null,null,null,null,null,null,null,null,null,null,null,null,null,null,null,null,null,null,null,null,null,null,null,null,null,null,null,null,null,null,1]
[null,null,null,null,null,null,null,null,null,null,null,null,null,null,null,null,null,null,null,null,null,null,null,null,null,null,null,null,null,null,null,null,null,1]
[null,null,null,null,null,null,null,null,null,null,null,null,null,null,null,null,null,null,null,null,null,null,null,null,null,null,null,null,null,null,null,null,null,1]
[null,null,null,null,null,null,null,null,null,null,null,null,null,null,null,null,null,null,null,null,null,null,null,null,null,null,null,null,null,null,null,null,null,1]
[null,null,null,null,null,null,null,null,null,null,null,null,null,null,null,null,null,null,null,null,null,null,null,null,null,null,null,null,null,null,null,null,null,1]
[null,null,null,null,null,null,null,null,null,null,null,null,null,null,null,null,null,null,null,null,null,null,null,null,null,null,null,null,null,null,null,null,null,1]
[null,null,null,null,null,null,null,null,null,null,null,null,null,null,null,null,null,null,null,null,null,null,null,null,null,null,null,null,null,null,null,null,null,1]
[null,null,null,null,null,null,null,null,null,null,null,null,null,null,null,null,null,null,null,null,null,null,null,null,null,null,null,null,null,null,null,null,null,1]
[null,null,null,null,null,null,null,null,null,null,null,null,null,null,null,null,null,null,null,null,null,null,null,null,null,null,null,null,null,null,null,null,null,1]
[null,null,null,null,null,null,null,null,null,null,null,null,null,null,null,null,null,null,null,null,null,null,null,null,null,null,null,null,null,null,null,null,null,1]
[null,null,null,null,null,null,null,null,null,null,null,null,null,null,null,null,null,null,null,null,null,null,null,null,null,null,null,null,null,null,null,null,null,1]
[null,null,null,null,null,null,null,null,null,null,null,null,null,null,null,null,null,null,null,null,null,null,null,null,null,null,null,null,null,null,null,null,null,1]
[null,null,null,null,null,null,null,null,null,null,null,null,null,null,null,null,null,null,null,null,null,null,null,null,null,null,null,null,null,null,null,null,null,1]
[null,null,null,null,null,null,null,null,null,null,null,null,null,null,null,null,null,null,null,null,null,null,null,null,null,null,null,null,null,null,null,null,null,1]
[null,null,null,null,null,null,null,null,null,null,null,null,null,null,null,null,null,null,null,null,null,null,null,null,null,null,null,null,null,null,null,null,null,1]
[null,null,null,null,null,null,null,null,null,null,null,null,null,null,null,null,null,null,null,null,null,null,null,null,null,null,null,null,null,null,null,null,null,1]
[null,null,null,null,null,null,null,null,null,null,null,null,null,null,null,null,null,null,null,null,null,null,null,null,null,null,null,null,null,null,null,null,null,1]
[null,null,null,null,null,null,null,null,null,null,null,null,null,null,null,null,null,null,null,null,null,null,null,null,null,null,null,null,null,null,null,null,null,1]
[null,null,null,null,null,null,null,null,null,null,null,null,null,null,null,null,null,null,null,null,null,null,null,null,null,null,null,null,null,null,null,null,null,1]
[null,null,null,null,null,null,null,null,null,null,null,null,null,null,null,null,null,null,null,null,null,null,null,null,null,null,null,null,null,null,null,null,null,1]
[null,null,null,null,null,null,null,null,null,null,null,null,null,null,null,null,null,null,null,null,null,null,null,null,null,null,null,null,null,null,null,null,null,1]
[null,null,null,null,null,null,null,null,null,null,null,null,null,null,null,null,null,null,null,null,null,null,null,null,null,null,null,null,null,null,null,null,null,1]
[null,null,null,null,null,null,null,null,null,null,null,null,null,null,null,null,null,null,null,null,null,null,null,null,null,null,null,null,null,null,null,null,null,1]
[null,null,null,null,null,null,null,null,null,null,null,null,null,null,null,null,null,null,null,null,null,null,null,null,null,null,null,null,null,null,null,null,null,1]
[null,null,null,null,null,null,null,null,null,null,null,null,null,null,null,null,null,null,null,null,null,null,null,null,null,null,null,null,null,null,null,null,null,1]
[null,null,null,null,null,null,null,null,null,null,null,null,null,null,null,null,null,null,null,null,null,null,null,null,null,null,null,null,null,null,null,null,null,1]
[null,null,null,null,null,null,null,null,null,null,null,null,null,null,null,null,null,null,null,null,null,null,null,null,null,null,null,null,null,null,null,null,null,1]
[null,null,null,null,null,null,null,null,null,null,null,null,null,null,null,null,null,null,null,null,null,null,null,null,null,null,null,null,null,null,null,null,null,1]
[null,null,null,null,null,null,null,null,null,null,null,null,null,null,null,null,null,null,null,null,null,null,null,null,null,null,null,null,null,null,null,null,null,1]
[null,null,null,null,null,null,null,null,null,null,null,null,null,null,null,null,null,null,null,null,null,null,null,null,null,null,null,null,null,null,null,null,null,1]
[null,null,null,null,null,null,null,null,null,null,null,null,null,null,null,null,null,null,null,null,null,null,null,null,null,null,null,null,null,null,null,null,null,1]
[null,null,null,null,null,null,null,null,null,null,null,null,null,null,null,null,null,null,null,null,null,null,null,null,null,null,null,null,null,null,null,null,null,1]
[null,null,null,null,null,null,null,null,null,null,null,null,null,null,null,null,null,null,null,null,null,null,null,null,null,null,null,null,null,null,null,null,null,1]
[null,null,null,null,null,null,null,null,null,null,null,null,null,null,null,null,null,null,null,null,null,null,null,null,null,null,null,null,null,null,null,null,null,1]
[null,null,null,null,null,null,null,null,null,null,null,null,null,null,null,null,null,null,null,null,null,null,null,null,null,null,null,null,null,null,null,null,null,1]
[null,null,null,null,null,null,null,null,null,null,null,null,null,null,null,null,null,null,null,null,null,null,null,null,null,null,null,null,null,null,null,null,null,1]
[null,null,null,null,null,null,null,null,null,null,null,null,null,null,null,null,null,null,null,null,null,null,null,null,null,null,null,null,null,null,null,null,null,1]
[null,null,null,null,null,null,null,null,null,null,null,null,null,null,null,null,null,null,null,null,null,null,null,null,null,null,null,null,null,null,null,null,null,{"$f":"IF(AND(E653=E652,H653=H652),AH652,AH652+1)","v":1}]
[null,null,null,null,null,null,null,null,null,null,null,null,null,null,null,null,null,null,null,null,null,null,null,null,null,null,null,null,null,null,null,null,null,1]
[null,null,null,null,null,null,null,null,null,null,null,null,null,null,null,null,null,null,null,null,null,null,null,null,null,null,null,null,null,null,null,null,null,1]
[null,null,null,null,null,null,null,null,null,null,null,null,null,null,null,null,null,null,null,null,null,null,null,null,null,null,null,null,null,null,null,null,null,1]
[null,null,null,null,null,null,null,null,null,null,null,null,null,null,null,null,null,null,null,null,null,null,null,null,null,null,null,null,null,null,null,null,null,1]
[null,null,null,null,null,null,null,null,null,null,null,null,null,null,null,null,null,null,null,null,null,null,null,null,null,null,null,null,null,null,null,null,null,1]
[null,null,null,null,null,null,null,null,null,null,null,null,null,null,null,null,null,null,null,null,null,null,null,null,null,null,null,null,null,null,null,null,null,1]
[null,null,null,null,null,null,null,null,null,null,null,null,null,null,null,null,null,null,null,null,null,null,null,null,null,null,null,null,null,null,null,null,null,1]
[null,null,null,null,null,null,null,null,null,null,null,null,null,null,null,null,null,null,null,null,null,null,null,null,null,null,null,null,null,null,null,null,null,1]
[null,null,null,null,null,null,null,null,null,null,null,null,null,null,null,null,null,null,null,null,null,null,null,null,null,null,null,null,null,null,null,null,null,1]
[null,null,null,null,null,null,null,null,null,null,null,null,null,null,null,null,null,null,null,null,null,null,null,null,null,null,null,null,null,null,null,null,null,1]
[null,null,null,null,null,null,null,null,null,null,null,null,null,null,null,null,null,null,null,null,null,null,null,null,null,null,null,null,null,null,null,null,null,1]
[null,null,null,null,null,null,null,null,null,null,null,null,null,null,null,null,null,null,null,null,null,null,null,null,null,null,null,null,null,null,null,null,null,1]
[null,null,null,null,null,null,null,null,null,null,null,null,null,null,null,null,null,null,null,null,null,null,null,null,null,null,null,null,null,null,null,null,null,1]
[null,null,null,null,null,null,null,null,null,null,null,null,null,null,null,null,null,null,null,null,null,null,null,null,null,null,null,null,null,null,null,null,null,1]
[null,null,null,null,null,null,null,null,null,null,null,null,null,null,null,null,null,null,null,null,null,null,null,null,null,null,null,null,null,null,null,null,null,1]
[null,null,null,null,null,null,null,null,null,null,null,null,null,null,null,null,null,null,null,null,null,null,null,null,null,null,null,null,null,null,null,null,null,1]
[null,null,null,null,null,null,null,null,null,null,null,null,null,null,null,null,null,null,null,null,null,null,null,null,null,null,null,null,null,null,null,null,null,1]
[null,null,null,null,null,null,null,null,null,null,null,null,null,null,null,null,null,null,null,null,null,null,null,null,null,null,null,null,null,null,null,null,null,1]
[null,null,null,null,null,null,null,null,null,null,null,null,null,null,null,null,null,null,null,null,null,null,null,null,null,null,null,null,null,null,null,null,null,1]
[null,null,null,null,null,null,null,null,null,null,null,null,null,null,null,null,null,null,null,null,null,null,null,null,null,null,null,null,null,null,null,null,null,1]
[null,null,null,null,null,null,null,null,null,null,null,null,null,null,null,null,null,null,null,null,null,null,null,null,null,null,null,null,null,null,null,null,null,1]
[null,null,null,null,null,null,null,null,null,null,null,null,null,null,null,null,null,null,null,null,null,null,null,null,null,null,null,null,null,null,null,null,null,1]
[null,null,null,null,null,null,null,null,null,null,null,null,null,null,null,null,null,null,null,null,null,null,null,null,null,null,null,null,null,null,null,null,null,1]
[null,null,null,null,null,null,null,null,null,null,null,null,null,null,null,null,null,null,null,null,null,null,null,null,null,null,null,null,null,null,null,null,null,1]
[null,null,null,null,null,null,null,null,null,null,null,null,null,null,null,null,null,null,null,null,null,null,null,null,null,null,null,null,null,null,null,null,null,1]
[null,null,null,null,null,null,null,null,null,null,null,null,null,null,null,null,null,null,null,null,null,null,null,null,null,null,null,null,null,null,null,null,null,1]
[null,null,null,null,null,null,null,null,null,null,null,null,null,null,null,null,null,null,null,null,null,null,null,null,null,null,null,null,null,null,null,null,null,1]
[null,null,null,null,null,null,null,null,null,null,null,null,null,null,null,null,null,null,null,null,null,null,null,null,null,null,null,null,null,null,null,null,null,1]
[null,null,null,null,null,null,null,null,null,null,null,null,null,null,null,null,null,null,null,null,null,null,null,null,null,null,null,null,null,null,null,null,null,1]
[null,null,null,null,null,null,null,null,null,null,null,null,null,null,null,null,null,null,null,null,null,null,null,null,null,null,null,null,null,null,null,null,null,1]
[null,null,null,null,null,null,null,null,null,null,null,null,null,null,null,null,null,null,null,null,null,null,null,null,null,null,null,null,null,null,null,null,null,1]
[null,null,null,null,null,null,null,null,null,null,null,null,null,null,null,null,null,null,null,null,null,null,null,null,null,null,null,null,null,null,null,null,null,1]
[null,null,null,null,null,null,null,null,null,null,null,null,null,null,null,null,null,null,null,null,null,null,null,null,null,null,null,null,null,null,null,null,null,1]
[null,null,null,null,null,null,null,null,null,null,null,null,null,null,null,null,null,null,null,null,null,null,null,null,null,null,null,null,null,null,null,null,null,1]
[null,null,null,null,null,null,null,null,null,null,null,null,null,null,null,null,null,null,null,null,null,null,null,null,null,null,null,null,null,null,null,null,null,1]
[null,null,null,null,null,null,null,null,null,null,null,null,null,null,null,null,null,null,null,null,null,null,null,null,null,null,null,null,null,null,null,null,null,1]
[null,null,null,null,null,null,null,null,null,null,null,null,null,null,null,null,null,null,null,null,null,null,null,null,null,null,null,null,null,null,null,null,null,1]
[null,null,null,null,null,null,null,null,null,null,null,null,null,null,null,null,null,null,null,null,null,null,null,null,null,null,null,null,null,null,null,null,null,1]
[null,null,null,null,null,null,null,null,null,null,null,null,null,null,null,null,null,null,null,null,null,null,null,null,null,null,null,null,null,null,null,null,null,1]
[null,null,null,null,null,null,null,null,null,null,null,null,null,null,null,null,null,null,null,null,null,null,null,null,null,null,null,null,null,null,null,null,null,1]
[null,null,null,null,null,null,null,null,null,null,null,null,null,null,null,null,null,null,null,null,null,null,null,null,null,null,null,null,null,null,null,null,null,1]
[null,null,null,null,null,null,null,null,null,null,null,null,null,null,null,null,null,null,null,null,null,null,null,null,null,null,null,null,null,null,null,null,null,1]
[null,null,null,null,null,null,null,null,null,null,null,null,null,null,null,null,null,null,null,null,null,null,null,null,null,null,null,null,null,null,null,null,null,1]
[null,null,null,null,null,null,null,null,null,null,null,null,null,null,null,null,null,null,null,null,null,null,null,null,null,null,null,null,null,null,null,null,null,1]
[null,null,null,null,null,null,null,null,null,null,null,null,null,null,null,null,null,null,null,null,null,null,null,null,null,null,null,null,null,null,null,null,null,1]
[null,null,null,null,null,null,null,null,null,null,null,null,null,null,null,null,null,null,null,null,null,null,null,null,null,null,null,null,null,null,null,null,null,1]
[null,null,null,null,null,null,null,null,null,null,null,null,null,null,null,null,null,null,null,null,null,null,null,null,null,null,null,null,null,null,null,null,null,1]
[null,null,null,null,null,null,null,null,null,null,null,null,null,null,null,null,null,null,null,null,null,null,null,null,null,null,null,null,null,null,null,null,null,1]
[null,null,null,null,null,null,null,null,null,null,null,null,null,null,null,null,null,null,null,null,null,null,null,null,null,null,null,null,null,null,null,null,null,1]
[null,null,null,null,null,null,null,null,null,null,null,null,null,null,null,null,null,null,null,null,null,null,null,null,null,null,null,null,null,null,null,null,null,1]
[null,null,null,null,null,null,null,null,null,null,null,null,null,null,null,null,null,null,null,null,null,null,null,null,null,null,null,null,null,null,null,null,null,1]
[null,null,null,null,null,null,null,null,null,null,null,null,null,null,null,null,null,null,null,null,null,null,null,null,null,null,null,null,null,null,null,null,null,1]
[null,null,null,null,null,null,null,null,null,null,null,null,null,null,null,null,null,null,null,null,null,null,null,null,null,null,null,null,null,null,null,null,null,1]
[null,null,null,null,null,null,null,null,null,null,null,null,null,null,null,null,null,null,null,null,null,null,null,null,null,null,null,null,null,null,null,null,null,1]
[null,null,null,null,null,null,null,null,null,null,null,null,null,null,null,null,null,null,null,null,null,null,null,null,null,null,null,null,null,null,null,null,null,1]
[null,null,null,null,null,null,null,null,null,null,null,null,null,null,null,null,null,null,null,null,null,null,null,null,null,null,null,null,null,null,null,null,null,1]
[null,null,null,null,null,null,null,null,null,null,null,null,null,null,null,null,null,null,null,null,null,null,null,null,null,null,null,null,null,null,null,null,null,1]
[null,null,null,null,null,null,null,null,null,null,null,null,null,null,null,null,null,null,null,null,null,null,null,null,null,null,null,null,null,null,null,null,null,1]
[null,null,null,null,null,null,null,null,null,null,null,null,null,null,null,null,null,null,null,null,null,null,null,null,null,null,null,null,null,null,null,null,null,1]
[null,null,null,null,null,null,null,null,null,null,null,null,null,null,null,null,null,null,null,null,null,null,null,null,null,null,null,null,null,null,null,null,null,1]
[null,null,null,null,null,null,null,null,null,null,null,null,null,null,null,null,null,null,null,null,null,null,null,null,null,null,null,null,null,null,null,null,null,1]
[null,null,null,null,null,null,null,null,null,null,null,null,null,null,null,null,null,null,null,null,null,null,null,null,null,null,null,null,null,null,null,null,null,1]
[null,null,null,null,null,null,null,null,null,null,null,null,null,null,null,null,null,null,null,null,null,null,null,null,null,null,null,null,null,null,null,null,null,1]
[null,null,null,null,null,null,null,null,null,null,null,null,null,null,null,null,null,null,null,null,null,null,null,null,null,null,null,null,null,null,null,null,null,{"$f":"IF(AND(E717=E716,H717=H716),AH716,AH716+1)","v":1}]
[null,null,null,null,null,null,null,null,null,null,null,null,null,null,null,null,null,null,null,null,null,null,null,null,null,null,null,null,null,null,null,null,null,1]
[null,null,null,null,null,null,null,null,null,null,null,null,null,null,null,null,null,null,null,null,null,null,null,null,null,null,null,null,null,null,null,null,null,1]
[null,null,null,null,null,null,null,null,null,null,null,null,null,null,null,null,null,null,null,null,null,null,null,null,null,null,null,null,null,null,null,null,null,1]
[null,null,null,null,null,null,null,null,null,null,null,null,null,null,null,null,null,null,null,null,null,null,null,null,null,null,null,null,null,null,null,null,null,1]
[null,null,null,null,null,null,null,null,null,null,null,null,null,null,null,null,null,null,null,null,null,null,null,null,null,null,null,null,null,null,null,null,null,1]
[null,null,null,null,null,null,null,null,null,null,null,null,null,null,null,null,null,null,null,null,null,null,null,null,null,null,null,null,null,null,null,null,null,1]
[null,null,null,null,null,null,null,null,null,null,null,null,null,null,null,null,null,null,null,null,null,null,null,null,null,null,null,null,null,null,null,null,null,1]
[null,null,null,null,null,null,null,null,null,null,null,null,null,null,null,null,null,null,null,null,null,null,null,null,null,null,null,null,null,null,null,null,null,1]
[null,null,null,null,null,null,null,null,null,null,null,null,null,null,null,null,null,null,null,null,null,null,null,null,null,null,null,null,null,null,null,null,null,1]
[null,null,null,null,null,null,null,null,null,null,null,null,null,null,null,null,null,null,null,null,null,null,null,null,null,null,null,null,null,null,null,null,null,1]
[null,null,null,null,null,null,null,null,null,null,null,null,null,null,null,null,null,null,null,null,null,null,null,null,null,null,null,null,null,null,null,null,null,1]
[null,null,null,null,null,null,null,null,null,null,null,null,null,null,null,null,null,null,null,null,null,null,null,null,null,null,null,null,null,null,null,null,null,1]
[null,null,null,null,null,null,null,null,null,null,null,null,null,null,null,null,null,null,null,null,null,null,null,null,null,null,null,null,null,null,null,null,null,1]
[null,null,null,null,null,null,null,null,null,null,null,null,null,null,null,null,null,null,null,null,null,null,null,null,null,null,null,null,null,null,null,null,null,1]
[null,null,null,null,null,null,null,null,null,null,null,null,null,null,null,null,null,null,null,null,null,null,null,null,null,null,null,null,null,null,null,null,null,1]
[null,null,null,null,null,null,null,null,null,null,null,null,null,null,null,null,null,null,null,null,null,null,null,null,null,null,null,null,null,null,null,null,null,1]
[null,null,null,null,null,null,null,null,null,null,null,null,null,null,null,null,null,null,null,null,null,null,null,null,null,null,null,null,null,null,null,null,null,1]
[null,null,null,null,null,null,null,null,null,null,null,null,null,null,null,null,null,null,null,null,null,null,null,null,null,null,null,null,null,null,null,null,null,1]
[null,null,null,null,null,null,null,null,null,null,null,null,null,null,null,null,null,null,null,null,null,null,null,null,null,null,null,null,null,null,null,null,null,1]
[null,null,null,null,null,null,null,null,null,null,null,null,null,null,null,null,null,null,null,null,null,null,null,null,null,null,null,null,null,null,null,null,null,1]
[null,null,null,null,null,null,null,null,null,null,null,null,null,null,null,null,null,null,null,null,null,null,null,null,null,null,null,null,null,null,null,null,null,1]
[null,null,null,null,null,null,null,null,null,null,null,null,null,null,null,null,null,null,null,null,null,null,null,null,null,null,null,null,null,null,null,null,null,1]
[null,null,null,null,null,null,null,null,null,null,null,null,null,null,null,null,null,null,null,null,null,null,null,null,null,null,null,null,null,null,null,null,null,1]
[null,null,null,null,null,null,null,null,null,null,null,null,null,null,null,null,null,null,null,null,null,null,null,null,null,null,null,null,null,null,null,null,null,1]
[null,null,null,null,null,null,null,null,null,null,null,null,null,null,null,null,null,null,null,null,null,null,null,null,null,null,null,null,null,null,null,null,null,1]
[null,null,null,null,null,null,null,null,null,null,null,null,null,null,null,null,null,null,null,null,null,null,null,null,null,null,null,null,null,null,null,null,null,1]
[null,null,null,null,null,null,null,null,null,null,null,null,null,null,null,null,null,null,null,null,null,null,null,null,null,null,null,null,null,null,null,null,null,1]
[null,null,null,null,null,null,null,null,null,null,null,null,null,null,null,null,null,null,null,null,null,null,null,null,null,null,null,null,null,null,null,null,null,1]
[null,null,null,null,null,null,null,null,null,null,null,null,null,null,null,null,null,null,null,null,null,null,null,null,null,null,null,null,null,null,null,null,null,1]
[null,null,null,null,null,null,null,null,null,null,null,null,null,null,null,null,null,null,null,null,null,null,null,null,null,null,null,null,null,null,null,null,null,1]
[null,null,null,null,null,null,null,null,null,null,null,null,null,null,null,null,null,null,null,null,null,null,null,null,null,null,null,null,null,null,null,null,null,1]
[null,null,null,null,null,null,null,null,null,null,null,null,null,null,null,null,null,null,null,null,null,null,null,null,null,null,null,null,null,null,null,null,null,1]
[null,null,null,null,null,null,null,null,null,null,null,null,null,null,null,null,null,null,null,null,null,null,null,null,null,null,null,null,null,null,null,null,null,1]
[null,null,null,null,null,null,null,null,null,null,null,null,null,null,null,null,null,null,null,null,null,null,null,null,null,null,null,null,null,null,null,null,null,1]
[null,null,null,null,null,null,null,null,null,null,null,null,null,null,null,null,null,null,null,null,null,null,null,null,null,null,null,null,null,null,null,null,null,1]
[null,null,null,null,null,null,null,null,null,null,null,null,null,null,null,null,null,null,null,null,null,null,null,null,null,null,null,null,null,null,null,null,null,1]
[null,null,null,null,null,null,null,null,null,null,null,null,null,null,null,null,null,null,null,null,null,null,null,null,null,null,null,null,null,null,null,null,null,1]
[null,null,null,null,null,null,null,null,null,null,null,null,null,null,null,null,null,null,null,null,null,null,null,null,null,null,null,null,null,null,null,null,null,1]
[null,null,null,null,null,null,null,null,null,null,null,null,null,null,null,null,null,null,null,null,null,null,null,null,null,null,null,null,null,null,null,null,null,1]
[null,null,null,null,null,null,null,null,null,null,null,null,null,null,null,null,null,null,null,null,null,null,null,null,null,null,null,null,null,null,null,null,null,1]
[null,null,null,null,null,null,null,null,null,null,null,null,null,null,null,null,null,null,null,null,null,null,null,null,null,null,null,null,null,null,null,null,null,1]
[null,null,null,null,null,null,null,null,null,null,null,null,null,null,null,null,null,null,null,null,null,null,null,null,null,null,null,null,null,null,null,null,null,1]
[null,null,null,null,null,null,null,null,null,null,null,null,null,null,null,null,null,null,null,null,null,null,null,null,null,null,null,null,null,null,null,null,null,1]
[null,null,null,null,null,null,null,null,null,null,null,null,null,null,null,null,null,null,null,null,null,null,null,null,null,null,null,null,null,null,null,null,null,1]
[null,null,null,null,null,null,null,null,null,null,null,null,null,null,null,null,null,null,null,null,null,null,null,null,null,null,null,null,null,null,null,null,null,1]
[null,null,null,null,null,null,null,null,null,null,null,null,null,null,null,null,null,null,null,null,null,null,null,null,null,null,null,null,null,null,null,null,null,1]
[null,null,null,null,null,null,null,null,null,null,null,null,null,null,null,null,null,null,null,null,null,null,null,null,null,null,null,null,null,null,null,null,null,1]
[null,null,null,null,null,null,null,null,null,null,null,null,null,null,null,null,null,null,null,null,null,null,null,null,null,null,null,null,null,null,null,null,null,1]
[null,null,null,null,null,null,null,null,null,null,null,null,null,null,null,null,null,null,null,null,null,null,null,null,null,null,null,null,null,null,null,null,null,1]
[null,null,null,null,null,null,null,null,null,null,null,null,null,null,null,null,null,null,null,null,null,null,null,null,null,null,null,null,null,null,null,null,null,1]
[null,null,null,null,null,null,null,null,null,null,null,null,null,null,null,null,null,null,null,null,null,null,null,null,null,null,null,null,null,null,null,null,null,1]
[null,null,null,null,null,null,null,null,null,null,null,null,null,null,null,null,null,null,null,null,null,null,null,null,null,null,null,null,null,null,null,null,null,1]
[null,null,null,null,null,null,null,null,null,null,null,null,null,null,null,null,null,null,null,null,null,null,null,null,null,null,null,null,null,null,null,null,null,1]
[null,null,null,null,null,null,null,null,null,null,null,null,null,null,null,null,null,null,null,null,null,null,null,null,null,null,null,null,null,null,null,null,null,1]
[null,null,null,null,null,null,null,null,null,null,null,null,null,null,null,null,null,null,null,null,null,null,null,null,null,null,null,null,null,null,null,null,null,1]
[null,null,null,null,null,null,null,null,null,null,null,null,null,null,null,null,null,null,null,null,null,null,null,null,null,null,null,null,null,null,null,null,null,1]
[null,null,null,null,null,null,null,null,null,null,null,null,null,null,null,null,null,null,null,null,null,null,null,null,null,null,null,null,null,null,null,null,null,1]
[null,null,null,null,null,null,null,null,null,null,null,null,null,null,null,null,null,null,null,null,null,null,null,null,null,null,null,null,null,null,null,null,null,1]
[null,null,null,null,null,null,null,null,null,null,null,null,null,null,null,null,null,null,null,null,null,null,null,null,null,null,null,null,null,null,null,null,null,1]
[null,null,null,null,null,null,null,null,null,null,null,null,null,null,null,null,null,null,null,null,null,null,null,null,null,null,null,null,null,null,null,null,null,1]
[null,null,null,null,null,null,null,null,null,null,null,null,null,null,null,null,null,null,null,null,null,null,null,null,null,null,null,null,null,null,null,null,null,1]
[null,null,null,null,null,null,null,null,null,null,null,null,null,null,null,null,null,null,null,null,null,null,null,null,null,null,null,null,null,null,null,null,null,1]
[null,null,null,null,null,null,null,null,null,null,null,null,null,null,null,null,null,null,null,null,null,null,null,null,null,null,null,null,null,null,null,null,null,1]
[null,null,null,null,null,null,null,null,null,null,null,null,null,null,null,null,null,null,null,null,null,null,null,null,null,null,null,null,null,null,null,null,null,{"$f":"IF(AND(E781=E780,H781=H780),AH780,AH780+1)","v":1}]
[null,null,null,null,null,null,null,null,null,null,null,null,null,null,null,null,null,null,null,null,null,null,null,null,null,null,null,null,null,null,null,null,null,1]
[null,null,null,null,null,null,null,null,null,null,null,null,null,null,null,null,null,null,null,null,null,null,null,null,null,null,null,null,null,null,null,null,null,1]
[null,null,null,null,null,null,null,null,null,null,null,null,null,null,null,null,null,null,null,null,null,null,null,null,null,null,null,null,null,null,null,null,null,1]
[null,null,null,null,null,null,null,null,null,null,null,null,null,null,null,null,null,null,null,null,null,null,null,null,null,null,null,null,null,null,null,null,null,1]
[null,null,null,null,null,null,null,null,null,null,null,null,null,null,null,null,null,null,null,null,null,null,null,null,null,null,null,null,null,null,null,null,null,1]
[null,null,null,null,null,null,null,null,null,null,null,null,null,null,null,null,null,null,null,null,null,null,null,null,null,null,null,null,null,null,null,null,null,1]
[null,null,null,null,null,null,null,null,null,null,null,null,null,null,null,null,null,null,null,null,null,null,null,null,null,null,null,null,null,null,null,null,null,1]
[null,null,null,null,null,null,null,null,null,null,null,null,null,null,null,null,null,null,null,null,null,null,null,null,null,null,null,null,null,null,null,null,null,1]
[null,null,null,null,null,null,null,null,null,null,null,null,null,null,null,null,null,null,null,null,null,null,null,null,null,null,null,null,null,null,null,null,null,1]
[null,null,null,null,null,null,null,null,null,null,null,null,null,null,null,null,null,null,null,null,null,null,null,null,null,null,null,null,null,null,null,null,null,1]
[null,null,null,null,null,null,null,null,null,null,null,null,null,null,null,null,null,null,null,null,null,null,null,null,null,null,null,null,null,null,null,null,null,1]
[null,null,null,null,null,null,null,null,null,null,null,null,null,null,null,null,null,null,null,null,null,null,null,null,null,null,null,null,null,null,null,null,null,1]
[null,null,null,null,null,null,null,null,null,null,null,null,null,null,null,null,null,null,null,null,null,null,null,null,null,null,null,null,null,null,null,null,null,1]
[null,null,null,null,null,null,null,null,null,null,null,null,null,null,null,null,null,null,null,null,null,null,null,null,null,null,null,null,null,null,null,null,null,1]
[null,null,null,null,null,null,null,null,null,null,null,null,null,null,null,null,null,null,null,null,null,null,null,null,null,null,null,null,null,null,null,null,null,1]
[null,null,null,null,null,null,null,null,null,null,null,null,null,null,null,null,null,null,null,null,null,null,null,null,null,null,null,null,null,null,null,null,null,1]
[null,null,null,null,null,null,null,null,null,null,null,null,null,null,null,null,null,null,null,null,null,null,null,null,null,null,null,null,null,null,null,null,null,1]
[null,null,null,null,null,null,null,null,null,null,null,null,null,null,null,null,null,null,null,null,null,null,null,null,null,null,null,null,null,null,null,null,null,1]
[null,null,null,null,null,null,null,null,null,null,null,null,null,null,null,null,null,null,null,null,null,null,null,null,null,null,null,null,null,null,null,null,null,1]
[null,null,null,null,null,null,null,null,null,null,null,null,null,null,null,null,null,null,null,null,null,null,null,null,null,null,null,null,null,null,null,null,null,1]
[null,null,null,null,null,null,null,null,null,null,null,null,null,null,null,null,null,null,null,null,null,null,null,null,null,null,null,null,null,null,null,null,null,1]
[null,null,null,null,null,null,null,null,null,null,null,null,null,null,null,null,null,null,null,null,null,null,null,null,null,null,null,null,null,null,null,null,null,1]
[null,null,null,null,null,null,null,null,null,null,null,null,null,null,null,null,null,null,null,null,null,null,null,null,null,null,null,null,null,null,null,null,null,1]
[null,null,null,null,null,null,null,null,null,null,null,null,null,null,null,null,null,null,null,null,null,null,null,null,null,null,null,null,null,null,null,null,null,1]
[null,null,null,null,null,null,null,null,null,null,null,null,null,null,null,null,null,null,null,null,null,null,null,null,null,null,null,null,null,null,null,null,null,1]
[null,null,null,null,null,null,null,null,null,null,null,null,null,null,null,null,null,null,null,null,null,null,null,null,null,null,null,null,null,null,null,null,null,1]
[null,null,null,null,null,null,null,null,null,null,null,null,null,null,null,null,null,null,null,null,null,null,null,null,null,null,null,null,null,null,null,null,null,1]
[null,null,null,null,null,null,null,null,null,null,null,null,null,null,null,null,null,null,null,null,null,null,null,null,null,null,null,null,null,null,null,null,null,1]
[null,null,null,null,null,null,null,null,null,null,null,null,null,null,null,null,null,null,null,null,null,null,null,null,null,null,null,null,null,null,null,null,null,1]
[null,null,null,null,null,null,null,null,null,null,null,null,null,null,null,null,null,null,null,null,null,null,null,null,null,null,null,null,null,null,null,null,null,1]
[null,null,null,null,null,null,null,null,null,null,null,null,null,null,null,null,null,null,null,null,null,null,null,null,null,null,null,null,null,null,null,null,null,1]
[null,null,null,null,null,null,null,null,null,null,null,null,null,null,null,null,null,null,null,null,null,null,null,null,null,null,null,null,null,null,null,null,null,1]
[null,null,null,null,null,null,null,null,null,null,null,null,null,null,null,null,null,null,null,null,null,null,null,null,null,null,null,null,null,null,null,null,null,1]
[null,null,null,null,null,null,null,null,null,null,null,null,null,null,null,null,null,null,null,null,null,null,null,null,null,null,null,null,null,null,null,null,null,1]
[null,null,null,null,null,null,null,null,null,null,null,null,null,null,null,null,null,null,null,null,null,null,null,null,null,null,null,null,null,null,null,null,null,1]
[null,null,null,null,null,null,null,null,null,null,null,null,null,null,null,null,null,null,null,null,null,null,null,null,null,null,null,null,null,null,null,null,null,1]
[null,null,null,null,null,null,null,null,null,null,null,null,null,null,null,null,null,null,null,null,null,null,null,null,null,null,null,null,null,null,null,null,null,1]
[null,null,null,null,null,null,null,null,null,null,null,null,null,null,null,null,null,null,null,null,null,null,null,null,null,null,null,null,null,null,null,null,null,1]
[null,null,null,null,null,null,null,null,null,null,null,null,null,null,null,null,null,null,null,null,null,null,null,null,null,null,null,null,null,null,null,null,null,1]
[null,null,null,null,null,null,null,null,null,null,null,null,null,null,null,null,null,null,null,null,null,null,null,null,null,null,null,null,null,null,null,null,null,1]
[null,null,null,null,null,null,null,null,null,null,null,null,null,null,null,null,null,null,null,null,null,null,null,null,null,null,null,null,null,null,null,null,null,1]
[null,null,null,null,null,null,null,null,null,null,null,null,null,null,null,null,null,null,null,null,null,null,null,null,null,null,null,null,null,null,null,null,null,1]
[null,null,null,null,null,null,null,null,null,null,null,null,null,null,null,null,null,null,null,null,null,null,null,null,null,null,null,null,null,null,null,null,null,1]
[null,null,null,null,null,null,null,null,null,null,null,null,null,null,null,null,null,null,null,null,null,null,null,null,null,null,null,null,null,null,null,null,null,1]
[null,null,null,null,null,null,null,null,null,null,null,null,null,null,null,null,null,null,null,null,null,null,null,null,null,null,null,null,null,null,null,null,null,1]
[null,null,null,null,null,null,null,null,null,null,null,null,null,null,null,null,null,null,null,null,null,null,null,null,null,null,null,null,null,null,null,null,null,1]
[null,null,null,null,null,null,null,null,null,null,null,null,null,null,null,null,null,null,null,null,null,null,null,null,null,null,null,null,null,null,null,null,null,1]
[null,null,null,null,null,null,null,null,null,null,null,null,null,null,null,null,null,null,null,null,null,null,null,null,null,null,null,null,null,null,null,null,null,1]
[null,null,null,null,null,null,null,null,null,null,null,null,null,null,null,null,null,null,null,null,null,null,null,null,null,null,null,null,null,null,null,null,null,1]
[null,null,null,null,null,null,null,null,null,null,null,null,null,null,null,null,null,null,null,null,null,null,null,null,null,null,null,null,null,null,null,null,null,1]
[null,null,null,null,null,null,null,null,null,null,null,null,null,null,null,null,null,null,null,null,null,null,null,null,null,null,null,null,null,null,null,null,null,1]
[null,null,null,null,null,null,null,null,null,null,null,null,null,null,null,null,null,null,null,null,null,null,null,null,null,null,null,null,null,null,null,null,null,1]
[null,null,null,null,null,null,null,null,null,null,null,null,null,null,null,null,null,null,null,null,null,null,null,null,null,null,null,null,null,null,null,null,null,1]
[null,null,null,null,null,null,null,null,null,null,null,null,null,null,null,null,null,null,null,null,null,null,null,null,null,null,null,null,null,null,null,null,null,1]
[null,null,null,null,null,null,null,null,null,null,null,null,null,null,null,null,null,null,null,null,null,null,null,null,null,null,null,null,null,null,null,null,null,1]
[null,null,null,null,null,null,null,null,null,null,null,null,null,null,null,null,null,null,null,null,null,null,null,null,null,null,null,null,null,null,null,null,null,1]
[null,null,null,null,null,null,null,null,null,null,null,null,null,null,null,null,null,null,null,null,null,null,null,null,null,null,null,null,null,null,null,null,null,1]
[null,null,null,null,null,null,null,null,null,null,null,null,null,null,null,null,null,null,null,null,null,null,null,null,null,null,null,null,null,null,null,null,null,1]
[null,null,null,null,null,null,null,null,null,null,null,null,null,null,null,null,null,null,null,null,null,null,null,null,null,null,null,null,null,null,null,null,null,1]
[null,null,null,null,null,null,null,null,null,null,null,null,null,null,null,null,null,null,null,null,null,null,null,null,null,null,null,null,null,null,null,null,null,1]
[null,null,null,null,null,null,null,null,null,null,null,null,null,null,null,null,null,null,null,null,null,null,null,null,null,null,null,null,null,null,null,null,null,1]
[null,null,null,null,null,null,null,null,null,null,null,null,null,null,null,null,null,null,null,null,null,null,null,null,null,null,null,null,null,null,null,null,null,1]
[null,null,null,null,null,null,null,null,null,null,null,null,null,null,null,null,null,null,null,null,null,null,null,null,null,null,null,null,null,null,null,null,null,1]
[null,null,null,null,null,null,null,null,null,null,null,null,null,null,null,null,null,null,null,null,null,null,null,null,null,null,null,null,null,null,null,null,null,{"$f":"IF(AND(E845=E844,H845=H844),AH844,AH844+1)","v":1}]
[null,null,null,null,null,null,null,null,null,null,null,null,null,null,null,null,null,null,null,null,null,null,null,null,null,null,null,null,null,null,null,null,null,1]
[null,null,null,null,null,null,null,null,null,null,null,null,null,null,null,null,null,null,null,null,null,null,null,null,null,null,null,null,null,null,null,null,null,1]
[null,null,null,null,null,null,null,null,null,null,null,null,null,null,null,null,null,null,null,null,null,null,null,null,null,null,null,null,null,null,null,null,null,1]
[null,null,null,null,null,null,null,null,null,null,null,null,null,null,null,null,null,null,null,null,null,null,null,null,null,null,null,null,null,null,null,null,null,1]
[null,null,null,null,null,null,null,null,null,null,null,null,null,null,null,null,null,null,null,null,null,null,null,null,null,null,null,null,null,null,null,null,null,1]
[null,null,null,null,null,null,null,null,null,null,null,null,null,null,null,null,null,null,null,null,null,null,null,null,null,null,null,null,null,null,null,null,null,1]
[null,null,null,null,null,null,null,null,null,null,null,null,null,null,null,null,null,null,null,null,null,null,null,null,null,null,null,null,null,null,null,null,null,1]
[null,null,null,null,null,null,null,null,null,null,null,null,null,null,null,null,null,null,null,null,null,null,null,null,null,null,null,null,null,null,null,null,null,1]
[null,null,null,null,null,null,null,null,null,null,null,null,null,null,null,null,null,null,null,null,null,null,null,null,null,null,null,null,null,null,null,null,null,1]
[null,null,null,null,null,null,null,null,null,null,null,null,null,null,null,null,null,null,null,null,null,null,null,null,null,null,null,null,null,null,null,null,null,1]
[null,null,null,null,null,null,null,null,null,null,null,null,null,null,null,null,null,null,null,null,null,null,null,null,null,null,null,null,null,null,null,null,null,1]
[null,null,null,null,null,null,null,null,null,null,null,null,null,null,null,null,null,null,null,null,null,null,null,null,null,null,null,null,null,null,null,null,null,1]
[null,null,null,null,null,null,null,null,null,null,null,null,null,null,null,null,null,null,null,null,null,null,null,null,null,null,null,null,null,null,null,null,null,1]
[null,null,null,null,null,null,null,null,null,null,null,null,null,null,null,null,null,null,null,null,null,null,null,null,null,null,null,null,null,null,null,null,null,1]
[null,null,null,null,null,null,null,null,null,null,null,null,null,null,null,null,null,null,null,null,null,null,null,null,null,null,null,null,null,null,null,null,null,1]
[null,null,null,null,null,null,null,null,null,null,null,null,null,null,null,null,null,null,null,null,null,null,null,null,null,null,null,null,null,null,null,null,null,1]
[null,null,null,null,null,null,null,null,null,null,null,null,null,null,null,null,null,null,null,null,null,null,null,null,null,null,null,null,null,null,null,null,null,1]
[null,null,null,null,null,null,null,null,null,null,null,null,null,null,null,null,null,null,null,null,null,null,null,null,null,null,null,null,null,null,null,null,null,1]
[null,null,null,null,null,null,null,null,null,null,null,null,null,null,null,null,null,null,null,null,null,null,null,null,null,null,null,null,null,null,null,null,null,1]
[null,null,null,null,null,null,null,null,null,null,null,null,null,null,null,null,null,null,null,null,null,null,null,null,null,null,null,null,null,null,null,null,null,1]
[null,null,null,null,null,null,null,null,null,null,null,null,null,null,null,null,null,null,null,null,null,null,null,null,null,null,null,null,null,null,null,null,null,1]
[null,null,null,null,null,null,null,null,null,null,null,null,null,null,null,null,null,null,null,null,null,null,null,null,null,null,null,null,null,null,null,null,null,1]
[null,null,null,null,null,null,null,null,null,null,null,null,null,null,null,null,null,null,null,null,null,null,null,null,null,null,null,null,null,null,null,null,null,1]
[null,null,null,null,null,null,null,null,null,null,null,null,null,null,null,null,null,null,null,null,null,null,null,null,null,null,null,null,null,null,null,null,null,1]
[null,null,null,null,null,null,null,null,null,null,null,null,null,null,null,null,null,null,null,null,null,null,null,null,null,null,null,null,null,null,null,null,null,1]
[null,null,null,null,null,null,null,null,null,null,null,null,null,null,null,null,null,null,null,null,null,null,null,null,null,null,null,null,null,null,null,null,null,1]
[null,null,null,null,null,null,null,null,null,null,null,null,null,null,null,null,null,null,null,null,null,null,null,null,null,null,null,null,null,null,null,null,null,1]
[null,null,null,null,null,null,null,null,null,null,null,null,null,null,null,null,null,null,null,null,null,null,null,null,null,null,null,null,null,null,null,null,null,1]
[null,null,null,null,null,null,null,null,null,null,null,null,null,null,null,null,null,null,null,null,null,null,null,null,null,null,null,null,null,null,null,null,null,1]
[null,null,null,null,null,null,null,null,null,null,null,null,null,null,null,null,null,null,null,null,null,null,null,null,null,null,null,null,null,null,null,null,null,1]
[null,null,null,null,null,null,null,null,null,null,null,null,null,null,null,null,null,null,null,null,null,null,null,null,null,null,null,null,null,null,null,null,null,1]
[null,null,null,null,null,null,null,null,null,null,null,null,null,null,null,null,null,null,null,null,null,null,null,null,null,null,null,null,null,null,null,null,null,1]
[null,null,null,null,null,null,null,null,null,null,null,null,null,null,null,null,null,null,null,null,null,null,null,null,null,null,null,null,null,null,null,null,null,1]
[null,null,null,null,null,null,null,null,null,null,null,null,null,null,null,null,null,null,null,null,null,null,null,null,null,null,null,null,null,null,null,null,null,1]
[null,null,null,null,null,null,null,null,null,null,null,null,null,null,null,null,null,null,null,null,null,null,null,null,null,null,null,null,null,null,null,null,null,1]
[null,null,null,null,null,null,null,null,null,null,null,null,null,null,null,null,null,null,null,null,null,null,null,null,null,null,null,null,null,null,null,null,null,1]
[null,null,null,null,null,null,null,null,null,null,null,null,null,null,null,null,null,null,null,null,null,null,null,null,null,null,null,null,null,null,null,null,null,1]
[null,null,null,null,null,null,null,null,null,null,null,null,null,null,null,null,null,null,null,null,null,null,null,null,null,null,null,null,null,null,null,null,null,1]
[null,null,null,null,null,null,null,null,null,null,null,null,null,null,null,null,null,null,null,null,null,null,null,null,null,null,null,null,null,null,null,null,null,1]
[null,null,null,null,null,null,null,null,null,null,null,null,null,null,null,null,null,null,null,null,null,null,null,null,null,null,null,null,null,null,null,null,null,1]
[null,null,null,null,null,null,null,null,null,null,null,null,null,null,null,null,null,null,null,null,null,null,null,null,null,null,null,null,null,null,null,null,null,1]
[null,null,null,null,null,null,null,null,null,null,null,null,null,null,null,null,null,null,null,null,null,null,null,null,null,null,null,null,null,null,null,null,null,1]
[null,null,null,null,null,null,null,null,null,null,null,null,null,null,null,null,null,null,null,null,null,null,null,null,null,null,null,null,null,null,null,null,null,1]
[null,null,null,null,null,null,null,null,null,null,null,null,null,null,null,null,null,null,null,null,null,null,null,null,null,null,null,null,null,null,null,null,null,1]
[null,null,null,null,null,null,null,null,null,null,null,null,null,null,null,null,null,null,null,null,null,null,null,null,null,null,null,null,null,null,null,null,null,1]
[null,null,null,null,null,null,null,null,null,null,null,null,null,null,null,null,null,null,null,null,null,null,null,null,null,null,null,null,null,null,null,null,null,1]
[null,null,null,null,null,null,null,null,null,null,null,null,null,null,null,null,null,null,null,null,null,null,null,null,null,null,null,null,null,null,null,null,null,1]
[null,null,null,null,null,null,null,null,null,null,null,null,null,null,null,null,null,null,null,null,null,null,null,null,null,null,null,null,null,null,null,null,null,1]
[null,null,null,null,null,null,null,null,null,null,null,null,null,null,null,null,null,null,null,null,null,null,null,null,null,null,null,null,null,null,null,null,null,1]
[null,null,null,null,null,null,null,null,null,null,null,null,null,null,null,null,null,null,null,null,null,null,null,null,null,null,null,null,null,null,null,null,null,1]
[null,null,null,null,null,null,null,null,null,null,null,null,null,null,null,null,null,null,null,null,null,null,null,null,null,null,null,null,null,null,null,null,null,1]
[null,null,null,null,null,null,null,null,null,null,null,null,null,null,null,null,null,null,null,null,null,null,null,null,null,null,null,null,null,null,null,null,null,1]
[null,null,null,null,null,null,null,null,null,null,null,null,null,null,null,null,null,null,null,null,null,null,null,null,null,null,null,null,null,null,null,null,null,1]
[null,null,null,null,null,null,null,null,null,null,null,null,null,null,null,null,null,null,null,null,null,null,null,null,null,null,null,null,null,null,null,null,null,1]
[null,null,null,null,null,null,null,null,null,null,null,null,null,null,null,null,null,null,null,null,null,null,null,null,null,null,null,null,null,null,null,null,null,1]
[null,null,null,null,null,null,null,null,null,null,null,null,null,null,null,null,null,null,null,null,null,null,null,null,null,null,null,null,null,null,null,null,null,1]
[null,null,null,null,null,null,null,null,null,null,null,null,null,null,null,null,null,null,null,null,null,null,null,null,null,null,null,null,null,null,null,null,null,1]
[null,null,null,null,null,null,null,null,null,null,null,null,null,null,null,null,null,null,null,null,null,null,null,null,null,null,null,null,null,null,null,null,null,1]
[null,null,null,null,null,null,null,null,null,null,null,null,null,null,null,null,null,null,null,null,null,null,null,null,null,null,null,null,null,null,null,null,null,1]
[null,null,null,null,null,null,null,null,null,null,null,null,null,null,null,null,null,null,null,null,null,null,null,null,null,null,null,null,null,null,null,null,null,1]
[null,null,null,null,null,null,null,null,null,null,null,null,null,null,null,null,null,null,null,null,null,null,null,null,null,null,null,null,null,null,null,null,null,1]
[null,null,null,null,null,null,null,null,null,null,null,null,null,null,null,null,null,null,null,null,null,null,null,null,null,null,null,null,null,null,null,null,null,1]
[null,null,null,null,null,null,null,null,null,null,null,null,null,null,null,null,null,null,null,null,null,null,null,null,null,null,null,null,null,null,null,null,null,1]
[null,null,null,null,null,null,null,null,null,null,null,null,null,null,null,null,null,null,null,null,null,null,null,null,null,null,null,null,null,null,null,null,null,{"$f":"IF(AND(E909=E908,H909=H908),AH908,AH908+1)","v":1}]
[null,null,null,null,null,null,null,null,null,null,null,null,null,null,null,null,null,null,null,null,null,null,null,null,null,null,null,null,null,null,null,null,null,1]
[null,null,null,null,null,null,null,null,null,null,null,null,null,null,null,null,null,null,null,null,null,null,null,null,null,null,null,null,null,null,null,null,null,1]
[null,null,null,null,null,null,null,null,null,null,null,null,null,null,null,null,null,null,null,null,null,null,null,null,null,null,null,null,null,null,null,null,null,1]
[null,null,null,null,null,null,null,null,null,null,null,null,null,null,null,null,null,null,null,null,null,null,null,null,null,null,null,null,null,null,null,null,null,1]
[null,null,null,null,null,null,null,null,null,null,null,null,null,null,null,null,null,null,null,null,null,null,null,null,null,null,null,null,null,null,null,null,null,1]
[null,null,null,null,null,null,null,null,null,null,null,null,null,null,null,null,null,null,null,null,null,null,null,null,null,null,null,null,null,null,null,null,null,1]
[null,null,null,null,null,null,null,null,null,null,null,null,null,null,null,null,null,null,null,null,null,null,null,null,null,null,null,null,null,null,null,null,null,1]
[null,null,null,null,null,null,null,null,null,null,null,null,null,null,null,null,null,null,null,null,null,null,null,null,null,null,null,null,null,null,null,null,null,1]
[null,null,null,null,null,null,null,null,null,null,null,null,null,null,null,null,null,null,null,null,null,null,null,null,null,null,null,null,null,null,null,null,null,1]
[null,null,null,null,null,null,null,null,null,null,null,null,null,null,null,null,null,null,null,null,null,null,null,null,null,null,null,null,null,null,null,null,null,1]
[null,null,null,null,null,null,null,null,null,null,null,null,null,null,null,null,null,null,null,null,null,null,null,null,null,null,null,null,null,null,null,null,null,1]
[null,null,null,null,null,null,null,null,null,null,null,null,null,null,null,null,null,null,null,null,null,null,null,null,null,null,null,null,null,null,null,null,null,1]
[null,null,null,null,null,null,null,null,null,null,null,null,null,null,null,null,null,null,null,null,null,null,null,null,null,null,null,null,null,null,null,null,null,1]
[null,null,null,null,null,null,null,null,null,null,null,null,null,null,null,null,null,null,null,null,null,null,null,null,null,null,null,null,null,null,null,null,null,1]
[null,null,null,null,null,null,null,null,null,null,null,null,null,null,null,null,null,null,null,null,null,null,null,null,null,null,null,null,null,null,null,null,null,1]
[null,null,null,null,null,null,null,null,null,null,null,null,null,null,null,null,null,null,null,null,null,null,null,null,null,null,null,null,null,null,null,null,null,1]
[null,null,null,null,null,null,null,null,null,null,null,null,null,null,null,null,null,null,null,null,null,null,null,null,null,null,null,null,null,null,null,null,null,1]
[null,null,null,null,null,null,null,null,null,null,null,null,null,null,null,null,null,null,null,null,null,null,null,null,null,null,null,null,null,null,null,null,null,1]
[null,null,null,null,null,null,null,null,null,null,null,null,null,null,null,null,null,null,null,null,null,null,null,null,null,null,null,null,null,null,null,null,null,1]
[null,null,null,null,null,null,null,null,null,null,null,null,null,null,null,null,null,null,null,null,null,null,null,null,null,null,null,null,null,null,null,null,null,1]
[null,null,null,null,null,null,null,null,null,null,null,null,null,null,null,null,null,null,null,null,null,null,null,null,null,null,null,null,null,null,null,null,null,1]
[null,null,null,null,null,null,null,null,null,null,null,null,null,null,null,null,null,null,null,null,null,null,null,null,null,null,null,null,null,null,null,null,null,1]
[null,null,null,null,null,null,null,null,null,null,null,null,null,null,null,null,null,null,null,null,null,null,null,null,null,null,null,null,null,null,null,null,null,1]
[null,null,null,null,null,null,null,null,null,null,null,null,null,null,null,null,null,null,null,null,null,null,null,null,null,null,null,null,null,null,null,null,null,1]
[null,null,null,null,null,null,null,null,null,null,null,null,null,null,null,null,null,null,null,null,null,null,null,null,null,null,null,null,null,null,null,null,null,1]
[null,null,null,null,null,null,null,null,null,null,null,null,null,null,null,null,null,null,null,null,null,null,null,null,null,null,null,null,null,null,null,null,null,1]
[null,null,null,null,null,null,null,null,null,null,null,null,null,null,null,null,null,null,null,null,null,null,null,null,null,null,null,null,null,null,null,null,null,1]
[null,null,null,null,null,null,null,null,null,null,null,null,null,null,null,null,null,null,null,null,null,null,null,null,null,null,null,null,null,null,null,null,null,1]
[null,null,null,null,null,null,null,null,null,null,null,null,null,null,null,null,null,null,null,null,null,null,null,null,null,null,null,null,null,null,null,null,null,1]
[null,null,null,null,null,null,null,null,null,null,null,null,null,null,null,null,null,null,null,null,null,null,null,null,null,null,null,null,null,null,null,null,null,1]
[null,null,null,null,null,null,null,null,null,null,null,null,null,null,null,null,null,null,null,null,null,null,null,null,null,null,null,null,null,null,null,null,null,1]
[null,null,null,null,null,null,null,null,null,null,null,null,null,null,null,null,null,null,null,null,null,null,null,null,null,null,null,null,null,null,null,null,null,1]
[null,null,null,null,null,null,null,null,null,null,null,null,null,null,null,null,null,null,null,null,null,null,null,null,null,null,null,null,null,null,null,null,null,1]
[null,null,null,null,null,null,null,null,null,null,null,null,null,null,null,null,null,null,null,null,null,null,null,null,null,null,null,null,null,null,null,null,null,1]
[null,null,null,null,null,null,null,null,null,null,null,null,null,null,null,null,null,null,null,null,null,null,null,null,null,null,null,null,null,null,null,null,null,1]
[null,null,null,null,null,null,null,null,null,null,null,null,null,null,null,null,null,null,null,null,null,null,null,null,null,null,null,null,null,null,null,null,null,1]
[null,null,null,null,null,null,null,null,null,null,null,null,null,null,null,null,null,null,null,null,null,null,null,null,null,null,null,null,null,null,null,null,null,1]
[null,null,null,null,null,null,null,null,null,null,null,null,null,null,null,null,null,null,null,null,null,null,null,null,null,null,null,null,null,null,null,null,null,1]
[null,null,null,null,null,null,null,null,null,null,null,null,null,null,null,null,null,null,null,null,null,null,null,null,null,null,null,null,null,null,null,null,null,1]
[null,null,null,null,null,null,null,null,null,null,null,null,null,null,null,null,null,null,null,null,null,null,null,null,null,null,null,null,null,null,null,null,null,1]
[null,null,null,null,null,null,null,null,null,null,null,null,null,null,null,null,null,null,null,null,null,null,null,null,null,null,null,null,null,null,null,null,null,1]
[null,null,null,null,null,null,null,null,null,null,null,null,null,null,null,null,null,null,null,null,null,null,null,null,null,null,null,null,null,null,null,null,null,1]
[null,null,null,null,null,null,null,null,null,null,null,null,null,null,null,null,null,null,null,null,null,null,null,null,null,null,null,null,null,null,null,null,null,1]
[null,null,null,null,null,null,null,null,null,null,null,null,null,null,null,null,null,null,null,null,null,null,null,null,null,null,null,null,null,null,null,null,null,1]
[null,null,null,null,null,null,null,null,null,null,null,null,null,null,null,null,null,null,null,null,null,null,null,null,null,null,null,null,null,null,null,null,null,1]
[null,null,null,null,null,null,null,null,null,null,null,null,null,null,null,null,null,null,null,null,null,null,null,null,null,null,null,null,null,null,null,null,null,1]
[null,null,null,null,null,null,null,null,null,null,null,null,null,null,null,null,null,null,null,null,null,null,null,null,null,null,null,null,null,null,null,null,null,1]
[null,null,null,null,null,null,null,null,null,null,null,null,null,null,null,null,null,null,null,null,null,null,null,null,null,null,null,null,null,null,null,null,null,1]
[null,null,null,null,null,null,null,null,null,null,null,null,null,null,null,null,null,null,null,null,null,null,null,null,null,null,null,null,null,null,null,null,null,1]
[null,null,null,null,null,null,null,null,null,null,null,null,null,null,null,null,null,null,null,null,null,null,null,null,null,null,null,null,null,null,null,null,null,1]
[null,null,null,null,null,null,null,null,null,null,null,null,null,null,null,null,null,null,null,null,null,null,null,null,null,null,null,null,null,null,null,null,null,1]
[null,null,null,null,null,null,null,null,null,null,null,null,null,null,null,null,null,null,null,null,null,null,null,null,null,null,null,null,null,null,null,null,null,1]
[null,null,null,null,null,null,null,null,null,null,null,null,null,null,null,null,null,null,null,null,null,null,null,null,null,null,null,null,null,null,null,null,null,1]
[null,null,null,null,null,null,null,null,null,null,null,null,null,null,null,null,null,null,null,null,null,null,null,null,null,null,null,null,null,null,null,null,null,1]
[null,null,null,null,null,null,null,null,null,null,null,null,null,null,null,null,null,null,null,null,null,null,null,null,null,null,null,null,null,null,null,null,null,1]
[null,null,null,null,null,null,null,null,null,null,null,null,null,null,null,null,null,null,null,null,null,null,null,null,null,null,null,null,null,null,null,null,null,1]
[null,null,null,null,null,null,null,null,null,null,null,null,null,null,null,null,null,null,null,null,null,null,null,null,null,null,null,null,null,null,null,null,null,1]
[null,null,null,null,null,null,null,null,null,null,null,null,null,null,null,null,null,null,null,null,null,null,null,null,null,null,null,null,null,null,null,null,null,1]
[null,null,null,null,null,null,null,null,null,null,null,null,null,null,null,null,null,null,null,null,null,null,null,null,null,null,null,null,null,null,null,null,null,1]
[null,null,null,null,null,null,null,null,null,null,null,null,null,null,null,null,null,null,null,null,null,null,null,null,null,null,null,null,null,null,null,null,null,1]
[null,null,null,null,null,null,null,null,null,null,null,null,null,null,null,null,null,null,null,null,null,null,null,null,null,null,null,null,null,null,null,null,null,1]
[null,null,null,null,null,null,null,null,null,null,null,null,null,null,null,null,null,null,null,null,null,null,null,null,null,null,null,null,null,null,null,null,null,1]
[null,null,null,null,null,null,null,null,null,null,null,null,null,null,null,null,null,null,null,null,null,null,null,null,null,null,null,null,null,null,null,null,null,1]
[null,null,null,null,null,null,null,null,null,null,null,null,null,null,null,null,null,null,null,null,null,null,null,null,null,null,null,null,null,null,null,null,null,{"$f":"IF(AND(E973=E972,H973=H972),AH972,AH972+1)","v":1}]
[null,null,null,null,null,null,null,null,null,null,null,null,null,null,null,null,null,null,null,null,null,null,null,null,null,null,null,null,null,null,null,null,null,1]
[null,null,null,null,null,null,null,null,null,null,null,null,null,null,null,null,null,null,null,null,null,null,null,null,null,null,null,null,null,null,null,null,null,1]
[null,null,null,null,null,null,null,null,null,null,null,null,null,null,null,null,null,null,null,null,null,null,null,null,null,null,null,null,null,null,null,null,null,1]
[null,null,null,null,null,null,null,null,null,null,null,null,null,null,null,null,null,null,null,null,null,null,null,null,null,null,null,null,null,null,null,null,null,1]
[null,null,null,null,null,null,null,null,null,null,null,null,null,null,null,null,null,null,null,null,null,null,null,null,null,null,null,null,null,null,null,null,null,1]
[null,null,null,null,null,null,null,null,null,null,null,null,null,null,null,null,null,null,null,null,null,null,null,null,null,null,null,null,null,null,null,null,null,1]
[null,null,null,null,null,null,null,null,null,null,null,null,null,null,null,null,null,null,null,null,null,null,null,null,null,null,null,null,null,null,null,null,null,1]
[null,null,null,null,null,null,null,null,null,null,null,null,null,null,null,null,null,null,null,null,null,null,null,null,null,null,null,null,null,null,null,null,null,1]
[null,null,null,null,null,null,null,null,null,null,null,null,null,null,null,null,null,null,null,null,null,null,null,null,null,null,null,null,null,null,null,null,null,1]
[null,null,null,null,null,null,null,null,null,null,null,null,null,null,null,null,null,null,null,null,null,null,null,null,null,null,null,null,null,null,null,null,null,1]
[null,null,null,null,null,null,null,null,null,null,null,null,null,null,null,null,null,null,null,null,null,null,null,null,null,null,null,null,null,null,null,null,null,1]
[null,null,null,null,null,null,null,null,null,null,null,null,null,null,null,null,null,null,null,null,null,null,null,null,null,null,null,null,null,null,null,null,null,1]
[null,null,null,null,null,null,null,null,null,null,null,null,null,null,null,null,null,null,null,null,null,null,null,null,null,null,null,null,null,null,null,null,null,1]
[null,null,null,null,null,null,null,null,null,null,null,null,null,null,null,null,null,null,null,null,null,null,null,null,null,null,null,null,null,null,null,null,null,1]
[null,null,null,null,null,null,null,null,null,null,null,null,null,null,null,null,null,null,null,null,null,null,null,null,null,null,null,null,null,null,null,null,null,1]
[null,null,null,null,null,null,null,null,null,null,null,null,null,null,null,null,null,null,null,null,null,null,null,null,null,null,null,null,null,null,null,null,null,1]
[null,null,null,null,null,null,null,null,null,null,null,null,null,null,null,null,null,null,null,null,null,null,null,null,null,null,null,null,null,null,null,null,null,1]
[null,null,null,null,null,null,null,null,null,null,null,null,null,null,null,null,null,null,null,null,null,null,null,null,null,null,null,null,null,null,null,null,null,1]
[null,null,null,null,null,null,null,null,null,null,null,null,null,null,null,null,null,null,null,null,null,null,null,null,null,null,null,null,null,null,null,null,null,1]
[null,null,null,null,null,null,null,null,null,null,null,null,null,null,null,null,null,null,null,null,null,null,null,null,null,null,null,null,null,null,null,null,null,1]
[null,null,null,null,null,null,null,null,null,null,null,null,null,null,null,null,null,null,null,null,null,null,null,null,null,null,null,null,null,null,null,null,null,1]
[null,null,null,null,null,null,null,null,null,null,null,null,null,null,null,null,null,null,null,null,null,null,null,null,null,null,null,null,null,null,null,null,null,1]
[null,null,null,null,null,null,null,null,null,null,null,null,null,null,null,null,null,null,null,null,null,null,null,null,null,null,null,null,null,null,null,null,null,1]
[null,null,null,null,null,null,null,null,null,null,null,null,null,null,null,null,null,null,null,null,null,null,null,null,null,null,null,null,null,null,null,null,null,1]
[null,null,null,null,null,null,null,null,null,null,null,null,null,null,null,null,null,null,null,null,null,null,null,null,null,null,null,null,null,null,null,null,null,1]
[null,null,null,null,null,null,null,null,null,null,null,null,null,null,null,null,null,null,null,null,null,null,null,null,null,null,null,null,null,null,null,null,null,1]
[null,null,null,null,null,null,null,null,null,null,null,null,null,null,null,null,null,null,null,null,null,null,null,null,null,null,null,null,null,null,null,null,null,1]
[null,null,null,null,null,null,null,null,null,null,null,null,null,null,null,null,null,null,null,null,null,null,null,null,null,null,null,null,null,null,null,null,null,1]
[null,null,null,null,null,null,null,null,null,null,null,null,null,null,null,null,null,null,null,null,null,null,null,null,null,null,null,null,null,null,null,null,null,1]
[null,null,null,null,null,null,null,null,null,null,null,null,null,null,null,null,null,null,null,null,null,null,null,null,null,null,null,null,null,null,null,null,null,1]
[null,null,null,null,null,null,null,null,null,null,null,null,null,null,null,null,null,null,null,null,null,null,null,null,null,null,null,null,null,null,null,null,null,1]
[null,null,null,null,null,null,null,null,null,null,null,null,null,null,null,null,null,null,null,null,null,null,null,null,null,null,null,null,null,null,null,null,null,1]
[null,null,null,null,null,null,null,null,null,null,null,null,null,null,null,null,null,null,null,null,null,null,null,null,null,null,null,null,null,null,null,null,null,1]
[null,null,null,null,null,null,null,null,null,null,null,null,null,null,null,null,null,null,null,null,null,null,null,null,null,null,null,null,null,null,null,null,null,1]
[null,null,null,null,null,null,null,null,null,null,null,null,null,null,null,null,null,null,null,null,null,null,null,null,null,null,null,null,null,null,null,null,null,1]
[null,null,null,null,null,null,null,null,null,null,null,null,null,null,null,null,null,null,null,null,null,null,null,null,null,null,null,null,null,null,null,null,null,1]
[null,null,null,null,null,null,null,null,null,null,null,null,null,null,null,null,null,null,null,null,null,null,null,null,null,null,null,null,null,null,null,null,null,1]
[null,null,null,null,null,null,null,null,null,null,null,null,null,null,null,null,null,null,null,null,null,null,null,null,null,null,null,null,null,null,null,null,null,1]

{"sheet":"Chart","index":3,"n_rows":55,"n_cols":16,"rows_kept":55,"cut":false,"hidden":false,"merged":[]}
[]
[null,null,null,null,null,26]
[]
[]
[]
[]
[]
[]
[]
[]
[]
[]
[]
[]
[]
[]
[]
[]
[]
[]
[]
[]
[]
[]
[]
[]
[]
[]
[]
[]
[null,null,null,null,null,null,null,null,null,null,"spin","count","Offset"]
[null,null,null,null,null,null,null,null,null,null,5,{"$f":"COUNT(CALC!G6:G2200)-1","v":11},{"$f":"IF(L32-K32<0,0,L32-K32)","v":6}]
[]
[]
[]
[]
[]
[]
[]
[]
[]
[]
[]
[]
[]
[]
[]
[]
[]
[]
[]
[]
[null,null,null,null,null,null,null,null,null,"TONN2010","Moduli",null,null,null,"Depth to","#1 Defl."]
[null,null,null,null,null,null,null,null,null,"Capacity, Tons","EAC","HMA (72° F)","Base","Subgrade","Stiff Layer","(mils)"]
[null,null,null,null,null,null,null,null,null,{"$f":"OFFSET(SUMMARY!P11:P224,Chart!$M$32,0,1,1)","v":0},{"$f":"OFFSET(SUMMARY!Q11:Q224,Chart!$M$32,0,1,1)","v":0},{"$f":"OFFSET(SUMMARY!R11:R224,Chart!$M$32,0,1,1)","v":0},{"$f":"OFFSET(SUMMARY!S11:S224,Chart!$M$32,0,1,1)","v":0},{"$f":"OFFSET(SUMMARY!T11:T224,Chart!$M$32,0,1,1)","v":0},{"$f":"OFFSET(SUMMARY!U11:U224,Chart!$M$32,0,1,1)","v":0},{"$f":"OFFSET(SUMMARY!V11:V224,Chart!$M$32,0,1,1)","v":9.070000226238573}]

{"sheet":"Overlay Design","index":4,"n_rows":1099,"n_cols":51,"rows_kept":1099,"cut":false,"hidden":true,"merged":[[28,1,30,4],[983,15,983,18],[983,19,983,22],[983,23,983,26],[984,8,984,9]]}
[null,{"$f":"\"TONN2010 Overlay Worksheet - \" & SUMMARY!A1","v":"TONN2010 Overlay Worksheet -  Version TONN2010 - 1.06"}]
[]
[null,null,null,null,null,"User-Defined Overlay Goals"]
[null,null,null,null,"Overlay increment",0.27]
[null,null,null,null,"Desired rating, tons ",10]
[null,null,null,null,"Expected Future Design ESALs",500000]
[null,null,null,null,"Desired Perecentile Level ","95"]
[]
[]
[null,null,null,null,null,"User-Defined Overlay Segments"]
[]
[null,null,null,null,"Number of Segments ",1]
[]
[null,null,null,null,"Begin Segment 1 ",0.1]
[null,null,null,null,"Begin Segment 2 "]
[null,null,null,null,"Begin Segment 3 "]
[null,null,null,null,"Begin Segment 4 "]
[null,null,null,null,"Begin Segment 5 "]
[null,null,null,null,"End Station ",7.3]
[]
[]
[]
[null,"Segment","Existing Bit. Thickness (inches)","Base Thickness (inches)","Design ESALs",{"$f":"\"Existing Ton Rating at \" & F7 & \"% Percentile\"","v":"Existing Ton Rating at 95% Percentile"},{"$f":"\"Overlay Thickness for \" & F5 & \"-Ton Rating at \" & F7 & \"% Perecentile (inches)\"","v":"Overlay Thickness for 10-Ton Rating at 95% Perecentile (inches)"}]
[null,1,8,14,500000,{"$f":"B996","v":6.9142363607106692},{"$f":"H950","v":">5"}]
[null,2,null,null,null,{"$f":"C996","v":""},{"$f":"I950","v":""}]
[null,3,null,null,null,{"$f":"D996","v":""},{"$f":"J950","v":""}]
[null,4,null,null,null,{"$f":"E996","v":""},{"$f":"K950","v":""}]
[null,5,null,null,null,{"$f":"F996","v":""},{"$f":"L950","v":""}]
[null,"*Note:  A red cell indicates that not all of the locations within a segment have the same value. In this case, the analysis may not be correct."]
[]
[]
[]
[]
[null,null,null,null,null,null,null,null,"difference"]
[null,null,"Segment","From",79.3,null,null,null,"From","To","From-To"]
[null,null,1,0.1,7.3,null,null,null,true,true,{"$f":"IF(E36-D36>0,TRUE,FALSE)","v":true}]
[null,null,2,null,null,null,null,null,{"$f":"IF(D37-D36>0,TRUE,FALSE)","v":false},{"$f":"IF(E37-E36>0,TRUE,FALSE)","v":false},{"$f":"IF(E37-D37>0,TRUE,FALSE)","v":false}]
[null,null,3,null,null,null,null,null,{"$f":"IF(D38-D37>0,TRUE,FALSE)","v":false},false,{"$f":"IF(E38-D38>0,TRUE,FALSE)","v":false}]
[null,null,4,null,null,null,null,null,false,false,{"$f":"IF(E39-D39>0,TRUE,FALSE)","v":false}]
[null,null,5,null,null,null,null,null,false,false,{"$f":"IF(E40-D40>0,TRUE,FALSE)","v":false}]
[]
[]
[]
[]
[]
[]
[]
[]
[]
[]
[]
[]
[]
[]
[]
[]
[]
[]
[]
[]
[]
[]
[]
[]
[]
[]
[]
[]
[]
[]
[]
[]
[]
[]
[]
[]
[]
[]
[]
[]
[]
[]
[]
[]
[]
[]
[]
[]
[]
[]
[]
[]
[]
[]
[]
[]
[]
[]
[]
[]
[]
[]
[]
[]
[]
[]
[]
[]
[]
[]
[]
[]
[]
[]
[]
[]
[]
[]
[]
[]
[]
[]
[]
[]
[]
[]
[]
[]
[]
[]
[]
[]
[]
[]
[]
[]
[]
[]
[]
[]
[]
[]
[]
[]
[]
[]
[]
[]
[]
[]
[]
[]
[]
[]
[]
[]
[]
[]
[]
[]
[]
[]
[]
[]
[]
[]
[]
[]
[]
[]
[]
[]
[]
[]
[]
[]
[]
[]
[]
[]
[]
[]
[]
[]
[]
[]
[]
[]
[]
[]
[]
[]
[]
[]
[]
[]
[]
[]
[]
[]
[]
[]
[]
[]
[]
[]
[]
[]
[]
[]
[]
[]
[]
[]
[]
[]
[]
[]
[]
[]
[]
[]
[]
[]
[]
[]
[]
[]
[]
[]
[]
[]
[]
[]
[]
[]
[]
[]
[]
[]
[]
[]
[]
[]
[]
[]
[]
[]
[]
[]
[]
[]
[]
[]
[]
[]
[]
[]
[]
[]
[]
[]
[]
[]
[]
[]
[]
[]
[]
[]
[]
[]
[]
[]
[]
[]
[]
[]
[]
[]
[]
[]
[]
[]
[]
[]
[]
[]
[]
[]
[]
[]
[]
[]
[]
[]
[]
[]
[]
[]
[]
[]
[]
[]
[]
[]
[]
[]
[]
[]
[]
[]
[]
[]
[]
[]
[]
[]
[]
[]
[]
[]
[]
[]
[]
[]
[]
[]
[]
[]
[]
[]
[]
[]
[]
[]
[]
[]
[]
[]
[]
[]
[]
[]
[]
[]
[]
[]
[]
[]
[]
[]
[]
[]
[]
[]
[]
[]
[]
[]
[]
[]
[]
[]
[]
[]
[]
[]
[]
[]
[]
[]
[]
[]
[]
[]
[]
[]
[]
[]
[]
[]
[]
[]
[]
[]
[]
[]
[]
[]
[]
[]
[]
[]
[]
[]
[]
[]
[]
[]
[]
[]
[]
[]
[]
[]
[]
[]
[]
[]
[]
[]
[]
[]
[]
[]
[]
[]
[]
[]
[]
[]
[]
[]
[]
[]
[]
[]
[]
[]
[]
[]
[]
[]
[]
[]
[]
[]
[]
[]
[]
[]
[]
[]
[]
[]
[]
[]
[]
[]
[]
[]
[]
[]
[]
[]
[]
[]
[]
[]
[]
[]
[]
[]
[]
[]
[]
[]
[]
[]
[]
[]
[]
[]
[]
[]
[]
[]
[]
[]
[]
[]
[]
[]
[]
[]
[]
[]
[]
[]
[]
[]
[]
[]
[]
[]
[]
[]
[]
[]
[]
[]
[]
[]
[]
[]
[]
[]
[]
[]
[]
[]
[]
[]
[]
[]
[]
[]
[]
[]
[]
[]
[]
[]
[]
[]
[]
[]
[]
[]
[]
[]
[]
[]
[]
[]
[]
[]
[]
[]
[]
[]
[]
[]
[]
[]
[]
[]
[]
[]
[]
[]
[]
[]
[]
[]
[]
[]
[]
[]
[]
[]
[]
[]
[]
[]
[]
[]
[]
[]
[]
[]
[]
[]
[]
[]
[]
[]
[]
[]
[]
[]
[]
[]
[]
[]
[]
[]
[]
[]
[]
[]
[]
[]
[]
[]
[]
[]
[]
[]
[]
[]
[]
[]
[]
[]
[]
[]
[]
[]
[]
[]
[]
[]
[]
[]
[]
[]
[]
[]
[]
[]
[]
[]
[]
[]
[]
[]
[]
[]
[]
[]
[]
[]
[]
[]
[]
[]
[]
[]
[]
[]
[]
[]
[]
[]
[]
[]
[]
[]
[]
[]
[]
[]
[]
[]
[]
[]
[]
[]
[]
[]
[]
[]
[]
[]
[]
[]
[]
[]
[]
[]
[]
[]
[]
[]
[]
[]
[]
[]
[]
[]
[]
[]
[]
[]
[]
[]
[]
[]
[]
[]
[]
[]
[]
[]
[]
[]
[]
[]
[]
[]
[]
[]
[]
[]
[]
[]
[]
[]
[]
[]
[]
[]
[]
[]
[]
[]
[]
[]
[]
[]
[]
[]
[]
[]
[]
[]
[]
[]
[]
[]
[]
[]
[]
[]
[]
[]
[]
[]
[]
[]
[]
[]
[]
[]
[]
[]
[]
[]
[]
[]
[]
[]
[]
[]
[]
[]
[]
[]
[]
[]
[]
[]
[]
[]
[]
[]
[]
[]
[]
[]
[]
[]
[]
[]
[]
[]
[]
[]
[]
[]
[]
[]
[]
[]
[]
[]
[]
[]
[]
[]
[]
[]
[]
[]
[]
[]
[]
[]
[]
[]
[]
[]
[]
[]
[]
[]
[]
[]
[]
[]
[]
[]
[]
[]
[]
[]
[]
[]
[]
[]
[]
[]
[]
[]
[]
[]
[]
[]
[]
[]
[]
[]
[]
[]
[]
[]
[]
[]
[]
[]
[]
[]
[]
[]
[]
[]
[]
[]
[]
[]
[]
[]
[]
[]
[]
[]
[]
[]
[]
[]
[]
[]
[]
[]
[]
[]
[]
[]
[]
[]
[]
[]
[]
[]
[]
[]
[]
[]
[]
[]
[]
[]
[]
[]
[]
[]
[]
[]
[]
[]
[]
[]
[]
[]
[]
[]
[]
[]
[]
[]
[]
[]
[]
[]
[]
[]
[]
[]
[]
[]
[]
[]
[]
[]
[]
[]
[]
[]
[]
[]
[]
[]
[]
[]
[]
[]
[]
[]
[]
[]
[]
[]
[]
[]
[]
[]
[]
[]
[]
[]
[]
[]
[]
[]
[null,null,null,null,null,null,"label",">5",">5",">5",">5",">5"]
[null,null,null,null,null,null,null,1,2,3,4,5]
[null,null,null,null,null,null,null,{"$f":"($F$5-H954)/(C954-H954)*(C955-H955)+H955","v":{"$error":"#VALUE!"}},{"$f":"($F$5-I954)/(D954-I954)*(D955-I955)+I955","v":{"$error":"#VALUE!"}},{"$error":"#VALUE!"},{"$error":"#VALUE!"},{"$error":"#VALUE!"}]
[null,null,null,null,null,null,null,{"$f":"IF(H951=H947,H947,IFERROR(H949,\"\"))","v":">5"},{"$f":"IF(I951=I947,I947,IFERROR(I949,\"\"))","v":""},"","",""]
[null,null,null,null,null,null,null,{"$f":"IF(AND(MAX(H954)>0,MAX(C954)=0),H947,\"\")","v":">5"},{"$f":"IF(AND(MAX(I954)>0,MAX(D954)=0),I947,\"\")","v":""},"","",""]
[]
[null,null,1,2,3,4,5,1,2,3,4,5]
[null,null,{"$f":"IF(MIN(C959:C978)>0,MIN(C959:C978),\"\")","v":""},{"$f":"IF(MIN(D959:D978)>0,MIN(D959:D978),\"\")","v":""},"","","",{"$f":"IF(MAX(H959:H978)>0,MAX(H959:H978),\"\")","v":9.4323396748453678},{"$f":"IF(MAX(I959:I978)>0,MAX(I959:I978),\"\")","v":""},"","",""]
[null,null,{"$f":"VLOOKUP(C954,C959:$T$978,18)","v":5.1300000000000008},{"$f":"VLOOKUP(D954,D959:$T$978,17)","v":5.1300000000000008},{"$f":"VLOOKUP(E954,E959:$T$978,16)","v":5.1300000000000008},{"$f":"VLOOKUP(F954,F959:$T$978,15)","v":5.1300000000000008},{"$f":"VLOOKUP(G954,G959:$T$978,14)","v":5.1300000000000008},{"$f":"VLOOKUP(H954,H959:$T$978,13)","v":5.1300000000000008},{"$f":"VLOOKUP(I954,I959:$T$978,12)","v":5.1300000000000008},{"$f":"VLOOKUP(J954,J959:$T$978,11)","v":5.1300000000000008},{"$f":"VLOOKUP(K954,K959:$T$978,10)","v":5.1300000000000008},{"$f":"VLOOKUP(L954,L959:$T$978,9)","v":5.1300000000000008},null,null,null,null,null,null,"Count:",null,{"$f":"COUNT(U959:U978)","v":20},{"$f":"COUNT(V959:V978)","v":0},0,0,0,null,"max"]
[null,null,null,"upper limit",null,null,null,null,"Lower limit",null,null,null,null,null,null,null,null,null,null,"Data for OLthick vs TONN",null,null,null,null,null,null,{"$f":"MAX(U955:Y955)","v":20},null,null,"Coming from dll"]
[null,null,1,2,3,4,5,1,2,3,4,5,1,2,3,4,5,null,null,"OL Thickness","Segment 1","Segment 2","Segment 3","Segment 4","Segment 5",null,null,null,null,"Segment 1","Segment 2","Segment 3","Segment 4","Segment 5"]
[null,null,null,null,null,null,null,null,null,null,null,null,null,null,null,null,null,null,null,0,{"$f":"I986","v":6.9142363607106692},{"$f":"I987","v":""},{"$f":"I988","v":""},{"$f":"I989","v":""},{"$f":"I990","v":""}]
[null,null,{"$f":"IF(M959>10,M959,\"\")","v":""},{"$f":"IF(N959>10,N959,\"\")","v":""},{"$f":"IF(O959>10,O959,\"\")","v":""},{"$f":"IF(P959>10,P959,\"\")","v":""},{"$f":"IF(Q959>10,Q959,\"\")","v":""},{"$f":"IF(M959>$F$5,\"\",M959)","v":6.9142363607106692},{"$f":"IF(N959>$F$5,\"\",N959)","v":""},{"$f":"IF(O959>$F$5,\"\",O959)","v":""},{"$f":"IF(P959>$F$5,\"\",P959)","v":""},{"$f":"IF(Q959>$F$5,\"\",Q959)","v":""},{"$f":"IFERROR(IF(U959<MAX(U$958:U958),\"\",U959),\"\")","v":6.9142363607106692},{"$f":"IFERROR(IF(V959<MAX(V$958:V958),\"\",V959),\"\")","v":""},{"$f":"IFERROR(IF(W959<MAX(W$958:W958),\"\",W959),\"\")","v":""},{"$f":"IFERROR(IF(X959<MAX(X$958:X958),\"\",X959),\"\")","v":""},{"$f":"IFERROR(IF(Y959<Y958,\"\",Y959),\"\")","v":""},null,1,{"$f":"(S959-1)*$F$4","v":0},{"$f":"AD959-(AD$959-U$958)","v":6.9142363607106692},{"$f":"AE959-(AE$959-V$958)","v":{"$error":"#VALUE!"}},{"$error":"#VALUE!"},{"$error":"#VALUE!"},{"$error":"#VALUE!"},null,null,null,null,7.1326450411717737]
[null,null,{"$f":"IF(M960>10,M960,\"\")","v":""},"","","","",{"$f":"IF(M960>$F$5,\"\",M960)","v":7.0880477813204523},"","","","",{"$f":"IFERROR(IF(U960<MAX(U$958:U959),\"\",U960),\"\")","v":7.0880477813204523},{"$f":"IFERROR(IF(V960<MAX(V$958:V959),\"\",V960),\"\")","v":""},{"$f":"IFERROR(IF(W960<MAX(W$958:W959),\"\",W960),\"\")","v":""},{"$f":"IFERROR(IF(X960<MAX(X$958:X959),\"\",X960),\"\")","v":""},"",null,2,0.27,{"$f":"AD960-(AD$959-U$958)","v":7.0880477813204523},{"$error":"#VALUE!"},{"$error":"#VALUE!"},{"$error":"#VALUE!"},{"$error":"#VALUE!"},null,null,null,null,7.3064564617815568]
[null,null,"","","","","",7.2650346691712118,"","","","",{"$f":"IFERROR(IF(U961<MAX(U$958:U960),\"\",U961),\"\")","v":7.2650346691712118},{"$f":"IFERROR(IF(V961<MAX(V$958:V960),\"\",V961),\"\")","v":""},{"$f":"IFERROR(IF(W961<MAX(W$958:W960),\"\",W961),\"\")","v":""},{"$f":"IFERROR(IF(X961<MAX(X$958:X960),\"\",X961),\"\")","v":""},"",null,3,0.54,7.2650346691712118,{"$error":"#VALUE!"},{"$error":"#VALUE!"},{"$error":"#VALUE!"},{"$error":"#VALUE!"},null,null,null,null,7.4834433496323163]
[null,null,"","","","","",7.4435358804368414,"","","","",{"$f":"IFERROR(IF(U962<MAX(U$958:U961),\"\",U962),\"\")","v":7.4435358804368414},{"$f":"IFERROR(IF(V962<MAX(V$958:V961),\"\",V962),\"\")","v":""},{"$f":"IFERROR(IF(W962<MAX(W$958:W961),\"\",W962),\"\")","v":""},{"$f":"IFERROR(IF(X962<MAX(X$958:X961),\"\",X962),\"\")","v":""},"",null,4,0.81,7.4435358804368414,{"$error":"#VALUE!"},{"$error":"#VALUE!"},{"$error":"#VALUE!"},{"$error":"#VALUE!"},null,null,null,null,7.661944560897946]
[null,null,"","","","","",7.7657075695774074,"","","","",{"$f":"IFERROR(IF(U963<MAX(U$958:U962),\"\",U963),\"\")","v":7.7657075695774074},{"$f":"IFERROR(IF(V963<MAX(V$958:V962),\"\",V963),\"\")","v":""},{"$f":"IFERROR(IF(W963<MAX(W$958:W962),\"\",W963),\"\")","v":""},{"$f":"IFERROR(IF(X963<MAX(X$958:X962),\"\",X963),\"\")","v":""},"",null,5,1.08,7.7657075695774074,{"$error":"#VALUE!"},{"$error":"#VALUE!"},{"$error":"#VALUE!"},{"$error":"#VALUE!"},null,null,null,null,7.9841162500385119]
[null,null,"","","","","",7.9568812199022023,"","","","",{"$f":"IFERROR(IF(U964<MAX(U$958:U963),\"\",U964),\"\")","v":7.9568812199022023},{"$f":"IFERROR(IF(V964<MAX(V$958:V963),\"\",V964),\"\")","v":""},{"$f":"IFERROR(IF(W964<MAX(W$958:W963),\"\",W964),\"\")","v":""},{"$f":"IFERROR(IF(X964<MAX(X$958:X963),\"\",X964),\"\")","v":""},"",null,6,1.35,7.9568812199022023,{"$error":"#VALUE!"},{"$error":"#VALUE!"},{"$error":"#VALUE!"},{"$error":"#VALUE!"},null,null,null,null,8.1752899003633068]
[null,null,"","","","","",8.1577133371359682,"","","","",{"$f":"IFERROR(IF(U965<MAX(U$958:U964),\"\",U965),\"\")","v":8.1577133371359682},{"$f":"IFERROR(IF(V965<MAX(V$958:V964),\"\",V965),\"\")","v":""},{"$f":"IFERROR(IF(W965<MAX(W$958:W964),\"\",W965),\"\")","v":""},{"$f":"IFERROR(IF(X965<MAX(X$958:X964),\"\",X965),\"\")","v":""},"",null,7,1.62,8.1577133371359682,{"$error":"#VALUE!"},{"$error":"#VALUE!"},{"$error":"#VALUE!"},{"$error":"#VALUE!"},null,null,null,null,8.3761220175970728]
[null,null,"","","","","",8.3510887441019239,"","","","",{"$f":"IFERROR(IF(U966<MAX(U$958:U965),\"\",U966),\"\")","v":8.3510887441019239},{"$f":"IFERROR(IF(V966<MAX(V$958:V965),\"\",V966),\"\")","v":""},{"$f":"IFERROR(IF(W966<MAX(W$958:W965),\"\",W966),\"\")","v":""},{"$f":"IFERROR(IF(X966<MAX(X$958:X965),\"\",X966),\"\")","v":""},"",null,8,1.8900000000000001,8.3510887441019239,{"$error":"#VALUE!"},{"$error":"#VALUE!"},{"$error":"#VALUE!"},{"$error":"#VALUE!"},null,null,null,null,8.5694974245630284]
[null,null,"","","","","",8.5422468815339911,"","","","",{"$f":"IFERROR(IF(U967<MAX(U$958:U966),\"\",U967),\"\")","v":8.5422468815339911},{"$f":"IFERROR(IF(V967<MAX(V$958:V966),\"\",V967),\"\")","v":""},{"$f":"IFERROR(IF(W967<MAX(W$958:W966),\"\",W967),\"\")","v":""},{"$f":"IFERROR(IF(X967<MAX(X$958:X966),\"\",X967),\"\")","v":""},"",null,9,2.16,8.5422468815339911,{"$error":"#VALUE!"},{"$error":"#VALUE!"},{"$error":"#VALUE!"},{"$error":"#VALUE!"},null,null,null,null,8.7606555619950957]
[null,null,"","","","","",8.7225711600948141,"","","","",{"$f":"IFERROR(IF(U968<MAX(U$958:U967),\"\",U968),\"\")","v":8.7225711600948141},{"$f":"IFERROR(IF(V968<MAX(V$958:V967),\"\",V968),\"\")","v":""},{"$f":"IFERROR(IF(W968<MAX(W$958:W967),\"\",W968),\"\")","v":""},{"$f":"IFERROR(IF(X968<MAX(X$958:X967),\"\",X968),\"\")","v":""},"",null,10,2.4300000000000002,8.7225711600948141,{"$error":"#VALUE!"},{"$error":"#VALUE!"},{"$error":"#VALUE!"},{"$error":"#VALUE!"},null,null,null,null,8.9409798405559187]
[null,null,"","","","","",8.8946913466759305,"","","","",{"$f":"IFERROR(IF(U969<MAX(U$958:U968),\"\",U969),\"\")","v":8.8946913466759305},{"$f":"IFERROR(IF(V969<MAX(V$958:V968),\"\",V969),\"\")","v":""},{"$f":"IFERROR(IF(W969<MAX(W$958:W968),\"\",W969),\"\")","v":""},{"$f":"IFERROR(IF(X969<MAX(X$958:X968),\"\",X969),\"\")","v":""},"",null,11,2.7,8.8946913466759305,{"$error":"#VALUE!"},{"$error":"#VALUE!"},{"$error":"#VALUE!"},{"$error":"#VALUE!"},null,null,null,null,9.113100027137035]
[null,null,"","","","","","","","","","",{"$f":"IFERROR(IF(U970<MAX(U$958:U969),\"\",U970),\"\")","v":""},{"$f":"IFERROR(IF(V970<MAX(V$958:V969),\"\",V970),\"\")","v":""},{"$f":"IFERROR(IF(W970<MAX(W$958:W969),\"\",W970),\"\")","v":""},{"$f":"IFERROR(IF(X970<MAX(X$958:X969),\"\",X970),\"\")","v":""},"",null,12,2.97,8.8396794174559776,{"$error":"#VALUE!"},{"$error":"#VALUE!"},{"$error":"#VALUE!"},{"$error":"#VALUE!"},null,null,null,null,9.0580880979170821]
[null,null,"","","","","",9.0085407149670385,"","","","",{"$f":"IFERROR(IF(U971<MAX(U$958:U970),\"\",U971),\"\")","v":9.0085407149670385},{"$f":"IFERROR(IF(V971<MAX(V$958:V970),\"\",V971),\"\")","v":""},{"$f":"IFERROR(IF(W971<MAX(W$958:W970),\"\",W971),\"\")","v":""},{"$f":"IFERROR(IF(X971<MAX(X$958:X970),\"\",X971),\"\")","v":""},"",null,13,3.24,9.0085407149670385,{"$error":"#VALUE!"},{"$error":"#VALUE!"},{"$error":"#VALUE!"},{"$error":"#VALUE!"},null,null,null,null,9.226949395428143]
[null,null,"","","","","",9.1880875983654597,"","","","",{"$f":"IFERROR(IF(U972<MAX(U$958:U971),\"\",U972),\"\")","v":9.1880875983654597},{"$f":"IFERROR(IF(V972<MAX(V$958:V971),\"\",V972),\"\")","v":""},{"$f":"IFERROR(IF(W972<MAX(W$958:W971),\"\",W972),\"\")","v":""},{"$f":"IFERROR(IF(X972<MAX(X$958:X971),\"\",X972),\"\")","v":""},"",null,14,3.5100000000000002,9.1880875983654597,{"$error":"#VALUE!"},{"$error":"#VALUE!"},{"$error":"#VALUE!"},{"$error":"#VALUE!"},null,null,null,null,9.4064962788265643]
[null,null,"","","","","",9.3624491859840031,"","","","",{"$f":"IFERROR(IF(U973<MAX(U$958:U972),\"\",U973),\"\")","v":9.3624491859840031},{"$f":"IFERROR(IF(V973<MAX(V$958:V972),\"\",V973),\"\")","v":""},{"$f":"IFERROR(IF(W973<MAX(W$958:W972),\"\",W973),\"\")","v":""},{"$f":"IFERROR(IF(X973<MAX(X$958:X972),\"\",X973),\"\")","v":""},"",null,15,3.7800000000000002,9.3624491859840031,{"$error":"#VALUE!"},{"$error":"#VALUE!"},{"$error":"#VALUE!"},{"$error":"#VALUE!"},null,null,null,null,9.5808578664451076]
[null,null,"","","","","",9.4323396748453678,"","","","",{"$f":"IFERROR(IF(U974<MAX(U$958:U973),\"\",U974),\"\")","v":9.4323396748453678},{"$f":"IFERROR(IF(V974<MAX(V$958:V973),\"\",V974),\"\")","v":""},{"$f":"IFERROR(IF(W974<MAX(W$958:W973),\"\",W974),\"\")","v":""},{"$f":"IFERROR(IF(X974<MAX(X$958:X973),\"\",X974),\"\")","v":""},"",null,16,4.0500000000000007,9.4323396748453678,{"$error":"#VALUE!"},{"$error":"#VALUE!"},{"$error":"#VALUE!"},{"$error":"#VALUE!"},null,null,null,null,9.6507483553064723]
[null,null,"","","","","",9.4323396748453678,"","","","",{"$f":"IFERROR(IF(U975<MAX(U$958:U974),\"\",U975),\"\")","v":9.4323396748453678},{"$f":"IFERROR(IF(V975<MAX(V$958:V974),\"\",V975),\"\")","v":""},{"$f":"IFERROR(IF(W975<MAX(W$958:W974),\"\",W975),\"\")","v":""},{"$f":"IFERROR(IF(X975<MAX(X$958:X974),\"\",X975),\"\")","v":""},{"$f":"IFERROR(IF(Y975<Y974,\"\",Y975),\"\")","v":""},null,17,4.32,9.4323396748453678,{"$error":"#VALUE!"},{"$error":"#VALUE!"},{"$error":"#VALUE!"},{"$error":"#VALUE!"},null,null,null,null,9.6507483553064723]
[null,null,"","","","","",9.4323396748453678,"","","","",{"$f":"IFERROR(IF(U976<MAX(U$958:U975),\"\",U976),\"\")","v":9.4323396748453678},{"$f":"IFERROR(IF(V976<MAX(V$958:V975),\"\",V976),\"\")","v":""},{"$f":"IFERROR(IF(W976<MAX(W$958:W975),\"\",W976),\"\")","v":""},{"$f":"IFERROR(IF(X976<MAX(X$958:X975),\"\",X976),\"\")","v":""},"",null,18,4.59,{"$f":"AD976-(AD$959-U$958)","v":9.4323396748453678},{"$error":"#VALUE!"},{"$error":"#VALUE!"},{"$error":"#VALUE!"},{"$error":"#VALUE!"},null,null,null,null,9.6507483553064723]
[null,null,"","","","","",9.4323396748453678,"","","","",{"$f":"IFERROR(IF(U977<MAX(U$958:U976),\"\",U977),\"\")","v":9.4323396748453678},{"$f":"IFERROR(IF(V977<MAX(V$958:V976),\"\",V977),\"\")","v":""},{"$f":"IFERROR(IF(W977<MAX(W$958:W976),\"\",W977),\"\")","v":""},{"$f":"IFERROR(IF(X977<MAX(X$958:X976),\"\",X977),\"\")","v":""},"",null,19,4.8600000000000003,9.4323396748453678,{"$error":"#VALUE!"},{"$error":"#VALUE!"},{"$error":"#VALUE!"},{"$error":"#VALUE!"},null,null,null,null,9.6507483553064723]
[null,null,"","","","","",9.4323396748453678,"","","","",{"$f":"IFERROR(IF(U978<MAX(U$958:U977),\"\",U978),\"\")","v":9.4323396748453678},{"$f":"IFERROR(IF(V978<MAX(V$958:V977),\"\",V978),\"\")","v":""},{"$f":"IFERROR(IF(W978<MAX(W$958:W977),\"\",W978),\"\")","v":""},{"$f":"IFERROR(IF(X978<MAX(X$958:X977),\"\",X978),\"\")","v":""},"",null,20,5.1300000000000008,9.4323396748453678,{"$error":"#VALUE!"},{"$error":"#VALUE!"},{"$error":"#VALUE!"},{"$error":"#VALUE!"},null,null,null,null,9.6507483553064723]
["Segmentation Method",null,null,null,"Reliability Levels",null,null,"Begin Seg 1","Begin Seg 2","Begin Seg 3","Begin Seg 4","Begin Seg 5","End Station"]
["Single Segment",null,null,null,50,null,0,0.1,null,null,null,null,7.3]
["User Defined",null,null,null,80,null,1000,0.1,null,null,null,null,7.3]
["Multiple (Auto Segment)",null,null,null,85]
[null,null,null,null,90]
["Selected Segmentation Method",null,null,null,95,null,null,null,null,null,null,null,null,null,null,"Average",null,null,null,"Std. Dev.",null,null,null,{"$f":"\"Values for \" & F7 & \"% Reliability\"","v":"Values for 95% Reliability"}]
["User Defined",1,null,null,99,null,null,null,"x%ile Current TONN",null,"Segment","Start","End","StartRow","EndRow","Eac","Ebase","Esubgrade","Hsubgrade","Eac","Ebase","Esubgrade","Hsubgrade","Eac","Ebase","Esubgrade","Hsubgrade"]
[null,null,null,null,null,null,null,null,{"$f":"PERCENTILE(INDIRECT(\"B\" & N986):INDIRECT(\"B\" & O986),(1-F7/100))","v":6.9142363607106692},{"$f":"I986","v":6.9142363607106692},1,{"$f":"D36","v":0.1},{"$f":"IF(E36=D37,E36-0.0001,E36)","v":7.3},1000,1099,310911.72013147868,22748.823611375763,12279.91816525343,114.84,158576.50861930498,11572.680276430161,4626.1068615113873,65.109809343349127,124364.68805259147,9099.5294445503059,4911.9672661013719,60]
["Min Station",{"$f":"MIN(A1000:A3000)","v":0.1},null,null,{"$f":"B996","v":6.9142363607106692},null,null,null,{"$f":"IF(O987>=1000,PERCENTILE(INDIRECT(\"B\" & N987):INDIRECT(\"B\" & O987),(1-F7/100)),\"\")","v":""},{"$f":"I987","v":""},2,0,{"$f":"IF(E37=D38,E37-0.0001,E37)","v":-1E-4},0,0]
["Max Station",{"$f":"MAX(A1000:A3000)","v":7.3},null,null,{"$f":"B996","v":6.9142363607106692},null,null,null,{"$f":"IF(O988>=1000,PERCENTILE(INDIRECT(\"B\" & N988):INDIRECT(\"B\" & O988),(1-F7/100)),\"\")","v":""},{"$f":"I988","v":""},3,0,-1E-4,0,0]
[null,null,null,null,null,null,null,null,{"$f":"IF(O989>=1000,PERCENTILE(INDIRECT(\"B\" & N989):INDIRECT(\"B\" & O989),(1-F7/100)),\"\")","v":""},{"$f":"I989","v":""},4,0,-1E-4,0,0]
["Current Last Row",16,null,null,null,null,null,null,{"$f":"IF(O990>=1000,PERCENTILE(INDIRECT(\"B\" & N990):INDIRECT(\"B\" & O990),(1-F7/100)),\"\")","v":""},{"$f":"I990","v":""},5,0,0,0,0]
["Num Drops",{"$f":"COUNT(C1000:C2000)","v":100}]
[]
[]
[null,{"$f":"\"Existing Ton Rating (\" & F7 & \"% Percentile)\"","v":"Existing Ton Rating (95% Percentile)"}]
[null,1,2,3,4,5]
[null,{"$f":"PERCENTILE(INDIRECT(\"B\" & N986):INDIRECT(\"B\" & O986),(1-F7/100))","v":6.9142363607106692},{"$f":"IF(O987>=1000,PERCENTILE(INDIRECT(\"B\" & N987):INDIRECT(\"B\" & O987),(1-F7/100)),\"\")","v":""},{"$f":"IF(O988>=1000,PERCENTILE(INDIRECT(\"B\" & N988):INDIRECT(\"B\" & O988),(1-F7/100)),\"\")","v":""},{"$f":"IF(O989>=1000,PERCENTILE(INDIRECT(\"B\" & N989):INDIRECT(\"B\" & O989),(1-F7/100)),\"\")","v":""},{"$f":"IF(O990>=1000,PERCENTILE(INDIRECT(\"B\" & N990):INDIRECT(\"B\" & O990),(1-F7/100)),\"\")","v":""}]
[null,null,null,null,null,null,null,null,null,null,null,null,null,null,null,null,null,null,null,null,null,null,null,null,null,null,null,null,null,null,null,null,null,null,null,null,null,null,null,null,"For Segment Consistency Viewer"]
[null,null,null,null,null,null,null,null,null,null,null,null,null,null,null,null,null,null,null,null,null,null,null,null,null,null,null,null,null,null,null,null,null,null,null,null,null,null,null,null,null,null,null,null,null,null,null,48,49,50,51]
["Station","Computed TONN2010","Spring E",null,"Air °F","Actual Bit Thickness","BASE THICKNESS","Time","Load","DesignEsals","Bit °F","EAC","Ebase","Esubgrade","H3","Count","Projected TONN2010",null,null,null,null,null,null,null,null,null,null,null,null,null,null,null,null,null,null,null,null,null,null,null,"Bituminous Thickness","Base Thickness","Design ESALs","air","time","load","bit T","Eac","Ebase","Esub","Hsub"]
[0.1,9.6053307630535709,12382.310198793317,null,75.56,8,14,0.33719907409977168,9255.0160000000014,500000,71.42,null,null,null,null,null,7.1326450411717737,7.3064564617815568,7.4834433496323163,7.661944560897946,7.9841162500385119,8.1752899003633068,8.3761220175970728,8.5694974245630284,8.7606555619950957,8.9409798405559187,9.113100027137035,9.0580880979170821,9.226949395428143,9.4064962788265643,9.5808578664451076,9.6507483553064723,9.6507483553064723,9.6507483553064723,9.6507483553064723,9.6507483553064723,null,null,null,{"$f":"A1000","v":0.1},8,14,500000,{"$f":"SUMMARY!AP1002","v":0},"08:05:34",9255.0160000000014,71.42,220466.40625,13808.087890625,13808.087890625,240]
[0.2,11.832177250519557,12146.433806466584,null,null,null,null,null,null,null,null,null,null,null,null,null,null,null,null,null,null,null,null,null,null,null,null,null,null,null,null,null,null,null,null,null,null,null,null,{"$f":"A1001","v":0.2},8,14,500000,{"$f":"SUMMARY!AP1002","v":0},"08:06:43",9281.9920000000002,71.06,158459.515625,34171.47265625,5509.17041015625,60]
[0.3,7.7629929293630404,15726.731899752476,null,null,null,null,null,null,null,null,null,null,null,null,null,null,null,null,null,null,null,null,null,null,null,null,null,null,null,null,null,null,null,null,null,null,null,null,0.3,8,14,500000,{"$f":"SUMMARY!AP1002","v":0},"08:09:06",8983.0079999999998,70.34,58452.36328125,18303.529296875,6133.10791015625,36]
[0.35,5.310750533890455,7399.3485071163368,null,null,null,null,null,null,null,null,null,null,null,null,null,null,null,null,null,null,null,null,null,null,null,null,null,null,null,null,null,null,null,null,null,null,null,null,0.35,8,14,500000,{"$f":"SUMMARY!AP1002","v":0},"08:11:12",9084.1679999999997,68.180000000000007,77013.1796875,5345.560546875,5345.560546875,48]
[0.4,8.0567188762492137,8490.8078879176992,null,null,null,null,null,null,null,null,null,null,null,null,null,null,null,null,null,null,null,null,null,null,null,null,null,null,null,null,null,null,null,null,null,null,null,null,0.4,8,14,500000,{"$f":"SUMMARY!AP1002","v":0},"08:12:47",9277.496000000001,70.88,193113.078125,9071.625,9071.625,180]
[0.45,14.048422370999223,8046.6328415068074,null,null,null,null,null,null,null,null,null,null,null,null,null,null,null,null,null,null,null,null,null,null,null,null,null,null,null,null,null,null,null,null,null,null,null,null,0.45,8,14,500000,{"$f":"SUMMARY!AP1002","v":0},"08:14:23",9277.496000000001,70.7,685851.0625,18813.470703125,7770.78125,180]
[0.5,13.845492809783563,10308.921816986387,null,null,null,null,null,null,null,null,null,null,null,null,null,null,null,null,null,null,null,null,null,null,null,null,null,null,null,null,null,null,null,null,null,null,null,null,0.5,8,14,500000,{"$f":"SUMMARY!AP1002","v":0},"08:15:36",9212.3040000000001,69.98,466909.1875,24524.703125,10129.8291015625,240]
[0.55000000000000004,10.104813224266993,9615.4146039603966,null,null,null,null,null,null,null,null,null,null,null,null,null,null,null,null,null,null,null,null,null,null,null,null,null,null,null,null,null,null,null,null,null,null,null,null,0.55000000000000004,8,14,500000,{"$f":"SUMMARY!AP1002","v":0},"08:20:19",9068.4320000000007,70.34,100905.28125,29564.314453125,3341.53564453125,48]
[0.6,7.9585706183314793,9562.9930190284649,null,null,null,null,null,null,null,null,null,null,null,null,null,null,null,null,null,null,null,null,null,null,null,null,null,null,null,null,null,null,null,null,null,null,null,null,0.6,8,14,500000,{"$f":"SUMMARY!AP1002","v":0},"08:21:36",9007.7360000000008,70.52,91376.2109375,14722.2763671875,7741.5302734375,120]
[0.65,9.2883381611851963,8246.0516901299507,null,null,null,null,null,null,null,null,null,null,null,null,null,null,null,null,null,null,null,null,null,null,null,null,null,null,null,null,null,null,null,null,null,null,null,null,0.65,8,14,500000,{"$f":"SUMMARY!AP1002","v":0},"08:23:08",9167.344000000001,70.16,392990.625,7921.77001953125,7890.70849609375,120]
[0.7,11.397171266378773,13136.702119430694,null,null,null,null,null,null,null,null,null,null,null,null,null,null,null,null,null,null,null,null,null,null,null,null,null,null,null,null,null,null,null,null,null,null,null,null,0.7,8,14,500000,{"$f":"SUMMARY!AP1002","v":0},"08:24:12",9167.344000000001,70.52,337028.34375,17723.595703125,7796.80322265625,60]
[0.75,9.3508509338166057,11383.283377165841,null,null,null,null,null,null,null,null,null,null,null,null,null,null,null,null,null,null,null,null,null,null,null,null,null,null,null,null,null,null,null,null,null,null,null,null,0.75,8,14,500000,{"$f":"SUMMARY!AP1002","v":0},"08:25:54",9072.9279999999999,70.52,240184.640625,12001.458984375,12001.458984375,180]
[0.8,7.5536874922579349,11671.587639232674,null,null,null,null,null,null,null,null,null,null,null,null,null,null,null,null,null,null,null,null,null,null,null,null,null,null,null,null,null,null,null,null,null,null,null,null,0.8,8,14,500000,{"$f":"SUMMARY!AP1002","v":0},"08:27:13",8870.6080000000002,70.34,89978.703125,12691.525390625,9441.005859375,120]
[0.85,11.157118702274209,7610.1717686417078,null,null,null,null,null,null,null,null,null,null,null,null,null,null,null,null,null,null,null,null,null,null,null,null,null,null,null,null,null,null,null,null,null,null,null,null,0.85,8,14,500000,{"$f":"SUMMARY!AP1002","v":0},"08:29:02",9061.6880000000001,70.34,258202.09375,22240.9453125,3453.3125,60]
[0.9,5.0091297667852164,7246.0299833694307,null,null,null,null,null,null,null,null,null,null,null,null,null,null,null,null,null,null,null,null,null,null,null,null,null,null,null,null,null,null,null,null,null,null,null,null,0.9,8,14,500000,{"$f":"SUMMARY!AP1002","v":0},"08:30:31",8800.92,71.06,55247.0703125,5561.07568359375,5561.07568359375,60]
[0.95,7.7775570115463779,10041.711256574878,null,null,null,null,null,null,null,null,null,null,null,null,null,null,null,null,null,null,null,null,null,null,null,null,null,null,null,null,null,null,null,null,null,null,null,null,0.95,8,14,500000,{"$f":"SUMMARY!AP1002","v":0},"08:31:50",8983.0079999999998,70.34,154615,9644.951171875,9644.951171875,120]
[1,9.2266269255196605,9549.3870378248776,null,null,null,null,null,null,null,null,null,null,null,null,null,null,null,null,null,null,null,null,null,null,null,null,null,null,null,null,null,null,null,null,null,null,null,null,1,8,14,500000,{"$f":"SUMMARY!AP1002","v":0},"08:32:41",9075.1759999999995,70.34,256867.296875,11481.533203125,5864.1806640625,60]
[1.05,9.6923758155433664,10791.706953898514,null,null,null,null,null,null,null,null,null,null,null,null,null,null,null,null,null,null,null,null,null,null,null,null,null,null,null,null,null,null,null,null,null,null,null,null,1.05,8,14,500000,{"$f":"SUMMARY!AP1002","v":0},"08:33:38",9021.2240000000002,70.88,266989.6875,12922.0068359375,6635.6005859375,60]
[1.1000000000000001,7.7430880059371869,11717.723159034653,null,null,null,null,null,null,null,null,null,null,null,null,null,null,null,null,null,null,null,null,null,null,null,null,null,null,null,null,null,null,null,null,null,null,null,null,1.1000000000000001,8,14,500000,{"$f":"SUMMARY!AP1002","v":0},"08:34:48",8832.3919999999998,70.52,95397.8359375,13112.2197265625,9982.45703125,120]
[1.1499999999999999,9.1134286191196683,9386.3415164758662,null,null,null,null,null,null,null,null,null,null,null,null,null,null,null,null,null,null,null,null,null,null,null,null,null,null,null,null,null,null,null,null,null,null,null,null,1.1499999999999999,8,14,500000,{"$f":"SUMMARY!AP1002","v":0},"08:36:17",9063.9359999999997,70.34,241202.234375,11622.3916015625,5819.25537109375,60]
[1.2,10.316271464122964,13124.382638459158,null,null,null,null,null,null,null,null,null,null,null,null,null,null,null,null,null,null,null,null,null,null,null,null,null,null,null,null,null,null,null,null,null,null,null,null,1.2,8,14,500000,{"$f":"SUMMARY!AP1002","v":0},"08:37:41",8949.2880000000005,70.34,94783.0546875,29239.08203125,9154.6474609375,120]
[1.25,8.7563646731762468,15665.867303527228,null,null,null,null,null,null,null,null,null,null,null,null,null,null,null,null,null,null,null,null,null,null,null,null,null,null,null,null,null,null,null,null,null,null,null,null,1.25,8,14,500000,{"$f":"SUMMARY!AP1002","v":0},"08:39:03",9005.4880000000012,70.52,138661.84375,14509.615234375,14509.615234375,120]
[1.3,11.075232803959622,14387.905611850247,null,null,null,null,null,null,null,null,null,null,null,null,null,null,null,null,null,null,null,null,null,null,null,null,null,null,null,null,null,null,null,null,null,null,null,null,1.3,8,14,500000,{"$f":"SUMMARY!AP1002","v":0},"08:40:01",9072.9279999999999,70.7,314161.40625,16282.447265625,15148.9794921875,180]
[1.35,9.8246972766315981,10729.526318842822,null,null,null,null,null,null,null,null,null,null,null,null,null,null,null,null,null,null,null,null,null,null,null,null,null,null,null,null,null,null,null,null,null,null,null,null,1.35,8,14,500000,{"$f":"SUMMARY!AP1002","v":0},"08:40:56",8965.0240000000013,71.06,354305.375,10922.9296875,5609.05078125,48]
[1.4,11.104755362663163,11043.603322246288,null,null,null,null,null,null,null,null,null,null,null,null,null,null,null,null,null,null,null,null,null,null,null,null,null,null,null,null,null,null,null,null,null,null,null,null,1.4,8,14,500000,{"$f":"SUMMARY!AP1002","v":0},"08:41:57",9111.1440000000002,70.7,466073.9375,12038.2607421875,11795.5087890625,180]
[1.45,12.430943407361355,14924.873336943068,null,null,null,null,null,null,null,null,null,null,null,null,null,null,null,null,null,null,null,null,null,null,null,null,null,null,null,null,null,null,null,null,null,null,null,null,1.45,8,14,500000,{"$f":"SUMMARY!AP1002","v":0},"08:43:01",9052.6960000000017,70.7,398712.4375,19215.998046875,16323.912109375,240]
[1.5,11.686989987620301,15480.05317914604,null,null,null,null,null,null,null,null,null,null,null,null,null,null,null,null,null,null,null,null,null,null,null,null,null,null,null,null,null,null,null,null,null,null,null,null,1.5,8,14,500000,{"$f":"SUMMARY!AP1002","v":0},"08:43:59",9032.4639999999999,70.88,437039.84375,14900.00390625,14900.00390625,120]
[1.6,9.7737341210789168,18568.703299040841,null,null,null,null,null,null,null,null,null,null,null,null,null,null,null,null,null,null,null,null,null,null,null,null,null,null,null,null,null,null,null,null,null,null,null,null,1.6,8,14,500000,{"$f":"SUMMARY!AP1002","v":0},"08:45:06",8960.5280000000002,70.52,136054.15625,20410.287109375,12019.658203125,60]
[1.7,9.5201588859925756,14078.361212097772,null,null,null,null,null,null,null,null,null,null,null,null,null,null,null,null,null,null,null,null,null,null,null,null,null,null,null,null,null,null,null,null,null,null,null,null,1.7,8,14,500000,{"$f":"SUMMARY!AP1002","v":0},"08:46:26",9079.6720000000005,70.34,284973.15625,11440.376953125,10402.962890625,60]
[1.8,13.381348318821665,17782.93887298886,null,null,null,null,null,null,null,null,null,null,null,null,null,null,null,null,null,null,null,null,null,null,null,null,null,null,null,null,null,null,null,null,null,null,null,null,1.8,8,14,500000,{"$f":"SUMMARY!AP1002","v":0},"08:48:14",9196.5679999999993,70.88,404475.34375,25611.236328125,8648.4130859375,48]
[1.9,9.5583235007056722,16344.226871905939,null,null,null,null,null,null,null,null,null,null,null,null,null,null,null,null,null,null,null,null,null,null,null,null,null,null,null,null,null,null,null,null,null,null,null,null,1.9,8,14,500000,{"$f":"SUMMARY!AP1002","v":0},"08:49:26",9072.9279999999999,70.88,177946.203125,15780.2236328125,15780.2236328125,120]
[2,10.072094048361858,15071.132135674507,null,null,null,null,null,null,null,null,null,null,null,null,null,null,null,null,null,null,null,null,null,null,null,null,null,null,null,null,null,null,null,null,null,null,null,null,2,8,14,500000,{"$f":"SUMMARY!AP1002","v":0},"08:50:30",9045.9520000000011,70.16,241734.96875,15328.005859375,10401.1474609375,60]
[2.1,8.6300921110666806,16189.115292388615,null,null,null,null,null,null,null,null,null,null,null,null,null,null,null,null,null,null,null,null,null,null,null,null,null,null,null,null,null,null,null,null,null,null,null,null,2.1,8,14,500000,{"$f":"SUMMARY!AP1002","v":0},"08:51:38",8992,70.16,87781.9140625,18875.380859375,9235.556640625,60]
[2.2000000000000002,8.4058073290874269,15221.352877475247,null,null,null,null,null,null,null,null,null,null,null,null,null,null,null,null,null,null,null,null,null,null,null,null,null,null,null,null,null,null,null,null,null,null,null,null,2.2000000000000002,8,14,500000,{"$f":"SUMMARY!AP1002","v":0},"08:53:16",8888.5920000000006,70.52,69888.6171875,20258.07421875,7313.1650390625,48]
[2.2999999999999998,11.521388948021151,18068.379776454211,null,null,null,null,null,null,null,null,null,null,null,null,null,null,null,null,null,null,null,null,null,null,null,null,null,null,null,null,null,null,null,null,null,null,null,null,2.2999999999999998,8,14,500000,{"$f":"SUMMARY!AP1002","v":0},"08:54:21",9072.9279999999999,70.88,253992.4375,22045.70703125,11320.7685546875,60]
[2.4,9.6874120162079898,12526.25870204208,null,null,null,null,null,null,null,null,null,null,null,null,null,null,null,null,null,null,null,null,null,null,null,null,null,null,null,null,null,null,null,null,null,null,null,null,2.4,8,14,500000,{"$f":"SUMMARY!AP1002","v":0},"08:55:27",9021.2240000000002,70.88,275327.03125,12096.732421875,12096.732421875,120]
[2.5,9.6946859291895411,14929.196028001239,null,null,null,null,null,null,null,null,null,null,null,null,null,null,null,null,null,null,null,null,null,null,null,null,null,null,null,null,null,null,null,null,null,null,null,null,2.5,8,14,500000,{"$f":"SUMMARY!AP1002","v":0},"08:56:31",9054.9440000000013,71.42,323283.59375,10932.265625,10932.265625,60]
[2.6,9.4768781397452848,14122.949412128713,null,null,null,null,null,null,null,null,null,null,null,null,null,null,null,null,null,null,null,null,null,null,null,null,null,null,null,null,null,null,null,null,null,null,null,null,2.6,8,14,500000,{"$f":"SUMMARY!AP1002","v":0},"08:58:08",9005.4880000000012,72.14,209105.6875,14212.0966796875,9643.9228515625,60]
[2.7,6.9201697107354239,9160.9299582301992,null,null,null,null,null,null,null,null,null,null,null,null,null,null,null,null,null,null,null,null,null,null,null,null,null,null,null,null,null,null,null,null,null,null,null,null,2.7,8,14,500000,{"$f":"SUMMARY!AP1002","v":0},"08:59:37",8713.2479999999996,71.960000000000008,112674.984375,8555.982421875,8555.982421875,120]
[2.8,8.4240593002710522,14537.844794245049,null,null,null,null,null,null,null,null,null,null,null,null,null,null,null,null,null,null,null,null,null,null,null,null,null,null,null,null,null,null,null,null,null,null,null,null,2.8,8,14,500000,{"$f":"SUMMARY!AP1002","v":0},"09:00:40",8886.344000000001,71.78,96959.359375,16734.365234375,8858.6376953125,60]
[2.9,11.600302375507182,13781.87035891089,null,null,null,null,null,null,null,null,null,null,null,null,null,null,null,null,null,null,null,null,null,null,null,null,null,null,null,null,null,null,null,null,null,null,null,null,2.9,8,14,500000,{"$f":"SUMMARY!AP1002","v":0},"09:01:49",9061.6880000000001,73.22,421005.0625,14919.7763671875,14919.7763671875,180]
[3,10.280789830408324,21379.836401608911,null,null,null,null,null,null,null,null,null,null,null,null,null,null,null,null,null,null,null,null,null,null,null,null,null,null,null,null,null,null,null,null,null,null,null,null,3,8,14,500000,{"$f":"SUMMARY!AP1002","v":0},"09:02:58",9167.344000000001,73.759999999999991,97328.3359375,28800.03125,9698.517578125,48]
[3.1,8.5577114150573621,15592.658087097774,null,null,null,null,null,null,null,null,null,null,null,null,null,null,null,null,null,null,null,null,null,null,null,null,null,null,null,null,null,null,null,null,null,null,null,null,3.1,8,14,500000,{"$f":"SUMMARY!AP1002","v":0},"09:20:41",9027.9679999999989,73.580000000000013,135920.984375,13768.5947265625,13581.0126953125,120]
[3.2,15.671253684534443,20155.076868038366,null,null,null,null,null,null,null,null,null,null,null,null,null,null,null,null,null,null,null,null,null,null,null,null,null,null,null,null,null,null,null,null,null,null,null,null,3.2,8,14,500000,{"$f":"SUMMARY!AP1002","v":0},"09:21:44",9131.3760000000002,73.759999999999991,456579.125,37326.3203125,10762.6201171875,60]
[3.25,16.609413342859661,19937.496809251235,null,null,null,null,null,null,null,null,null,null,null,null,null,null,null,null,null,null,null,null,null,null,null,null,null,null,null,null,null,null,null,null,null,null,null,null,3.25,8,14,500000,{"$f":"SUMMARY!AP1002","v":0},"10:11:57",9266.2559999999994,75.2,557772.875,38615.47265625,10513.7958984375,60]
[3.3,17.376932501792908,26407.49941986386,null,null,null,null,null,null,null,null,null,null,null,null,null,null,null,null,null,null,null,null,null,null,null,null,null,null,null,null,null,null,null,null,null,null,null,null,3.3,8,14,500000,{"$f":"SUMMARY!AP1002","v":0},"10:12:59",9230.2880000000005,75.740000000000009,824182.1875,49576.59375,14110.5673828125,240]
[3.35,15.372665895402884,20540.984200959159,null,null,null,null,null,null,null,null,null,null,null,null,null,null,null,null,null,null,null,null,null,null,null,null,null,null,null,null,null,null,null,null,null,null,null,null,3.35,8,14,500000,{"$f":"SUMMARY!AP1002","v":0},"10:15:00",9124.6320000000014,75.38,548399.9375,28946.072265625,17971.98046875,120]
[3.42,13.055558347510825,23804.864828279704,null,null,null,null,null,null,null,null,null,null,null,null,null,null,null,null,null,null,null,null,null,null,null,null,null,null,null,null,null,null,null,null,null,null,null,null,3.42,8,14,500000,{"$f":"SUMMARY!AP1002","v":0},"10:16:14",9084.1679999999997,75.38,343549.03125,24615.42578125,17027.169921875,180]
[3.45,14.625810027122498,22292.003403465347,null,null,null,null,null,null,null,null,null,null,null,null,null,null,null,null,null,null,null,null,null,null,null,null,null,null,null,null,null,null,null,null,null,null,null,null,3.45,8,14,500000,{"$f":"SUMMARY!AP1002","v":0},"10:17:13",9230.2880000000005,75.56,490375.90625,37850.21484375,15015.3046875,48]
[3.5,14.747711502625666,19864.258682704211,null,null,null,null,null,null,null,null,null,null,null,null,null,null,null,null,null,null,null,null,null,null,null,null,null,null,null,null,null,null,null,null,null,null,null,null,3.5,8,14,500000,{"$f":"SUMMARY!AP1002","v":0},"10:18:13",9135.8720000000012,75.740000000000009,674394.1875,23064.546875,15031.68359375,180]
[3.55,18.002322918756416,19380.929281404704,null,null,null,null,null,null,null,null,null,null,null,null,null,null,null,null,null,null,null,null,null,null,null,null,null,null,null,null,null,null,null,null,null,null,null,null,3.55,8,14,500000,{"$f":"SUMMARY!AP1002","v":0},"10:19:34",9126.880000000001,75.56,756722,21443.7109375,19030.658203125,120]
[3.6,13.189686438226149,5198.0158860612628,null,null,null,null,null,null,null,null,null,null,null,null,null,null,null,null,null,null,null,null,null,null,null,null,null,null,null,null,null,null,null,null,null,null,null,null,3.6,8,14,500000,{"$f":"SUMMARY!AP1002","v":0},"10:20:32",8904.3279999999995,75.92,291913.03125,36578.8515625,18783.734375,180]
[3.65,18.649367835497298,4774.6042746364483,null,null,null,null,null,null,null,null,null,null,null,null,null,null,null,null,null,null,null,null,null,null,null,null,null,null,null,null,null,null,null,null,null,null,null,null,3.65,8,14,500000,{"$f":"SUMMARY!AP1002","v":0},"10:21:30",8976.264000000001,75.740000000000009,342140.59375,21085.73046875,21085.73046875,240]
[3.7,12.758942786682402,9410.4456412438121,null,null,null,null,null,null,null,null,null,null,null,null,null,null,null,null,null,null,null,null,null,null,null,null,null,null,null,null,null,null,null,null,null,null,null,null,3.7,8,14,500000,{"$f":"SUMMARY!AP1002","v":0},"10:22:34",8929.0560000000005,74.48,488269.4375,20342.423828125,19847.748046875,60]
[3.75,19.148343145898643,5246.912636331992,null,null,null,null,null,null,null,null,null,null,null,null,null,null,null,null,null,null,null,null,null,null,null,null,null,null,null,null,null,null,null,null,null,null,null,null,3.75,8,14,500000,{"$f":"SUMMARY!AP1002","v":0},"10:23:47",8967.2720000000008,74.84,448677.15625,30385.552734375,21893.521484375,180]
[3.8,18.957973480224609,5962.1938814975247,null,null,null,null,null,null,null,null,null,null,null,null,null,null,null,null,null,null,null,null,null,null,null,null,null,null,null,null,null,null,null,null,null,null,null,null,3.8,8,14,500000,{"$f":"SUMMARY!AP1002","v":0},"10:25:15",9032.4639999999999,75.38,391095.625,29428.572265625,15928.4853515625,180]
[3.85,8.7102048475042793,3011.0427947091584,null,null,null,null,null,null,null,null,null,null,null,null,null,null,null,null,null,null,null,null,null,null,null,null,null,null,null,null,null,null,null,null,null,null,null,null,3.85,8,14,500000,{"$f":"SUMMARY!AP1002","v":0},"10:27:49",8702.0079999999998,76.460000000000008,271913.875,38647.87109375,9053.345703125,240]
[3.9,9.3282336035261029,3181.5072178604578,null,null,null,null,null,null,null,null,null,null,null,null,null,null,null,null,null,null,null,null,null,null,null,null,null,null,null,null,null,null,null,null,null,null,null,null,null,8,14,500000,{"$f":"SUMMARY!AP1002","v":0},"10:28:48",8713.2479999999996,76.64,311395.8125,53542.41796875,9333.08203125,180]
[3.95,10.468521926595152,4277.6824044709156,null,null,null,null,null,null,null,null,null,null,null,null,null,null,null,null,null,null,null,null,null,null,null,null,null,null,null,null,null,null,null,null,null,null,null,null,null,8,14,500000,{"$f":"SUMMARY!AP1002","v":0},"10:29:45",8769.4480000000003,75.38,315411.21875,30292.884765625,15757.5380859375,120]
[4,11.071846439357742,4090.0123762376243,null,null,null,null,null,null,null,null,null,null,null,null,null,null,null,null,null,null,null,null,null,null,null,null,null,null,null,null,null,null,null,null,null,null,null,null,null,8,14,500000,{"$f":"SUMMARY!AP1002","v":0},"10:30:40",8841.384,76.28,238175.53125,39224.80078125,13434.6806640625,180]
[4.05,17.296254873275757,6136.2353032178216,null,null,null,null,null,null,null,null,null,null,null,null,null,null,null,null,null,null,null,null,null,null,null,null,null,null,null,null,null,null,null,null,null,null,null,null,null,8,14,500000,{"$f":"SUMMARY!AP1002","v":0},"10:31:39",8992,74.84,297218.28125,27813.568359375,14282.6435546875,180]
[4.0999999999999996,17.241961598396301,11257.295598700495,null,null,null,null,null,null,null,null,null,null,null,null,null,null,null,null,null,null,null,null,null,null,null,null,null,null,null,null,null,null,null,null,null,null,null,null,null,8,14,500000,{"$f":"SUMMARY!AP1002","v":0},"10:32:38",9045.9520000000011,75.02,376700.90625,16232.6044921875,16232.6044921875,240]
[4.1500000000000004,12.56356143951416,5534.3398534189364,null,null,null,null,null,null,null,null,null,null,null,null,null,null,null,null,null,null,null,null,null,null,null,null,null,null,null,null,null,null,null,null,null,null,null,null,null,8,14,500000,{"$f":"SUMMARY!AP1002","v":0},"10:33:37",8897.5840000000007,75.2,357833.8125,21064.02734375,17561.67578125,240]
[4.2,17.521258737099878,5623.8631748917078,null,null,null,null,null,null,null,null,null,null,null,null,null,null,null,null,null,null,null,null,null,null,null,null,null,null,null,null,null,null,null,null,null,null,null,null,null,8,14,500000,{"$f":"SUMMARY!AP1002","v":0},"10:34:36",8974.0160000000014,75.56,344402,71232.7578125,9951.634765625,180]
[4.25,18.705039024353027,6167.0842841120048,null,null,null,null,null,null,null,null,null,null,null,null,null,null,null,null,null,null,null,null,null,null,null,null,null,null,null,null,null,null,null,null,null,null,null,null,null,8,14,500000,{"$f":"SUMMARY!AP1002","v":0},"10:35:30",9007.7360000000008,77.180000000000007,415368.65625,27102.2578125,12272.259765625,240]
[4.3,16.332146240103917,9968.0853573638615,null,null,null,null,null,null,null,null,null,null,null,null,null,null,null,null,null,null,null,null,null,null,null,null,null,null,null,null,null,null,null,null,null,null,null,null,null,8,14,500000,{"$f":"SUMMARY!AP1002","v":0},"10:38:29",8992,76.64,356617.5625,40508.05859375,7883.216796875,60]
[4.3499999999999996,15.77106719019752,10455.900854733911,null,null,null,null,null,null,null,null,null,null,null,null,null,null,null,null,null,null,null,null,null,null,null,null,null,null,null,null,null,null,null,null,null,null,null,null,null,8,14,500000,{"$f":"SUMMARY!AP1002","v":0},"10:39:27",8996.496000000001,75.92,331213.21875,20083.962890625,13628.4033203125,120]
[4.4000000000000004,12.156859159469604,10557.58276608911,null,null,null,null,null,null,null,null,null,null,null,null,null,null,null,null,null,null,null,null,null,null,null,null,null,null,null,null,null,null,null,null,null,null,null,null,null,8,14,500000,{"$f":"SUMMARY!AP1002","v":0},"10:40:31",8893.0880000000016,75.92,284595.625,18924.63671875,18464.4375,60]
[4.45,11.99983330889839,9921.5903465346528,null,null,null,null,null,null,null,null,null,null,null,null,null,null,null,null,null,null,null,null,null,null,null,null,null,null,null,null,null,null,null,null,null,null,null,null,null,8,14,500000,{"$f":"SUMMARY!AP1002","v":0},"10:41:26",8913.32,76.28,313361.125,15178.359375,15178.25,120]
[4.5,16.275151180543737,7731.7199586169554,null,null,null,null,null,null,null,null,null,null,null,null,null,null,null,null,null,null,null,null,null,null,null,null,null,null,null,null,null,null,null,null,null,null,null,null,null,8,14,500000,{"$f":"SUMMARY!AP1002","v":0},"10:42:25",9012.2320000000018,75.740000000000009,273759.71875,17598.005859375,11941.38671875,120]
[4.55,18.459459672820309,8251.1775796720303,null,null,null,null,null,null,null,null,null,null,null,null,null,null,null,null,null,null,null,null,null,null,null,null,null,null,null,null,null,null,null,null,null,null,null,null,null,8,14,500000,{"$f":"SUMMARY!AP1002","v":0},"10:43:20",8989.7520000000004,75.56,321879.21875,25526.103515625,11506.5341796875,120]
[4.5999999999999996,12.937563680897174,7474.365234375,null,null,null,null,null,null,null,null,null,null,null,null,null,null,null,null,null,null,null,null,null,null,null,null,null,null,null,null,null,null,null,null,null,null,null,null,null,8,14,500000,{"$f":"SUMMARY!AP1002","v":0},"10:46:13",8953.7839999999997,76.460000000000008,360038.75,13933.5634765625,12389.203125,60]
[4.6500000000000004,12.443868972649458,16288.165126082922,null,null,null,null,null,null,null,null,null,null,null,null,null,null,null,null,null,null,null,null,null,null,null,null,null,null,null,null,null,null,null,null,null,null,null,null,null,8,14,500000,{"$f":"SUMMARY!AP1002","v":0},"10:47:41",8953.7839999999997,76.64,375903.5625,24344.81640625,12922.2255859375,120]
[4.7,10.961156129837036,28251.39677444307,null,null,null,null,null,null,null,null,null,null,null,null,null,null,null,null,null,null,null,null,null,null,null,null,null,null,null,null,null,null,null,null,null,null,null,null,null,8,14,500000,{"$f":"SUMMARY!AP1002","v":0},"10:49:37",8877.3520000000008,75.92,276731.75,24918.658203125,14494.8173828125,36]
[4.8,11.438446329168347,15966.684618657178,null,null,null,null,null,null,null,null,null,null,null,null,null,null,null,null,null,null,null,null,null,null,null,null,null,null,null,null,null,null,null,null,null,null,null,null,null,8,14,500000,{"$f":"SUMMARY!AP1002","v":0},"10:50:42",9007.7360000000008,75.740000000000009,330655.375,31999.2578125,13217.0859375,120]
[4.9000000000000004,9.7408377896507208,18812.223275061882,null,null,null,null,null,null,null,null,null,null,null,null,null,null,null,null,null,null,null,null,null,null,null,null,null,null,null,null,null,null,null,null,null,null,null,null,null,8,14,500000,{"$f":"SUMMARY!AP1002","v":0},"10:51:51",9005.4880000000012,75.92,373820.96875,20408.96875,13848.9423828125,60]
[5,13.314873200686156,22277.472926980201,null,null,null,null,null,null,null,null,null,null,null,null,null,null,null,null,null,null,null,null,null,null,null,null,null,null,null,null,null,null,null,null,null,null,null,null,null,8,14,500000,{"$f":"SUMMARY!AP1002","v":0},"10:53:30",9032.4639999999999,75.740000000000009,443031.375,33404.02734375,14712.7001953125,240]
[5.0999999999999996,10.767152273003726,21949.390857054455,null,null,null,null,null,null,null,null,null,null,null,null,null,null,null,null,null,null,null,null,null,null,null,null,null,null,null,null,null,null,null,null,null,null,null,null,null,8,14,500000,{"$f":"SUMMARY!AP1002","v":0},"10:55:25",8926.8080000000009,75.92,338913.71875,29837.01953125,15321.7119140625,48]
[5.2,10.049350502000271,14999.580851639852,null,null,null,null,null,null,null,null,null,null,null,null,null,null,null,null,null,null,null,null,null,null,null,null,null,null,null,null,null,null,null,null,null,null,null,null,null,8,14,500000,{"$f":"SUMMARY!AP1002","v":0},"10:56:46",8967.2720000000008,75.740000000000009,421409.25,28929.333984375,23351.96484375,60]
[5.3,10.108042486174408,15974.81338954208,null,null,null,null,null,null,null,null,null,null,null,null,null,null,null,null,null,null,null,null,null,null,null,null,null,null,null,null,null,null,null,null,null,null,null,null,null,8,14,500000,{"$f":"SUMMARY!AP1002","v":0},"10:58:40",8870.6080000000002,75.38,367962.3125,23787.14453125,23787.14453125,120]
[5.4,12.679293985721195,15577.101929919554,null,null,null,null,null,null,null,null,null,null,null,null,null,null,null,null,null,null,null,null,null,null,null,null,null,null,null,null,null,null,null,null,null,null,null,null,null,8,14,500000,{"$f":"SUMMARY!AP1002","v":0},"10:59:42",9052.6960000000017,75.2,364540.65625,36141.2265625,12485.1513671875,180]
[5.5,8.4757523606064318,12095.536915996287,null,null,null,null,null,null,null,null,null,null,null,null,null,null,null,null,null,null,null,null,null,null,null,null,null,null,null,null,null,null,null,null,null,null,null,null,null,8,14,500000,{"$f":"SUMMARY!AP1002","v":0},"11:00:45",8832.3919999999998,74.84,444396.125,43341.7265625,23145.150390625,120]
[5.6,9.9453343319853857,16402.383972772277,null,null,null,null,null,null,null,null,null,null,null,null,null,null,null,null,null,null,null,null,null,null,null,null,null,null,null,null,null,null,null,null,null,null,null,null,null,8,14,500000,{"$f":"SUMMARY!AP1002","v":0},"11:01:45",8976.264000000001,75.56,null,null,null,240]
[5.7,6.7875363249793335,11374.071105352723,null,null,null,null,null,null,null,null,null,null,null,null,null,null,null,null,null,null,null,null,null,null,null,null,null,null,null,null,null,null,null,null,null,null,null,null,null,8,14,500000,{"$f":"SUMMARY!AP1002","v":0},"11:02:52",8857.1200000000008,75.740000000000009,null,null,null,60]
[5.8,8.7517497286227641,12247.041015625002,null,null,null,null,null,null,null,null,null,null,null,null,null,null,null,null,null,null,null,null,null,null,null,null,null,null,null,null,null,null,null,null,null,null,null,null,null,8,14,500000,{"$f":"SUMMARY!AP1002","v":0},"11:04:34",8996.496000000001,76.460000000000008,null,null,null,60]
[5.9,8.8702988416794319,13512.801380724011,null,null,null,null,null,null,null,null,null,null,null,null,null,null,null,null,null,null,null,null,null,null,null,null,null,null,null,null,null,null,null,null,null,null,null,null,null,8,14,500000,{"$f":"SUMMARY!AP1002","v":0},"11:05:45",8967.2720000000008,76.460000000000008,null,null,null,36]
[6,8.3956278140396794,11353.135152382425,null,null,null,null,null,null,null,null,null,null,null,null,null,null,null,null,null,null,null,null,null,null,null,null,null,null,null,null,null,null,null,null,null,null,null,null,null,8,14,500000,{"$f":"SUMMARY!AP1002","v":0},"11:06:45",8872.8559999999998,76.819999999999993,null,null,null,36]
[6.1,7.6500843750240808,11670.193668780939,null,null,null,null,null,null,null,null,null,null,null,null,null,null,null,null,null,null,null,null,null,null,null,null,null,null,null,null,null,null,null,null,null,null,null,null,null,8,14,500000,{"$f":"SUMMARY!AP1002","v":0},"11:08:06",8902.08,76.819999999999993,null,null,null,120]
[6.2,6.4879529959760625,9994.7197459003728,null,null,null,null,null,null,null,null,null,null,null,null,null,null,null,null,null,null,null,null,null,null,null,null,null,null,null,null,null,null,null,null,null,null,null,null,null,8,14,500000,{"$f":"SUMMARY!AP1002","v":0},"11:09:43",8861.616,76.64,null,null,null,60]
[6.3,7.6449258264962934,11059.052637685643,null,null,null,null,null,null,null,null,null,null,null,null,null,null,null,null,null,null,null,null,null,null,null,null,null,null,null,null,null,null,null,null,null,null,null,null,null,8,14,500000,{"$f":"SUMMARY!AP1002","v":0},"11:11:16",8866.1119999999992,76.28,null,null,null,120]
[6.4,6.8778557375559943,10993.047068378713,null,null,null,null,null,null,null,null,null,null,null,null,null,null,null,null,null,null,null,null,null,null,null,null,null,null,null,null,null,null,null,null,null,null,null,null,null,8,14,500000,{"$f":"SUMMARY!AP1002","v":0},"11:15:13",8881.848,76.64,null,null,null,60]
[6.5,7.4572656701835234,12761.123240253712,null,null,null,null,null,null,null,null,null,null,null,null,null,null,null,null,null,null,null,null,null,null,null,null,null,null,null,null,null,null,null,null,null,null,null,null,null,8,14,500000,{"$f":"SUMMARY!AP1002","v":0},"11:16:20",8886.344000000001,76.819999999999993,null,null,null,60]
[6.6,8.497128734619146,9742.2998530321784,null,null,null,null,null,null,null,null,null,null,null,null,null,null,null,null,null,null,null,null,null,null,null,null,null,null,null,null,null,null,null,null,null,null,null,null,null,8,14,500000,{"$f":"SUMMARY!AP1002","v":0},"11:17:23",8944.7919999999995,77,null,null,null,120]
[6.7,6.9161511303503884,12186.055751082922,null,null,null,null,null,null,null,null,null,null,null,null,null,null,null,null,null,null,null,null,null,null,null,null,null,null,null,null,null,null,null,null,null,null,null,null,null,8,14,500000,{"$f":"SUMMARY!AP1002","v":0},"11:18:25",8881.848,76.819999999999993,null,null,null,60]
[6.8,7.6469700425861236,10262.639861154084,null,null,null,null,null,null,null,null,null,null,null,null,null,null,null,null,null,null,null,null,null,null,null,null,null,null,null,null,null,null,null,null,null,null,null,null,null,8,14,500000,{"$f":"SUMMARY!AP1002","v":0},"11:19:27",8886.344000000001,77.180000000000007,null,null,null,36]
[6.9,8.8470508632883611,9973.1100614944298,null,null,null,null,null,null,null,null,null,null,null,null,null,null,null,null,null,null,null,null,null,null,null,null,null,null,null,null,null,null,null,null,null,null,null,null,null,8,14,500000,{"$f":"SUMMARY!AP1002","v":0},"11:20:27",8967.2720000000008,76.460000000000008,null,null,null,240]
[7,8.5671142516346031,11782.063254176979,null,null,null,null,null,null,null,null,null,null,null,null,null,null,null,null,null,null,null,null,null,null,null,null,null,null,null,null,null,null,null,null,null,null,null,null,null,8,14,500000,{"$f":"SUMMARY!AP1002","v":0},"11:21:33",9005.4880000000012,76.460000000000008,null,null,null,120]
[7.1,7.4076844385131091,13310.01953125,null,null,null,null,null,null,null,null,null,null,null,null,null,null,null,null,null,null,null,null,null,null,null,null,null,null,null,null,null,null,null,null,null,null,null,null,null,8,14,500000,{"$f":"SUMMARY!AP1002","v":0},"11:22:36",8897.5840000000007,76.64,null,null,null,60]
[7.2,7.4417280816050049,12305.649365717822,null,null,null,null,null,null,null,null,null,null,null,null,null,null,null,null,null,null,null,null,null,null,null,null,null,null,null,null,null,null,null,null,null,null,null,null,null,8,14,500000,{"$f":"SUMMARY!AP1002","v":0},"11:24:05",8830.1440000000002,75.740000000000009,null,null,null,60]
[7.3,11.200193413514434,16851.219832920793,null,null,null,null,null,null,null,null,null,null,null,null,null,null,null,null,null,null,null,null,null,null,null,null,null,null,null,null,null,null,null,null,null,null,null,null,null,8,14,500000,{"$f":"SUMMARY!AP1002","v":0},"11:25:43",9021.2240000000002,77.36,null,null,null,60]

{"sheet":"Introduction","index":5,"n_rows":0,"n_cols":0,"rows_kept":0,"cut":false,"hidden":false,"merged":[]}

{"sheet":"FWD Data","index":6,"n_rows":77,"n_cols":30,"rows_kept":77,"cut":false,"hidden":false,"merged":[]}
["Facility Name","Control Section","Pavement Type","Trailer ID","Test Date","X1","X2","X3","X4","X5","X6","X7","X8","X9","X10","Units","# of sensors"]
["JACKSON CSAH 23","903223","Asphalt","8002-377","2013-05-28T13:16:24",0,8,12,18,24,36,48,60,72,-12,"Metric",{"$f":"COUNTIF(F2:O2,\">0\")+1","v":9}]
["LV CELL 31","31",null,"8002-005","2004-10-07T11:03:17",0,203.19999694824219,304.79998779296875,457.20001220703125,609.5999755859375,914.4000244140625,1219.199951171875,1524,1828.800048828125,0,"Metric"]
[{"$f":"AB6","v":43.643929999999997},{"$f":"AC6","v":-94.974490000000003},{"$f":"TRUNC(E2)","v":"2013-05-28"},{"$f":"INT(C4)-DATE(YEAR(C4)-1,12,31)","v":148},null,{"$f":"F3-F2","v":0},{"$f":"G3-G2","v":195.19999694824219},292.79998779296875,439.20001220703125,585.5999755859375,878.4000244140625,1171.199951171875,1464,1756.800048828125,{"$f":"SUM(F4:N4)","v":6783.1999969482422}]
["FacilityName","SectionName","District","StationDirection","Lane","Station","StationID","DropID","DropNumber","SurfaceTemperature","AirTemperature","PreviousDayAirTemp","Time","Stress","Force","D1","D2","D3","D4","D5","D6","D7","D8","D9","D10","Radius","GPSStatus","Latitude","Longitude","Comment"]
["JACKSON CSAH 23","903223","7B",1,"Driving",0.1,1,1,1,65.200000381469721,60.700000381469728,0,"2013-05-28T12:59:52",56.702244178466209,6211.9998886108406,8.8000001592311232,7.6100002421455262,6.8999997766956982,6.0900001764130769,4.9699999540802988,3.3799998932251669,2.2799999484137423,1.4999999383960274,1.0900000313281453,8.65000025550248,5.9049999747532285,2,43.643929999999997,-94.974490000000003,"JCT CSAH 23 & CSAH 34 = M.P. 0.000"]
["JACKSON CSAH 23","903223","7B",1,"Driving",0.1,1,2,2,65.200000381469721,60.700000381469728,0,"2013-05-28T12:59:52",54.002137945139317,5917.9999511718752,8.6399997412794729,7.4299999972273172,6.7399999594837752,5.9299997584614275,4.8399998773182134,3.2999999846192054,2.2200000169592711,1.4500000706097671,1.0300000247812082,8.4999997510341085,5.9049999747532285,2,43.643929999999997,-94.974490000000003,"JCT CSAH 23 & CSAH 34 = M.P. 0.000"]
["JACKSON CSAH 23","903223","7B",1,"Driving",0.1,1,3,3,65.200000381469721,60.700000381469728,0,"2013-05-28T12:59:52",52.402070893722929,5739.9999832153326,8.4400002701344334,7.2399998388258293,6.5599997145655671,5.7699999412495036,4.7200000144092709,3.2099998621601014,2.1699999989880792,1.4299999432733452,1.0200000362054631,8.3200001068556269,5.9049999747532285,2,43.643929999999997,-94.974490000000003,"JCT CSAH 23 & CSAH 34 = M.P. 0.000"]
["JACKSON CSAH 23","903223","7B",1,"Driving",0.1,1,4,4,65.200000381469721,60.700000381469728,0,"2013-05-28T12:59:52",79.103125357689294,8662.9998352050789,12.910000044502814,11.090000171313076,10.040000244472843,8.7799997315248373,7.1799997571864269,4.8600000046546352,3.2600000303162244,2.139999958168378,1.56000002003543,12.929999871469372,5.9049999747532285,2,43.643929999999997,-94.974490000000003,"JCT CSAH 23 & CSAH 34 = M.P. 0.000"]
["JACKSON CSAH 23","903223","7B",1,"Driving",0.1,1,5,5,65.200000381469721,60.700000381469728,0,"2013-05-28T12:59:52",79.003128636189103,8651.0002227783207,12.850000563603137,11.070000344346518,10.019999816766559,8.7799997315248373,7.1699998437031471,4.8600000046546352,3.2399999029798026,2.1300000446850986,1.56000002003543,12.890000217536254,5.9049999747532285,2,43.643929999999997,-94.974490000000003,"JCT CSAH 23 & CSAH 34 = M.P. 0.000"]
["JACKSON CSAH 23","903223","7B",1,"Driving",0.1,1,6,6,65.200000381469721,60.700000381469728,0,"2013-05-28T12:59:52",79.003128636189103,8651.0002227783207,12.850000563603137,11.060000430863239,9.9499998216438765,8.7099997364021551,7.1599999302198682,4.8399998773182134,3.2399999029798026,2.100000003865397,1.5900000608551315,12.919999957986093,5.9049999747532285,2,43.643929999999997,-94.974490000000003,"JCT CSAH 23 & CSAH 34 = M.P. 0.000"]
["JACKSON CSAH 23","903223","7B",1,"Driving",0.18,2,7,1,65.900001144409174,60.700000381469728,0,"2013-05-28T13:01:21",55.002175979349133,6029.0000106811531,6.7900001276398987,6.1199999168629144,5.6700002056769838,5.0699999900226818,4.2099999212140737,2.9299998816693726,1.9600000136200328,1.2800000395447013,0.92999998883882462,5.5899996963312955,5.9049999747532285,2,43.642780000000002,-94.974485000000001,"JCT CSAH 23 & CSAH 34 = M.P. 0.000"]
["JACKSON CSAH 23","903223","7B",1,"Driving",0.18,2,8,2,65.900001144409174,60.700000381469728,0,"2013-05-28T13:01:21",54.902170405447954,6012.9999557495121,6.6899997913276517,6.0699997487067918,5.559999955881457,4.960000040597019,4.1399999260913916,2.8599998865466905,1.9400000364685424,1.2600000623932108,0.93999997741456986,5.5099997877253335,5.9049999747532285,2,43.642780000000002,-94.974485000000001,"JCT CSAH 23 & CSAH 34 = M.P. 0.000"]
["JACKSON CSAH 23","903223","7B",1,"Driving",0.18,2,9,3,65.900001144409174,60.700000381469728,0,"2013-05-28T13:01:21",54.002137945139317,5914.9998336791996,6.5700002287885724,5.9199998449781477,5.4499997060859311,4.8500000911713563,4.0600000174854296,2.8100000187604302,1.9299999728003314,1.2600000623932108,0.92000000026307938,5.3900002251862542,5.9049999747532285,2,43.642780000000002,-94.974485000000001,"JCT CSAH 23 & CSAH 34 = M.P. 0.000"]
["JACKSON CSAH 23","903223","7B",1,"Driving",0.18,2,10,4,65.900001144409174,60.700000381469728,0,"2013-05-28T13:01:21",80.303174539701473,8801.9999908447262,9.8099998313985122,8.9599999764430454,8.2400001982496658,7.360000002104635,6.170000085019038,4.2700000028534761,2.9100000547028135,1.9099999956488409,1.3399999709991726,8.1499997754206976,5.9049999747532285,2,43.642780000000002,-94.974485000000001,"JCT CSAH 23 & CSAH 34 = M.P. 0.000"]
["JACKSON CSAH 23","903223","7B",1,"Driving",0.18,2,11,5,65.900001144409174,60.700000381469728,0,"2013-05-28T13:01:21",80.503185687503816,8821.9996307373058,9.9100001677107592,8.9799998034096049,8.2500001117329447,7.3500000886213561,6.1500002580524793,4.2600000893701973,2.9000001412195342,1.8700000413458602,1.3500000346673835,8.1600002896437047,5.9049999747532285,2,43.642780000000002,-94.974485000000001,"JCT CSAH 23 & CSAH 34 = M.P. 0.000"]
["JACKSON CSAH 23","903223","7B",1,"Driving",0.18,2,12,6,65.900001144409174,60.700000381469728,0,"2013-05-28T13:01:21",80.603191261405001,8825.0001770019535,9.9200000811940381,8.9899997168928838,8.2600000252162236,7.3699999155879148,6.170000085019038,4.2700000028534761,2.9299998816693726,1.9200000593170521,1.370000011818874,8.1900000300935414,5.9049999747532285,2,43.642780000000002,-94.974485000000001,"JCT CSAH 23 & CSAH 34 = M.P. 0.000"]
["JACKSON CSAH 23","903223","7B",1,"Driving",0.3,3,13,1,65.000001144409183,60.700000381469728,0,"2013-05-28T13:02:30",55.90221286585826,6120.9998977661135,7.0100000264912241,6.329999902230961,5.8499998498554655,5.2199998937513259,4.37000003879586,3.0800000857678795,2.089999940197186,1.4200000297900657,0.97000001823427118,5.7699999412495036,5.9049999747532285,2,43.641048300000001,-94.974476699999997,"JCT CSAH 23 & CSAH 34 = M.P. 0.000"]
["JACKSON CSAH 23","903223","7B",1,"Driving",0.3,3,14,2,65.000001144409183,60.700000381469728,0,"2013-05-28T13:02:30",55.702201718055903,6100.9998291015627,6.8199998680897362,6.2200002531751615,5.7699999412495036,5.1100002446955255,4.2900001301898989,3.0200000041284767,2.0699999630456958,1.370000011818874,0.97000001823427118,5.6900000326435425,5.9049999747532285,2,43.641048300000001,-94.974476699999997,"JCT CSAH 23 & CSAH 34 = M.P. 0.000"]
["JACKSON CSAH 23","903223","7B",1,"Driving",0.3,3,15,3,65.000001144409183,60.700000381469728,0,"2013-05-28T13:02:30",55.702201718055903,6106.0001678466797,6.8500002092793011,6.2099997389521562,5.7500001142829449,5.130000071662085,4.3000000436731778,3.029999917611756,2.0600000495624164,1.3899999889703643,0.96000002965852604,5.6900000326435425,5.9049999747532285,2,43.641048300000001,-94.974476699999997,"JCT CSAH 23 & CSAH 34 = M.P. 0.000"]
["JACKSON CSAH 23","903223","7B",1,"Driving",0.3,3,16,4,65.000001144409183,60.700000381469728,0,"2013-05-28T13:02:30",81.803240443417167,8959.9998901367198,10.19999946094504,9.2300000434504952,8.5400000057069523,7.59999972792252,6.3899999838703643,4.4799999882215227,3.029999917611756,1.9900000544397343,1.370000011818874,8.4400002701344334,5.9049999747532285,2,43.641048300000001,-94.974476699999997,"JCT CSAH 23 & CSAH 34 = M.P. 0.000"]
["JACKSON CSAH 23","903223","7B",1,"Driving",0.3,3,17,5,65.000001144409183,60.700000381469728,0,"2013-05-28T13:02:30",81.60322929561481,8936.9997039794926,10.120000153078806,9.2200001299672163,8.4999997510341085,7.5699999874726815,6.3700001569038056,4.4499999474018219,3.0200000041284767,1.9699999271033122,1.3500000346673835,8.4299997559114264,5.9049999747532285,2,43.641048300000001,-94.974476699999997,"JCT CSAH 23 & CSAH 34 = M.P. 0.000"]
["JACKSON CSAH 23","903223","7B",1,"Driving",0.3,3,18,6,65.000001144409183,60.700000381469728,0,"2013-05-28T13:02:30",81.303212573911281,8901.9999053955089,10.130000066562085,9.2100002164839374,8.4999997510341085,7.5699999874726815,6.3700001569038056,4.4599998608851008,3.029999917611756,1.9999999679230136,1.3899999889703643,8.4299997559114264,5.9049999747532285,2,43.641048300000001,-94.974476699999997,"JCT CSAH 23 & CSAH 34 = M.P. 0.000"]
["JACKSON CSAH 23","903223","7B",1,"Driving",0.4,4,19,1,65.300000000000011,60.700000381469728,0,"2013-05-28T13:03:55",55.30218827485217,6058.0000030517585,6.1999998254688764,5.7699999412495036,5.4800000472754959,5.0699999900226818,4.4599998608851008,3.5000000565039726,2.700000069334767,2.0400000724109262,1.56000002003543,5.4600002203089364,5.9049999747532285,2,43.639593300000001,-94.974471699999995,"JCT CSAH 23 & CSAH 38 = M.P. 0.380"]
["JACKSON CSAH 23","903223","7B",1,"Driving",0.4,4,20,2,65.300000000000011,60.700000381469728,0,"2013-05-28T13:03:55",55.402193848753349,6066.0000305175781,6.1799999985023177,5.7300002873163862,5.4299998791193724,5.0400002495728433,4.4300001204352633,3.470000015684271,2.700000069334767,2.0300000087427148,1.5699999335187096,5.4299998791193724,5.9049999747532285,2,43.639593300000001,-94.974471699999995,"JCT CSAH 23 & CSAH 38 = M.P. 0.380"]
["JACKSON CSAH 23","903223","7B",1,"Driving",0.4,4,21,3,65.300000000000011,60.700000381469728,0,"2013-05-28T13:03:55",55.802207291957082,6112.999870300293,6.1799999985023177,5.740000200799666,5.4399997926026513,5.0300000357197012,4.4199999065821203,3.4799999291675503,2.700000069334767,2.0499999858942055,1.5699999335187096,5.4600002203089364,5.9049999747532285,2,43.639593300000001,-94.974471699999995,"JCT CSAH 23 & CSAH 38 = M.P. 0.380"]
["JACKSON CSAH 23","903223","7B",1,"Driving",0.4,4,22,4,65.300000000000011,60.700000381469728,0,"2013-05-28T13:03:55",81.003204704608734,8877.9998229980465,8.9599999764430454,8.310000193372348,7.85999988144669,7.2600002665321153,6.3899999838703643,5.0099999083832794,3.8599999456006628,2.9000001412195342,2.1899999761395699,7.8900002226362549,5.9049999747532285,2,43.639593300000001,-94.974471699999995,"JCT CSAH 23 & CSAH 38 = M.P. 0.380"]
["JACKSON CSAH 23","903223","7B",1,"Driving",0.4,4,23,5,65.300000000000011,60.700000381469728,0,"2013-05-28T13:03:55",81.303212573911281,8901.9999053955089,8.9799998034096049,8.3300000203389057,7.85999988144669,7.2600002665321153,6.3999998973536432,5.0099999083832794,3.8500000321173835,2.9000001412195342,2.2099999532910601,7.9199999630860924,5.9049999747532285,2,43.639593300000001,-94.974471699999995,"JCT CSAH 23 & CSAH 38 = M.P. 0.380"]
["JACKSON CSAH 23","903223","7B",1,"Driving",0.4,4,24,6,65.300000000000011,60.700000381469728,0,"2013-05-28T13:03:55",81.103210278509906,8885.9998504638679,8.969999889926326,8.310000193372348,7.8499999679634103,7.2299999253425504,6.3700001569038056,4.9699999540802988,3.8299999047809616,2.870000100399833,2.1899999761395699,7.8900002226362549,5.9049999747532285,2,43.639593300000001,-94.974471699999995,"JCT CSAH 23 & CSAH 38 = M.P. 0.380"]
["JACKSON CSAH 23","903223","7B",1,"Driving",0.5,5,25,1,65.200000381469721,60.8,0,"2013-05-28T13:05:05",54.202144666741184,5938.9999160766602,7.7600001458741694,7.1799997571864269,6.7499998729670541,6.1899999119855966,5.3799997109632489,4.1799998803943721,3.2200000760132439,2.4300000023273176,1.89999993198063,6.669999964361093,5.9049999747532285,2,43.638150000000003,-94.9744666,"JCT CSAH 23 & CSAH 38 = M.P. 0.380"]
["JACKSON CSAH 23","903223","7B",1,"Driving",0.5,5,26,2,65.200000381469721,60.8,0,"2013-05-28T13:05:05",54.202144666741184,5942.0000335693367,7.6800002372682084,7.099999848580465,6.6400002239112546,6.0900001764130769,5.3099997158405667,4.1399999260913916,3.1999999486768216,2.4100000251758273,1.8700000413458602,6.6500001373945343,5.9049999747532285,2,43.638150000000003,-94.9744666,"JCT CSAH 23 & CSAH 38 = M.P. 0.380"]
["JACKSON CSAH 23","903223","7B",1,"Driving",0.5,5,27,3,65.200000381469721,60.8,0,"2013-05-28T13:05:05",54.502156962244221,5966.0001159667972,7.7500002323908905,7.1300001897700298,6.6899997913276517,6.1299998303461942,5.3300001435468518,4.1399999260913916,3.1999999486768216,2.4199999386591067,1.8500000641943699,6.6999997048109314,5.9049999747532285,2,43.638150000000003,-94.9744666,"JCT CSAH 23 & CSAH 38 = M.P. 0.380"]
["JACKSON CSAH 23","903223","7B",1,"Driving",0.5,5,28,4,65.200000381469721,60.8,0,"2013-05-28T13:05:05",80.203168965800288,8785.999935913087,11.259999902008278,10.329999537707126,9.6699998411531478,8.8299998996809617,7.6900001507514872,5.9500001861677125,4.5599998968274846,3.4399999748645698,2.6300000742120848,9.7000001823427127,5.9049999747532285,2,43.638150000000003,-94.9744666,"JCT CSAH 23 & CSAH 38 = M.P. 0.380"]
["JACKSON CSAH 23","903223","7B",1,"Driving",0.5,5,29,5,65.200000381469721,60.8,0,"2013-05-28T13:05:05",80.103172244300097,8769.999880981446,11.210000334591882,10.279999970290728,9.6200002737367498,8.8000001592311232,7.6800002372682084,5.9299997584614275,4.5800000241639065,3.4499998883478491,2.6399999876953641,9.690000268859432,5.9049999747532285,2,43.638150000000003,-94.9744666,"JCT CSAH 23 & CSAH 38 = M.P. 0.380"]
["JACKSON CSAH 23","903223","7B",1,"Driving",0.5,5,30,6,65.200000381469721,60.8,0,"2013-05-28T13:05:05",79.803155522596555,8745.9997985839855,11.23000016155844,10.309999710740566,9.6500000141865883,8.8100000727144021,7.6900001507514872,5.9400002726844328,4.5899999376471863,3.4399999748645698,2.6399999876953641,9.6799997546364267,5.9049999747532285,2,43.638150000000003,-94.9744666,"JCT CSAH 23 & CSAH 38 = M.P. 0.380"]
["JACKSON CSAH 23","903223","7B",1,"Driving",0.6,6,31,1,65.000001144409183,60.99999923706055,0,"2013-05-28T13:06:32",55.002175979349133,6020.9999832153326,5.1100002446955255,4.7699998821955312,4.5000001155579454,4.1900000942475151,3.7400000826917204,2.9800000498254957,2.3999999615076164,1.8700000413458602,1.5200000657324493,4.5199999425245041,5.9049999747532285,2,43.636704999999999,-94.974461700000006,"JCT CSAH 23 & CSAH 38 = M.P. 0.380"]
["JACKSON CSAH 23","903223","7B",1,"Driving",0.6,6,32,2,65.000001144409183,60.99999923706055,0,"2013-05-28T13:06:32",54.902170405447954,6012.9999557495121,5.0699999900226818,4.6899999735895692,4.4400000339185421,4.1200000991248329,3.6499999602326163,2.9299998816693726,2.3499999435364245,1.8099999597064573,1.4599999840930464,4.4599998608851008,5.9049999747532285,2,43.636704999999999,-94.974461700000006,"JCT CSAH 23 & CSAH 38 = M.P. 0.380"]
["JACKSON CSAH 23","903223","7B",1,"Driving",0.6,6,33,3,65.000001144409183,60.99999923706055,0,"2013-05-28T13:06:32",54.902170405447954,6012.9999557495121,5.0400002495728433,4.6800000601062903,4.4400000339185421,4.1300000126081118,3.6700000875690382,2.9199999681860929,2.3299999663849342,1.8200000233746685,1.4799999612445369,4.4700000747382438,5.9049999747532285,2,43.636704999999999,-94.974461700000006,"JCT CSAH 23 & CSAH 38 = M.P. 0.380"]
["JACKSON CSAH 23","903223","7B",1,"Driving",0.6,6,34,4,65.000001144409183,60.99999923706055,0,"2013-05-28T13:06:32",80.703196835306173,8841.0002319335945,7.3300002616547975,6.7399999594837752,6.3800000703870845,5.8900001045283092,5.2299998072346048,4.1600000534278134,3.3300000254389066,2.5600000790894026,2.0300000087427148,6.4199997243202027,5.9049999747532285,2,43.636704999999999,-94.974461700000006,"JCT CSAH 23 & CSAH 38 = M.P. 0.380"]
["JACKSON CSAH 23","903223","7B",1,"Driving",0.6,6,35,5,65.000001144409183,60.99999923706055,0,"2013-05-28T13:06:32",80.403180113602644,8805.9995758056648,7.4000002567774796,6.7900001276398987,6.4199997243202027,5.9199998449781477,5.2600001484241696,4.200000007730794,3.3499998524054657,2.6000000333923836,2.0699999630456958,6.4699998924763253,5.9049999747532285,2,43.636704999999999,-94.974461700000006,"JCT CSAH 23 & CSAH 38 = M.P. 0.380"]
["JACKSON CSAH 23","903223","7B",1,"Driving",0.6,6,36,6,65.000001144409183,60.99999923706055,0,"2013-05-28T13:06:32",80.703196835306173,8837.9996856689449,7.3300002616547975,6.7699996999336136,6.3999998973536432,5.900000018011589,5.2399997207178846,4.1699999669110932,3.3200001119556273,2.569999992572682,2.0300000087427148,6.4500000655097667,5.9049999747532285,2,43.636704999999999,-94.974461700000006,"JCT CSAH 23 & CSAH 38 = M.P. 0.380"]
["JACKSON CSAH 23","903223","7B",1,"Driving",0.7,7,37,1,65.000001144409183,61.199998474121095,0,"2013-05-28T13:07:39",54.502156962244221,5974.0001434326177,6.2200002531751615,5.7899997682160631,5.4899999607587748,5.0899998169892404,4.5000001155579454,3.5000000565039726,2.7099999828180463,2.0100000315912245,1.4999999383960274,5.4399997926026513,5.9049999747532285,2,43.635260000000002,-94.974455000000006,"JCT CSAH 23 & CSAH 38 = M.P. 0.380"]
["JACKSON CSAH 23","903223","7B",1,"Driving",0.7,7,38,2,65.000001144409183,61.199998474121095,0,"2013-05-28T13:07:39",54.802169257747266,6004.9999282836916,6.1799999985023177,5.7099998596101011,5.4199999656360927,5.0200001222364214,4.4300001204352633,3.4799999291675503,2.6899998554816245,2.0199999450745039,1.5200000657324493,5.400000138669534,5.9049999747532285,2,43.635260000000002,-94.974455000000006,"JCT CSAH 23 & CSAH 38 = M.P. 0.380"]
["JACKSON CSAH 23","903223","7B",1,"Driving",0.7,7,39,3,65.000001144409183,61.199998474121095,0,"2013-05-28T13:07:39",54.402151388343043,5954.9999710083011,6.2200002531751615,5.7699999412495036,5.4600002203089364,5.0400002495728433,4.4499999474018219,3.4799999291675503,2.6899998554816245,2.0199999450745039,1.5100000020642383,5.4199999656360927,5.9049999747532285,2,43.635260000000002,-94.974455000000006,"JCT CSAH 23 & CSAH 38 = M.P. 0.380"]
["JACKSON CSAH 23","903223","7B",1,"Driving",0.7,7,40,4,65.000001144409183,61.199998474121095,0,"2013-05-28T13:07:39",80.803193556806377,8849.0002593994141,9.0800001397218519,8.4099999289448686,7.939999790052652,7.3300002616547975,6.4899997194428849,5.0899998169892404,3.9599999815430462,2.9800000498254957,2.2500000577789727,7.9499997035359309,5.9049999747532285,2,43.635260000000002,-94.974455000000006,"JCT CSAH 23 & CSAH 38 = M.P. 0.380"]
["JACKSON CSAH 23","903223","7B",1,"Driving",0.7,7,41,5,65.000001144409183,61.199998474121095,0,"2013-05-28T13:07:39",80.903199130707549,8865.0003143310551,9.0800001397218519,8.4000000154615879,7.939999790052652,7.3500000886213561,6.4899997194428849,5.1100002446955255,3.9500000680597669,2.9800000498254957,2.2399999941107613,7.9499997035359309,5.9049999747532285,2,43.635260000000002,-94.974455000000006,"JCT CSAH 23 & CSAH 38 = M.P. 0.380"]
["JACKSON CSAH 23","903223","7B",1,"Driving",0.7,7,42,6,65.000001144409183,61.199998474121095,0,"2013-05-28T13:07:39",80.603191261405001,8829.9996582031254,9.070000226238573,8.4000000154615879,7.9600002177589371,7.360000002104635,6.5200000606324489,5.130000071662085,3.969999895026326,2.9700001363422164,2.2200000169592711,7.9299998765693722,5.9049999747532285,2,43.635260000000002,-94.974455000000006,"JCT CSAH 23 & CSAH 38 = M.P. 0.380"]
["JACKSON CSAH 23","903223","7B",1,"Driving",0.8,8,43,1,64.900001525878906,61.300001525878912,0,"2013-05-28T13:08:44",54.802169257747266,6004.9999282836916,4.7400001417456927,4.2200001350672167,3.9500000680597669,3.600000092446356,3.1399998670374192,2.4800000202985095,1.9499999499518219,1.4999999383960274,1.1800000036023177,3.9100001137567864,5.9049999747532285,2,43.633814999999998,-94.974450000000004,"JCT CSAH 23 & CSAH 38 = M.P. 0.380"]
["JACKSON CSAH 23","903223","7B",1,"Driving",0.8,8,44,2,64.900001525878906,61.300001525878912,0,"2013-05-28T13:08:44",54.002137945139317,5914.9998336791996,4.6599999327698685,4.099999971788411,3.8299999047809616,3.5300000973236738,3.069999871914737,2.4199999386591067,1.9099999956488409,1.4799999612445369,1.1999999807538082,3.8500000321173835,5.9049999747532285,2,43.633814999999998,-94.974450000000004,"JCT CSAH 23 & CSAH 38 = M.P. 0.380"]
["JACKSON CSAH 23","903223","7B",1,"Driving",0.8,8,45,3,64.900001525878906,61.300001525878912,0,"2013-05-28T13:08:44",53.10210105863019,5814.9999191284187,4.5000001155579454,4.0200000631824491,3.770000123511422,3.470000015684271,3.029999917611756,2.3799999843561257,1.8900000184973507,1.4700000477612576,1.1700000150265726,3.7899999504779807,5.9049999747532285,2,43.633814999999998,-94.974450000000004,"JCT CSAH 23 & CSAH 38 = M.P. 0.380"]
["JACKSON CSAH 23","903223","7B",1,"Driving",0.8,8,46,4,64.900001525878906,61.300001525878912,0,"2013-05-28T13:08:44",79.603153227195179,8713.9996887207035,6.6500001373945343,5.9600000996509914,5.5699998693647368,5.0999997304725202,4.4499999474018219,3.4900001430206928,2.7599998506043066,2.139999958168378,1.7300000511004958,5.5799997828480157,5.9049999747532285,2,43.633814999999998,-94.974450000000004,"JCT CSAH 23 & CSAH 38 = M.P. 0.380"]
["JACKSON CSAH 23","903223","7B",1,"Driving",0.8,8,47,5,64.900001525878906,61.300001525878912,0,"2013-05-28T13:08:44",80.303174539701473,8801.9999908447262,6.7300000460004954,6.0400000082569534,5.6499997779706979,5.1900001533014875,4.540000069860926,3.5799999651099341,2.8199999322437095,2.2000000398077808,1.7599999417352656,5.6700002056769838,5.9049999747532285,2,43.633814999999998,-94.974450000000004,"JCT CSAH 23 & CSAH 38 = M.P. 0.380"]
["JACKSON CSAH 23","903223","7B",1,"Driving",0.8,8,48,6,64.900001525878906,61.300001525878912,0,"2013-05-28T13:08:44",80.803193556806377,8849.0002593994141,6.7399999594837752,6.0300000947736736,5.6499997779706979,5.1499998986286437,4.5000001155579454,3.5300000973236738,2.7899998914240078,2.2000000398077808,1.7800000690716877,5.6700002056769838,5.9049999747532285,2,43.633814999999998,-94.974450000000004,"JCT CSAH 23 & CSAH 38 = M.P. 0.380"]
["JACKSON CSAH 23","903223","7B",1,"Driving",0.9,9,49,1,64.799998474121097,61.300001525878912,0,"2013-05-28T13:10:22",54.602158109944909,5982.0001708984382,4.8900000454743369,4.5700001106806276,4.2900001301898989,3.9999999358460272,3.5600001381433755,2.8100000187604302,2.2399999941107613,1.6800000331293041,1.3000000166961918,4.2399999620337754,5.9049999747532285,2,43.632366699999999,-94.974448300000006,"JCT CSAH 23 & CSAH 38 = M.P. 0.380"]
["JACKSON CSAH 23","903223","7B",1,"Driving",0.9,9,50,2,64.799998474121097,61.300001525878912,0,"2013-05-28T13:10:22",54.602158109944909,5986.000184631348,4.8800001319910571,4.529999856007783,4.2600000893701973,3.9599999815430462,3.4900001430206928,2.7799999779407285,2.1899999761395699,1.6499999923096027,1.2499999987249999,4.1900000942475151,5.9049999747532285,2,43.632366699999999,-94.974448300000006,"JCT CSAH 23 & CSAH 38 = M.P. 0.380"]
["JACKSON CSAH 23","903223","7B",1,"Driving",0.9,9,51,3,64.799998474121097,61.300001525878912,0,"2013-05-28T13:10:22",54.402151388343043,5958.0000885009767,4.8299999638349345,4.529999856007783,4.2600000893701973,3.9599999815430462,3.4900001430206928,2.7899998914240078,2.2000000398077808,1.6499999923096027,1.2600000623932108,4.1699999669110932,5.9049999747532285,2,43.632366699999999,-94.974448300000006,"JCT CSAH 23 & CSAH 38 = M.P. 0.380"]
["JACKSON CSAH 23","903223","7B",1,"Driving",0.9,9,52,4,64.799998474121097,61.300001525878912,0,"2013-05-28T13:10:22",80.803193556806377,8853.9997406005859,7.1099997620637447,6.5999999692384108,6.2200002531751615,5.7300002873163862,5.0799999035059615,4.0399998901490077,3.1900000351935422,2.4199999386591067,1.8200000233746685,6.1600001715357591,5.9049999747532285,2,43.632366699999999,-94.974448300000006,"JCT CSAH 23 & CSAH 38 = M.P. 0.380"]
["JACKSON CSAH 23","903223","7B",1,"Driving",0.9,9,53,5,64.799998474121097,61.300001525878912,0,"2013-05-28T13:10:22",80.403180113602644,8805.9995758056648,7.0800000216139063,6.590000055755131,6.2200002531751615,5.7600000277662247,5.130000071662085,4.0699999309687094,3.2099998621601014,2.4300000023273176,1.8400000005261588,6.1199999168629144,5.9049999747532285,2,43.632366699999999,-94.974448300000006,"JCT CSAH 23 & CSAH 38 = M.P. 0.380"]
["JACKSON CSAH 23","903223","7B",1,"Driving",0.9,9,54,6,64.799998474121097,61.300001525878912,0,"2013-05-28T13:10:22",81.003204704608734,8877.9998229980465,7.1200002762867509,6.5999999692384108,6.2300001666584413,5.7300002873163862,5.0999997304725202,4.0500001040021507,3.2099998621601014,2.4600000431470193,1.8900000184973507,6.1899999119855966,5.9049999747532285,2,43.632366699999999,-94.974448300000006,"JCT CSAH 23 & CSAH 38 = M.P. 0.380"]
["JACKSON CSAH 23","903223","7B",1,"Driving",0.99,10,55,1,64.799998474121097,61.400001144409181,0,"2013-05-28T13:11:34",53.402113354133235,5851.0000427246096,14.150000129744534,11.930000112785262,10.210000575907772,8.5800002603797978,6.6999997048109314,4.4000000796155616,2.9700001363422164,2.1300000446850986,1.669999969461093,10.419999960536092,5.9049999747532285,2,43.631063300000001,-94.974440000000001,"JCT CSAH 23 & CSAH 38 = M.P. 0.380"]
["JACKSON CSAH 23","903223","7B",1,"Driving",0.99,10,56,2,64.799998474121097,61.400001144409181,0,"2013-05-28T13:11:34",52.102063024420374,5711.9998870849613,13.629999822696194,11.460000574632772,9.840000172588077,8.2600000252162236,6.4799998059596051,4.2499998755170543,2.9100000547028135,2.1300000446850986,1.6899999466125835,10.100000326112246,5.9049999747532285,2,43.631063300000001,-94.974440000000001,"JCT CSAH 23 & CSAH 38 = M.P. 0.380"]
["JACKSON CSAH 23","903223","7B",1,"Driving",0.99,10,57,3,64.799998474121097,61.400001144409181,0,"2013-05-28T13:11:34",52.102063024420374,5711.9998870849613,13.519999572900668,11.340000411353968,9.7000001823427127,8.1299999484541399,6.3199999887476821,4.0699999309687094,2.6799999419983451,1.8700000413458602,1.3899999889703643,10.019999816766559,5.9049999747532285,2,43.631063300000001,-94.974440000000001,"JCT CSAH 23 & CSAH 38 = M.P. 0.380"]
["JACKSON CSAH 23","903223","7B",1,"Driving",0.99,10,58,4,64.799998474121097,61.400001144409181,0,"2013-05-28T13:11:34",76.703035846065944,8400.9995788574215,20.440000978782102,17.200000174692711,14.759999658142389,12.389999737454474,9.7200000093092704,6.3199999887476821,4.2700000028534761,3.1100001265875807,2.4400000659955285,15.179999628878482,5.9049999747532285,2,43.631063300000001,-94.974440000000001,"JCT CSAH 23 & CSAH 38 = M.P. 0.380"]
["JACKSON CSAH 23","903223","7B",1,"Driving",0.99,10,59,5,64.799998474121097,61.400001144409181,0,"2013-05-28T13:11:34",77.103049289269663,8448.9997436523445,20.460000805748663,17.289999396042226,14.810000427038238,12.450000419833602,9.7700001774653948,6.3499997291975205,4.2799999163367559,3.0800000857678795,2.4600000431470193,15.289999878674008,5.9049999747532285,2,43.631063300000001,-94.974440000000001,"JCT CSAH 23 & CSAH 38 = M.P. 0.380"]
["JACKSON CSAH 23","903223","7B",1,"Driving",0.99,10,60,6,64.799998474121097,61.400001144409181,0,"2013-05-28T13:11:34",76.903038141467306,8420.000180053712,20.460000805748663,17.279999482558946,14.820000340521517,12.470000246800161,9.7999999179152333,6.3800000703870845,4.3000000436731778,3.1299999535541394,2.4800000202985095,15.26000013822417,5.9049999747532285,2,43.631063300000001,-94.974440000000001,"JCT CSAH 23 & CSAH 38 = M.P. 0.380"]
["JACKSON CSAH 23","903223","7B",1,"Driving",1.1000000000000001,11,61,1,64.69999885559082,61.400001144409181,0,"2013-05-28T13:13:34",53.80212679733696,5891.0001800537111,4.2399999620337754,3.8500000321173835,3.600000092446356,3.2999999846192054,2.9400000955225152,2.2299999304425504,1.7700000054034766,1.3199999938476821,0.9999999839615068,3.5799999651099341,5.9049999747532285,2,43.629480000000001,-94.974446700000001,"JCT CSAH 23 & CENTER ST = M.P. 1.023"]
["JACKSON CSAH 23","903223","7B",1,"Driving",1.1000000000000001,11,62,2,64.69999885559082,61.400001144409181,0,"2013-05-28T13:13:34",54.102139092840005,5930.9998886108406,4.1200000991248329,3.79999986396126,3.5400000108069531,3.2600000303162244,2.8800000138831123,2.1899999761395699,1.7399999645837751,1.2800000395447013,0.9999999839615068,3.5199998834705313,5.9049999747532285,2,43.629480000000001,-94.974446700000001,"JCT CSAH 23 & CENTER ST = M.P. 1.023"]
["JACKSON CSAH 23","903223","7B",1,"Driving",1.1000000000000001,11,63,3,64.69999885559082,61.400001144409181,0,"2013-05-28T13:13:34",53.402113354133235,5855.0000564575203,4.1200000991248329,3.770000123511422,3.5300000973236738,3.2200000760132439,2.8599998865466905,2.1899999761395699,1.7000000102807944,1.2699999758764904,0.96000002965852604,3.5099999699872519,5.9049999747532285,2,43.629480000000001,-94.974446700000001,"JCT CSAH 23 & CENTER ST = M.P. 1.023"]
["JACKSON CSAH 23","903223","7B",1,"Driving",1.1000000000000001,11,64,4,64.69999885559082,61.400001144409181,0,"2013-05-28T13:13:34",79.703149948695383,8727.000054931641,6.170000085019038,5.6299999510041392,5.2600001484241696,4.8299999638349345,4.2600000893701973,3.2799998572827835,2.5399999517529808,1.89999993198063,1.4599999840930464,5.2799999753907283,5.9049999747532285,2,43.629480000000001,-94.974446700000001,"JCT CSAH 23 & CENTER ST = M.P. 1.023"]
["JACKSON CSAH 23","903223","7B",1,"Driving",1.1000000000000001,11,65,5,64.69999885559082,61.400001144409181,0,"2013-05-28T13:13:34",79.803155522596555,8737.9997711181641,6.2200002531751615,5.6800001191602627,5.3099997158405667,4.8600000046546352,4.2900001301898989,3.3099998981024847,2.5799999060559613,1.9400000364685424,1.5100000020642383,5.320000230063572,5.9049999747532285,2,43.629480000000001,-94.974446700000001,"JCT CSAH 23 & CENTER ST = M.P. 1.023"]
["JACKSON CSAH 23","903223","7B",1,"Driving",1.1000000000000001,11,66,6,64.69999885559082,61.400001144409181,0,"2013-05-28T13:13:34",80.603191261405001,8825.0001770019535,6.2200002531751615,5.6700002056769838,5.3099997158405667,4.869999918137915,4.2799999163367559,3.3099998981024847,2.5600000790894026,1.9200000593170521,1.4799999612445369,5.320000230063572,5.9049999747532285,2,43.629480000000001,-94.974446700000001,"JCT CSAH 23 & CENTER ST = M.P. 1.023"]
["JACKSON CSAH 23","903223","7B",1,"Driving",1.2,12,67,1,65.300000000000011,61.50000076293945,0,"2013-05-28T13:14:52",55.202182700950999,6045.0000656127932,2.9400000955225152,2.6099999468756629,2.4400000659955285,2.2399999941107613,1.9299999728003314,1.5100000020642383,1.1700000150265726,0.87999997086763282,0.67999997407533141,2.4400000659955285,5.9049999747532285,2,43.628011600000001,-94.974456700000005,"JCT CSAH 23 & CENTER ST = M.P. 1.023"]
["JACKSON CSAH 23","903223","7B",1,"Driving",1.2,12,68,2,65.300000000000011,61.50000076293945,0,"2013-05-28T13:14:52",55.102181553250311,6033.9999206542971,2.8899999273663917,2.569999992572682,2.3999999615076164,2.1800000626562905,1.8900000184973507,1.4700000477612576,1.1399999742068712,0.86999998229188757,0.68999996265107666,2.3999999615076164,5.9049999747532285,2,43.628011600000001,-94.974456700000005,"JCT CSAH 23 & CENTER ST = M.P. 1.023"]
["JACKSON CSAH 23","903223","7B",1,"Driving",1.2,12,69,3,65.300000000000011,61.50000076293945,0,"2013-05-28T13:14:52",54.702163683846088,5994.0002120971685,2.8499999730634107,2.5499998652362601,2.3799999843561257,2.1800000626562905,1.8900000184973507,1.4799999612445369,1.1499999627826163,0.86999998229188757,0.68999996265107666,2.3700000708728464,5.9049999747532285,2,43.628011600000001,-94.974456700000005,"JCT CSAH 23 & CENTER ST = M.P. 1.023"]
["JACKSON CSAH 23","903223","7B",1,"Driving",1.2,12,70,4,65.300000000000011,61.50000076293945,0,"2013-05-28T13:14:52",81.103210278509906,8885.9998504638679,4.2600000893701973,3.7899999504779807,3.5400000108069531,3.2600000303162244,2.8499999730634107,2.2200000169592711,1.7199999874322849,1.3199999938476821,1.0300000247812082,3.5600001381433755,5.9049999747532285,2,43.628011600000001,-94.974456700000005,"JCT CSAH 23 & CENTER ST = M.P. 1.023"]
["JACKSON CSAH 23","903223","7B",1,"Driving",1.2,12,71,5,65.300000000000011,61.50000076293945,0,"2013-05-28T13:14:52",80.903199130707549,8857.0002868652355,4.2499998755170543,3.7800000369947013,3.5300000973236738,3.2500001168329451,2.8400000595801314,2.2200000169592711,1.7199999874322849,1.3099999301794711,1.0200000362054631,3.5600001381433755,5.9049999747532285,2,43.628011600000001,-94.974456700000005,"JCT CSAH 23 & CENTER ST = M.P. 1.023"]
["JACKSON CSAH 23","903223","7B",1,"Driving",1.2,12,72,6,65.300000000000011,61.50000076293945,0,"2013-05-28T13:14:52",80.803193556806377,8849.0002593994141,4.2399999620337754,3.7800000369947013,3.5199998834705313,3.2099998621601014,2.8000001052771508,2.1899999761395699,1.7000000102807944,1.3000000166961918,1.0200000362054631,3.5600001381433755,5.9049999747532285,2,43.628011600000001,-94.974456700000005,"JCT CSAH 23 & CENTER ST = M.P. 1.023"]

{"sheet":"CALC","index":7,"n_rows":179,"n_cols":35,"rows_kept":179,"cut":false,"hidden":false,"merged":[[3,30,3,31]]}
[null,null,null,null,null,null,null,null,null,null,null,null,null,null,null,null,null,null,null,"TONN",null,null,null,null,null,null,"Lukenan's Analyses"]
[null,null,null,null,null,null,null,null,null,null,null,null,null,null,null,null,null,null,null,null,null,null,null,null,null,null,null,"Peak",null,"Spring"]
[null,null,null,null,null,null,null,null,null,null,null,null,null,null,null,null,"Pvm't.",null,null,null,null,null,null,null,null,null,"Temp.","Spring","Radius to","Subgrade"]
[null,null,null,null,null,null,null,null,null,null,null,null,null,null,null,null,"Temp.",null,null,null,"Calculated","Reported","Calculated","Reported",null,null,"Adj","Defl.","1/2 peak","Modulus","Effective Values"]
["Station","DropNumber","SurfaceTemperature","PreviousDayAirTemp","Time","Force","D1","D2","D3","D4","D5","D6","D7","D8","D9","D10","°F","BB 9000","Temp Adj","BB80","Tonn","Tonn","overlay","Overlay","Life","Allowable","Fact.","mils","Inches","psi","R-value","G.E., in.","Tons","seasonal","ESALs"]
[0.1,6,65.200000381469721,{"$f":"SUMMARY!B8","v":0},"12:59:52",8651.0002227783207,12.850000563603137,11.060000430863239,9.9499998216438765,8.7099997364021551,7.1599999302198682,4.8399998773182134,3.2399999029798026,2.100000003865397,1.5900000608551315,12.919999957986093,{"$f":"BELLS3(C6,E6,SUMMARY!E11/2,SUMMARY!$B$8)","v":-999},{"$f":"IF(SUMMARY!$B$37=\"F\",3.8+9000/F6*G6,9000/F6*G6*1.05+5.15)","v":19.186816807184279},{"$f":"(R6^(-0.1)+(80^0.69-(Q6)^0.69)*(-0.00824082*SUMMARY!E11^0.23+0.00782112))^(1/(-0.1))","v":{"$error":"#NUM!"}},{"$f":"S6*AH6","v":{"$error":"#NUM!"}},{"$f":"10*(0.9*Z6)/T6","v":{"$error":"#N/A"}},{"$f":"IF(U6>10,10,U6)","v":{"$error":"#N/A"}},{"$f":"IF(LN((T6/(0.9*Z6))^8.5812)<0,0,LN((T6/(0.9*(VLOOKUP(SUMMARY!E11+LN((T6/(0.9*Z6))^8.5812),TA!$A$7:'TA'!$G$9,HLOOKUP(AI6,TA!$D$1:'TA'!$G$2,2))*1000)))^8.5812))","v":{"$error":"#NUM!"}},{"$f":"IF(W6<0,0,W6)","v":{"$error":"#NUM!"}},{"$f":"114815362149.67/(T6^3.2499999)","v":{"$error":"#NUM!"}},{"$f":"VLOOKUP(SUMMARY!E11,TA!$A$7:'TA'!$G$9,HLOOKUP(AI6,TA!$D$1:'TA'!$G$2,2))*1000","v":{"$error":"#N/A"}},{"$f":"TAFDefl(80,Q6,SUMMARY!E11,IF('FWD Data'!K2=36,CALC!L6,CALC!$M$6)*9000/CALC!F6,45)","v":{"$error":"#VALUE!"}},{"$f":"ssbb80(G6,F6,AA6,AH6)","v":{"$error":"#VALUE!"}},{"$f":"radius5('FWD Data'!$Q$2,'FWD Data'!$F$2:$O$2,G6:P6)","v":27.584986856920292},{"$f":"hogg(F6,G6,G6/2,AC6,2)*1.3/((AH6-1)/2+1)","v":8723.7314817816386},{"$f":"(0.41+0.873*AD6/1000)^1.28","v":14.379582745364754},{"$f":"xEffSN(T6,AD6)/0.14","v":{"$error":"#VALUE!"}},{"$f":"9*Z6/T6","v":{"$error":"#N/A"}},{"$f":"IF(SUMMARY!$F11=\"P\",INDEX('Seasonal Adj Factors'!$E$10:$M$15,IF(AND(SUMMARY!$B$37=\"f\",VLOOKUP(SUMMARY!E11,'Seasonal Adj Factors'!$C$10:$D$14,2)=5),6,VLOOKUP(SUMMARY!E11,'Seasonal Adj Factors'!$C$10:$D$14,2)),HLOOKUP('FWD Data'!$D$4,'Seasonal Adj Factors'!$E$6:$M$7,2)),IF(SUMMARY!$F11=\"S\",INDEX('Seasonal Adj Factors'!$E$20:$M$21,VLOOKUP(SUMMARY!E11,'Seasonal Adj Factors'!$C$20:$D$21,2),HLOOKUP('FWD Data'!$D$4,'Seasonal Adj Factors'!$E$6:$M$7,2)),INDEX('Seasonal Adj Factors'!$E$26:$M$28,VLOOKUP(SUMMARY!E11,'Seasonal Adj Factors'!$C$26:$D$28,2),HLOOKUP('FWD Data'!$D$4,'Seasonal Adj Factors'!$E$6:$M$7,2))))","v":1.41},{"$f":"IF(SUMMARY!G11>0,IF(SUMMARY!G11=1,20,IF(SUMMARY!G11=2,35,IF(SUMMARY!G11=3,100,200))),\"\")","v":""}]
[0.18,6,65.900001144409174,{"$f":"SUMMARY!B8","v":0},"13:01:21",8825.0001770019535,9.9200000811940381,8.9899997168928838,8.2600000252162236,7.3699999155879148,6.170000085019038,4.2700000028534761,2.9299998816693726,1.9200000593170521,1.370000011818874,8.1900000300935414,{"$f":"BELLS3(C7,E7,SUMMARY!E12/2,SUMMARY!$B$8)","v":-999},{"$f":"IF(SUMMARY!$B$37=\"F\",3.8+9000/F7*G7,9000/F7*G7*1.05+5.15)","v":15.77254944895996},{"$f":"(R7^(-0.1)+(80^0.69-(Q7)^0.69)*(-0.00824082*SUMMARY!E12^0.23+0.00782112))^(1/(-0.1))","v":{"$error":"#NUM!"}},{"$f":"S7*AH7","v":{"$error":"#NUM!"}},{"$f":"10*(0.9*Z7)/T7","v":{"$error":"#N/A"}},{"$f":"IF(U7>10,10,U7)","v":{"$error":"#N/A"}},{"$f":"IF(LN((T7/(0.9*Z7))^8.5812)<0,0,LN((T7/(0.9*(VLOOKUP(SUMMARY!E12+LN((T7/(0.9*Z7))^8.5812),TA!$A$7:'TA'!$G$9,HLOOKUP(AI7,TA!$D$1:'TA'!$G$2,2))*1000)))^8.5812))","v":{"$error":"#NUM!"}},{"$f":"IF(W7<0,0,W7)","v":{"$error":"#NUM!"}},{"$f":"114815362149.67/(T7^3.2499999)","v":{"$error":"#NUM!"}},{"$f":"VLOOKUP(SUMMARY!E12,TA!$A$7:'TA'!$G$9,HLOOKUP(AI7,TA!$D$1:'TA'!$G$2,2))*1000","v":{"$error":"#N/A"}},{"$f":"TAFDefl(80,Q7,SUMMARY!E12,IF('FWD Data'!K3=36,CALC!L7,CALC!$M$6)*9000/CALC!F7,45)","v":{"$error":"#VALUE!"}},{"$f":"ssbb80(G7,F7,AA7,AH7)","v":{"$error":"#VALUE!"}},{"$f":"radius5('FWD Data'!$Q$2,'FWD Data'!$F$2:$O$2,G7:P7)","v":31.769272065023603},{"$f":"hogg(F7,G7,G7/2,AC7,2)*1.3/((AH7-1)/2+1)","v":9948.2828708506222},{"$f":"(0.41+0.873*AD7/1000)^1.28","v":16.875566082439164},{"$f":"xEffSN(T7,AD7)/0.14","v":{"$error":"#VALUE!"}},{"$f":"9*Z7/T7","v":{"$error":"#N/A"}},{"$f":"IF(SUMMARY!$F12=\"P\",INDEX('Seasonal Adj Factors'!$E$10:$M$15,IF(AND(SUMMARY!$B$37=\"f\",VLOOKUP(SUMMARY!E12,'Seasonal Adj Factors'!$C$10:$D$14,2)=5),6,VLOOKUP(SUMMARY!E12,'Seasonal Adj Factors'!$C$10:$D$14,2)),HLOOKUP('FWD Data'!$D$4,'Seasonal Adj Factors'!$E$6:$M$7,2)),IF(SUMMARY!$F12=\"S\",INDEX('Seasonal Adj Factors'!$E$20:$M$21,VLOOKUP(SUMMARY!E12,'Seasonal Adj Factors'!$C$20:$D$21,2),HLOOKUP('FWD Data'!$D$4,'Seasonal Adj Factors'!$E$6:$M$7,2)),INDEX('Seasonal Adj Factors'!$E$26:$M$28,VLOOKUP(SUMMARY!E12,'Seasonal Adj Factors'!$C$26:$D$28,2),HLOOKUP('FWD Data'!$D$4,'Seasonal Adj Factors'!$E$6:$M$7,2))))","v":1.41},{"$f":"IF(SUMMARY!G12>0,IF(SUMMARY!G12=1,20,IF(SUMMARY!G12=2,35,IF(SUMMARY!G12=3,100,200))),\"\")","v":""}]
[0.3,6,65.000001144409183,{"$f":"SUMMARY!B8","v":0},"13:02:30",8901.9999053955089,10.130000066562085,9.2100002164839374,8.4999997510341085,7.5699999874726815,6.3700001569038056,4.4599998608851008,3.029999917611756,1.9999999679230136,1.3899999889703643,8.4299997559114264,{"$f":"BELLS3(C8,E8,SUMMARY!E13/2,SUMMARY!$B$8)","v":-999},{"$f":"IF(SUMMARY!$B$37=\"F\",3.8+9000/F8*G8,9000/F8*G8*1.05+5.15)","v":15.903594882762308},{"$f":"(R8^(-0.1)+(80^0.69-(Q8)^0.69)*(-0.00824082*SUMMARY!E13^0.23+0.00782112))^(1/(-0.1))","v":{"$error":"#NUM!"}},{"$error":"#NUM!"},{"$error":"#N/A"},{"$error":"#N/A"},{"$f":"IF(LN((T8/(0.9*Z8))^8.5812)<0,0,LN((T8/(0.9*(VLOOKUP(SUMMARY!E13+LN((T8/(0.9*Z8))^8.5812),TA!$A$7:'TA'!$G$9,HLOOKUP(AI8,TA!$D$1:'TA'!$G$2,2))*1000)))^8.5812))","v":{"$error":"#NUM!"}},{"$error":"#NUM!"},{"$error":"#NUM!"},{"$f":"VLOOKUP(SUMMARY!E13,TA!$A$7:'TA'!$G$9,HLOOKUP(AI8,TA!$D$1:'TA'!$G$2,2))*1000","v":{"$error":"#N/A"}},{"$f":"TAFDefl(80,Q8,SUMMARY!E13,IF('FWD Data'!K4=36,CALC!L8,CALC!$M$6)*9000/CALC!F8,45)","v":{"$error":"#VALUE!"}},{"$error":"#VALUE!"},{"$f":"radius5('FWD Data'!$Q$2,'FWD Data'!$F$2:$O$2,G8:P8)","v":32.269661894476947},9668.7247147302896,16.298116806732441,{"$error":"#VALUE!"},{"$error":"#N/A"},{"$f":"IF(SUMMARY!$F13=\"P\",INDEX('Seasonal Adj Factors'!$E$10:$M$15,IF(AND(SUMMARY!$B$37=\"f\",VLOOKUP(SUMMARY!E13,'Seasonal Adj Factors'!$C$10:$D$14,2)=5),6,VLOOKUP(SUMMARY!E13,'Seasonal Adj Factors'!$C$10:$D$14,2)),HLOOKUP('FWD Data'!$D$4,'Seasonal Adj Factors'!$E$6:$M$7,2)),IF(SUMMARY!$F13=\"S\",INDEX('Seasonal Adj Factors'!$E$20:$M$21,VLOOKUP(SUMMARY!E13,'Seasonal Adj Factors'!$C$20:$D$21,2),HLOOKUP('FWD Data'!$D$4,'Seasonal Adj Factors'!$E$6:$M$7,2)),INDEX('Seasonal Adj Factors'!$E$26:$M$28,VLOOKUP(SUMMARY!E13,'Seasonal Adj Factors'!$C$26:$D$28,2),HLOOKUP('FWD Data'!$D$4,'Seasonal Adj Factors'!$E$6:$M$7,2))))","v":1.41},{"$f":"IF(SUMMARY!G13>0,IF(SUMMARY!G13=1,20,IF(SUMMARY!G13=2,35,IF(SUMMARY!G13=3,100,200))),\"\")","v":""}]
[0.4,6,65.300000000000011,{"$f":"SUMMARY!B8","v":0},"13:03:55",8885.9998504638679,8.969999889926326,8.310000193372348,7.8499999679634103,7.2299999253425504,6.3700001569038056,4.9699999540802988,3.8299999047809616,2.870000100399833,2.1899999761395699,7.8900002226362549,{"$f":"BELLS3(C9,E9,SUMMARY!E14/2,SUMMARY!$B$8)","v":-999},{"$f":"IF(SUMMARY!$B$37=\"F\",3.8+9000/F9*G9,9000/F9*G9*1.05+5.15)","v":14.689331576218606},{"$f":"(R9^(-0.1)+(80^0.69-(Q9)^0.69)*(-0.00824082*SUMMARY!E14^0.23+0.00782112))^(1/(-0.1))","v":{"$error":"#NUM!"}},{"$error":"#NUM!"},{"$error":"#N/A"},{"$error":"#N/A"},{"$f":"IF(LN((T9/(0.9*Z9))^8.5812)<0,0,LN((T9/(0.9*(VLOOKUP(SUMMARY!E14+LN((T9/(0.9*Z9))^8.5812),TA!$A$7:'TA'!$G$9,HLOOKUP(AI9,TA!$D$1:'TA'!$G$2,2))*1000)))^8.5812))","v":{"$error":"#NUM!"}},{"$error":"#NUM!"},{"$error":"#NUM!"},{"$f":"VLOOKUP(SUMMARY!E14,TA!$A$7:'TA'!$G$9,HLOOKUP(AI9,TA!$D$1:'TA'!$G$2,2))*1000","v":{"$error":"#N/A"}},{"$f":"TAFDefl(80,Q9,SUMMARY!E14,IF('FWD Data'!K5=36,CALC!L9,CALC!$M$6)*9000/CALC!F9,45)","v":{"$error":"#VALUE!"}},{"$error":"#VALUE!"},{"$f":"radius5('FWD Data'!$Q$2,'FWD Data'!$F$2:$O$2,G9:P9)","v":41.343300149782053},8380.7768331820535,13.696579050207108,{"$error":"#VALUE!"},{"$error":"#N/A"},{"$f":"IF(SUMMARY!$F14=\"P\",INDEX('Seasonal Adj Factors'!$E$10:$M$15,IF(AND(SUMMARY!$B$37=\"f\",VLOOKUP(SUMMARY!E14,'Seasonal Adj Factors'!$C$10:$D$14,2)=5),6,VLOOKUP(SUMMARY!E14,'Seasonal Adj Factors'!$C$10:$D$14,2)),HLOOKUP('FWD Data'!$D$4,'Seasonal Adj Factors'!$E$6:$M$7,2)),IF(SUMMARY!$F14=\"S\",INDEX('Seasonal Adj Factors'!$E$20:$M$21,VLOOKUP(SUMMARY!E14,'Seasonal Adj Factors'!$C$20:$D$21,2),HLOOKUP('FWD Data'!$D$4,'Seasonal Adj Factors'!$E$6:$M$7,2)),INDEX('Seasonal Adj Factors'!$E$26:$M$28,VLOOKUP(SUMMARY!E14,'Seasonal Adj Factors'!$C$26:$D$28,2),HLOOKUP('FWD Data'!$D$4,'Seasonal Adj Factors'!$E$6:$M$7,2))))","v":1.41},{"$f":"IF(SUMMARY!G14>0,IF(SUMMARY!G14=1,20,IF(SUMMARY!G14=2,35,IF(SUMMARY!G14=3,100,200))),\"\")","v":""}]
[0.5,6,65.200000381469721,{"$f":"SUMMARY!B8","v":0},"13:05:05",8745.9997985839855,11.23000016155844,10.309999710740566,9.6500000141865883,8.8100000727144021,7.6900001507514872,5.9400002726844328,4.5899999376471863,3.4399999748645698,2.6399999876953641,9.6799997546364267,{"$f":"BELLS3(C10,E10,SUMMARY!E15/2,SUMMARY!$B$8)","v":-999},{"$f":"IF(SUMMARY!$B$37=\"F\",3.8+9000/F10*G10,9000/F10*G10*1.05+5.15)","v":17.283947401177521},{"$f":"(R10^(-0.1)+(80^0.69-(Q10)^0.69)*(-0.00824082*SUMMARY!E15^0.23+0.00782112))^(1/(-0.1))","v":{"$error":"#NUM!"}},{"$error":"#NUM!"},{"$error":"#N/A"},{"$error":"#N/A"},{"$f":"IF(LN((T10/(0.9*Z10))^8.5812)<0,0,LN((T10/(0.9*(VLOOKUP(SUMMARY!E15+LN((T10/(0.9*Z10))^8.5812),TA!$A$7:'TA'!$G$9,HLOOKUP(AI10,TA!$D$1:'TA'!$G$2,2))*1000)))^8.5812))","v":{"$error":"#NUM!"}},{"$error":"#NUM!"},{"$error":"#NUM!"},{"$f":"VLOOKUP(SUMMARY!E15,TA!$A$7:'TA'!$G$9,HLOOKUP(AI10,TA!$D$1:'TA'!$G$2,2))*1000","v":{"$error":"#N/A"}},{"$f":"TAFDefl(80,Q10,SUMMARY!E15,IF('FWD Data'!K6=36,CALC!L10,CALC!$M$6)*9000/CALC!F10,45)","v":{"$error":"#VALUE!"}},{"$error":"#VALUE!"},{"$f":"radius5('FWD Data'!$Q$2,'FWD Data'!$F$2:$O$2,G10:P10)","v":39.124911325443172},6988.5335353993778,11.00191226083515,{"$error":"#VALUE!"},{"$error":"#N/A"},{"$f":"IF(SUMMARY!$F15=\"P\",INDEX('Seasonal Adj Factors'!$E$10:$M$15,IF(AND(SUMMARY!$B$37=\"f\",VLOOKUP(SUMMARY!E15,'Seasonal Adj Factors'!$C$10:$D$14,2)=5),6,VLOOKUP(SUMMARY!E15,'Seasonal Adj Factors'!$C$10:$D$14,2)),HLOOKUP('FWD Data'!$D$4,'Seasonal Adj Factors'!$E$6:$M$7,2)),IF(SUMMARY!$F15=\"S\",INDEX('Seasonal Adj Factors'!$E$20:$M$21,VLOOKUP(SUMMARY!E15,'Seasonal Adj Factors'!$C$20:$D$21,2),HLOOKUP('FWD Data'!$D$4,'Seasonal Adj Factors'!$E$6:$M$7,2)),INDEX('Seasonal Adj Factors'!$E$26:$M$28,VLOOKUP(SUMMARY!E15,'Seasonal Adj Factors'!$C$26:$D$28,2),HLOOKUP('FWD Data'!$D$4,'Seasonal Adj Factors'!$E$6:$M$7,2))))","v":1.41},{"$f":"IF(SUMMARY!G15>0,IF(SUMMARY!G15=1,20,IF(SUMMARY!G15=2,35,IF(SUMMARY!G15=3,100,200))),\"\")","v":""}]
[0.6,6,65.000001144409183,{"$f":"SUMMARY!B8","v":0},"13:06:32",8837.9996856689449,7.3300002616547975,6.7699996999336136,6.3999998973536432,5.900000018011589,5.2399997207178846,4.1699999669110932,3.3200001119556273,2.569999992572682,2.0300000087427148,6.4500000655097667,{"$f":"BELLS3(C11,E11,SUMMARY!E16/2,SUMMARY!$B$8)","v":-999},{"$f":"IF(SUMMARY!$B$37=\"F\",3.8+9000/F11*G11,9000/F11*G11*1.05+5.15)","v":12.987576933269029},{"$f":"(R11^(-0.1)+(80^0.69-(Q11)^0.69)*(-0.00824082*SUMMARY!E16^0.23+0.00782112))^(1/(-0.1))","v":{"$error":"#NUM!"}},{"$error":"#NUM!"},{"$error":"#N/A"},{"$error":"#N/A"},{"$f":"IF(LN((T11/(0.9*Z11))^8.5812)<0,0,LN((T11/(0.9*(VLOOKUP(SUMMARY!E16+LN((T11/(0.9*Z11))^8.5812),TA!$A$7:'TA'!$G$9,HLOOKUP(AI11,TA!$D$1:'TA'!$G$2,2))*1000)))^8.5812))","v":{"$error":"#NUM!"}},{"$error":"#NUM!"},{"$error":"#NUM!"},{"$f":"VLOOKUP(SUMMARY!E16,TA!$A$7:'TA'!$G$9,HLOOKUP(AI11,TA!$D$1:'TA'!$G$2,2))*1000","v":{"$error":"#N/A"}},{"$f":"TAFDefl(80,Q11,SUMMARY!E16,IF('FWD Data'!K7=36,CALC!L11,CALC!$M$6)*9000/CALC!F11,45)","v":{"$error":"#VALUE!"}},{"$error":"#VALUE!"},{"$f":"radius5('FWD Data'!$Q$2,'FWD Data'!$F$2:$O$2,G11:P11)","v":43.213235493312844},9731.326828319503,16.427043542937611,{"$error":"#VALUE!"},{"$error":"#N/A"},{"$f":"IF(SUMMARY!$F16=\"P\",INDEX('Seasonal Adj Factors'!$E$10:$M$15,IF(AND(SUMMARY!$B$37=\"f\",VLOOKUP(SUMMARY!E16,'Seasonal Adj Factors'!$C$10:$D$14,2)=5),6,VLOOKUP(SUMMARY!E16,'Seasonal Adj Factors'!$C$10:$D$14,2)),HLOOKUP('FWD Data'!$D$4,'Seasonal Adj Factors'!$E$6:$M$7,2)),IF(SUMMARY!$F16=\"S\",INDEX('Seasonal Adj Factors'!$E$20:$M$21,VLOOKUP(SUMMARY!E16,'Seasonal Adj Factors'!$C$20:$D$21,2),HLOOKUP('FWD Data'!$D$4,'Seasonal Adj Factors'!$E$6:$M$7,2)),INDEX('Seasonal Adj Factors'!$E$26:$M$28,VLOOKUP(SUMMARY!E16,'Seasonal Adj Factors'!$C$26:$D$28,2),HLOOKUP('FWD Data'!$D$4,'Seasonal Adj Factors'!$E$6:$M$7,2))))","v":1.41},{"$f":"IF(SUMMARY!G16>0,IF(SUMMARY!G16=1,20,IF(SUMMARY!G16=2,35,IF(SUMMARY!G16=3,100,200))),\"\")","v":""}]
[0.7,6,65.000001144409183,{"$f":"SUMMARY!B8","v":0},"13:07:39",8829.9996582031254,9.070000226238573,8.4000000154615879,7.9600002177589371,7.360000002104635,6.5200000606324489,5.130000071662085,3.969999895026326,2.9700001363422164,2.2200000169592711,7.9299998765693722,{"$f":"BELLS3(C12,E12,SUMMARY!E17/2,SUMMARY!$B$8)","v":-999},{"$f":"IF(SUMMARY!$B$37=\"F\",3.8+9000/F12*G12,9000/F12*G12*1.05+5.15)","v":14.856852259991651},{"$f":"(R12^(-0.1)+(80^0.69-(Q12)^0.69)*(-0.00824082*SUMMARY!E17^0.23+0.00782112))^(1/(-0.1))","v":{"$error":"#NUM!"}},{"$error":"#NUM!"},{"$error":"#N/A"},{"$error":"#N/A"},{"$f":"IF(LN((T12/(0.9*Z12))^8.5812)<0,0,LN((T12/(0.9*(VLOOKUP(SUMMARY!E17+LN((T12/(0.9*Z12))^8.5812),TA!$A$7:'TA'!$G$9,HLOOKUP(AI12,TA!$D$1:'TA'!$G$2,2))*1000)))^8.5812))","v":{"$error":"#NUM!"}},{"$error":"#NUM!"},{"$error":"#NUM!"},{"$f":"VLOOKUP(SUMMARY!E17,TA!$A$7:'TA'!$G$9,HLOOKUP(AI12,TA!$D$1:'TA'!$G$2,2))*1000","v":{"$error":"#N/A"}},{"$f":"TAFDefl(80,Q12,SUMMARY!E17,IF('FWD Data'!K8=36,CALC!L12,CALC!$M$6)*9000/CALC!F12,45)","v":{"$error":"#VALUE!"}},{"$error":"#VALUE!"},{"$f":"radius5('FWD Data'!$Q$2,'FWD Data'!$F$2:$O$2,G12:P12)","v":42.322998270867629},8033.2223726011407,13.01193676379633,{"$error":"#VALUE!"},{"$error":"#N/A"},{"$f":"IF(SUMMARY!$F17=\"P\",INDEX('Seasonal Adj Factors'!$E$10:$M$15,IF(AND(SUMMARY!$B$37=\"f\",VLOOKUP(SUMMARY!E17,'Seasonal Adj Factors'!$C$10:$D$14,2)=5),6,VLOOKUP(SUMMARY!E17,'Seasonal Adj Factors'!$C$10:$D$14,2)),HLOOKUP('FWD Data'!$D$4,'Seasonal Adj Factors'!$E$6:$M$7,2)),IF(SUMMARY!$F17=\"S\",INDEX('Seasonal Adj Factors'!$E$20:$M$21,VLOOKUP(SUMMARY!E17,'Seasonal Adj Factors'!$C$20:$D$21,2),HLOOKUP('FWD Data'!$D$4,'Seasonal Adj Factors'!$E$6:$M$7,2)),INDEX('Seasonal Adj Factors'!$E$26:$M$28,VLOOKUP(SUMMARY!E17,'Seasonal Adj Factors'!$C$26:$D$28,2),HLOOKUP('FWD Data'!$D$4,'Seasonal Adj Factors'!$E$6:$M$7,2))))","v":1.41},{"$f":"IF(SUMMARY!G17>0,IF(SUMMARY!G17=1,20,IF(SUMMARY!G17=2,35,IF(SUMMARY!G17=3,100,200))),\"\")","v":""}]
[0.8,6,64.900001525878906,{"$f":"SUMMARY!B8","v":0},"13:08:44",8849.0002593994141,6.7399999594837752,6.0300000947736736,5.6499997779706979,5.1499998986286437,4.5000001155579454,3.5300000973236738,2.7899998914240078,2.2000000398077808,1.7800000690716877,5.6700002056769838,{"$f":"BELLS3(C13,E13,SUMMARY!E18/2,SUMMARY!$B$8)","v":-999},{"$f":"IF(SUMMARY!$B$37=\"F\",3.8+9000/F13*G13,9000/F13*G13*1.05+5.15)","v":12.347762204771882},{"$f":"(R13^(-0.1)+(80^0.69-(Q13)^0.69)*(-0.00824082*SUMMARY!E18^0.23+0.00782112))^(1/(-0.1))","v":{"$error":"#NUM!"}},{"$error":"#NUM!"},{"$error":"#N/A"},{"$error":"#N/A"},{"$f":"IF(LN((T13/(0.9*Z13))^8.5812)<0,0,LN((T13/(0.9*(VLOOKUP(SUMMARY!E18+LN((T13/(0.9*Z13))^8.5812),TA!$A$7:'TA'!$G$9,HLOOKUP(AI13,TA!$D$1:'TA'!$G$2,2))*1000)))^8.5812))","v":{"$error":"#NUM!"}},{"$error":"#NUM!"},{"$error":"#NUM!"},{"$f":"VLOOKUP(SUMMARY!E18,TA!$A$7:'TA'!$G$9,HLOOKUP(AI13,TA!$D$1:'TA'!$G$2,2))*1000","v":{"$error":"#N/A"}},{"$f":"TAFDefl(80,Q13,SUMMARY!E18,IF('FWD Data'!K9=36,CALC!L13,CALC!$M$6)*9000/CALC!F13,45)","v":{"$error":"#VALUE!"}},{"$error":"#VALUE!"},{"$f":"radius5('FWD Data'!$Q$2,'FWD Data'!$F$2:$O$2,G13:P13)","v":39.230822284989721},11747.190741701244,20.692139992250631,{"$error":"#VALUE!"},{"$error":"#N/A"},{"$f":"IF(SUMMARY!$F18=\"P\",INDEX('Seasonal Adj Factors'!$E$10:$M$15,IF(AND(SUMMARY!$B$37=\"f\",VLOOKUP(SUMMARY!E18,'Seasonal Adj Factors'!$C$10:$D$14,2)=5),6,VLOOKUP(SUMMARY!E18,'Seasonal Adj Factors'!$C$10:$D$14,2)),HLOOKUP('FWD Data'!$D$4,'Seasonal Adj Factors'!$E$6:$M$7,2)),IF(SUMMARY!$F18=\"S\",INDEX('Seasonal Adj Factors'!$E$20:$M$21,VLOOKUP(SUMMARY!E18,'Seasonal Adj Factors'!$C$20:$D$21,2),HLOOKUP('FWD Data'!$D$4,'Seasonal Adj Factors'!$E$6:$M$7,2)),INDEX('Seasonal Adj Factors'!$E$26:$M$28,VLOOKUP(SUMMARY!E18,'Seasonal Adj Factors'!$C$26:$D$28,2),HLOOKUP('FWD Data'!$D$4,'Seasonal Adj Factors'!$E$6:$M$7,2))))","v":1.41},{"$f":"IF(SUMMARY!G18>0,IF(SUMMARY!G18=1,20,IF(SUMMARY!G18=2,35,IF(SUMMARY!G18=3,100,200))),\"\")","v":""}]
[0.9,6,64.799998474121097,{"$f":"SUMMARY!B8","v":0},"13:10:22",8877.9998229980465,7.1200002762867509,6.5999999692384108,6.2300001666584413,5.7300002873163862,5.0999997304725202,4.0500001040021507,3.2099998621601014,2.4600000431470193,1.8900000184973507,6.1899999119855966,{"$f":"BELLS3(C14,E14,SUMMARY!E19/2,SUMMARY!$B$8)","v":-999},{"$f":"IF(SUMMARY!$B$37=\"F\",3.8+9000/F14*G14,9000/F14*G14*1.05+5.15)","v":12.728734394273552},{"$f":"(R14^(-0.1)+(80^0.69-(Q14)^0.69)*(-0.00824082*SUMMARY!E19^0.23+0.00782112))^(1/(-0.1))","v":{"$error":"#NUM!"}},{"$error":"#NUM!"},{"$error":"#N/A"},{"$error":"#N/A"},{"$f":"IF(LN((T14/(0.9*Z14))^8.5812)<0,0,LN((T14/(0.9*(VLOOKUP(SUMMARY!E19+LN((T14/(0.9*Z14))^8.5812),TA!$A$7:'TA'!$G$9,HLOOKUP(AI14,TA!$D$1:'TA'!$G$2,2))*1000)))^8.5812))","v":{"$error":"#NUM!"}},{"$error":"#NUM!"},{"$error":"#NUM!"},{"$f":"VLOOKUP(SUMMARY!E19,TA!$A$7:'TA'!$G$9,HLOOKUP(AI14,TA!$D$1:'TA'!$G$2,2))*1000","v":{"$error":"#N/A"}},{"$f":"TAFDefl(80,Q14,SUMMARY!E19,IF('FWD Data'!K10=36,CALC!L14,CALC!$M$6)*9000/CALC!F14,45)","v":{"$error":"#VALUE!"}},{"$error":"#VALUE!"},{"$f":"radius5('FWD Data'!$Q$2,'FWD Data'!$F$2:$O$2,G14:P14)","v":42.827119099509481},10160.168163252076,17.316137859163,{"$error":"#VALUE!"},{"$error":"#N/A"},{"$f":"IF(SUMMARY!$F19=\"P\",INDEX('Seasonal Adj Factors'!$E$10:$M$15,IF(AND(SUMMARY!$B$37=\"f\",VLOOKUP(SUMMARY!E19,'Seasonal Adj Factors'!$C$10:$D$14,2)=5),6,VLOOKUP(SUMMARY!E19,'Seasonal Adj Factors'!$C$10:$D$14,2)),HLOOKUP('FWD Data'!$D$4,'Seasonal Adj Factors'!$E$6:$M$7,2)),IF(SUMMARY!$F19=\"S\",INDEX('Seasonal Adj Factors'!$E$20:$M$21,VLOOKUP(SUMMARY!E19,'Seasonal Adj Factors'!$C$20:$D$21,2),HLOOKUP('FWD Data'!$D$4,'Seasonal Adj Factors'!$E$6:$M$7,2)),INDEX('Seasonal Adj Factors'!$E$26:$M$28,VLOOKUP(SUMMARY!E19,'Seasonal Adj Factors'!$C$26:$D$28,2),HLOOKUP('FWD Data'!$D$4,'Seasonal Adj Factors'!$E$6:$M$7,2))))","v":1.41},{"$f":"IF(SUMMARY!G19>0,IF(SUMMARY!G19=1,20,IF(SUMMARY!G19=2,35,IF(SUMMARY!G19=3,100,200))),\"\")","v":""}]
[0.99,6,64.799998474121097,{"$f":"SUMMARY!B8","v":0},"13:11:34",8420.000180053712,20.460000805748663,17.279999482558946,14.820000340521517,12.470000246800161,9.7999999179152333,6.3800000703870845,4.3000000436731778,3.1299999535541394,2.4800000202985095,15.26000013822417,{"$f":"BELLS3(C15,E15,SUMMARY!E20/2,SUMMARY!$B$8)","v":-999},{"$f":"IF(SUMMARY!$B$37=\"F\",3.8+9000/F15*G15,9000/F15*G15*1.05+5.15)","v":28.112827016601265},{"$f":"(R15^(-0.1)+(80^0.69-(Q15)^0.69)*(-0.00824082*SUMMARY!E20^0.23+0.00782112))^(1/(-0.1))","v":{"$error":"#NUM!"}},{"$error":"#NUM!"},{"$error":"#N/A"},{"$error":"#N/A"},{"$f":"IF(LN((T15/(0.9*Z15))^8.5812)<0,0,LN((T15/(0.9*(VLOOKUP(SUMMARY!E20+LN((T15/(0.9*Z15))^8.5812),TA!$A$7:'TA'!$G$9,HLOOKUP(AI15,TA!$D$1:'TA'!$G$2,2))*1000)))^8.5812))","v":{"$error":"#NUM!"}},{"$error":"#NUM!"},{"$error":"#NUM!"},{"$f":"VLOOKUP(SUMMARY!E20,TA!$A$7:'TA'!$G$9,HLOOKUP(AI15,TA!$D$1:'TA'!$G$2,2))*1000","v":{"$error":"#N/A"}},{"$f":"TAFDefl(80,Q15,SUMMARY!E20,IF('FWD Data'!K11=36,CALC!L15,CALC!$M$6)*9000/CALC!F15,45)","v":{"$error":"#VALUE!"}},{"$error":"#VALUE!"},{"$f":"radius5('FWD Data'!$Q$2,'FWD Data'!$F$2:$O$2,G15:P15)","v":22.715397404044513},6543.7677483143152,10.169224947716462,{"$error":"#VALUE!"},{"$error":"#N/A"},{"$f":"IF(SUMMARY!$F20=\"P\",INDEX('Seasonal Adj Factors'!$E$10:$M$15,IF(AND(SUMMARY!$B$37=\"f\",VLOOKUP(SUMMARY!E20,'Seasonal Adj Factors'!$C$10:$D$14,2)=5),6,VLOOKUP(SUMMARY!E20,'Seasonal Adj Factors'!$C$10:$D$14,2)),HLOOKUP('FWD Data'!$D$4,'Seasonal Adj Factors'!$E$6:$M$7,2)),IF(SUMMARY!$F20=\"S\",INDEX('Seasonal Adj Factors'!$E$20:$M$21,VLOOKUP(SUMMARY!E20,'Seasonal Adj Factors'!$C$20:$D$21,2),HLOOKUP('FWD Data'!$D$4,'Seasonal Adj Factors'!$E$6:$M$7,2)),INDEX('Seasonal Adj Factors'!$E$26:$M$28,VLOOKUP(SUMMARY!E20,'Seasonal Adj Factors'!$C$26:$D$28,2),HLOOKUP('FWD Data'!$D$4,'Seasonal Adj Factors'!$E$6:$M$7,2))))","v":1.41},{"$f":"IF(SUMMARY!G20>0,IF(SUMMARY!G20=1,20,IF(SUMMARY!G20=2,35,IF(SUMMARY!G20=3,100,200))),\"\")","v":""}]
[1.1000000000000001,6,64.69999885559082,{"$f":"SUMMARY!B8","v":0},"13:13:34",8825.0001770019535,6.2200002531751615,5.6700002056769838,5.3099997158405667,4.869999918137915,4.2799999163367559,3.3099998981024847,2.5600000790894026,1.9200000593170521,1.4799999612445369,5.320000230063572,{"$f":"BELLS3(C16,E16,SUMMARY!E21/2,SUMMARY!$B$8)","v":-999},{"$f":"IF(SUMMARY!$B$37=\"F\",3.8+9000/F16*G16,9000/F16*G16*1.05+5.15)","v":11.810510052530537},{"$f":"(R16^(-0.1)+(80^0.69-(Q16)^0.69)*(-0.00824082*SUMMARY!E21^0.23+0.00782112))^(1/(-0.1))","v":{"$error":"#NUM!"}},{"$error":"#NUM!"},{"$error":"#N/A"},{"$error":"#N/A"},{"$f":"IF(LN((T16/(0.9*Z16))^8.5812)<0,0,LN((T16/(0.9*(VLOOKUP(SUMMARY!E21+LN((T16/(0.9*Z16))^8.5812),TA!$A$7:'TA'!$G$9,HLOOKUP(AI16,TA!$D$1:'TA'!$G$2,2))*1000)))^8.5812))","v":{"$error":"#NUM!"}},{"$error":"#NUM!"},{"$error":"#NUM!"},{"$f":"VLOOKUP(SUMMARY!E21,TA!$A$7:'TA'!$G$9,HLOOKUP(AI16,TA!$D$1:'TA'!$G$2,2))*1000","v":{"$error":"#N/A"}},{"$f":"TAFDefl(80,Q16,SUMMARY!E21,IF('FWD Data'!K12=36,CALC!L16,CALC!$M$6)*9000/CALC!F16,45)","v":{"$error":"#VALUE!"}},{"$error":"#VALUE!"},{"$f":"radius5('FWD Data'!$Q$2,'FWD Data'!$F$2:$O$2,G16:P16)","v":39.545869262013746},12586.572144061201,22.529131723332966,{"$error":"#VALUE!"},{"$error":"#N/A"},{"$f":"IF(SUMMARY!$F21=\"P\",INDEX('Seasonal Adj Factors'!$E$10:$M$15,IF(AND(SUMMARY!$B$37=\"f\",VLOOKUP(SUMMARY!E21,'Seasonal Adj Factors'!$C$10:$D$14,2)=5),6,VLOOKUP(SUMMARY!E21,'Seasonal Adj Factors'!$C$10:$D$14,2)),HLOOKUP('FWD Data'!$D$4,'Seasonal Adj Factors'!$E$6:$M$7,2)),IF(SUMMARY!$F21=\"S\",INDEX('Seasonal Adj Factors'!$E$20:$M$21,VLOOKUP(SUMMARY!E21,'Seasonal Adj Factors'!$C$20:$D$21,2),HLOOKUP('FWD Data'!$D$4,'Seasonal Adj Factors'!$E$6:$M$7,2)),INDEX('Seasonal Adj Factors'!$E$26:$M$28,VLOOKUP(SUMMARY!E21,'Seasonal Adj Factors'!$C$26:$D$28,2),HLOOKUP('FWD Data'!$D$4,'Seasonal Adj Factors'!$E$6:$M$7,2))))","v":1.41},{"$f":"IF(SUMMARY!G21>0,IF(SUMMARY!G21=1,20,IF(SUMMARY!G21=2,35,IF(SUMMARY!G21=3,100,200))),\"\")","v":""}]
[1.2,6,65.300000000000011,{"$f":"SUMMARY!B8","v":0},"13:14:52",8849.0002593994141,4.2399999620337754,3.7800000369947013,3.5199998834705313,3.2099998621601014,2.8000001052771508,2.1899999761395699,1.7000000102807944,1.3000000166961918,1.0200000362054631,3.5600001381433755,{"$f":"BELLS3(C17,E17,SUMMARY!E22/2,SUMMARY!$B$8)","v":-999},{"$f":"IF(SUMMARY!$B$37=\"F\",3.8+9000/F17*G17,9000/F17*G17*1.05+5.15)","v":9.6779690887859253},{"$f":"(R17^(-0.1)+(80^0.69-(Q17)^0.69)*(-0.00824082*SUMMARY!E22^0.23+0.00782112))^(1/(-0.1))","v":{"$error":"#NUM!"}},{"$error":"#NUM!"},{"$error":"#N/A"},{"$error":"#N/A"},{"$f":"IF(LN((T17/(0.9*Z17))^8.5812)<0,0,LN((T17/(0.9*(VLOOKUP(SUMMARY!E22+LN((T17/(0.9*Z17))^8.5812),TA!$A$7:'TA'!$G$9,HLOOKUP(AI17,TA!$D$1:'TA'!$G$2,2))*1000)))^8.5812))","v":{"$error":"#NUM!"}},{"$error":"#NUM!"},{"$error":"#NUM!"},{"$f":"VLOOKUP(SUMMARY!E22,TA!$A$7:'TA'!$G$9,HLOOKUP(AI17,TA!$D$1:'TA'!$G$2,2))*1000","v":{"$error":"#N/A"}},{"$f":"TAFDefl(80,Q17,SUMMARY!E22,IF('FWD Data'!K13=36,CALC!L17,CALC!$M$6)*9000/CALC!F17,45)","v":{"$error":"#VALUE!"}},{"$error":"#VALUE!"},{"$f":"radius5('FWD Data'!$Q$2,'FWD Data'!$F$2:$O$2,G17:P17)","v":37.988326642530943},19328.850330653528,38.387287614931417,{"$error":"#VALUE!"},{"$error":"#N/A"},{"$f":"IF(SUMMARY!$F22=\"P\",INDEX('Seasonal Adj Factors'!$E$10:$M$15,IF(AND(SUMMARY!$B$37=\"f\",VLOOKUP(SUMMARY!E22,'Seasonal Adj Factors'!$C$10:$D$14,2)=5),6,VLOOKUP(SUMMARY!E22,'Seasonal Adj Factors'!$C$10:$D$14,2)),HLOOKUP('FWD Data'!$D$4,'Seasonal Adj Factors'!$E$6:$M$7,2)),IF(SUMMARY!$F22=\"S\",INDEX('Seasonal Adj Factors'!$E$20:$M$21,VLOOKUP(SUMMARY!E22,'Seasonal Adj Factors'!$C$20:$D$21,2),HLOOKUP('FWD Data'!$D$4,'Seasonal Adj Factors'!$E$6:$M$7,2)),INDEX('Seasonal Adj Factors'!$E$26:$M$28,VLOOKUP(SUMMARY!E22,'Seasonal Adj Factors'!$C$26:$D$28,2),HLOOKUP('FWD Data'!$D$4,'Seasonal Adj Factors'!$E$6:$M$7,2))))","v":1.41},{"$f":"IF(SUMMARY!G22>0,IF(SUMMARY!G22=1,20,IF(SUMMARY!G22=2,35,IF(SUMMARY!G22=3,100,200))),\"\")","v":""}]
[null,null,null,null,null,null,null,null,null,null,null,null,null,null,null,null,null,null,null,null,null,null,null,null,null,null,null,null,null,null,null,null,null,null,{"$f":"IF(SUMMARY!G23>0,IF(SUMMARY!G23=1,20,IF(SUMMARY!G23=2,35,IF(SUMMARY!G23=3,100,200))),\"\")","v":""}]
[null,null,null,null,null,null,null,null,null,null,null,null,null,null,null,null,null,null,null,null,null,null,null,null,null,null,null,null,null,null,null,null,null,null,{"$f":"IF(SUMMARY!G24>0,IF(SUMMARY!G24=1,20,IF(SUMMARY!G24=2,35,IF(SUMMARY!G24=3,100,200))),\"\")","v":""}]
[null,null,null,null,null,null,null,null,null,null,null,null,null,null,null,null,null,null,null,null,null,null,null,null,null,null,null,null,null,null,null,null,null,null,{"$f":"IF(SUMMARY!G25>0,IF(SUMMARY!G25=1,20,IF(SUMMARY!G25=2,35,IF(SUMMARY!G25=3,100,200))),\"\")","v":""}]
[null,null,null,null,null,null,null,null,null,null,null,null,null,null,null,null,null,null,null,null,null,null,null,null,null,null,null,null,null,null,null,null,null,null,{"$f":"IF(SUMMARY!G26>0,IF(SUMMARY!G26=1,20,IF(SUMMARY!G26=2,35,IF(SUMMARY!G26=3,100,200))),\"\")","v":""}]
[null,null,null,null,null,null,null,null,null,null,null,null,null,null,null,null,null,null,null,null,null,null,null,null,null,null,null,null,null,null,null,null,null,null,{"$f":"IF(SUMMARY!G27>0,IF(SUMMARY!G27=1,20,IF(SUMMARY!G27=2,35,IF(SUMMARY!G27=3,100,200))),\"\")","v":""}]
[null,null,null,null,null,null,null,null,null,null,null,null,null,null,null,null,null,null,null,null,null,null,null,null,null,null,null,null,null,null,null,null,null,null,{"$f":"IF(SUMMARY!G28>0,IF(SUMMARY!G28=1,20,IF(SUMMARY!G28=2,35,IF(SUMMARY!G28=3,100,200))),\"\")","v":""}]
[null,null,null,null,null,null,null,null,null,null,null,null,null,null,null,null,null,null,null,null,null,null,null,null,null,null,null,null,null,null,null,null,null,null,{"$f":"IF(SUMMARY!G29>0,IF(SUMMARY!G29=1,20,IF(SUMMARY!G29=2,35,IF(SUMMARY!G29=3,100,200))),\"\")","v":""}]
[null,null,null,null,null,null,null,null,null,null,null,null,null,null,null,null,null,null,null,null,null,null,null,null,null,null,null,null,null,null,null,null,null,null,{"$f":"IF(SUMMARY!G30>0,IF(SUMMARY!G30=1,20,IF(SUMMARY!G30=2,35,IF(SUMMARY!G30=3,100,200))),\"\")","v":""}]
[null,null,null,null,null,null,null,null,null,null,null,null,null,null,null,null,null,null,null,null,null,null,null,null,null,null,null,null,null,null,null,null,null,null,{"$f":"IF(SUMMARY!G31>0,IF(SUMMARY!G31=1,20,IF(SUMMARY!G31=2,35,IF(SUMMARY!G31=3,100,200))),\"\")","v":""}]
[null,null,null,null,null,null,null,null,null,null,null,null,null,null,null,null,null,null,null,null,null,null,null,null,null,null,null,null,null,null,null,null,null,null,{"$f":"IF(SUMMARY!G32>0,IF(SUMMARY!G32=1,20,IF(SUMMARY!G32=2,35,IF(SUMMARY!G32=3,100,200))),\"\")","v":""}]
[null,null,null,null,null,null,null,null,null,null,null,null,null,null,null,null,null,null,null,null,null,null,null,null,null,null,null,null,null,null,null,null,null,null,{"$f":"IF(SUMMARY!G33>0,IF(SUMMARY!G33=1,20,IF(SUMMARY!G33=2,35,IF(SUMMARY!G33=3,100,200))),\"\")","v":""}]
[null,null,null,null,null,null,null,null,null,null,null,null,null,null,null,null,null,null,null,null,null,null,null,null,null,null,null,null,null,null,null,null,null,null,{"$f":"IF(SUMMARY!G34>0,IF(SUMMARY!G34=1,20,IF(SUMMARY!G34=2,35,IF(SUMMARY!G34=3,100,200))),\"\")","v":""}]
[null,null,null,null,null,null,null,null,null,null,null,null,null,null,null,null,null,null,null,null,null,null,null,null,null,null,null,null,null,null,null,null,null,null,{"$f":"IF(SUMMARY!G35>0,IF(SUMMARY!G35=1,20,IF(SUMMARY!G35=2,35,IF(SUMMARY!G35=3,100,200))),\"\")","v":""}]
[null,null,null,null,null,null,null,null,null,null,null,null,null,null,null,null,null,null,null,null,null,null,null,null,null,null,null,null,null,null,null,null,null,null,{"$f":"IF(SUMMARY!G36>0,IF(SUMMARY!G36=1,20,IF(SUMMARY!G36=2,35,IF(SUMMARY!G36=3,100,200))),\"\")","v":""}]
[null,null,null,null,null,null,null,null,null,null,null,null,null,null,null,null,null,null,null,null,null,null,null,null,null,null,null,null,null,null,null,null,null,null,{"$f":"IF(SUMMARY!G37>0,IF(SUMMARY!G37=1,20,IF(SUMMARY!G37=2,35,IF(SUMMARY!G37=3,100,200))),\"\")","v":""}]
[null,null,null,null,null,null,null,null,null,null,null,null,null,null,null,null,null,null,null,null,null,null,null,null,null,null,null,null,null,null,null,null,null,null,{"$f":"IF(SUMMARY!G38>0,IF(SUMMARY!G38=1,20,IF(SUMMARY!G38=2,35,IF(SUMMARY!G38=3,100,200))),\"\")","v":""}]
[null,null,null,null,null,null,null,null,null,null,null,null,null,null,null,null,null,null,null,null,null,null,null,null,null,null,null,null,null,null,null,null,null,null,{"$f":"IF(SUMMARY!G39>0,IF(SUMMARY!G39=1,20,IF(SUMMARY!G39=2,35,IF(SUMMARY!G39=3,100,200))),\"\")","v":""}]
[null,null,null,null,null,null,null,null,null,null,null,null,null,null,null,null,null,null,null,null,null,null,null,null,null,null,null,null,null,null,null,null,null,null,{"$f":"IF(SUMMARY!G40>0,IF(SUMMARY!G40=1,20,IF(SUMMARY!G40=2,35,IF(SUMMARY!G40=3,100,200))),\"\")","v":""}]
[null,null,null,null,null,null,null,null,null,null,null,null,null,null,null,null,null,null,null,null,null,null,null,null,null,null,null,null,null,null,null,null,null,null,{"$f":"IF(SUMMARY!G41>0,IF(SUMMARY!G41=1,20,IF(SUMMARY!G41=2,35,IF(SUMMARY!G41=3,100,200))),\"\")","v":""}]
[null,null,null,null,null,null,null,null,null,null,null,null,null,null,null,null,null,null,null,null,null,null,null,null,null,null,null,null,null,null,null,null,null,null,{"$f":"IF(SUMMARY!G42>0,IF(SUMMARY!G42=1,20,IF(SUMMARY!G42=2,35,IF(SUMMARY!G42=3,100,200))),\"\")","v":""}]
[null,null,null,null,null,null,null,null,null,null,null,null,null,null,null,null,null,null,null,null,null,null,null,null,null,null,null,null,null,null,null,null,null,null,{"$f":"IF(SUMMARY!G43>0,IF(SUMMARY!G43=1,20,IF(SUMMARY!G43=2,35,IF(SUMMARY!G43=3,100,200))),\"\")","v":""}]
[null,null,null,null,null,null,null,null,null,null,null,null,null,null,null,null,null,null,null,null,null,null,null,null,null,null,null,null,null,null,null,null,null,null,{"$f":"IF(SUMMARY!G44>0,IF(SUMMARY!G44=1,20,IF(SUMMARY!G44=2,35,IF(SUMMARY!G44=3,100,200))),\"\")","v":""}]
[null,null,null,null,null,null,null,null,null,null,null,null,null,null,null,null,null,null,null,null,null,null,null,null,null,null,null,null,null,null,null,null,null,null,{"$f":"IF(SUMMARY!G45>0,IF(SUMMARY!G45=1,20,IF(SUMMARY!G45=2,35,IF(SUMMARY!G45=3,100,200))),\"\")","v":""}]
[null,null,null,null,null,null,null,null,null,null,null,null,null,null,null,null,null,null,null,null,null,null,null,null,null,null,null,null,null,null,null,null,null,null,{"$f":"IF(SUMMARY!G46>0,IF(SUMMARY!G46=1,20,IF(SUMMARY!G46=2,35,IF(SUMMARY!G46=3,100,200))),\"\")","v":""}]
[null,null,null,null,null,null,null,null,null,null,null,null,null,null,null,null,null,null,null,null,null,null,null,null,null,null,null,null,null,null,null,null,null,null,{"$f":"IF(SUMMARY!G47>0,IF(SUMMARY!G47=1,20,IF(SUMMARY!G47=2,35,IF(SUMMARY!G47=3,100,200))),\"\")","v":""}]
[null,null,null,null,null,null,null,null,null,null,null,null,null,null,null,null,null,null,null,null,null,null,null,null,null,null,null,null,null,null,null,null,null,null,{"$f":"IF(SUMMARY!G48>0,IF(SUMMARY!G48=1,20,IF(SUMMARY!G48=2,35,IF(SUMMARY!G48=3,100,200))),\"\")","v":""}]
[null,null,null,null,null,null,null,null,null,null,null,null,null,null,null,null,null,null,null,null,null,null,null,null,null,null,null,null,null,null,null,null,null,null,{"$f":"IF(SUMMARY!G49>0,IF(SUMMARY!G49=1,20,IF(SUMMARY!G49=2,35,IF(SUMMARY!G49=3,100,200))),\"\")","v":""}]
[null,null,null,null,null,null,null,null,null,null,null,null,null,null,null,null,null,null,null,null,null,null,null,null,null,null,null,null,null,null,null,null,null,null,{"$f":"IF(SUMMARY!G50>0,IF(SUMMARY!G50=1,20,IF(SUMMARY!G50=2,35,IF(SUMMARY!G50=3,100,200))),\"\")","v":""}]
[null,null,null,null,null,null,null,null,null,null,null,null,null,null,null,null,null,null,null,null,null,null,null,null,null,null,null,null,null,null,null,null,null,null,{"$f":"IF(SUMMARY!G51>0,IF(SUMMARY!G51=1,20,IF(SUMMARY!G51=2,35,IF(SUMMARY!G51=3,100,200))),\"\")","v":""}]
[null,null,null,null,null,null,null,null,null,null,null,null,null,null,null,null,null,null,null,null,null,null,null,null,null,null,null,null,null,null,null,null,null,null,{"$f":"IF(SUMMARY!G52>0,IF(SUMMARY!G52=1,20,IF(SUMMARY!G52=2,35,IF(SUMMARY!G52=3,100,200))),\"\")","v":""}]
[null,null,null,null,null,null,null,null,null,null,null,null,null,null,null,null,null,null,null,null,null,null,null,null,null,null,null,null,null,null,null,null,null,null,{"$f":"IF(SUMMARY!G53>0,IF(SUMMARY!G53=1,20,IF(SUMMARY!G53=2,35,IF(SUMMARY!G53=3,100,200))),\"\")","v":""}]
[null,null,null,null,null,null,null,null,null,null,null,null,null,null,null,null,null,null,null,null,null,null,null,null,null,null,null,null,null,null,null,null,null,null,{"$f":"IF(SUMMARY!G54>0,IF(SUMMARY!G54=1,20,IF(SUMMARY!G54=2,35,IF(SUMMARY!G54=3,100,200))),\"\")","v":""}]
[null,null,null,null,null,null,null,null,null,null,null,null,null,null,null,null,null,null,null,null,null,null,null,null,null,null,null,null,null,null,null,null,null,null,{"$f":"IF(SUMMARY!G55>0,IF(SUMMARY!G55=1,20,IF(SUMMARY!G55=2,35,IF(SUMMARY!G55=3,100,200))),\"\")","v":""}]
[null,null,null,null,null,null,null,null,null,null,null,null,null,null,null,null,null,null,null,null,null,null,null,null,null,null,null,null,null,null,null,null,null,null,{"$f":"IF(SUMMARY!G56>0,IF(SUMMARY!G56=1,20,IF(SUMMARY!G56=2,35,IF(SUMMARY!G56=3,100,200))),\"\")","v":""}]
[null,null,null,null,null,null,null,null,null,null,null,null,null,null,null,null,null,null,null,null,null,null,null,null,null,null,null,null,null,null,null,null,null,null,{"$f":"IF(SUMMARY!G57>0,IF(SUMMARY!G57=1,20,IF(SUMMARY!G57=2,35,IF(SUMMARY!G57=3,100,200))),\"\")","v":""}]
[null,null,null,null,null,null,null,null,null,null,null,null,null,null,null,null,null,null,null,null,null,null,null,null,null,null,null,null,null,null,null,null,null,null,{"$f":"IF(SUMMARY!G58>0,IF(SUMMARY!G58=1,20,IF(SUMMARY!G58=2,35,IF(SUMMARY!G58=3,100,200))),\"\")","v":""}]
[null,null,null,null,null,null,null,null,null,null,null,null,null,null,null,null,null,null,null,null,null,null,null,null,null,null,null,null,null,null,null,null,null,null,{"$f":"IF(SUMMARY!G59>0,IF(SUMMARY!G59=1,20,IF(SUMMARY!G59=2,35,IF(SUMMARY!G59=3,100,200))),\"\")","v":""}]
[null,null,null,null,null,null,null,null,null,null,null,null,null,null,null,null,null,null,null,null,null,null,null,null,null,null,null,null,null,null,null,null,null,null,{"$f":"IF(SUMMARY!G60>0,IF(SUMMARY!G60=1,20,IF(SUMMARY!G60=2,35,IF(SUMMARY!G60=3,100,200))),\"\")","v":""}]
[null,null,null,null,null,null,null,null,null,null,null,null,null,null,null,null,null,null,null,null,null,null,null,null,null,null,null,null,null,null,null,null,null,null,{"$f":"IF(SUMMARY!G61>0,IF(SUMMARY!G61=1,20,IF(SUMMARY!G61=2,35,IF(SUMMARY!G61=3,100,200))),\"\")","v":""}]
[null,null,null,null,null,null,null,null,null,null,null,null,null,null,null,null,null,null,null,null,null,null,null,null,null,null,null,null,null,null,null,null,null,null,{"$f":"IF(SUMMARY!G62>0,IF(SUMMARY!G62=1,20,IF(SUMMARY!G62=2,35,IF(SUMMARY!G62=3,100,200))),\"\")","v":""}]
[null,null,null,null,null,null,null,null,null,null,null,null,null,null,null,null,null,null,null,null,null,null,null,null,null,null,null,null,null,null,null,null,null,null,{"$f":"IF(SUMMARY!G63>0,IF(SUMMARY!G63=1,20,IF(SUMMARY!G63=2,35,IF(SUMMARY!G63=3,100,200))),\"\")","v":""}]
[null,null,null,null,null,null,null,null,null,null,null,null,null,null,null,null,null,null,null,null,null,null,null,null,null,null,null,null,null,null,null,null,null,null,{"$f":"IF(SUMMARY!G64>0,IF(SUMMARY!G64=1,20,IF(SUMMARY!G64=2,35,IF(SUMMARY!G64=3,100,200))),\"\")","v":""}]
[null,null,null,null,null,null,null,null,null,null,null,null,null,null,null,null,null,null,null,null,null,null,null,null,null,null,null,null,null,null,null,null,null,null,{"$f":"IF(SUMMARY!G65>0,IF(SUMMARY!G65=1,20,IF(SUMMARY!G65=2,35,IF(SUMMARY!G65=3,100,200))),\"\")","v":""}]
[null,null,null,null,null,null,null,null,null,null,null,null,null,null,null,null,null,null,null,null,null,null,null,null,null,null,null,null,null,null,null,null,null,null,{"$f":"IF(SUMMARY!G66>0,IF(SUMMARY!G66=1,20,IF(SUMMARY!G66=2,35,IF(SUMMARY!G66=3,100,200))),\"\")","v":""}]
[null,null,null,null,null,null,null,null,null,null,null,null,null,null,null,null,null,null,null,null,null,null,null,null,null,null,null,null,null,null,null,null,null,null,{"$f":"IF(SUMMARY!G67>0,IF(SUMMARY!G67=1,20,IF(SUMMARY!G67=2,35,IF(SUMMARY!G67=3,100,200))),\"\")","v":""}]
[null,null,null,null,null,null,null,null,null,null,null,null,null,null,null,null,null,null,null,null,null,null,null,null,null,null,null,null,null,null,null,null,null,null,{"$f":"IF(SUMMARY!G68>0,IF(SUMMARY!G68=1,20,IF(SUMMARY!G68=2,35,IF(SUMMARY!G68=3,100,200))),\"\")","v":""}]
[null,null,null,null,null,null,null,null,null,null,null,null,null,null,null,null,null,null,null,null,null,null,null,null,null,null,null,null,null,null,null,null,null,null,{"$f":"IF(SUMMARY!G69>0,IF(SUMMARY!G69=1,20,IF(SUMMARY!G69=2,35,IF(SUMMARY!G69=3,100,200))),\"\")","v":""}]
[null,null,null,null,null,null,null,null,null,null,null,null,null,null,null,null,null,null,null,null,null,null,null,null,null,null,null,null,null,null,null,null,null,null,{"$f":"IF(SUMMARY!G70>0,IF(SUMMARY!G70=1,20,IF(SUMMARY!G70=2,35,IF(SUMMARY!G70=3,100,200))),\"\")","v":""}]
[null,null,null,null,null,null,null,null,null,null,null,null,null,null,null,null,null,null,null,null,null,null,null,null,null,null,null,null,null,null,null,null,null,null,{"$f":"IF(SUMMARY!G71>0,IF(SUMMARY!G71=1,20,IF(SUMMARY!G71=2,35,IF(SUMMARY!G71=3,100,200))),\"\")","v":""}]
[null,null,null,null,null,null,null,null,null,null,null,null,null,null,null,null,null,null,null,null,null,null,null,null,null,null,null,null,null,null,null,null,null,null,{"$f":"IF(SUMMARY!G72>0,IF(SUMMARY!G72=1,20,IF(SUMMARY!G72=2,35,IF(SUMMARY!G72=3,100,200))),\"\")","v":""}]
[null,null,null,null,null,null,null,null,null,null,null,null,null,null,null,null,null,null,null,null,null,null,null,null,null,null,null,null,null,null,null,null,null,null,{"$f":"IF(SUMMARY!G73>0,IF(SUMMARY!G73=1,20,IF(SUMMARY!G73=2,35,IF(SUMMARY!G73=3,100,200))),\"\")","v":""}]
[null,null,null,null,null,null,null,null,null,null,null,null,null,null,null,null,null,null,null,null,null,null,null,null,null,null,null,null,null,null,null,null,null,null,{"$f":"IF(SUMMARY!G74>0,IF(SUMMARY!G74=1,20,IF(SUMMARY!G74=2,35,IF(SUMMARY!G74=3,100,200))),\"\")","v":""}]
[null,null,null,null,null,null,null,null,null,null,null,null,null,null,null,null,null,null,null,null,null,null,null,null,null,null,null,null,null,null,null,null,null,null,{"$f":"IF(SUMMARY!G75>0,IF(SUMMARY!G75=1,20,IF(SUMMARY!G75=2,35,IF(SUMMARY!G75=3,100,200))),\"\")","v":""}]
[null,null,null,null,null,null,null,null,null,null,null,null,null,null,null,null,null,null,null,null,null,null,null,null,null,null,null,null,null,null,null,null,null,null,{"$f":"IF(SUMMARY!G76>0,IF(SUMMARY!G76=1,20,IF(SUMMARY!G76=2,35,IF(SUMMARY!G76=3,100,200))),\"\")","v":""}]
[null,null,null,null,null,null,null,null,null,null,null,null,null,null,null,null,null,null,null,null,null,null,null,null,null,null,null,null,null,null,null,null,null,null,{"$f":"IF(SUMMARY!G77>0,IF(SUMMARY!G77=1,20,IF(SUMMARY!G77=2,35,IF(SUMMARY!G77=3,100,200))),\"\")","v":""}]
[null,null,null,null,null,null,null,null,null,null,null,null,null,null,null,null,null,null,null,null,null,null,null,null,null,null,null,null,null,null,null,null,null,null,{"$f":"IF(SUMMARY!G78>0,IF(SUMMARY!G78=1,20,IF(SUMMARY!G78=2,35,IF(SUMMARY!G78=3,100,200))),\"\")","v":""}]
[null,null,null,null,null,null,null,null,null,null,null,null,null,null,null,null,null,null,null,null,null,null,null,null,null,null,null,null,null,null,null,null,null,null,{"$f":"IF(SUMMARY!G79>0,IF(SUMMARY!G79=1,20,IF(SUMMARY!G79=2,35,IF(SUMMARY!G79=3,100,200))),\"\")","v":""}]
[null,null,null,null,null,null,null,null,null,null,null,null,null,null,null,null,null,null,null,null,null,null,null,null,null,null,null,null,null,null,null,null,null,null,{"$f":"IF(SUMMARY!G80>0,IF(SUMMARY!G80=1,20,IF(SUMMARY!G80=2,35,IF(SUMMARY!G80=3,100,200))),\"\")","v":""}]
[null,null,null,null,null,null,null,null,null,null,null,null,null,null,null,null,null,null,null,null,null,null,null,null,null,null,null,null,null,null,null,null,null,null,{"$f":"IF(SUMMARY!G81>0,IF(SUMMARY!G81=1,20,IF(SUMMARY!G81=2,35,IF(SUMMARY!G81=3,100,200))),\"\")","v":""}]
[null,null,null,null,null,null,null,null,null,null,null,null,null,null,null,null,null,null,null,null,null,null,null,null,null,null,null,null,null,null,null,null,null,null,{"$f":"IF(SUMMARY!G82>0,IF(SUMMARY!G82=1,20,IF(SUMMARY!G82=2,35,IF(SUMMARY!G82=3,100,200))),\"\")","v":""}]
[null,null,null,null,null,null,null,null,null,null,null,null,null,null,null,null,null,null,null,null,null,null,null,null,null,null,null,null,null,null,null,null,null,null,{"$f":"IF(SUMMARY!G83>0,IF(SUMMARY!G83=1,20,IF(SUMMARY!G83=2,35,IF(SUMMARY!G83=3,100,200))),\"\")","v":""}]
[null,null,null,null,null,null,null,null,null,null,null,null,null,null,null,null,null,null,null,null,null,null,null,null,null,null,null,null,null,null,null,null,null,null,{"$f":"IF(SUMMARY!G84>0,IF(SUMMARY!G84=1,20,IF(SUMMARY!G84=2,35,IF(SUMMARY!G84=3,100,200))),\"\")","v":""}]
[null,null,null,null,null,null,null,null,null,null,null,null,null,null,null,null,null,null,null,null,null,null,null,null,null,null,null,null,null,null,null,null,null,null,{"$f":"IF(SUMMARY!G85>0,IF(SUMMARY!G85=1,20,IF(SUMMARY!G85=2,35,IF(SUMMARY!G85=3,100,200))),\"\")","v":""}]
[null,null,null,null,null,null,null,null,null,null,null,null,null,null,null,null,null,null,null,null,null,null,null,null,null,null,null,null,null,null,null,null,null,null,{"$f":"IF(SUMMARY!G86>0,IF(SUMMARY!G86=1,20,IF(SUMMARY!G86=2,35,IF(SUMMARY!G86=3,100,200))),\"\")","v":""}]
[null,null,null,null,null,null,null,null,null,null,null,null,null,null,null,null,null,null,null,null,null,null,null,null,null,null,null,null,null,null,null,null,null,null,{"$f":"IF(SUMMARY!G87>0,IF(SUMMARY!G87=1,20,IF(SUMMARY!G87=2,35,IF(SUMMARY!G87=3,100,200))),\"\")","v":""}]
[null,null,null,null,null,null,null,null,null,null,null,null,null,null,null,null,null,null,null,null,null,null,null,null,null,null,null,null,null,null,null,null,null,null,{"$f":"IF(SUMMARY!G88>0,IF(SUMMARY!G88=1,20,IF(SUMMARY!G88=2,35,IF(SUMMARY!G88=3,100,200))),\"\")","v":""}]
[null,null,null,null,null,null,null,null,null,null,null,null,null,null,null,null,null,null,null,null,null,null,null,null,null,null,null,null,null,null,null,null,null,null,{"$f":"IF(SUMMARY!G89>0,IF(SUMMARY!G89=1,20,IF(SUMMARY!G89=2,35,IF(SUMMARY!G89=3,100,200))),\"\")","v":""}]
[null,null,null,null,null,null,null,null,null,null,null,null,null,null,null,null,null,null,null,null,null,null,null,null,null,null,null,null,null,null,null,null,null,null,{"$f":"IF(SUMMARY!G90>0,IF(SUMMARY!G90=1,20,IF(SUMMARY!G90=2,35,IF(SUMMARY!G90=3,100,200))),\"\")","v":""}]
[null,null,null,null,null,null,null,null,null,null,null,null,null,null,null,null,null,null,null,null,null,null,null,null,null,null,null,null,null,null,null,null,null,null,{"$f":"IF(SUMMARY!G91>0,IF(SUMMARY!G91=1,20,IF(SUMMARY!G91=2,35,IF(SUMMARY!G91=3,100,200))),\"\")","v":""}]
[null,null,null,null,null,null,null,null,null,null,null,null,null,null,null,null,null,null,null,null,null,null,null,null,null,null,null,null,null,null,null,null,null,null,{"$f":"IF(SUMMARY!G92>0,IF(SUMMARY!G92=1,20,IF(SUMMARY!G92=2,35,IF(SUMMARY!G92=3,100,200))),\"\")","v":""}]
[null,null,null,null,null,null,null,null,null,null,null,null,null,null,null,null,null,null,null,null,null,null,null,null,null,null,null,null,null,null,null,null,null,null,{"$f":"IF(SUMMARY!G93>0,IF(SUMMARY!G93=1,20,IF(SUMMARY!G93=2,35,IF(SUMMARY!G93=3,100,200))),\"\")","v":""}]
[null,null,null,null,null,null,null,null,null,null,null,null,null,null,null,null,null,null,null,null,null,null,null,null,null,null,null,null,null,null,null,null,null,null,{"$f":"IF(SUMMARY!G94>0,IF(SUMMARY!G94=1,20,IF(SUMMARY!G94=2,35,IF(SUMMARY!G94=3,100,200))),\"\")","v":""}]
[null,null,null,null,null,null,null,null,null,null,null,null,null,null,null,null,null,null,null,null,null,null,null,null,null,null,null,null,null,null,null,null,null,null,{"$f":"IF(SUMMARY!G95>0,IF(SUMMARY!G95=1,20,IF(SUMMARY!G95=2,35,IF(SUMMARY!G95=3,100,200))),\"\")","v":""}]
[null,null,null,null,null,null,null,null,null,null,null,null,null,null,null,null,null,null,null,null,null,null,null,null,null,null,null,null,null,null,null,null,null,null,{"$f":"IF(SUMMARY!G96>0,IF(SUMMARY!G96=1,20,IF(SUMMARY!G96=2,35,IF(SUMMARY!G96=3,100,200))),\"\")","v":""}]
[null,null,null,null,null,null,null,null,null,null,null,null,null,null,null,null,null,null,null,null,null,null,null,null,null,null,null,null,null,null,null,null,null,null,{"$f":"IF(SUMMARY!G97>0,IF(SUMMARY!G97=1,20,IF(SUMMARY!G97=2,35,IF(SUMMARY!G97=3,100,200))),\"\")","v":""}]
[null,null,null,null,null,null,null,null,null,null,null,null,null,null,null,null,null,null,null,null,null,null,null,null,null,null,null,null,null,null,null,null,null,null,{"$f":"IF(SUMMARY!G98>0,IF(SUMMARY!G98=1,20,IF(SUMMARY!G98=2,35,IF(SUMMARY!G98=3,100,200))),\"\")","v":""}]
[null,null,null,null,null,null,null,null,null,null,null,null,null,null,null,null,null,null,null,null,null,null,null,null,null,null,null,null,null,null,null,null,null,null,{"$f":"IF(SUMMARY!G99>0,IF(SUMMARY!G99=1,20,IF(SUMMARY!G99=2,35,IF(SUMMARY!G99=3,100,200))),\"\")","v":""}]
[null,null,null,null,null,null,null,null,null,null,null,null,null,null,null,null,null,null,null,null,null,null,null,null,null,null,null,null,null,null,null,null,null,null,{"$f":"IF(SUMMARY!G100>0,IF(SUMMARY!G100=1,20,IF(SUMMARY!G100=2,35,IF(SUMMARY!G100=3,100,200))),\"\")","v":""}]
[null,null,null,null,null,null,null,null,null,null,null,null,null,null,null,null,null,null,null,null,null,null,null,null,null,null,null,null,null,null,null,null,null,null,{"$f":"IF(SUMMARY!G101>0,IF(SUMMARY!G101=1,20,IF(SUMMARY!G101=2,35,IF(SUMMARY!G101=3,100,200))),\"\")","v":""}]
[null,null,null,null,null,null,null,null,null,null,null,null,null,null,null,null,null,null,null,null,null,null,null,null,null,null,null,null,null,null,null,null,null,null,{"$f":"IF(SUMMARY!G102>0,IF(SUMMARY!G102=1,20,IF(SUMMARY!G102=2,35,IF(SUMMARY!G102=3,100,200))),\"\")","v":""}]
[null,null,null,null,null,null,null,null,null,null,null,null,null,null,null,null,null,null,null,null,null,null,null,null,null,null,null,null,null,null,null,null,null,null,{"$f":"IF(SUMMARY!G103>0,IF(SUMMARY!G103=1,20,IF(SUMMARY!G103=2,35,IF(SUMMARY!G103=3,100,200))),\"\")","v":""}]
[null,null,null,null,null,null,null,null,null,null,null,null,null,null,null,null,null,null,null,null,null,null,null,null,null,null,null,null,null,null,null,null,null,null,{"$f":"IF(SUMMARY!G104>0,IF(SUMMARY!G104=1,20,IF(SUMMARY!G104=2,35,IF(SUMMARY!G104=3,100,200))),\"\")","v":""}]
[null,null,null,null,null,null,null,null,null,null,null,null,null,null,null,null,null,null,null,null,null,null,null,null,null,null,null,null,null,null,null,null,null,null,{"$f":"IF(SUMMARY!G105>0,IF(SUMMARY!G105=1,20,IF(SUMMARY!G105=2,35,IF(SUMMARY!G105=3,100,200))),\"\")","v":""}]
[null,null,null,null,null,null,null,null,null,null,null,null,null,null,null,null,null,null,null,null,null,null,null,null,null,null,null,null,null,null,null,null,null,null,{"$f":"IF(SUMMARY!G106>0,IF(SUMMARY!G106=1,20,IF(SUMMARY!G106=2,35,IF(SUMMARY!G106=3,100,200))),\"\")","v":""}]
[null,null,null,null,null,null,null,null,null,null,null,null,null,null,null,null,null,null,null,null,null,null,null,null,null,null,null,null,null,null,null,null,null,null,{"$f":"IF(SUMMARY!G107>0,IF(SUMMARY!G107=1,20,IF(SUMMARY!G107=2,35,IF(SUMMARY!G107=3,100,200))),\"\")","v":""}]
[null,null,null,null,null,null,null,null,null,null,null,null,null,null,null,null,null,null,null,null,null,null,null,null,null,null,null,null,null,null,null,null,null,null,{"$f":"IF(SUMMARY!G108>0,IF(SUMMARY!G108=1,20,IF(SUMMARY!G108=2,35,IF(SUMMARY!G108=3,100,200))),\"\")","v":""}]
[null,null,null,null,null,null,null,null,null,null,null,null,null,null,null,null,null,null,null,null,null,null,null,null,null,null,null,null,null,null,null,null,null,null,{"$f":"IF(SUMMARY!G109>0,IF(SUMMARY!G109=1,20,IF(SUMMARY!G109=2,35,IF(SUMMARY!G109=3,100,200))),\"\")","v":""}]
[null,null,null,null,null,null,null,null,null,null,null,null,null,null,null,null,null,null,null,null,null,null,null,null,null,null,null,null,null,null,null,null,null,null,{"$f":"IF(SUMMARY!G110>0,IF(SUMMARY!G110=1,20,IF(SUMMARY!G110=2,35,IF(SUMMARY!G110=3,100,200))),\"\")","v":""}]
[null,null,null,null,null,null,null,null,null,null,null,null,null,null,null,null,null,null,null,null,null,null,null,null,null,null,null,null,null,null,null,null,null,null,{"$f":"IF(SUMMARY!G111>0,IF(SUMMARY!G111=1,20,IF(SUMMARY!G111=2,35,IF(SUMMARY!G111=3,100,200))),\"\")","v":""}]
[null,null,null,null,null,null,null,null,null,null,null,null,null,null,null,null,null,null,null,null,null,null,null,null,null,null,null,null,null,null,null,null,null,null,{"$f":"IF(SUMMARY!G112>0,IF(SUMMARY!G112=1,20,IF(SUMMARY!G112=2,35,IF(SUMMARY!G112=3,100,200))),\"\")","v":""}]
[null,null,null,null,null,null,null,null,null,null,null,null,null,null,null,null,null,null,null,null,null,null,null,null,null,null,null,null,null,null,null,null,null,null,{"$f":"IF(SUMMARY!G113>0,IF(SUMMARY!G113=1,20,IF(SUMMARY!G113=2,35,IF(SUMMARY!G113=3,100,200))),\"\")","v":""}]
[null,null,null,null,null,null,null,null,null,null,null,null,null,null,null,null,null,null,null,null,null,null,null,null,null,null,null,null,null,null,null,null,null,null,{"$f":"IF(SUMMARY!G114>0,IF(SUMMARY!G114=1,20,IF(SUMMARY!G114=2,35,IF(SUMMARY!G114=3,100,200))),\"\")","v":""}]
[null,null,null,null,null,null,null,null,null,null,null,null,null,null,null,null,null,null,null,null,null,null,null,null,null,null,null,null,null,null,null,null,null,null,{"$f":"IF(SUMMARY!G115>0,IF(SUMMARY!G115=1,20,IF(SUMMARY!G115=2,35,IF(SUMMARY!G115=3,100,200))),\"\")","v":""}]
[null,null,null,null,null,null,null,null,null,null,null,null,null,null,null,null,null,null,null,null,null,null,null,null,null,null,null,null,null,null,null,null,null,null,{"$f":"IF(SUMMARY!G116>0,IF(SUMMARY!G116=1,20,IF(SUMMARY!G116=2,35,IF(SUMMARY!G116=3,100,200))),\"\")","v":""}]
[null,null,null,null,null,null,null,null,null,null,null,null,null,null,null,null,null,null,null,null,null,null,null,null,null,null,null,null,null,null,null,null,null,null,{"$f":"IF(SUMMARY!G117>0,IF(SUMMARY!G117=1,20,IF(SUMMARY!G117=2,35,IF(SUMMARY!G117=3,100,200))),\"\")","v":""}]
[null,null,null,null,null,null,null,null,null,null,null,null,null,null,null,null,null,null,null,null,null,null,null,null,null,null,null,null,null,null,null,null,null,null,{"$f":"IF(SUMMARY!G118>0,IF(SUMMARY!G118=1,20,IF(SUMMARY!G118=2,35,IF(SUMMARY!G118=3,100,200))),\"\")","v":""}]
[null,null,null,null,null,null,null,null,null,null,null,null,null,null,null,null,null,null,null,null,null,null,null,null,null,null,null,null,null,null,null,null,null,null,{"$f":"IF(SUMMARY!G119>0,IF(SUMMARY!G119=1,20,IF(SUMMARY!G119=2,35,IF(SUMMARY!G119=3,100,200))),\"\")","v":""}]
[null,null,null,null,null,null,null,null,null,null,null,null,null,null,null,null,null,null,null,null,null,null,null,null,null,null,null,null,null,null,null,null,null,null,{"$f":"IF(SUMMARY!G120>0,IF(SUMMARY!G120=1,20,IF(SUMMARY!G120=2,35,IF(SUMMARY!G120=3,100,200))),\"\")","v":""}]
[null,null,null,null,null,null,null,null,null,null,null,null,null,null,null,null,null,null,null,null,null,null,null,null,null,null,null,null,null,null,null,null,null,null,{"$f":"IF(SUMMARY!G121>0,IF(SUMMARY!G121=1,20,IF(SUMMARY!G121=2,35,IF(SUMMARY!G121=3,100,200))),\"\")","v":""}]
[null,null,null,null,null,null,null,null,null,null,null,null,null,null,null,null,null,null,null,null,null,null,null,null,null,null,null,null,null,null,null,null,null,null,{"$f":"IF(SUMMARY!G122>0,IF(SUMMARY!G122=1,20,IF(SUMMARY!G122=2,35,IF(SUMMARY!G122=3,100,200))),\"\")","v":""}]
[null,null,null,null,null,null,null,null,null,null,null,null,null,null,null,null,null,null,null,null,null,null,null,null,null,null,null,null,null,null,null,null,null,null,{"$f":"IF(SUMMARY!G123>0,IF(SUMMARY!G123=1,20,IF(SUMMARY!G123=2,35,IF(SUMMARY!G123=3,100,200))),\"\")","v":""}]
[null,null,null,null,null,null,null,null,null,null,null,null,null,null,null,null,null,null,null,null,null,null,null,null,null,null,null,null,null,null,null,null,null,null,{"$f":"IF(SUMMARY!G124>0,IF(SUMMARY!G124=1,20,IF(SUMMARY!G124=2,35,IF(SUMMARY!G124=3,100,200))),\"\")","v":""}]
[null,null,null,null,null,null,null,null,null,null,null,null,null,null,null,null,null,null,null,null,null,null,null,null,null,null,null,null,null,null,null,null,null,null,{"$f":"IF(SUMMARY!G125>0,IF(SUMMARY!G125=1,20,IF(SUMMARY!G125=2,35,IF(SUMMARY!G125=3,100,200))),\"\")","v":""}]
[null,null,null,null,null,null,null,null,null,null,null,null,null,null,null,null,null,null,null,null,null,null,null,null,null,null,null,null,null,null,null,null,null,null,{"$f":"IF(SUMMARY!G126>0,IF(SUMMARY!G126=1,20,IF(SUMMARY!G126=2,35,IF(SUMMARY!G126=3,100,200))),\"\")","v":""}]
[null,null,null,null,null,null,null,null,null,null,null,null,null,null,null,null,null,null,null,null,null,null,null,null,null,null,null,null,null,null,null,null,null,null,{"$f":"IF(SUMMARY!G127>0,IF(SUMMARY!G127=1,20,IF(SUMMARY!G127=2,35,IF(SUMMARY!G127=3,100,200))),\"\")","v":""}]
[null,null,null,null,null,null,null,null,null,null,null,null,null,null,null,null,null,null,null,null,null,null,null,null,null,null,null,null,null,null,null,null,null,null,{"$f":"IF(SUMMARY!G128>0,IF(SUMMARY!G128=1,20,IF(SUMMARY!G128=2,35,IF(SUMMARY!G128=3,100,200))),\"\")","v":""}]
[null,null,null,null,null,null,null,null,null,null,null,null,null,null,null,null,null,null,null,null,null,null,null,null,null,null,null,null,null,null,null,null,null,null,{"$f":"IF(SUMMARY!G129>0,IF(SUMMARY!G129=1,20,IF(SUMMARY!G129=2,35,IF(SUMMARY!G129=3,100,200))),\"\")","v":""}]
[null,null,null,null,null,null,null,null,null,null,null,null,null,null,null,null,null,null,null,null,null,null,null,null,null,null,null,null,null,null,null,null,null,null,{"$f":"IF(SUMMARY!G130>0,IF(SUMMARY!G130=1,20,IF(SUMMARY!G130=2,35,IF(SUMMARY!G130=3,100,200))),\"\")","v":""}]
[null,null,null,null,null,null,null,null,null,null,null,null,null,null,null,null,null,null,null,null,null,null,null,null,null,null,null,null,null,null,null,null,null,null,{"$f":"IF(SUMMARY!G131>0,IF(SUMMARY!G131=1,20,IF(SUMMARY!G131=2,35,IF(SUMMARY!G131=3,100,200))),\"\")","v":""}]
[null,null,null,null,null,null,null,null,null,null,null,null,null,null,null,null,null,null,null,null,null,null,null,null,null,null,null,null,null,null,null,null,null,null,{"$f":"IF(SUMMARY!G132>0,IF(SUMMARY!G132=1,20,IF(SUMMARY!G132=2,35,IF(SUMMARY!G132=3,100,200))),\"\")","v":""}]
[null,null,null,null,null,null,null,null,null,null,null,null,null,null,null,null,null,null,null,null,null,null,null,null,null,null,null,null,null,null,null,null,null,null,{"$f":"IF(SUMMARY!G133>0,IF(SUMMARY!G133=1,20,IF(SUMMARY!G133=2,35,IF(SUMMARY!G133=3,100,200))),\"\")","v":""}]
[null,null,null,null,null,null,null,null,null,null,null,null,null,null,null,null,null,null,null,null,null,null,null,null,null,null,null,null,null,null,null,null,null,null,{"$f":"IF(SUMMARY!G134>0,IF(SUMMARY!G134=1,20,IF(SUMMARY!G134=2,35,IF(SUMMARY!G134=3,100,200))),\"\")","v":""}]
[null,null,null,null,null,null,null,null,null,null,null,null,null,null,null,null,null,null,null,null,null,null,null,null,null,null,null,null,null,null,null,null,null,null,{"$f":"IF(SUMMARY!G135>0,IF(SUMMARY!G135=1,20,IF(SUMMARY!G135=2,35,IF(SUMMARY!G135=3,100,200))),\"\")","v":""}]
[null,null,null,null,null,null,null,null,null,null,null,null,null,null,null,null,null,null,null,null,null,null,null,null,null,null,null,null,null,null,null,null,null,null,{"$f":"IF(SUMMARY!G136>0,IF(SUMMARY!G136=1,20,IF(SUMMARY!G136=2,35,IF(SUMMARY!G136=3,100,200))),\"\")","v":""}]
[null,null,null,null,null,null,null,null,null,null,null,null,null,null,null,null,null,null,null,null,null,null,null,null,null,null,null,null,null,null,null,null,null,null,{"$f":"IF(SUMMARY!G137>0,IF(SUMMARY!G137=1,20,IF(SUMMARY!G137=2,35,IF(SUMMARY!G137=3,100,200))),\"\")","v":""}]
[null,null,null,null,null,null,null,null,null,null,null,null,null,null,null,null,null,null,null,null,null,null,null,null,null,null,null,null,null,null,null,null,null,null,{"$f":"IF(SUMMARY!G138>0,IF(SUMMARY!G138=1,20,IF(SUMMARY!G138=2,35,IF(SUMMARY!G138=3,100,200))),\"\")","v":""}]
[null,null,null,null,null,null,null,null,null,null,null,null,null,null,null,null,null,null,null,null,null,null,null,null,null,null,null,null,null,null,null,null,null,null,{"$f":"IF(SUMMARY!G139>0,IF(SUMMARY!G139=1,20,IF(SUMMARY!G139=2,35,IF(SUMMARY!G139=3,100,200))),\"\")","v":""}]
[null,null,null,null,null,null,null,null,null,null,null,null,null,null,null,null,null,null,null,null,null,null,null,null,null,null,null,null,null,null,null,null,null,null,{"$f":"IF(SUMMARY!G140>0,IF(SUMMARY!G140=1,20,IF(SUMMARY!G140=2,35,IF(SUMMARY!G140=3,100,200))),\"\")","v":""}]
[null,null,null,null,null,null,null,null,null,null,null,null,null,null,null,null,null,null,null,null,null,null,null,null,null,null,null,null,null,null,null,null,null,null,{"$f":"IF(SUMMARY!G141>0,IF(SUMMARY!G141=1,20,IF(SUMMARY!G141=2,35,IF(SUMMARY!G141=3,100,200))),\"\")","v":""}]
[null,null,null,null,null,null,null,null,null,null,null,null,null,null,null,null,null,null,null,null,null,null,null,null,null,null,null,null,null,null,null,null,null,null,{"$f":"IF(SUMMARY!G142>0,IF(SUMMARY!G142=1,20,IF(SUMMARY!G142=2,35,IF(SUMMARY!G142=3,100,200))),\"\")","v":""}]
[null,null,null,null,null,null,null,null,null,null,null,null,null,null,null,null,null,null,null,null,null,null,null,null,null,null,null,null,null,null,null,null,null,null,{"$f":"IF(SUMMARY!G143>0,IF(SUMMARY!G143=1,20,IF(SUMMARY!G143=2,35,IF(SUMMARY!G143=3,100,200))),\"\")","v":""}]
[null,null,null,null,null,null,null,null,null,null,null,null,null,null,null,null,null,null,null,null,null,null,null,null,null,null,null,null,null,null,null,null,null,null,{"$f":"IF(SUMMARY!G144>0,IF(SUMMARY!G144=1,20,IF(SUMMARY!G144=2,35,IF(SUMMARY!G144=3,100,200))),\"\")","v":""}]
[null,null,null,null,null,null,null,null,null,null,null,null,null,null,null,null,null,null,null,null,null,null,null,null,null,null,null,null,null,null,null,null,null,null,{"$f":"IF(SUMMARY!G145>0,IF(SUMMARY!G145=1,20,IF(SUMMARY!G145=2,35,IF(SUMMARY!G145=3,100,200))),\"\")","v":""}]
[null,null,null,null,null,null,null,null,null,null,null,null,null,null,null,null,null,null,null,null,null,null,null,null,null,null,null,null,null,null,null,null,null,null,{"$f":"IF(SUMMARY!G146>0,IF(SUMMARY!G146=1,20,IF(SUMMARY!G146=2,35,IF(SUMMARY!G146=3,100,200))),\"\")","v":""}]
[null,null,null,null,null,null,null,null,null,null,null,null,null,null,null,null,null,null,null,null,null,null,null,null,null,null,null,null,null,null,null,null,null,null,{"$f":"IF(SUMMARY!G147>0,IF(SUMMARY!G147=1,20,IF(SUMMARY!G147=2,35,IF(SUMMARY!G147=3,100,200))),\"\")","v":""}]
[null,null,null,null,null,null,null,null,null,null,null,null,null,null,null,null,null,null,null,null,null,null,null,null,null,null,null,null,null,null,null,null,null,null,{"$f":"IF(SUMMARY!G148>0,IF(SUMMARY!G148=1,20,IF(SUMMARY!G148=2,35,IF(SUMMARY!G148=3,100,200))),\"\")","v":""}]
[null,null,null,null,null,null,null,null,null,null,null,null,null,null,null,null,null,null,null,null,null,null,null,null,null,null,null,null,null,null,null,null,null,null,{"$f":"IF(SUMMARY!G149>0,IF(SUMMARY!G149=1,20,IF(SUMMARY!G149=2,35,IF(SUMMARY!G149=3,100,200))),\"\")","v":""}]
[null,null,null,null,null,null,null,null,null,null,null,null,null,null,null,null,null,null,null,null,null,null,null,null,null,null,null,null,null,null,null,null,null,null,{"$f":"IF(SUMMARY!G150>0,IF(SUMMARY!G150=1,20,IF(SUMMARY!G150=2,35,IF(SUMMARY!G150=3,100,200))),\"\")","v":""}]
[null,null,null,null,null,null,null,null,null,null,null,null,null,null,null,null,null,null,null,null,null,null,null,null,null,null,null,null,null,null,null,null,null,null,{"$f":"IF(SUMMARY!G151>0,IF(SUMMARY!G151=1,20,IF(SUMMARY!G151=2,35,IF(SUMMARY!G151=3,100,200))),\"\")","v":""}]
[null,null,null,null,null,null,null,null,null,null,null,null,null,null,null,null,null,null,null,null,null,null,null,null,null,null,null,null,null,null,null,null,null,null,{"$f":"IF(SUMMARY!G152>0,IF(SUMMARY!G152=1,20,IF(SUMMARY!G152=2,35,IF(SUMMARY!G152=3,100,200))),\"\")","v":""}]
[null,null,null,null,null,null,null,null,null,null,null,null,null,null,null,null,null,null,null,null,null,null,null,null,null,null,null,null,null,null,null,null,null,null,{"$f":"IF(SUMMARY!G153>0,IF(SUMMARY!G153=1,20,IF(SUMMARY!G153=2,35,IF(SUMMARY!G153=3,100,200))),\"\")","v":""}]
[null,null,null,null,null,null,null,null,null,null,null,null,null,null,null,null,null,null,null,null,null,null,null,null,null,null,null,null,null,null,null,null,null,null,{"$f":"IF(SUMMARY!G154>0,IF(SUMMARY!G154=1,20,IF(SUMMARY!G154=2,35,IF(SUMMARY!G154=3,100,200))),\"\")","v":""}]
[null,null,null,null,null,null,null,null,null,null,null,null,null,null,null,null,null,null,null,null,null,null,null,null,null,null,null,null,null,null,null,null,null,null,{"$f":"IF(SUMMARY!G155>0,IF(SUMMARY!G155=1,20,IF(SUMMARY!G155=2,35,IF(SUMMARY!G155=3,100,200))),\"\")","v":""}]
[null,null,null,null,null,null,null,null,null,null,null,null,null,null,null,null,null,null,null,null,null,null,null,null,null,null,null,null,null,null,null,null,null,null,{"$f":"IF(SUMMARY!G156>0,IF(SUMMARY!G156=1,20,IF(SUMMARY!G156=2,35,IF(SUMMARY!G156=3,100,200))),\"\")","v":""}]
[null,null,null,null,null,null,null,null,null,null,null,null,null,null,null,null,null,null,null,null,null,null,null,null,null,null,null,null,null,null,null,null,null,null,{"$f":"IF(SUMMARY!G157>0,IF(SUMMARY!G157=1,20,IF(SUMMARY!G157=2,35,IF(SUMMARY!G157=3,100,200))),\"\")","v":""}]
[null,null,null,null,null,null,null,null,null,null,null,null,null,null,null,null,null,null,null,null,null,null,null,null,null,null,null,null,null,null,null,null,null,null,{"$f":"IF(SUMMARY!G158>0,IF(SUMMARY!G158=1,20,IF(SUMMARY!G158=2,35,IF(SUMMARY!G158=3,100,200))),\"\")","v":""}]
[null,null,null,null,null,null,null,null,null,null,null,null,null,null,null,null,null,null,null,null,null,null,null,null,null,null,null,null,null,null,null,null,null,null,{"$f":"IF(SUMMARY!G159>0,IF(SUMMARY!G159=1,20,IF(SUMMARY!G159=2,35,IF(SUMMARY!G159=3,100,200))),\"\")","v":""}]
[null,null,null,null,null,null,null,null,null,null,null,null,null,null,null,null,null,null,null,null,null,null,null,null,null,null,null,null,null,null,null,null,null,null,{"$f":"IF(SUMMARY!G160>0,IF(SUMMARY!G160=1,20,IF(SUMMARY!G160=2,35,IF(SUMMARY!G160=3,100,200))),\"\")","v":""}]
[null,null,null,null,null,null,null,null,null,null,null,null,null,null,null,null,null,null,null,null,null,null,null,null,null,null,null,null,null,null,null,null,null,null,{"$f":"IF(SUMMARY!G161>0,IF(SUMMARY!G161=1,20,IF(SUMMARY!G161=2,35,IF(SUMMARY!G161=3,100,200))),\"\")","v":""}]
[null,null,null,null,null,null,null,null,null,null,null,null,null,null,null,null,null,null,null,null,null,null,null,null,null,null,null,null,null,null,null,null,null,null,{"$f":"IF(SUMMARY!G162>0,IF(SUMMARY!G162=1,20,IF(SUMMARY!G162=2,35,IF(SUMMARY!G162=3,100,200))),\"\")","v":""}]
[null,null,null,null,null,null,null,null,null,null,null,null,null,null,null,null,null,null,null,null,null,null,null,null,null,null,null,null,null,null,null,null,null,null,{"$f":"IF(SUMMARY!G163>0,IF(SUMMARY!G163=1,20,IF(SUMMARY!G163=2,35,IF(SUMMARY!G163=3,100,200))),\"\")","v":""}]
[null,null,null,null,null,null,null,null,null,null,null,null,null,null,null,null,null,null,null,null,null,null,null,null,null,null,null,null,null,null,null,null,null,null,{"$f":"IF(SUMMARY!G164>0,IF(SUMMARY!G164=1,20,IF(SUMMARY!G164=2,35,IF(SUMMARY!G164=3,100,200))),\"\")","v":""}]
[null,null,null,null,null,null,null,null,null,null,null,null,null,null,null,null,null,null,null,null,null,null,null,null,null,null,null,null,null,null,null,null,null,null,{"$f":"IF(SUMMARY!G165>0,IF(SUMMARY!G165=1,20,IF(SUMMARY!G165=2,35,IF(SUMMARY!G165=3,100,200))),\"\")","v":""}]
[null,null,null,null,null,null,null,null,null,null,null,null,null,null,null,null,null,null,null,null,null,null,null,null,null,null,null,null,null,null,null,null,null,null,{"$f":"IF(SUMMARY!G166>0,IF(SUMMARY!G166=1,20,IF(SUMMARY!G166=2,35,IF(SUMMARY!G166=3,100,200))),\"\")","v":""}]
[null,null,null,null,null,null,null,null,null,null,null,null,null,null,null,null,null,null,null,null,null,null,null,null,null,null,null,null,null,null,null,null,null,null,{"$f":"IF(SUMMARY!G167>0,IF(SUMMARY!G167=1,20,IF(SUMMARY!G167=2,35,IF(SUMMARY!G167=3,100,200))),\"\")","v":""}]
[null,null,null,null,null,null,null,null,null,null,null,null,null,null,null,null,null,null,null,null,null,null,null,null,null,null,null,null,null,null,null,null,null,null,{"$f":"IF(SUMMARY!G168>0,IF(SUMMARY!G168=1,20,IF(SUMMARY!G168=2,35,IF(SUMMARY!G168=3,100,200))),\"\")","v":""}]
[null,null,null,null,null,null,null,null,null,null,null,null,null,null,null,null,null,null,null,null,null,null,null,null,null,null,null,null,null,null,null,null,null,null,{"$f":"IF(SUMMARY!G169>0,IF(SUMMARY!G169=1,20,IF(SUMMARY!G169=2,35,IF(SUMMARY!G169=3,100,200))),\"\")","v":""}]
[null,null,null,null,null,null,null,null,null,null,null,null,null,null,null,null,null,null,null,null,null,null,null,null,null,null,null,null,null,null,null,null,null,null,{"$f":"IF(SUMMARY!G170>0,IF(SUMMARY!G170=1,20,IF(SUMMARY!G170=2,35,IF(SUMMARY!G170=3,100,200))),\"\")","v":""}]
[null,null,null,null,null,null,null,null,null,null,null,null,null,null,null,null,null,null,null,null,null,null,null,null,null,null,null,null,null,null,null,null,null,null,{"$f":"IF(SUMMARY!G171>0,IF(SUMMARY!G171=1,20,IF(SUMMARY!G171=2,35,IF(SUMMARY!G171=3,100,200))),\"\")","v":""}]
[null,null,null,null,null,null,null,null,null,null,null,null,null,null,null,null,null,null,null,null,null,null,null,null,null,null,null,null,null,null,null,null,null,null,{"$f":"IF(SUMMARY!G172>0,IF(SUMMARY!G172=1,20,IF(SUMMARY!G172=2,35,IF(SUMMARY!G172=3,100,200))),\"\")","v":""}]
[null,null,null,null,null,null,null,null,null,null,null,null,null,null,null,null,null,null,null,null,null,null,null,null,null,null,null,null,null,null,null,null,null,null,{"$f":"IF(SUMMARY!G173>0,IF(SUMMARY!G173=1,20,IF(SUMMARY!G173=2,35,IF(SUMMARY!G173=3,100,200))),\"\")","v":""}]
[null,null,null,null,null,null,null,null,null,null,null,null,null,null,null,null,null,null,null,null,null,null,null,null,null,null,null,null,null,null,null,null,null,null,{"$f":"IF(SUMMARY!G174>0,IF(SUMMARY!G174=1,20,IF(SUMMARY!G174=2,35,IF(SUMMARY!G174=3,100,200))),\"\")","v":""}]
[null,null,null,null,null,null,null,null,null,null,null,null,null,null,null,null,null,null,null,null,null,null,null,null,null,null,null,null,null,null,null,null,null,null,{"$f":"IF(SUMMARY!G175>0,IF(SUMMARY!G175=1,20,IF(SUMMARY!G175=2,35,IF(SUMMARY!G175=3,100,200))),\"\")","v":""}]
[null,null,null,null,null,null,null,null,null,null,null,null,null,null,null,null,null,null,null,null,null,null,null,null,null,null,null,null,null,null,null,null,null,null,{"$f":"IF(SUMMARY!G176>0,IF(SUMMARY!G176=1,20,IF(SUMMARY!G176=2,35,IF(SUMMARY!G176=3,100,200))),\"\")","v":""}]
[null,null,null,null,null,null,null,null,null,null,null,null,null,null,null,null,null,null,null,null,null,null,null,null,null,null,null,null,null,null,null,null,null,null,{"$f":"IF(SUMMARY!G177>0,IF(SUMMARY!G177=1,20,IF(SUMMARY!G177=2,35,IF(SUMMARY!G177=3,100,200))),\"\")","v":""}]
[null,null,null,null,null,null,null,null,null,null,null,null,null,null,null,null,null,null,null,null,null,null,null,null,null,null,null,null,null,null,null,null,null,null,{"$f":"IF(SUMMARY!G178>0,IF(SUMMARY!G178=1,20,IF(SUMMARY!G178=2,35,IF(SUMMARY!G178=3,100,200))),\"\")","v":""}]
[null,null,null,null,null,null,null,null,null,null,null,null,null,null,null,null,null,null,null,null,null,null,null,null,null,null,null,null,null,null,null,null,null,null,{"$f":"IF(SUMMARY!G179>0,IF(SUMMARY!G179=1,20,IF(SUMMARY!G179=2,35,IF(SUMMARY!G179=3,100,200))),\"\")","v":""}]
[null,null,null,null,null,null,null,null,null,null,null,null,null,null,null,null,null,null,null,null,null,null,null,null,null,null,null,null,null,null,null,null,null,null,{"$f":"IF(SUMMARY!G180>0,IF(SUMMARY!G180=1,20,IF(SUMMARY!G180=2,35,IF(SUMMARY!G180=3,100,200))),\"\")","v":""}]
[null,null,null,null,null,null,null,null,null,null,null,null,null,null,null,null,null,null,null,null,null,null,null,null,null,null,null,null,null,null,null,null,null,null,{"$f":"IF(SUMMARY!G181>0,IF(SUMMARY!G181=1,20,IF(SUMMARY!G181=2,35,IF(SUMMARY!G181=3,100,200))),\"\")","v":""}]
[null,null,null,null,null,null,null,null,null,null,null,null,null,null,null,null,null,null,null,null,null,null,null,null,null,null,null,null,null,null,null,null,null,null,{"$f":"IF(SUMMARY!G182>0,IF(SUMMARY!G182=1,20,IF(SUMMARY!G182=2,35,IF(SUMMARY!G182=3,100,200))),\"\")","v":""}]
[null,null,null,null,null,null,null,null,null,null,null,null,null,null,null,null,null,null,null,null,null,null,null,null,null,null,null,null,null,null,null,null,null,null,{"$f":"IF(SUMMARY!G183>0,IF(SUMMARY!G183=1,20,IF(SUMMARY!G183=2,35,IF(SUMMARY!G183=3,100,200))),\"\")","v":""}]
[null,null,null,null,null,null,null,null,null,null,null,null,null,null,null,null,null,null,null,null,null,null,null,null,null,null,null,null,null,null,null,null,null,null,{"$f":"IF(SUMMARY!G184>0,IF(SUMMARY!G184=1,20,IF(SUMMARY!G184=2,35,IF(SUMMARY!G184=3,100,200))),\"\")","v":""}]

{"sheet":"MAPPING","index":8,"n_rows":13,"n_cols":15,"rows_kept":13,"cut":false,"hidden":false,"merged":[]}
["ID","RP","DATE","LATITUDE","LONGITUDE","TONN","HMA (72° F)","BASE","SUBGRADE","#1 Defl","HMA THICKNESS","BASE THICKNESS","ESALs",null,"err"]
[1,{"$f":"SUMMARY!D11","v":0.1},{"$f":"SUMMARY!$D$2","v":"2013-05-28"},{"$f":"INDEX('FWD Data'!$AB$6:$AB$2006,MATCH(B2,'FWD Data'!$F$6:$F$2006,0),1)","v":43.643929999999997},{"$f":"INDEX('FWD Data'!$AC$6:$AC$2006,MATCH(B2,'FWD Data'!$F$6:$F$2006,0),1)","v":-94.974490000000003},{"$f":"SUMMARY!P11","v":0},{"$f":"SUMMARY!R11","v":0},{"$f":"SUMMARY!S11","v":0},{"$f":"SUMMARY!T11","v":0},{"$f":"SUMMARY!V11","v":12.850000563603137},{"$f":"SUMMARY!E11","v":0},{"$f":"SUMMARY!H11","v":0},{"$f":"SUMMARY!I11","v":0},null,{"$f":"IFERROR((E2*D2)/(E2*D2),2)","v":1}]
[2,{"$f":"SUMMARY!D12","v":0.18},{"$f":"SUMMARY!$D$2","v":"2013-05-28"},{"$f":"INDEX('FWD Data'!$AB$6:$AB$2006,MATCH(B3,'FWD Data'!$F$6:$F$2006,0),1)","v":43.642780000000002},{"$f":"INDEX('FWD Data'!$AC$6:$AC$2006,MATCH(B3,'FWD Data'!$F$6:$F$2006,0),1)","v":-94.974485000000001},{"$f":"SUMMARY!P12","v":0},{"$f":"SUMMARY!R12","v":0},{"$f":"SUMMARY!S12","v":0},{"$f":"SUMMARY!T12","v":0},{"$f":"SUMMARY!V12","v":9.9200000811940381},{"$f":"SUMMARY!E12","v":0},{"$f":"SUMMARY!H12","v":0},{"$f":"SUMMARY!I12","v":0},null,{"$f":"IFERROR((E3*D3)/(E3*D3),2)","v":1}]
[3,{"$f":"SUMMARY!D13","v":0.3},{"$f":"SUMMARY!$D$2","v":"2013-05-28"},{"$f":"INDEX('FWD Data'!$AB$6:$AB$2006,MATCH(B4,'FWD Data'!$F$6:$F$2006,0),1)","v":43.641048300000001},{"$f":"INDEX('FWD Data'!$AC$6:$AC$2006,MATCH(B4,'FWD Data'!$F$6:$F$2006,0),1)","v":-94.974476699999997},{"$f":"SUMMARY!P13","v":0},{"$f":"SUMMARY!R13","v":0},{"$f":"SUMMARY!S13","v":0},{"$f":"SUMMARY!T13","v":0},{"$f":"SUMMARY!V13","v":10.130000066562085},{"$f":"SUMMARY!E13","v":0},{"$f":"SUMMARY!H13","v":0},{"$f":"SUMMARY!I13","v":0},null,1]
[4,{"$f":"SUMMARY!D14","v":0.4},{"$f":"SUMMARY!$D$2","v":"2013-05-28"},{"$f":"INDEX('FWD Data'!$AB$6:$AB$2006,MATCH(B5,'FWD Data'!$F$6:$F$2006,0),1)","v":43.639593300000001},{"$f":"INDEX('FWD Data'!$AC$6:$AC$2006,MATCH(B5,'FWD Data'!$F$6:$F$2006,0),1)","v":-94.974471699999995},{"$f":"SUMMARY!P14","v":0},{"$f":"SUMMARY!R14","v":0},{"$f":"SUMMARY!S14","v":0},{"$f":"SUMMARY!T14","v":0},{"$f":"SUMMARY!V14","v":8.969999889926326},{"$f":"SUMMARY!E14","v":0},{"$f":"SUMMARY!H14","v":0},{"$f":"SUMMARY!I14","v":0},null,1]
[5,{"$f":"SUMMARY!D15","v":0.5},{"$f":"SUMMARY!$D$2","v":"2013-05-28"},{"$f":"INDEX('FWD Data'!$AB$6:$AB$2006,MATCH(B6,'FWD Data'!$F$6:$F$2006,0),1)","v":43.638150000000003},{"$f":"INDEX('FWD Data'!$AC$6:$AC$2006,MATCH(B6,'FWD Data'!$F$6:$F$2006,0),1)","v":-94.9744666},{"$f":"SUMMARY!P15","v":0},{"$f":"SUMMARY!R15","v":0},{"$f":"SUMMARY!S15","v":0},{"$f":"SUMMARY!T15","v":0},{"$f":"SUMMARY!V15","v":11.23000016155844},{"$f":"SUMMARY!E15","v":0},{"$f":"SUMMARY!H15","v":0},{"$f":"SUMMARY!I15","v":0},null,1]
[6,{"$f":"SUMMARY!D16","v":0.6},{"$f":"SUMMARY!$D$2","v":"2013-05-28"},{"$f":"INDEX('FWD Data'!$AB$6:$AB$2006,MATCH(B7,'FWD Data'!$F$6:$F$2006,0),1)","v":43.636704999999999},{"$f":"INDEX('FWD Data'!$AC$6:$AC$2006,MATCH(B7,'FWD Data'!$F$6:$F$2006,0),1)","v":-94.974461700000006},{"$f":"SUMMARY!P16","v":0},{"$f":"SUMMARY!R16","v":0},{"$f":"SUMMARY!S16","v":0},{"$f":"SUMMARY!T16","v":0},{"$f":"SUMMARY!V16","v":7.3300002616547975},{"$f":"SUMMARY!E16","v":0},{"$f":"SUMMARY!H16","v":0},{"$f":"SUMMARY!I16","v":0},null,1]
[7,{"$f":"SUMMARY!D17","v":0.7},{"$f":"SUMMARY!$D$2","v":"2013-05-28"},{"$f":"INDEX('FWD Data'!$AB$6:$AB$2006,MATCH(B8,'FWD Data'!$F$6:$F$2006,0),1)","v":43.635260000000002},{"$f":"INDEX('FWD Data'!$AC$6:$AC$2006,MATCH(B8,'FWD Data'!$F$6:$F$2006,0),1)","v":-94.974455000000006},{"$f":"SUMMARY!P17","v":0},{"$f":"SUMMARY!R17","v":0},{"$f":"SUMMARY!S17","v":0},{"$f":"SUMMARY!T17","v":0},{"$f":"SUMMARY!V17","v":9.070000226238573},{"$f":"SUMMARY!E17","v":0},{"$f":"SUMMARY!H17","v":0},{"$f":"SUMMARY!I17","v":0},null,1]
[8,{"$f":"SUMMARY!D18","v":0.8},{"$f":"SUMMARY!$D$2","v":"2013-05-28"},{"$f":"INDEX('FWD Data'!$AB$6:$AB$2006,MATCH(B9,'FWD Data'!$F$6:$F$2006,0),1)","v":43.633814999999998},{"$f":"INDEX('FWD Data'!$AC$6:$AC$2006,MATCH(B9,'FWD Data'!$F$6:$F$2006,0),1)","v":-94.974450000000004},{"$f":"SUMMARY!P18","v":0},{"$f":"SUMMARY!R18","v":0},{"$f":"SUMMARY!S18","v":0},{"$f":"SUMMARY!T18","v":0},{"$f":"SUMMARY!V18","v":6.7399999594837752},{"$f":"SUMMARY!E18","v":0},{"$f":"SUMMARY!H18","v":0},{"$f":"SUMMARY!I18","v":0},null,1]
[9,{"$f":"SUMMARY!D19","v":0.9},{"$f":"SUMMARY!$D$2","v":"2013-05-28"},{"$f":"INDEX('FWD Data'!$AB$6:$AB$2006,MATCH(B10,'FWD Data'!$F$6:$F$2006,0),1)","v":43.632366699999999},{"$f":"INDEX('FWD Data'!$AC$6:$AC$2006,MATCH(B10,'FWD Data'!$F$6:$F$2006,0),1)","v":-94.974448300000006},{"$f":"SUMMARY!P19","v":0},{"$f":"SUMMARY!R19","v":0},{"$f":"SUMMARY!S19","v":0},{"$f":"SUMMARY!T19","v":0},{"$f":"SUMMARY!V19","v":7.1200002762867509},{"$f":"SUMMARY!E19","v":0},{"$f":"SUMMARY!H19","v":0},{"$f":"SUMMARY!I19","v":0},null,1]
[10,{"$f":"SUMMARY!D20","v":0.99},{"$f":"SUMMARY!$D$2","v":"2013-05-28"},{"$f":"INDEX('FWD Data'!$AB$6:$AB$2006,MATCH(B11,'FWD Data'!$F$6:$F$2006,0),1)","v":43.631063300000001},{"$f":"INDEX('FWD Data'!$AC$6:$AC$2006,MATCH(B11,'FWD Data'!$F$6:$F$2006,0),1)","v":-94.974440000000001},{"$f":"SUMMARY!P20","v":0},{"$f":"SUMMARY!R20","v":0},{"$f":"SUMMARY!S20","v":0},{"$f":"SUMMARY!T20","v":0},{"$f":"SUMMARY!V20","v":20.460000805748663},{"$f":"SUMMARY!E20","v":0},{"$f":"SUMMARY!H20","v":0},{"$f":"SUMMARY!I20","v":0},null,1]
[11,{"$f":"SUMMARY!D21","v":1.1000000000000001},{"$f":"SUMMARY!$D$2","v":"2013-05-28"},{"$f":"INDEX('FWD Data'!$AB$6:$AB$2006,MATCH(B12,'FWD Data'!$F$6:$F$2006,0),1)","v":43.629480000000001},{"$f":"INDEX('FWD Data'!$AC$6:$AC$2006,MATCH(B12,'FWD Data'!$F$6:$F$2006,0),1)","v":-94.974446700000001},{"$f":"SUMMARY!P21","v":0},{"$f":"SUMMARY!R21","v":0},{"$f":"SUMMARY!S21","v":0},{"$f":"SUMMARY!T21","v":0},{"$f":"SUMMARY!V21","v":6.2200002531751615},{"$f":"SUMMARY!E21","v":0},{"$f":"SUMMARY!H21","v":0},{"$f":"SUMMARY!I21","v":0},null,1]
[12,{"$f":"SUMMARY!D22","v":1.2},{"$f":"SUMMARY!$D$2","v":"2013-05-28"},{"$f":"INDEX('FWD Data'!$AB$6:$AB$2006,MATCH(B13,'FWD Data'!$F$6:$F$2006,0),1)","v":43.628011600000001},{"$f":"INDEX('FWD Data'!$AC$6:$AC$2006,MATCH(B13,'FWD Data'!$F$6:$F$2006,0),1)","v":-94.974456700000005},{"$f":"SUMMARY!P22","v":0},{"$f":"SUMMARY!R22","v":0},{"$f":"SUMMARY!S22","v":0},{"$f":"SUMMARY!T22","v":0},{"$f":"SUMMARY!V22","v":4.2399999620337754},{"$f":"SUMMARY!E22","v":0},{"$f":"SUMMARY!H22","v":0},{"$f":"SUMMARY!I22","v":0},null,1]

{"sheet":"Sheet2","index":9,"n_rows":173,"n_cols":21,"rows_kept":173,"cut":false,"hidden":true,"merged":[]}
[]
[]
[]
[]
[]
[]
[]
[]
[]
[null,null,null,null,null,null,null,null,null,null,null,null,null,null,50000]
[null,null,null,null,null,null,null,null,null,null,null,null,null,null,{"$f":"O10+200000","v":250000},11.34920245575781,213723.96875,142599.375,17146.662109375,2246.80419921875,60]
[null,null,null,null,null,null,null,null,null,null,null,null,null,null,{"$f":"O11+200000","v":450000},9.7982204683311096,213723.96875,142599.375,17146.662109375,2246.80419921875,60]
[null,null,null,null,null,null,null,null,null,null,null,null,null,null,650000,8.9376223612207006,213723.96875,142599.375,17146.662109375,2246.80419921875,60]
[null,null,null,null,null,null,null,null,null,null,null,null,null,null,850000,8.357869898315851,213723.96875,142599.375,17146.662109375,2246.80419921875,60]
[null,null,null,null,null,null,null,null,null,null,null,null,null,null,1050000,7.9278059621421075,213723.96875,142599.375,17146.662109375,2246.80419921875,60]
[null,null,null,null,null,null,null,null,null,null,null,null,null,null,1250000,7.5896689445626855,213723.96875,142599.375,17146.662109375,2246.80419921875,60]
[null,null,null,null,null,null,null,null,null,null,null,null,null,null,1450000,7.3132149695682109,213723.96875,142599.375,17146.662109375,2246.80419921875,60]
[null,null,null,null,null,null,null,null,null,null,null,null,null,null,1650000,7.080751568029096,213723.96875,142599.375,17146.662109375,2246.80419921875,60]
[null,null,null,null,null,null,null,null,null,null,null,null,null,null,1850000,6.8810926629910183,213723.96875,142599.375,17146.662109375,2246.80419921875,60]
[null,null,null,null,null,null,null,null,null,null,null,null,null,null,2050000,6.7067461574881344,213723.96875,142599.375,17146.662109375,2246.80419921875,60]
[null,null,null,null,null,null,null,null,null,null,null,null,null,null,2250000,6.5524650586036319,213723.96875,142599.375,17146.662109375,2246.80419921875,60]
[null,null,null,null,null,null,null,null,null,null,null,null,null,null,2450000,6.4144410531297069,213723.96875,142599.375,17146.662109375,2246.80419921875,60]
[null,null,null,null,null,null,null,null,null,null,null,null,null,null,2650000,6.2898294250884401,213723.96875,142599.375,17146.662109375,2246.80419921875,60]
[null,null,null,null,null,null,null,null,null,null,null,null,null,null,2850000,6.1764526826978283,213723.96875,142599.375,17146.662109375,2246.80419921875,60]
[null,null,null,null,null,null,null,null,null,null,null,null,null,null,3050000,6.072609860467467,213723.96875,142599.375,17146.662109375,2246.80419921875,60]
[null,null,null,null,null,null,null,null,null,null,null,null,null,null,3250000,5.9769482747129619,213723.96875,142599.375,17146.662109375,2246.80419921875,60]
[null,null,null,null,null,null,null,null,null,null,null,null,null,null,3450000,5.8883764821526672,213723.96875,142599.375,17146.662109375,2246.80419921875,60]
[null,null,null,null,null,null,null,null,null,null,null,null,null,null,3650000,5.8060012453057563,213723.96875,142599.375,17146.662109375,2246.80419921875,60]
[null,null,null,null,null,null,null,null,null,null,null,null,null,null,3850000,5.7290836478262781,213723.96875,142599.375,17146.662109375,2246.80419921875,60]
[null,null,null,null,null,null,null,null,null,null,null,null,null,null,4050000,5.6570053237239897,213723.96875,142599.375,17146.662109375,2246.80419921875,60]
[null,null,null,null,null,"For Vlookup of r-value"]
[null,null,null,null,null,"Moduli","R-value"]
[null,null,null,null,null,1160.3019511782647,0]
[null,null,null,null,null,1662.5277729149843,0.5]
[null,null,null,null,null,2151.1708099357234,1]
[null,null,null,null,null,2626.4268631947434,1.5]
[null,null,null,null,null,3088.4917336463054,2]
[null,null,null,null,null,3537.5612222446703,2.5]
[null,null,null,null,null,3973.8311299441007,3]
[null,null,null,null,null,4397.4972576988575,3.5]
[null,null,null,null,null,4808.7554064631995,4]
[null,null,null,null,null,5207.8013771913929,4.5]
[null,null,null,null,null,5594.8309708376955,5]
[null,null,null,null,null,5970.0399883563687,5.5]
[null,null,null,null,null,6333.6242307016755,6]
[null,null,null,null,null,6685.7794988278765,6.5]
[null,null,null,null,null,7026.701593689234,7]
[null,null,null,null,null,7356.5863162400055,7.5]
[null,null,null,null,null,7675.6294674344572,8]
[null,null,null,null,null,7984.0268482268475,8.5]
[null,null,null,null,null,8281.9742595714379,9]
[null,null,null,null,null,8569.6675024224915,9.5]
[null,null,null,null,null,8847.3023777342678,10]
[null,null,null,null,null,9115.0746864610301,10.5]
[null,null,null,null,null,9373.1802295570378,11]
[null,null,null,null,null,9621.8148079765524,11.5]
[null,null,null,null,null,9861.174222673837,12]
[null,null,null,null,null,10091.454274603151,12.5]
[null,null,null,null,null,10312.850764718754,13]
[null,null,null,null,null,10525.559493974913,13.5]
[null,null,null,null,null,10729.776263325884,14]
[null,null,null,null,null,10925.696873725932,14.5]
[null,null,null,null,null,11113.517126129318,15]
[null,null,null,null,null,11293.4328214903,15.5]
[null,null,null,null,null,11465.639760763141,16]
[null,null,null,null,null,11630.333744902104,16.5]
[null,null,null,null,null,11787.710574861447,17]
[null,null,null,null,null,11937.966051595435,17.5]
[null,null,null,null,null,12081.295976058329,18]
[null,null,null,null,null,12217.896149204387,18.5]
[null,null,null,null,null,12347.962371987873,19]
[null,null,null,null,null,12471.690445363047,19.5]
[null,null,null,null,null,12589.276170284171,20]
[null,null,null,null,null,12700.915347705512,20.5]
[null,null,null,null,null,12806.803778581316,21]
[null,null,null,null,null,12907.137263865859,21.5]
[null,null,null,null,null,13002.111604513399,22]
[null,null,null,null,null,13091.922601478194,22.5]
[null,null,null,null,null,13176.766055714505,23]
[null,null,null,null,null,13256.8377681766,23.5]
[null,null,null,null,null,13332.333539818734,24]
[null,null,null,null,null,13403.449171595166,24.5]
[null,null,null,null,null,13470.380464460168,25]
[null,null,null,null,null,13533.323219367991,25.5]
[null,null,null,null,null,13592.473237272898,26]
[null,null,null,null,null,13648.026319129154,26.5]
[null,null,null,null,null,13700.178265891023,27]
[null,null,null,null,null,13749.124878512755,27.5]
[null,null,null,null,null,13795.061957948627,28]
[null,null,null,null,null,13838.185305152883,28.5]
[null,null,null,null,null,13878.690721079798,29]
[null,null,null,null,null,13916.774006683625,29.5]
[null,null,null,null,null,13952.630962918633,30]
[null,null,null,null,null,13986.457390739075,30.5]
[null,null,null,null,null,14018.449091099215,31]
[null,null,null,null,null,14048.801864953322,31.5]
[null,null,null,null,null,14077.711513255646,32]
[null,null,null,null,null,14105.373836960458,32.5]
[null,null,null,null,null,14131.984637022015,33]
[null,null,null,null,null,14157.739714394573,33.5]
[null,null,null,null,null,14182.834870032397,34]
[null,null,null,null,null,14207.465904889757,34.5]
[null,null,null,null,null,14231.828619920903,35]
[null,null,null,null,null,14256.118816080098,35.5]
[null,null,null,null,null,14280.532294321605,36]
[null,null,null,null,null,14305.264855599688,36.5]
[null,null,null,null,null,14330.512300868615,37]
[null,null,null,null,null,14356.470431082633,37.5]
[null,null,null,null,null,14383.335047196002,38]
[null,null,null,null,null,14411.301950162997,38.5]
[null,null,null,null,null,14440.56694093787,39]
[null,null,null,null,null,14471.325820474887,39.5]
[null,null,null,null,null,14503.774389728304,40]
[null,null,null,null,null,14538.1084496524,40.5]
[null,null,null,null,null,14574.523801201405,41]
[null,null,null,null,null,14613.216245329597,41.5]
[null,null,null,null,null,14654.38158299124,42]
[null,null,null,null,null,14698.2156151406,42.5]
[null,null,null,null,null,14744.914142731925,43]
[null,null,null,null,null,14794.672966719489,43.5]
[null,null,null,null,null,14847.687888057542,44]
[null,null,null,null,null,14904.154707700354,44.5]
[null,null,null,null,null,14964.269226602182,45]
[null,null,null,null,null,15028.227245717278,45.5]
[null,null,null,null,null,15096.224565999924,46]
[null,null,null,null,null,15168.456988404379,46.5]
[null,null,null,null,null,15245.120313884885,47]
[null,null,null,null,null,15326.41034339571,47.5]
[null,null,null,null,null,15412.522877891124,48]
[null,null,null,null,null,15503.653718325382,48.5]
[null,null,null,null,null,15599.998665652753,49]
[null,null,null,null,null,15701.753520827482,49.5]
[null,null,null,null,null,15809.114084803859,50]
[null,null,null,null,null,15922.276158536113,50.5]
[null,null,null,null,null,16041.435542978523,51]
[null,null,null,null,null,16166.788039085341,51.5]
[null,null,null,null,null,16298.529447810839,52]
[null,null,null,null,null,16436.855570109281,52.5]
[null,null,null,null,null,16581.96220693491,53]
[null,null,null,null,null,16734.045159242018,53.5]
[null,null,null,null,null,16893.300227984833,54]
[null,null,null,null,null,17059.923214117629,54.5]
[null,null,null,null,null,17234.109918594655,55]
[null,null,null,null,null,17416.056142370191,55.5]
[null,null,null,null,null,17605.957686398513,56]
[null,null,null,null,null,17804.010351633849,56.5]
[null,null,null,null,null,18010.409939030469,57]
[null,null,null,null,null,18225.352249542651,57.5]
[null,null,null,null,null,18449.033084124643,58]
[null,null,null,null,null,18681.64824373071,58.5]
[null,null,null,null,null,18923.393529315093,59]
[null,null,null,null,null,19174.464741832086,59.5]
[null,null,null,null,null,19435.057682235936,60]
[null,null,null,null,null,19705.368151480896,60.5]
[null,null,null,null,null,19985.591950521233,61]
[null,null,null,null,null,20275.92488031121,61.5]
[null,null,null,null,null,20576.562741805097,62]
[null,null,null,null,null,20887.701335957161,62.5]
[null,null,null,null,null,21209.536463721626,63]
[null,null,null,null,null,21542.263926052783,63.5]
[null,null,null,null,null,21886.079523904897,64]
[null,null,null,null,null,22241.179058232214,64.5]
[null,null,null,null,null,22607.758329988996,65]
[null,null,null,null,null,22986.013140129504,65.5]
[null,null,null,null,null,23376.139289608029,66]
[null,null,null,null,null,23778.332579378788,66.5]
[null,null,null,null,null,24192.788810396069,67]
[null,null,null,null,null,24619.703783614128,67.5]
[null,null,null,null,null,25059.273299987199,68]
[null,null,null,null,null,25511.693160469607,68.5]
[null,null,null,null,null,25977.159166015561,69]
[null,null,null,null,null,26455.867117579332,69.5]
[null,null,null,null,null,26948.012816115195,70]